Workbook

Sheet I
A4: INSTRUCTIONS
B8: Overview
B27: Navigating through the Tool
B42: A number of visual queues are provided within the Tool to assist users:
B43: F | C43: Provides specific information on the input assumptions, type of data to be entered, or cautionary notes
B45: & | C45: Provides reference to additional resources
C47: Denotes default scenario values that can be changed by users
C49: Denotes cells where the default scenario values have been modified and saved
C51: Denotes default scenario values that may be changed, but where information might requre further research from outside sources
C53: Denotes cells where the values that represent default research values have been modified and saved
C55: Denotes cells where values have been modified and but not yet saved. NOTE that once these values are saved, the user can no longer revert to the initial values.
C57: Denotes cells with errors
C59: Denotes cells that are dependent on other cells and therefore cannot be modified
B62: Glossary
B92: Definitions
B94: R.O.W. | D94: Right of Way
B95: m | D95: Metres
B96: ha | D96: Area in Hectares
B97: mm | D97: Millimetres
B98: hh | D98: Household
B99: VSH | D99: Vehicle Service Hour (transit)
B100: L | D100: Litres
B101: GHG | D101: Greenhouse Gas Emissions
B102: VKT | D102: Vehicle kilometres travelled
B103: km | D103: Kilometres
B104: Unit | D104: A self contained dwelling unit, typically occupied by one household
B106: Limitations on Use of Tool

Sheet Tabs
B1: Tab | C1: Description | D1: =B1 -> Tab | E1: Lock Y/N | F1: Lock Buttons Y/N | G1: Columns Hide Y/N
A2: =OFFSET(A2,-1,0)+1 -> 1 | B2: I | C2: Instructions | D2: =B2 -> I | E2: 1 | F2: 0 | G2: 0
A3: =OFFSET(A3,-1,0)+1 -> 2 | B3: Tabs | C3: Tabs | D3: =B3 -> Tabs | E3: 0 | F3: 0 | G3: 0
A4: 3 | B4: Data | C4: Data | D4: Data | E4: 0 | F4: 0 | G4: 0
A5: 4 | B5: M | C5: Main Menu | D5: M | E5: 1 | F5: 1 | G5: 0
A6: 5 | B6: S | C6: Scenarios | D6: S | E6: 1 | F6: 1 | G6: 0
A7: 6 | B7: CV | C7: Costing Variables | D7: CV | E7: 1 | F7: 1 | G7: 1
A8: 7 | B8: RV | C8: Revenue Variables | D8: RV | E8: 1 | F8: 1 | G8: 1
A9: 8 | B9: DC | C9: Development Characteristics | D9: DC | E9: 1 | F9: 1 | G9: 1
A10: 9 | B10: A | C10: Allocation | D10: A | E10: 1 | F10: 1 | G10: 1
A11: 10 | B11: NOTES | C11: User Comments | D11: NOTES | E11: 1 | F11: 0 | G11: 0
A12: 11 | B12: UD | C12: User Defined | D12: UD | E12: 1 | F12: 1 | G12: 1
A13: 12 | B13: CS | C13: Cost Savings | D13: CS | E13: 1 | F13: 1 | G13: 1
A14: 13 | B14: R | C14: View Results | D14: R | E14: 1 | F14: 1 | G14: 1
A15: 14 | B15: IC | C15: Intermediate Calculations | D15: IC | E15: 1 | F15: 1 | G15: 0
A16: 15 | B16: D | C16: Density Calculator | D16: D | E16: 1 | F16: 1 | G16: 1
A17: 16 | B17: UC | C17: Unit Costs | D17: UC | E17: 1 | F17: 1 | G17: 0
A18: 17 | B18: RC | C18: Road Costs | D18: RC | E18: 1 | F18: 1 | G18: 1
A19: 18 | B19: HC | C19: CAPITAL HOUSEHOLD COST CALCULATOR | D19: HC | E19: 1 | F19: 1 | G19: 1
A21: =MAX($A$1:$A$20) -> 18 | D21: HC | E21: =VLOOKUP(Tabs_SheetActive,$D$1:E$20,COLUMN(E$1)-COLUMN($D$1)+1,FALSE) -> 1 | F21: =VLOOKUP(Tabs_SheetActive,$D$1:F$20,COLUMN(F$1)-COLUMN($D$1)+1,FALSE) -> 1 | G21: =VLOOKUP(Tabs_SheetActive,$D$1:G$20,COLUMN(G$1)-COLUMN($D$1)+1,FALSE) -> 1

Sheet Data
D1: =OFFSET(D1,0,-1)+1 -> 1 | E1: =OFFSET(E1,0,-1)+1 -> 2 | F1: 3 | G1: 4 | H1: 5 | I1: 6 | J1: 7 | K1: 8 | L1: 9 | M1: 10 | N1: 11 | O1: 12 | P1: 13 | Q1: 14 | R1: 15 | S1: 16 | T1: 17 | U1: 18 | V1: 19 | W1: 20 | X1: 21 | Y1: 22 | Z1: 23 | AA1: 24 | AB1: 25 | AC1: 26 | AD1: 27 | AE1: 28 | AF1: 29 | AG1: 30 | AH1: 31 | AI1: 32 | AJ1: 33 | AK1: 34 | AL1: 35 | AM1: 36 | AN1: 37 | AO1: 38 | AP1: 39 | AQ1: 40 | AR1: 41 | AS1: 42 | AT1: 43 | AU1: 44 | AV1: 45 | AW1: 46 | AX1: 47 | AY1: 48 | AZ1: 49 | BA1: 50 | BB1: 51 | BC1: 52 | BD1: 53 | BE1: 54 | BF1: 55 | BG1: 56 | BH1: 57 | BI1: 58 | BJ1: 59 | BK1: 60 | BL1: 61 | BM1: 62 | BN1: 63 | BO1: =OFFSET(BO1,0,-1)+1 -> 64 | BP1: 65 | BQ1: 66 | BR1: 67 | BS1: 68 | BT1: 69 | BU1: 70 | BV1: 71 | BW1: 72 | BX1: 73 | BY1: 74 | BZ1: 75 | CA1: 76 | CB1: 77 | CC1: 78 | CD1: 79 | CE1: 80 | CF1: 81 | CG1: 82 | CH1: 83 | CI1: 84 | CJ1: 85 | CK1: 86 | CL1: 87 | CM1: 88 | CN1: 89 | CO1: 90 | CP1: 91 | CQ1: 92 | CR1: 93 | CS1: 94 | CT1: 95 | CU1: 96 | CV1: 97 | CW1: 98 | CX1: 99 | CY1: 100 | CZ1: 101 | DA1: 102 | DB1: 103 | DC1: 104 | DD1: 105 | DE1: 106 | DF1: 107 | DG1: 108 | DH1: 109 | DI1: 110 | DJ1: 111 | DK1: 112 | DL1: 113 | DM1: 114 | DN1: 115 | DO1: 116 | DP1: 117 | DQ1: 118 | DR1: 119 | DS1: 120 | DT1: 121 | DU1: 122 | DV1: 123 | DW1: 124 | DX1: 125 | DY1: 126 | DZ1: 127 | EA1: 128 | EB1: 129 | EC1: =OFFSET(EC1,0,-1)+1 -> 130 | ED1: 131 | EE1: 132 | EF1: 133 | EG1: 134 | EH1: 135 | EI1: 136 | EJ1: 137 | EK1: 138 | EL1: 139 | EM1: 140 | EN1: 141 | EO1: 142 | EP1: 143 | EQ1: 144 | ER1: 145 | ES1: 146 | ET1: 147 | EU1: 148 | EV1: 149 | EW1: 150 | EX1: 151 | EY1: 152 | EZ1: 153 | FA1: 154 | FB1: 155 | FC1: 156 | FD1: 157 | FE1: 158 | FF1: 159 | FG1: 160 | FH1: 161 | FI1: 162 | FJ1: 163 | FK1: 164 | FL1: 165 | FM1: 166 | FN1: 167 | FO1: 168 | FP1: 169 | FQ1: 170 | FR1: =OFFSET(FR1,0,-1)+1 -> 171 | FS1: 172 | FT1: 173 | FU1: =OFFSET(FU1,0,-1)+1 -> 174 | FV1: 175 | FW1: 176 | FX1: =OFFSET(FX1,0,-1)+1 -> 177 | FY1: 178 | FZ1: 179 | GA1: =OFFSET(GA1,0,-1)+1 -> 180 | GB1: 181 | GC1: 182 | GD1: =OFFSET(GD1,0,-1)+1 -> 183 | GE1: 184 | GF1: 185 | GG1: =OFFSET(GG1,0,-1)+1 -> 186 | GH1: 187 | GI1: 188 | GJ1: 189 | GK1: 190 | GL1: 191 | GM1: 192 | GN1: 193 | GO1: 194 | GP1: 195 | GQ1: 196 | GR1: 197 | GS1: 198 | GT1: 199 | GU1: 200 | GV1: 201 | GW1: 202 | GX1: 203 | GY1: 204 | GZ1: 205 | HA1: 206 | HB1: 207 | HC1: 208 | HD1: 209 | HE1: 210 | HF1: 211 | HG1: =OFFSET(HG1,0,-1)+1 -> 212 | HH1: 213 | HI1: 214 | HJ1: 215 | HK1: 216 | HL1: 217 | HM1: 218 | HN1: 219 | HO1: 220 | HP1: 221 | HQ1: 222 | HR1: 223 | HS1: 224 | HT1: 225 | HU1: 226 | HV1: 227 | HW1: 228 | HX1: 229 | HY1: 230 | HZ1: 231 | IA1: 232 | IB1: 233 | IC1: 234 | ID1: 235 | IE1: 236 | IF1: 237 | IG1: 238 | IH1: 239 | II1: 240 | IJ1: 241 | IK1: 242 | IL1: 243 | IM1: 244 | IN1: 245 | IO1: 246 | IP1: 247 | IQ1: 248 | IR1: 249 | IS1: 250 | IT1: 251 | IU1: 252 | IV1: 253 | IW1: 254 | IX1: 255 | IY1: 256 | IZ1: 257 | JA1: 258 | JB1: 259 | JC1: 260 | JD1: 261 | JE1: 262 | JF1: 263 | JG1: 264 | JH1: 265 | JI1: 266 | JJ1: 267 | JK1: 268 | JL1: 269 | JM1: 270 | JN1: 271 | JO1: 272 | JP1: 273 | JQ1: 274 | JR1: 275 | JS1: 276 | JT1: 277 | JU1: 278 | JV1: 279 | JW1: 280 | JX1: 281 | JY1: 282 | JZ1: 283 | KA1: 284 | KB1: 285 | KC1: 286 | KD1: 287 | KE1: 288 | KF1: 289 | KG1: 290 | KH1: 291 | KI1: 292 | KJ1: 293 | KK1: 294 | KL1: 295 | KM1: 296 | KN1: 297 | KO1: 298 | KP1: 299 | KQ1: 300 | KR1: 301 | KS1: 302 | KT1: 303 | KU1: 304 | KV1: 305 | KW1: 306 | KX1: =OFFSET(KX1,0,-1)+1 -> 307 | KY1: 308 | KZ1: 309 | LA1: 310 | LB1: 311 | LC1: 312 | LD1: 313 | LE1: 314 | LF1: 315 | LG1: 316 | LH1: 317 | LI1: 318 | LJ1: 319 | LK1: 320 | LL1: 321 | LM1: 322 | LN1: 323 | LO1: 324 | LP1: 325 | LQ1: 326 | LR1: 327 | LS1: 328 | LT1: 329 | LU1: 330 | LV1: 331 | LW1: 332 | LX1: 333 | LY1: 334 | LZ1: 335 | MA1: 336 | MB1: 337 | MC1: 338 | MD1: 339 | ME1: 340 | MF1: 341 | MG1: 342 | MH1: 343 | MI1: 344 | MJ1: 345 | MK1: 346 | ML1: 347 | MM1: 348 | MN1: 349 | MO1: 350 | MP1: 351 | MQ1: 352 | MR1: 353 | MS1: 354 | MT1: 355 | MU1: 356 | MV1: 357 | MW1: 358 | MX1: 359 | MY1: 360 | MZ1: 361 | NA1: 362 | NB1: 363 | NC1: 364 | ND1: 365 | NE1: 366 | NF1: 367 | NG1: 368 | NH1: 369 | NI1: 370 | NJ1: 371 | NK1: 372 | NL1: 373 | NM1: 374 | NN1: 375 | NO1: 376 | NP1: 377 | NQ1: 378 | NR1: 379 | NS1: 380 | NT1: 381 | NU1: 382 | NV1: 383 | NW1: 384 | NX1: 385 | NY1: 386 | NZ1: 387 | OA1: 388 | OB1: 389 | OC1: 390 | OD1: 391 | OE1: 392 | OF1: 393 | OG1: 394 | OH1: =OFFSET(OH1,0,-1)+1 -> 395 | OI1: 396 | OJ1: 397 | OK1: 398 | OL1: 399 | OM1: 400 | ON1: 401 | OO1: 402 | OP1: 403 | OQ1: 404 | OR1: 405 | OS1: 406 | OT1: 407 | OU1: 408 | OV1: 409 | OW1: 410 | OX1: 411 | OY1: 412 | OZ1: 413 | PA1: 414 | PB1: 415 | PC1: 416 | PD1: 417 | PE1: 418 | PF1: 419 | PG1: 420 | PH1: 421 | PI1: 422 | PJ1: 423 | PK1: 424 | PL1: 425 | PM1: 426 | PN1: 427 | PO1: 428 | PP1: 429 | PQ1: 430 | PR1: 431 | PS1: 432 | PT1: 433 | PU1: 434 | PV1: 435 | PW1: 436 | PX1: 437 | PY1: 438 | PZ1: 439 | QA1: 440 | QB1: 441 | QC1: 442 | QD1: 443 | QE1: 444 | QF1: 445 | QG1: 446 | QH1: 447 | QI1: 448 | QJ1: 449 | QK1: 450 | QL1: 451 | QM1: 452 | QN1: 453 | QO1: 454 | QP1: =OFFSET(QP1,0,-1)+1 -> 455 | QQ1: 456 | QR1: 457 | QS1: 458 | QT1: 459 | QU1: 460 | QV1: 461 | QW1: 462 | QX1: 463 | QY1: 464 | QZ1: 465 | RA1: 466 | RB1: 467 | RC1: 468 | RD1: 469 | RE1: 470 | RF1: 471 | RG1: 472 | RH1: 473 | RI1: 474 | RJ1: 475 | RK1: 476 | RL1: 477 | RM1: 478 | RN1: 479 | RO1: 480 | RP1: 481 | RQ1: 482 | RR1: 483 | RS1: 484 | RT1: 485 | RU1: 486 | RV1: 487 | RW1: 488 | RX1: 489 | RY1: 490 | RZ1: 491 | SA1: 492 | SB1: 493 | SC1: 494 | SD1: 495 | SE1: 496 | SF1: 497 | SG1: 498 | SH1: 499 | SI1: 500 | SJ1: 501 | SK1: 502 | SL1: 503 | SM1: 504 | SN1: 505 | SO1: 506 | SP1: 507 | SQ1: 508 | SR1: =OFFSET(SR1,0,-1)+1 -> 509 | SS1: 510 | ST1: 511 | SU1: 512 | SV1: 513 | SW1: 514 | SX1: 515 | SY1: 516 | SZ1: 517 | TA1: 518 | TB1: 519 | TC1: 520 | TD1: 521 | TE1: =OFFSET(TE1,0,-1)+1 -> 522 | TF1: 523 | TG1: 524 | TH1: 525 | TI1: 526 | TJ1: 527 | TK1: 528 | TL1: 529 | TM1: 530 | TN1: 531 | TO1: 532 | TP1: 533 | TQ1: 534 | TR1: 535 | TS1: 536 | TT1: 537 | TU1: 538 | TV1: 539 | TW1: 540 | TX1: 541 | TY1: 542 | TZ1: 543 | UA1: 544 | UB1: 545 | UC1: 546 | UD1: 547 | UE1: 548 | UF1: 549 | UG1: 550 | UH1: 551 | UI1: 552 | UJ1: 553 | UK1: 554 | UL1: 555 | UM1: 556 | UN1: 557 | UO1: 558 | UP1: =OFFSET(UP1,0,-1)+1 -> 559 | UQ1: =OFFSET(UQ1,0,-1)+1 -> 560 | UR1: =OFFSET(UR1,0,-1)+1 -> 561 | US1: =OFFSET(US1,0,-1)+1 -> 562 | UT1: =OFFSET(UT1,0,-1)+1 -> 563
I2: DEVELOPMENT CHARACTERISTICS | O2: DENSITY CALCULATOR | T2: DEVELOPMENT CHARACTERISTICS | BF2: COSTING VARIABLES | FR2: CAPITAL HOUSEHOLD COST CALCULATOR | GJ2: ROAD COSTS | HR2: REVENUE VARIABLES | IG2: ALLOCATION | OD2: COST SAVINGS | RT2: VIEW RESULTS | SM2: User Defined | SQ2: COSTING VARIABLES | SR2: Density Calculator | SW2: COSTING VARIABLES | TG2: DEVELOPMENT CHARACTERISTICS | TQ2: USER DEFINED | UA2: REVENUE VARIABLES | UF2: ALLOCATION | UK2: COST SAVINGS | UP2: ROAD COSTS
I3: General Scenario Characteristics | O3: Development Densities | Y3: Demographic Assumptions | AO3: Internal Roads | AV3: External Roads | AZ3: Water and Sewer Trunk | BD3: Transit Infrastructure | BF3: General Cost Assumptions | BG3: =CV!A12 -> Roads, Water, Sanitary and Storm - Capital Costs | CI3: Regional Municipal Services - Capital Costs | CN3: Local Storm Water Management - Capital and O&M Cost | CQ3: =CV!A58 -> Roads, Water, Sanitary and Storm - O&M Costs | DK3: Schools - Capital and O&M Cost | DO3: Parks and Open Space - Capital and O&M Cost | DR3: Community Facilities - Capital and O&M Cost | DU3: Transit - Capital and O&M Cost | DX3: Fire Protection - Capital and O&M Cost | EA3: Police Services - Capital and O&M Cost | ED3: Waste Management - Capital and O&M Cost | ES3: Vehicle Costs | EV3: Home Heating | EY3: Climate Change and Air Pollution | FL3: Motor Vehicle Collisions | FR3: WASTEWATER TREATMENT | FU3: POTABLE WATER TREATMENT | FX3: PARKS & OPEN SPACE | GA3: COMMUNITY FACILITIES | GD3: FIRE PROTECTION | GG3: POLICE SERVICE | GJ3: ROAD ALLOWANCE ASSUMPTIONS | HK3: Other costs not covered in above categories | HR3: Development Charges | HW3: Property Taxes | IC3: User Fees | IF3: Non-Residential Revenues | IG3: =A!$A$10 -> RESIDENTIAL COST ALLOCATION | IH3: Internal Roads Allocation | IP3: External Roads Allocation | IX3: Potable Water Distribution Network (local) | JF3: Potable Water Treatment System | JN3: Potable Water Distribution Network (regional trunks) | JV3: Sanitary Sewer Collection Network (local) | KD3: Sanitary Sewer Treatment System | KL3: Sanitary Sewer Collection Network (regional trunks) | KT3: Storm Sewer Collection Network (local) | LB3: Storm Water Ponds | LJ3: Storm Sewer Collection Network (regional trunks) | LR3: Schools Allocation | LZ3: Parks and Open Space | MH3: Community Facilities | MP3: Bus Transit Allocation | MX3: School Transit Allocation | NF3: Fire Service Allocation | NN3: Police Service Allocation | NV3: Waste Management Service Allocation | OD3: Existing Infrastructure | QB3: Infrastructure Replacement | RT3: Initial Capital Costs (hh) | RW3: Annual O&M Costs (hh) | RZ3: Lifecycle Costs (hh) | SC3: Lifecycle Costs and Revenues (hh) | SG3: Annual Private Costs (hh) | SJ3: Annual External (hh) | SM3: Costs | SP3: Revenues | SQ3: Vehicle Costs | SR3: Typical Coverage | SW3: CV USER COMMENTS | TG3: DC USER COMMENTS | TQ3: UD USER COMMENTS | UA3: RV USER COMMENTS | UF3: A USER COMMENTS | UK3: CS USER COMMENTS | UP3: RC USER COMMENTS
I4: Distance to Central Business District | J4: Gross Land Area | K4: Net Residential Land Area (Ha) | L4: Compact Development | M4: Medium Density | N4: Suburban Type | O4: % Single Detached | P4: % Semi Detached | Q4: % Rowhouse/Townhouse/Duplex | R4: % Low Rise | S4: % High Rise | T4: Single Detached | U4: Semi Detached | V4: Rowhouse/Townhouse/Duplex | W4: Low Rise | X4: High Rise | Y4: Household Size Single Detached | Z4: Adults (16+) Single Detached | AA4: Average Household Income Single Detached | AB4: Household Size Semi Detached | AC4: Adults (16+) Semi Detached | AD4: Average Household Income Semi Detached | AE4: Household Size Rowhouse/Townhouse/Duplex | AF4: Adults (16+) Rowhouse/Townhouse/Duplex | AG4: Average Household Income Rowhouse/Townhouse/Duplex | AH4: Household Size Low Rise | AI4: Adults (16+) Low Rise | AJ4: Average Household Income Low Rise | AK4: Household Size High Rise | AL4: Adults (16+) High Rise | AM4: Average Household Income High Rise | AN4: Jobs within 5 Km | AO4: ="Length of Road " & 'RC'!F9 & " " & 'RC'!F10 -> Length of Road Type 1 Public Laneway | AP4: ="Length of Road " & 'RC'!G9 & " " & 'RC'!G10 -> Length of Road Type 2 Two-lane local | AQ4: ="Length of Road " & 'RC'!H9 & " " & 'RC'!H10 -> Length of Road Type 3 Two-lane local | AR4: ="Length of Road " & 'RC'!I9 & " " & 'RC'!I10 -> Length of Road Type 4 Two-lane collector | AS4: ="Length of Road " & 'RC'!J9 & " " & 'RC'!J10 -> Length of Road Type 5 Four-lane collector | AT4: ="Length of Road " & 'RC'!K9 & " " & 'RC'!K10 -> Length of Road Type 6 Four-lane Arterial | AU4: ="Length of Road " & 'RC'!L9 & " " & 'RC'!L10 -> Length of Road Type 7 User Defined | AV4: ="Length of Road " & DC!E82 -> Length of Road Type 6 Four-lane Arterial | AW4: ="Length of Road " & DC!E83 -> Length of Road Type 3 Two-lane local | AX4: =DC!E82 -> Type 6 Four-lane Arterial | AY4: =DC!E83 -> Type 3 Two-lane local | AZ4: Length Trunk Sanitary Sewer | BA4: Length Trunk Storm Sewer | BB4: Length Trunk Water Distribution | BC4: Area of Stormwater Management Pond | BD4: Annual Vehicle Service Hours per Capita | BE4: Number of Buses per 1000 VSH | BF4: Interest Rate for Amortizing Capital Costs | BG4: Sidewalks Type 1 | BH4: Sidewalks Type 2 | BI4: Sidewalks Type 3 | BJ4: Sidewalks Type 4 | BK4: Sidewalks Type 5 | BL4: Sidewalks Type 6 | BM4: Sidewalks Type 7 | BN4: Potable Water Distribution Type 1 | BO4: Potable Water Distribution Type 2 | BP4: Potable Water Distribution Type 3 | BQ4: Potable Water Distribution Type 4 | BR4: Potable Water Distribution Type 5 | BS4: Potable Water Distribution Type 6 | BT4: Potable Water Distribution Type 7 | BU4: Sanitary Sewer Collection Type 1 | BV4: Sanitary Sewer Collection Type 2 | BW4: Sanitary Sewer Collection Type 3 | BX4: Sanitary Sewer Collection Type 4 | BY4: Sanitary Sewer Collection Type 5 | BZ4: Sanitary Sewer Collection Type 6 | CA4: Sanitary Sewer Collection Type 7 | CB4: Storm Sewer Collection Type 1 | CC4: Storm Sewer Collection Type 2 | CD4: Storm Sewer Collection Type 3 | CE4: Storm Sewer Collection Type 4 | CF4: Storm Sewer Collection Type 5 | CG4: Storm Sewer Collection Type 6 | CH4: Storm Sewer Collection Type 7 | CI4: Potable Water Distribution | CJ4: Sanitary Sewer Collection | CK4: Storm Sewer Collection | CL4: Wastewater Treatment | CM4: Potable Water Treatment | CN4: Pond Cost | CO4: O&M Cost Operating | CP4: O&M Cost Maintenance | CQ4: Road O&M Costs Local Operating | CR4: Road O&M Costs Local Maintenance | CS4: Road O&M Costs Collector Operating | CT4: Road O&M Costs Collector Maintenance | CU4: Road O&M Costs Arterial Operating | CV4: Road O&M Costs Arterial Maintenance | CW4: Potable Water Treatment Single Detached Operating | CX4: Potable Water Treatment Single Detached Maintenance | CY4: Potable Water Treatment Semi-detached/Rowhouses Operating | CZ4: Potable Water Treatment Semi-detached/Rowhouses Maintenance | DA4: Potable Water Treatment Apartments Operating | DB4: Potable Water Treatment Apartments Maintenance | DC4: Potable Water Distribution Operating | DD4: Potable Water Distribution Maintenance | DE4: Wastewater Treatment Operating | DF4: Wastewater Treatment Maintenance | DG4: Sanitary Sewer Collection Operating | DH4: Sanitary Sewer Collection Maintenance | DI4: Storm Sewer Collection Operating | DJ4: Storm Sewer Collection Maintenance | DK4: Capital Cost | DL4: O&M Cost Operating | DM4: O&M Cost Maintenance | DN4: School Bus Total Cost | DO4: Capital Cost | DP4: O&M Cost Operating | DQ4: O&M Cost Maintenance | DR4: Capital Cost | DS4: O&M Cost Operating | DT4: O&M Cost Maintenance | DU4: Capital Cost | DV4: O&M Cost Operating | DW4: O&M Cost Maintenance | DX4: Capital Cost | DY4: O&M Cost Operating | DZ4: O&M Cost Maintenance | EA4: Capital Cost | EB4: O&M Cost Operating | EC4: O&M Cost Maintenance | ED4: Capital Cost - Single Detached | EE4: Capital Cost - Semi Detached | EF4: Capital Cost - Rowhouse/Townhouse/Duplex | EG4: Capital Cost - Low Rise | EH4: Capital Cost - High Rise | EI4: Operating - Single Detached | EJ4: Maintenance - Single Detached | EK4: Operating - Semi Detached | EL4: Maintenance - Semi Detached | EM4: Operating - Rowhouse/Townhouse/Duplex | EN4: Maintenance - Rowhouse/Townhouse/Duplex | EO4: Operating - Low Rise | EP4: Maintenance - Low Rise | EQ4: Operating - High Rise | ER4: Maintenance - High Rise | ES4: Annual Vehicle Ownership Cost | ET4: O&M Driving Cost Operating | EU4: O&M Driving Cost Maintenance | EV4: Annual Home Energy Costs Single Detached | EW4: Annual Home Energy Costs Semi-detached/Rowhouses | EX4: Annual Home Energy Costs Apartments | EY4: Average Fuel Efficiency for Passenger Vehicles | EZ4: GHG Emissions Factor | FA4: Cost per tonne GHG | FB4: Emissions Factor VOCs | FC4: Cost per Tonne VOCs | FD4: Emissions Factor CO | FE4: Cost per Tonne CO | FF4: Emissions Factor NOx | FG4: Cost per Tonne NOx | FH4: Emissions Factor SOx | FI4: Cost per Tonne Sox | FJ4: Emissions Factor PM10 | FK4: Cost per Tonne PM10 | FL4: Fatal Collision Rate per VKT | FM4: Fatal Cost per Collision | FN4: Injury Collision Rate per VKT | FO4: Injury Cost per Collision | FP4: Property Damage Collision Rate per VKT | FQ4: Property Damage Cost per Collision | FR4: Replacement / Capital Value of Existing Assets | FS4: Existing Households Serviced | FT4: Capital Value of New / Expansions Triggered | FU4: Replacement / Capital Value of Existing Assets | FV4: Existing Households Serviced | FW4: Capital Value of New / Expansions Triggered | FX4: Replacement / Capital Value of Existing Assets | FY4: Existing Households Serviced | FZ4: Capital Value of New / Expansions Triggered | GA4: Replacement / Capital Value of Existing Assets | GB4: Existing Households Serviced | GC4: Capital Value of New / Expansions Triggered | GD4: Replacement / Capital Value of Existing Assets | GE4: Existing Households Serviced | GF4: Capital Value of New / Expansions Triggered | GG4: Replacement / Capital Value of Existing Assets | GH4: Existing Households Serviced | GI4: Capital Value of New / Expansions Triggered | GJ4: NameType 1 | GK4: CategoryType 1 | GL4: NameType 2 | GM4: CategoryType 2 | GN4: NameType 3 | GO4: CategoryType 3 | GP4: NameType 4 | GQ4: CategoryType 4 | GR4: NameType 5 | GS4: CategoryType 5 | GT4: NameType 6 | GU4: CategoryType 6 | GV4: NameType 7 | GW4: CategoryType 7 | GX4: Right-of-way Width | GY4: Pavement Width (Gutter to Gutter) | GZ4: Top Asphalt thickness | HA4: Base Asphalt thickness | HB4: Granular "A" Road Base Thickness | HC4: Granular "B" Road Sub-Base Thickness | HD4: Conc. sidewalk, total width | HE4: Unit Paver / Asphalt sidewalk, total width | HF4: Curb/Gutters - both sides or one? | HG4: Average Stop and Street Sign Spacing | HH4: Streetlight Spacing | HI4: Streetlights - both sides or one? | HJ4: Street Tree Spacing on Both Sides | HK4: Type 1 | HL4: Type 2 | HM4: Type 3 | HN4: Type 4 | HO4: Type 5 | HP4: Type 6 | HQ4: Type 7 | HR4: Single Detached | HS4: Semi Detached | HT4: Rowhouse/Townhouse/Duplex | HU4: Low Rise | HV4: High Rise | HW4: Single Detached | HX4: Semi Detached | HY4: Rowhouse/Townhouse/Duplex | HZ4: Low Rise | IA4: High Rise | IB4: Property Tax Mil Rate (‰) | IC4: Water and Sewers | ID4: Other | IE4: Transit operating Cost Recovery | IF4: Total | IG4: =A!$B$13 -> % Cost Attributed to Residential Development: | IH4: CAPITAL Cost Municipal | II4: CAPITAL Cost Developer | IJ4: CAPITAL Cost User* | IK4: CAPITAL Cost Other | IL4: O&M Cost Municipal | IM4: O&M Cost Developer | IN4: O&M Cost User* | IO4: O&M Cost Other | IP4: CAPITAL Cost Municipal | IQ4: CAPITAL Cost Developer | IR4: CAPITAL Cost User* | IS4: CAPITAL Cost Other | IT4: O&M Cost Municipal | IU4: O&M Cost Developer | IV4: O&M Cost User* | IW4: O&M Cost Other | IX4: Allocation CAPITAL Cost Municipal | IY4: Allocation CAPITAL Cost Developer | IZ4: Allocation CAPITAL Cost User* | JA4: Allocation CAPITAL Cost Other | JB4: Allocation O&M Cost Municipal | JC4: Allocation O&M Cost Developer | JD4: Allocation O&M Cost User* | JE4: Allocation O&M Cost Other | JF4: Allocation CAPITAL Cost Municipal | JG4: Allocation CAPITAL Cost Developer | JH4: Allocation CAPITAL Cost User* | JI4: Allocation CAPITAL Cost Other | JJ4: Allocation O&M Cost Municipal | JK4: Allocation O&M Cost Developer | JL4: Allocation O&M Cost User* | JM4: Allocation O&M Cost Other | JN4: Allocation CAPITAL Cost Municipal | JO4: Allocation CAPITAL Cost Developer | JP4: Allocation CAPITAL Cost User* | JQ4: Allocation CAPITAL Cost Other | JR4: Allocation O&M Cost Municipal | JS4: Allocation O&M Cost Developer | JT4: Allocation O&M Cost User* | JU4: Allocation O&M Cost Other | JV4: Allocation CAPITAL Cost Municipal | JW4: Allocation CAPITAL Cost Developer | JX4: Allocation CAPITAL Cost User* | JY4: Allocation CAPITAL Cost Other | JZ4: Allocation O&M Cost Municipal | KA4: Allocation O&M Cost Developer | KB4: Allocation O&M Cost User* | KC4: Allocation O&M Cost Other | KD4: Allocation CAPITAL Cost Municipal | KE4: Allocation CAPITAL Cost Developer | KF4: Allocation CAPITAL Cost User* | KG4: Allocation CAPITAL Cost Other | KH4: Allocation O&M Cost Municipal | KI4: Allocation O&M Cost Developer | KJ4: Allocation O&M Cost User* | KK4: Allocation O&M Cost Other | KL4: Allocation CAPITAL Cost Municipal | KM4: Allocation CAPITAL Cost Developer | KN4: Allocation CAPITAL Cost User* | KO4: Allocation CAPITAL Cost Other | KP4: Allocation O&M Cost Municipal | KQ4: Allocation O&M Cost Developer | KR4: Allocation O&M Cost User* | KS4: Allocation O&M Cost Other | KT4: Allocation CAPITAL Cost Municipal | KU4: Allocation CAPITAL Cost Developer | KV4: Allocation CAPITAL Cost User* | KW4: Allocation CAPITAL Cost Other | KX4: Allocation O&M Cost Municipal | KY4: Allocation O&M Cost Developer | KZ4: Allocation O&M Cost User* | LA4: Allocation O&M Cost Other | LB4: Allocation CAPITAL Cost Municipal | LC4: Allocation CAPITAL Cost Developer | LD4: Allocation CAPITAL Cost User* | LE4: Allocation CAPITAL Cost Other | LF4: Allocation O&M Cost Municipal | LG4: Allocation O&M Cost Developer | LH4: Allocation O&M Cost User* | LI4: Allocation O&M Cost Other | LJ4: Allocation CAPITAL Cost Municipal | LK4: Allocation CAPITAL Cost Developer | LL4: Allocation CAPITAL Cost User* | LM4: Allocation CAPITAL Cost Other | LN4: Allocation O&M Cost Municipal | LO4: Allocation O&M Cost Developer | LP4: Allocation O&M Cost User* | LQ4: Allocation O&M Cost Other | LR4: CAPITAL Cost Municipal | LS4: CAPITAL Cost Developer | LT4: CAPITAL Cost User* | LU4: CAPITAL Cost Other | LV4: O&M Cost Municipal | LW4: O&M Cost Developer | LX4: O&M Cost User* | LY4: O&M Cost Other | LZ4: Allocation CAPITAL Cost Municipal | MA4: Allocation CAPITAL Cost Developer | MB4: Allocation CAPITAL Cost User* | MC4: Allocation CAPITAL Cost Other | MD4: Allocation O&M Cost Municipal | ME4: Allocation O&M Cost Developer | MF4: Allocation O&M Cost User* | MG4: Allocation O&M Cost Other | MH4: Allocation CAPITAL Cost Municipal | MI4: Allocation CAPITAL Cost Developer | MJ4: Allocation CAPITAL Cost User* | MK4: Allocation CAPITAL Cost Other | ML4: Allocation O&M Cost Municipal | MM4: Allocation O&M Cost Developer | MN4: Allocation O&M Cost User* | MO4: Allocation O&M Cost Other | MP4: CAPITAL Cost Municipal | MQ4: CAPITAL Cost Developer | MR4: CAPITAL Cost User* | MS4: CAPITAL Cost Other | MT4: O&M Cost Municipal | MU4: O&M Cost Developer | MV4: O&M Cost User* | MW4: O&M Cost Other | MX4: CAPITAL Cost Municipal | MY4: CAPITAL Cost Developer | MZ4: CAPITAL Cost User* | NA4: CAPITAL Cost Other | NB4: O&M Cost Municipal | NC4: O&M Cost Developer | ND4: O&M Cost User* | NE4: O&M Cost Other | NF4: CAPITAL Cost Municipal | NG4: CAPITAL Cost Developer | NH4: CAPITAL Cost User* | NI4: CAPITAL Cost Other | NJ4: O&M Cost Municipal | NK4: O&M Cost Developer | NL4: O&M Cost User* | NM4: O&M Cost Other | NN4: CAPITAL Cost Municipal | NO4: CAPITAL Cost Developer | NP4: CAPITAL Cost User* | NQ4: CAPITAL Cost Other | NR4: O&M Cost Municipal | NS4: O&M Cost Developer | NT4: O&M Cost User* | NU4: O&M Cost Other | NV4: CAPITAL Cost Municipal | NW4: CAPITAL Cost Developer | NX4: CAPITAL Cost User* | NY4: CAPITAL Cost Other | NZ4: O&M Cost Municipal | OA4: O&M Cost Developer | OB4: O&M Cost User* | OC4: O&M Cost Other | OD4: ="Internal"&CS!E11&"Percentage in place" -> InternalType 1 Public LanewayPercentage in place | OE4: ="Internal"&CS!E11&"Age of Existing" -> InternalType 1 Public LanewayAge of Existing | OF4: ="Internal"&CS!E13&"Percentage in place" -> InternalType 2 Two-lane localPercentage in place | OG4: ="Internal"&CS!E13&"Age of Existing" -> InternalType 2 Two-lane localAge of Existing | OH4: ="Internal"&CS!E15&"Percentage in place" -> InternalType 3 Two-lane localPercentage in place | OI4: ="Internal"&CS!E15&"Age of Existing" -> InternalType 3 Two-lane localAge of Existing | OJ4: ="Internal"&CS!E17&"Percentage in place" -> InternalType 4 Two-lane collectorPercentage in place | OK4: ="Internal"&CS!E17&"Age of Existing" -> InternalType 4 Two-lane collectorAge of Existing | OL4: ="Internal"&CS!E19&"Percentage in place" -> InternalType 5 Four-lane collectorPercentage in place | OM4: ="Internal"&CS!E19&"Age of Existing" -> InternalType 5 Four-lane collectorAge of Existing | ON4: ="Internal"&CS!E21&"Percentage in place" -> InternalType 6 Four-lane ArterialPercentage in place | OO4: ="Internal"&CS!E21&"Age of Existing" -> InternalType 6 Four-lane ArterialAge of Existing | OP4: ="Internal"&CS!E23&"Percentage in place" -> InternalType 7 User DefinedPercentage in place | OQ4: ="Internal"&CS!E23&"Age of Existing" -> InternalType 7 User DefinedAge of Existing | OR4: ="External"&CS!E27&"Percentage in place" -> ExternalType 6 Four-lane ArterialPercentage in place | OS4: ="External"&CS!E27&"Age of Existing" -> ExternalType 6 Four-lane ArterialAge of Existing | OT4: ="External"&CS!E29&"Percentage in place" -> ExternalType 3 Two-lane localPercentage in place | OU4: ="External"&CS!E29&"Age of Existing" -> ExternalType 3 Two-lane localAge of Existing | OV4: =CS!C36&"Percentage in place" -> Potable Water Distribution Network (local)Percentage in place | OW4: =CS!C36&"Age of Existing" -> Potable Water Distribution Network (local)Age of Existing | OX4: =CS!C38&"Percentage in place" -> Potable Water Treatment SystemPercentage in place | OY4: =CS!C38&"Age of Existing" -> Potable Water Treatment SystemAge of Existing | OZ4: =CS!C40&"Percentage in place" -> Potable Water Distribution Network (regional trunks)Percentage in place | PA4: =CS!C40&"Age of Existing" -> Potable Water Distribution Network (regional trunks)Age of Existing | PB4: =CS!C47&"Percentage in place" -> Sanitary Sewer Collection Network (local)Percentage in place | PC4: =CS!C47&"Age of Existing" -> Sanitary Sewer Collection Network (local)Age of Existing | PD4: =CS!C49&"Percentage in place" -> Sanitary Sewer Treatment SystemPercentage in place | PE4: =CS!C49&"Age of Existing" -> Sanitary Sewer Treatment SystemAge of Existing | PF4: =CS!C51&"Percentage in place" -> Sanitary Sewer Collection Network (regional trunks)Percentage in place | PG4: =CS!C51&"Age of Existing" -> Sanitary Sewer Collection Network (regional trunks)Age of Existing | PH4: =CS!C58&"Percentage in place" -> Storm Sewer Collection Network (local)Percentage in place | PI4: =CS!C58&"Age of Existing" -> Storm Sewer Collection Network (local)Age of Existing | PJ4: =CS!C60&"Percentage in place" -> Storm Water PondsPercentage in place | PK4: =CS!C60&"Age of Existing" -> Storm Water PondsAge of Existing | PL4: =CS!C62&"Percentage in place" -> Storm Sewer Collection Network (regional trunks)Percentage in place | PM4: =CS!C62&"Age of Existing" -> Storm Sewer Collection Network (regional trunks)Age of Existing | PN4: =CS!E79&"Percentage in place" -> Waste ManagementPercentage in place | PO4: =CS!E79&"Age of Existing" -> Waste ManagementAge of Existing | PP4: =CS!E81&"Percentage in place" -> School ConstructionPercentage in place | PQ4: =CS!E81&"Age of Existing" -> School ConstructionAge of Existing | PR4: =CS!E69&"Percentage in place" -> Parks and Open SpacePercentage in place | PS4: =CS!E69&"Age of Existing" -> Parks and Open SpaceAge of Existing | PT4: =CS!$E$71&"Percentage in place" -> Community FacilitiesPercentage in place | PU4: =CS!$E$71&"Age of Existing" -> Community FacilitiesAge of Existing | PV4: =CS!E77&"Percentage in place" -> Transit ServicesPercentage in place | PW4: =CS!E77&"Age of Existing" -> Transit ServicesAge of Existing | PX4: =CS!E73&"Percentage in place" -> Fire ServicesPercentage in place | PY4: =CS!E73&"Age of Existing" -> Fire ServicesAge of Existing | PZ4: =CS!E75&"Percentage in place" -> Police ServicesPercentage in place | QA4: =CS!E75&"Age of Existing" -> Police ServicesAge of Existing | QB4: ="Internal"&CS!E87&"Years for Replacement" -> InternalType 1 Public LanewayYears for Replacement | QC4: ="Internal"&CS!E87&"Replacement Cost %" -> InternalType 1 Public LanewayReplacement Cost % | QD4: ="Internal"&CS!E89&"Years for Replacement" -> InternalType 2 Two-lane localYears for Replacement | QE4: ="Internal"&CS!E89&"Replacement Cost %" -> InternalType 2 Two-lane localReplacement Cost % | QF4: ="Internal"&CS!E91&"Years for Replacement" -> InternalType 3 Two-lane localYears for Replacement | QG4: ="Internal"&CS!E91&"Replacement Cost %" -> InternalType 3 Two-lane localReplacement Cost % | QH4: ="Internal"&CS!E93&"Years for Replacement" -> InternalType 4 Two-lane collectorYears for Replacement | QI4: ="Internal"&CS!E93&"Replacement Cost %" -> InternalType 4 Two-lane collectorReplacement Cost % | QJ4: ="Internal"&CS!E95&"Years for Replacement" -> InternalType 5 Four-lane collectorYears for Replacement | QK4: ="Internal"&CS!E95&"Replacement Cost %" -> InternalType 5 Four-lane collectorReplacement Cost % | QL4: ="Internal"&CS!E97&"Years for Replacement" -> InternalType 6 Four-lane ArterialYears for Replacement | QM4: ="Internal"&CS!E97&"Replacement Cost %" -> InternalType 6 Four-lane ArterialReplacement Cost % | QN4: ="Internal"&CS!E99&"Years for Replacement" -> InternalType 7 User DefinedYears for Replacement | QO4: ="Internal"&CS!E99&"Replacement Cost %" -> InternalType 7 User DefinedReplacement Cost % | QP4: ="External"&CS!E103&"Years for Replacement" -> ExternalType 6 Four-lane ArterialYears for Replacement | QQ4: ="External"&CS!E103&"Replacement Cost %" -> ExternalType 6 Four-lane ArterialReplacement Cost % | QR4: ="External"&CS!E105&"Years for Replacement" -> ExternalType 3 Two-lane localYears for Replacement | QS4: ="External"&CS!E105&"Replacement Cost %" -> ExternalType 3 Two-lane localReplacement Cost % | QT4: =CS!E111&"Years for Replacement" -> Potable Water Distribution NetworkYears for Replacement | QU4: =CS!E111&"Replacement Cost %" -> Potable Water Distribution NetworkReplacement Cost % | QV4: =CS!$E$113&"Years for Replacement" -> Potable Water Treatment SystemYears for Replacement | QW4: =CS!$E$113&"Replacement Cost %" -> Potable Water Treatment SystemReplacement Cost % | QX4: =CS!E115&"Years for Replacement" -> Sanitary Sewer Collection NetworkYears for Replacement | QY4: =CS!E115&"Replacement Cost %" -> Sanitary Sewer Collection NetworkReplacement Cost % | QZ4: =CS!$E$117&"Years for Replacement" -> Sanitary Sewer Treatment SystemYears for Replacement | RA4: =CS!$E$117&"Replacement Cost %" -> Sanitary Sewer Treatment SystemReplacement Cost % | RB4: =CS!E119&"Years for Replacement" -> Storm Sewer Collection NetworkYears for Replacement | RC4: =CS!E119&"Replacement Cost %" -> Storm Sewer Collection NetworkReplacement Cost % | RD4: =CS!$E$121&"Years for Replacement" -> Storm Water PondsYears for Replacement | RE4: =CS!$E$121&"Replacement Cost %" -> Storm Water PondsReplacement Cost % | RF4: =CS!E123&"Years for Replacement" -> Waste ManagementYears for Replacement | RG4: =CS!E123&"Replacement Cost %" -> Waste ManagementReplacement Cost % | RH4: =CS!E125&"Years for Replacement" -> School Construction and OperationYears for Replacement | RI4: =CS!E125&"Replacement Cost %" -> School Construction and OperationReplacement Cost % | RJ4: =CS!E127&"Years for Replacement" -> Parks and Open SpaceYears for Replacement | RK4: =CS!E127&"Replacement Cost %" -> Parks and Open SpaceReplacement Cost % | RL4: =CS!$E$129&"Years for Replacement" -> Community FacilitiesYears for Replacement | RM4: =CS!$E$129&"Replacement Cost %" -> Community FacilitiesReplacement Cost % | RN4: =CS!E131&"Years for Replacement" -> Transit ServicesYears for Replacement | RO4: =CS!E131&"Replacement Cost %" -> Transit ServicesReplacement Cost % | RP4: =CS!E133&"Years for Replacement" -> Fire ServicesYears for Replacement | RQ4: =CS!E133&"Replacement Cost %" -> Fire ServicesReplacement Cost % | RR4: =CS!E135&"Years for Replacement" -> Police ServicesYears for Replacement | RS4: =CS!E135&"Replacement Cost %" -> Police ServicesReplacement Cost % | RT4: Potential Community Services | RU4: Schools | RV4: User Defined Costs | RW4: Potential Community Services | RX4: Schools | RY4: User Defined Costs | RZ4: Potential Community Services | SA4: Schools | SB4: User Defined Costs | SC4: Municipal Portion of Residential Costs (hh) | SD4: Municipal Portion of Non-Residential Costs (hh) | SE4: Municipal Portion of Residential Revenues (hh) | SF4: Municipal Portion of Non-Residential Revenues (hh) | SG4: Driving Costs | SH4: Transit Fares | SI4: Home Heating Costs | SJ4: Motor Vehicle Collisions | SK4: Air Pollution | SL4: Climate Change | SM4: Initial Capital Costs | SN4: Annual O&M Costs | SO4: Years for Replacement | SP4: Annual Revenues | SQ4: O&M Driving Cost Total O&M | SR4: Single Detached | SS4: Semi Detached | ST4: Rowhouse/Townhouse/Duplex | SU4: Low Rise | SV4: High Rise | SW4: 1 | SX4: 2 | SY4: 3 | SZ4: 4 | TA4: 5 | TB4: 6 | TC4: 7 | TD4: 8 | TE4: 9 | TF4: 10 | TG4: 1 | TH4: 2 | TI4: 3 | TJ4: 4 | TK4: 5 | TL4: 6 | TM4: 7 | TN4: 8 | TO4: 9 | TP4: 10 | TQ4: 1 | TR4: 2 | TS4: 3 | TT4: 4 | TU4: 5 | TV4: 6 | TW4: 7 | TX4: 8 | TY4: 9 | TZ4: 10 | UA4: 1 | UB4: 2 | UC4: 3 | UD4: 4 | UE4: 5 | UF4: 1 | UG4: 2 | UH4: 3 | UI4: 4 | UJ4: 5 | UK4: 1 | UL4: 2 | UM4: 3 | UN4: 4 | UO4: 5 | UP4: 1 | UQ4: 2 | UR4: 3 | US4: 4 | UT4: 5
D5: Scenario | E5: Name / Description | G5: Ref Scenario | I5: Km | J5: ha | K5: % | O5: % | P5: % | Q5: % | R5: % | S5: % | T5: unit | U5: unit | V5: unit | W5: unit | X5: unit | Y5: Person/unit | Z5: Person/unit | AA5: $/person | AB5: Person/unit | AC5: Person/unit | AD5: $/person | AE5: Person/unit | AF5: Person/unit | AG5: $/person | AH5: Person/unit | AI5: Person/unit | AJ5: $/person | AK5: Person/unit | AL5: Person/unit | AM5: $/person | AN5: jobs | AO5: m | AP5: m | AQ5: m | AR5: m | AS5: m | AT5: m | AU5: m | AV5: m | AW5: m | AX5: Type | AY5: Type | AZ5: m | BA5: m | BB5: m | BC5: m2 | BD5: VSH/capita | BE5: bus/1000 VSH | BF5: % | BG5: $/m | BH5: $/m | BI5: $/m | BJ5: $/m | BK5: $/m | BL5: $/m | BM5: $/m | BN5: $/m | BO5: $/m | BP5: $/m | BQ5: $/m | BR5: $/m | BS5: $/m | BT5: $/m | BU5: $/m | BV5: $/m | BW5: $/m | BX5: $/m | BY5: $/m | BZ5: $/m | CA5: $/m | CB5: $/m | CC5: $/m | CD5: $/m | CE5: $/m | CF5: $/m | CG5: $/m | CH5: $/m | CI5: $/m pipe | CJ5: $/m pipe | CK5: $/m pipe | CL5: $/m pipe | CM5: $/m pipe | CN5: $/ha | CO5: $/ha | CP5: $/ha | CQ5: $/m | CR5: $/m | CS5: $/m | CT5: $/m | CU5: $/m | CV5: $/m | CW5: $/he | CX5: $/he | CY5: $/hh | CZ5: $/he | DA5: $/hh | DB5: $/he | DC5: $/m | DD5: $/m | DE5: $/hh | DF5: $/hh | DG5: $/m | DH5: $/m | DI5: $/m | DJ5: $/m | DK5: $/student | DL5: $/student | DM5: $/student | DN5: $/student | DO5: $/hh | DP5: $/hh | DQ5: $/hh | DR5: $/hh | DS5: $/hh | DT5: $/hh | DU5: $/bus | DV5: $/VSH | DW5: $/VSH | DX5: $/hh | DY5: $/hh | DZ5: $/hh | EA5: $/hh | EB5: $/household | EC5: $/household | ED5: $/hh | EE5: $/hh | EF5: $/hh | EG5: $/hh | EH5: $/hh | EI5: $/household | EJ5: $/household | EK5: $/household | EL5: $/household | EM5: $/household | EN5: $/household | EO5: $/household | EP5: $/household | EQ5: $/household | ER5: $/household | ES5: $/Vehicle | ET5: $/km | EU5: $/km | EV5: $/hh | EW5: $/hh | EX5: $/hh | EY5: L/100 km | EZ5: gr/L | FA5: $ tonne CO2 | FB5: gr/L | FC5: $/tonne | FD5: gr/L | FE5: $/tonne | FF5: gr/L | FG5: $/tonne | FH5: gr/L | FI5: $/tonne | FJ5: gr/L | FK5: $/tonne | FL5: $/VKT | FM5: $/Collision | FN5: $/VKT | FO5: $/Collision | FP5: $/VKT | FQ5: $/Collision | GJ5: Name | GK5: Category | GL5: Name | GM5: Category | GN5: Name | GO5: Category | GP5: Name | GQ5: Category | GR5: Name | GS5: Category | GT5: Name | GU5: Category | GV5: Name | GW5: Category | GX5: m | GY5: m | GZ5: m | HA5: m | HB5: m | HC5: m | HD5: m | HE5: m | HF5: # | HG5: m | HH5: m | HI5: # | HJ5: m | HK5: $/m | HL5: $/m | HM5: $/m | HN5: $/m | HO5: $/m | HP5: $/m | HQ5: $/m | HR5: $/Unit | HS5: $/Unit | HT5: $/Unit | HU5: $/Unit | HV5: $/Unit | HW5: $/Unit | HX5: $/Unit | HY5: $/Unit | HZ5: $/Unit | IA5: $/Unit | IB5: ‰ | IC5: $/unit | ID5: $/unit | IE5: $/unit | IF5: $ | IG5: % | IH5: % | II5: % | IJ5: % | IK5: % | IL5: % | IM5: % | IN5: % | IO5: % | IP5: % | IQ5: % | IR5: % | IS5: % | IT5: % | IU5: % | IV5: % | IW5: % | IX5: % | IY5: % | IZ5: % | JA5: % | JB5: % | JC5: % | JD5: % | JE5: % | JF5: % | JG5: % | JH5: % | JI5: % | JJ5: % | JK5: % | JL5: % | JM5: % | JN5: % | JO5: % | JP5: % | JQ5: % | JR5: % | JS5: % | JT5: % | JU5: % | JV5: % | JW5: % | JX5: % | JY5: % | JZ5: % | KA5: % | KB5: % | KC5: % | KD5: % | KE5: % | KF5: % | KG5: % | KH5: % | KI5: % | KJ5: % | KK5: % | KL5: % | KM5: % | KN5: % | KO5: % | KP5: % | KQ5: % | KR5: % | KS5: % | KT5: % | KU5: % | KV5: % | KW5: % | KX5: % | KY5: % | KZ5: % | LA5: % | LB5: % | LC5: % | LD5: % | LE5: % | LF5: % | LG5: % | LH5: % | LI5: % | LJ5: % | LK5: % | LL5: % | LM5: % | LN5: % | LO5: % | LP5: % | LQ5: % | LR5: % | LS5: % | LT5: % | LU5: % | LV5: % | LW5: % | LX5: % | LY5: % | LZ5: % | MA5: % | MB5: % | MC5: % | MD5: % | ME5: % | MF5: % | MG5: % | MH5: % | MI5: % | MJ5: % | MK5: % | ML5: % | MM5: % | MN5: % | MO5: % | MP5: % | MQ5: % | MR5: % | MS5: % | MT5: % | MU5: % | MV5: % | MW5: % | MX5: % | MY5: % | MZ5: % | NA5: % | NB5: % | NC5: % | ND5: % | NE5: % | NF5: % | NG5: % | NH5: % | NI5: % | NJ5: % | NK5: % | NL5: % | NM5: % | NN5: % | NO5: % | NP5: % | NQ5: % | NR5: % | NS5: % | NT5: % | NU5: % | NV5: % | NW5: % | NX5: % | NY5: % | NZ5: % | OA5: % | OB5: % | OC5: % | OD5: % | OE5: years | OF5: % | OG5: years | OH5: % | OI5: years | OJ5: % | OK5: years | OL5: % | OM5: years | ON5: % | OO5: years | OP5: % | OQ5: years | OR5: % | OS5: years | OT5: % | OU5: years | OV5: % | OW5: years | OX5: % | OY5: years | OZ5: % | PA5: years | PB5: % | PC5: years | PD5: % | PE5: years | PF5: % | PG5: years | PH5: % | PI5: years | PJ5: % | PK5: years | PL5: % | PM5: years | PN5: % | PO5: years | PP5: % | PQ5: years | PR5: % | PS5: years | PT5: % | PU5: years | PV5: % | PW5: years | PX5: % | PY5: years | PZ5: % | QA5: years | QB5: years | QC5: % | QD5: years | QE5: % | QF5: years | QG5: % | QH5: years | QI5: % | QJ5: years | QK5: % | QL5: years | QM5: % | QN5: years | QO5: % | QP5: years | QQ5: % | QR5: years | QS5: % | QT5: years | QU5: % | QV5: years | QW5: % | QX5: years | QY5: % | QZ5: years | RA5: % | RB5: years | RC5: % | RD5: years | RE5: % | RF5: years | RG5: % | RH5: years | RI5: % | RJ5: years | RK5: % | RL5: years | RM5: % | RN5: years | RO5: % | RP5: years | RQ5: % | RR5: years | RS5: % | RT5: $/hh | RU5: $/hh | RV5: $/hh | RW5: $/hh | RX5: $/hh | RY5: $/hh | RZ5: $/hh | SA5: $/hh | SB5: $/hh | SC5: $/hh | SD5: $/hh | SE5: $/hh | SF5: $/hh | SG5: $/hh | SH5: $/hh | SI5: $/hh | SJ5: $/hh | SK5: $/hh | SL5: $/hh | SM5: $ | SN5: $ | SO5: $ | SP5: $ | SQ5: $/km
A6: CURRENT SCENARIO (editable) | F6: =F7 -> 0 | G6: =G7 -> 0 | H6: =H7 -> 12 | I6: =DC!F12 -> 1.6 | J6: =DC!F14 -> 40 | K6: =DC!F19 -> 20 | L6: =DC!F23 -> TRUE | M6: =DC!F26 -> FALSE | N6: =DC!F29 -> FALSE | O6: =D!E29 -> 0.05 | P6: =D!E30 -> 0.05 | Q6: =D!E31 -> 0.1 | R6: =D!E32 -> 0.3 | S6: =D!E33 -> 0.5 | T6: =DC!G36 -> 20 | U6: =DC!G37 -> 50 | V6: =DC!G38 -> 160 | W6: =DC!G39 -> 1200 | X6: =DC!G40 -> 4000 | Y6: =DC!E53 -> 3.2 | Z6: =DC!F53 -> 2 | AA6: =DC!H53 -> 125000 | AB6: =DC!E54 -> 2.8 | AC6: =DC!F54 -> 1.8 | AD6: =DC!H54 -> 90000 | AE6: =DC!E55 -> 2.4 | AF6: =DC!F55 -> 1.8 | AG6: =DC!H55 -> 70000 | AH6: =DC!E56 -> 1.6 | AI6: =DC!F56 -> 1.2 | AJ6: =DC!H56 -> 55000 | AK6: =DC!E57 -> 1.6 | AL6: =DC!F57 -> 1.2 | AM6: =DC!H57 -> 55000 | AN6: =DC!G65 -> 200000 | AO6: =DC!H72 -> 0 | AP6: =DC!H73 -> 2000 | AQ6: =DC!H74 -> 2000 | AR6: =DC!H75 -> 0 | AS6: =DC!H76 -> 0 | AT6: =DC!H77 -> 0 | AU6: =DC!H78 -> 0 | AV6: =DC!H82 -> 2000 | AW6: =DC!H83 -> 0 | AX6: =DC!E82 -> Type 6 Four-lane Arterial | AY6: =DC!E83 -> Type 3 Two-lane local | AZ6: =DC!G89 -> 2000 | BA6: =DC!G90 -> 2000 | BB6: =DC!G91 -> 2000 | BC6: =DC!G92 -> 3.5 | BD6: =DC!G96 -> 3.5 | BE6: =DC!G97 -> 0.3 | BF6: =CV!F9 -> 0.06 | BG6: =CV!D23 -> 0 | BH6: =CV!E23 -> 0 | BI6: =CV!F23 -> 0 | BJ6: =CV!G23 -> 0 | BK6: =CV!H23 -> 0 | BL6: =CV!I23 -> 0 | BM6: =CV!J23 -> 0 | BN6: =CV!D28 -> 200 | BO6: =CV!E28 -> 200 | BP6: =CV!F28 -> 200 | BQ6: =CV!G28 -> 200 | BR6: =CV!H28 -> 200 | BS6: =CV!I28 -> 200 | BT6: =CV!J28 -> 200 | BU6: =CV!D30 -> 220 | BV6: =CV!E30 -> 220 | BW6: =CV!F30 -> 220 | BX6: =CV!G30 -> 220 | BY6: =CV!H30 -> 220 | BZ6: =CV!I30 -> 220 | CA6: =CV!J30 -> 220 | CB6: =CV!D32 -> 440 | CC6: =CV!E32 -> 440 | CD6: =CV!F32 -> 440 | CE6: =CV!G32 -> 440 | CF6: =CV!H32 -> 440 | CG6: =CV!I32 -> 440 | CH6: =CV!J32 -> 440 | CI6: =CV!F41 -> 300 | CJ6: =CV!F43 -> 250 | CK6: =CV!F45 -> 500 | CL6: =CV!F47 -> 0 | CM6: =CV!F49 -> 0 | CN6: =CV!F53 -> 246000 | CO6: =CV!$D$56 -> 0 | CP6: =CV!$E$56 -> 7000 | CQ6: =CV!D64 -> 3 | CR6: =CV!E64 -> 7 | CS6: =CV!D65 -> 3.6 | CT6: =CV!E65 -> 8.4 | CU6: =CV!D66 -> 6 | CV6: =CV!E66 -> 14 | CW6: =CV!D70 -> 240 | CX6: =CV!E70 -> 60 | CY6: =CV!D71 -> 220 | CZ6: =CV!E71 -> 55 | DA6: =CV!D72 -> 200 | DB6: =CV!E72 -> 50 | DC6: =CV!D75 -> 2 | DD6: =CV!E75 -> 2 | DE6: =CV!D78 -> 200 | DF6: =CV!E78 -> 50 | DG6: =CV!D81 -> 4.2 | DH6: =CV!E81 -> 2.8 | DI6: =CV!D84 -> 1 | DJ6: =CV!E84 -> 1 | DK6: =CV!F149 -> 6541 | DL6: =CV!D152 -> 6949 | DM6: =CV!E152 -> 0 | DN6: =CV!F154 -> 800 | DO6: =CV!F88 -> 33.37653921 | DP6: =CV!D91 -> 300 | DQ6: =CV!E91 -> 0 | DR6: =CV!$F$97 -> 0 | DS6: =CV!$D$100 -> 0 | DT6: =CV!$E$100 -> 0 | DU6: =CV!F140 -> 500000 | DV6: =CV!D143 -> 90 | DW6: =CV!E143 -> 0 | DX6: =CV!F105 -> 40.18146468 | DY6: =CV!D108 -> 328 | DZ6: =CV!E108 -> 0 | EA6: =CV!F112 -> 20.73882048 | EB6: =CV!D115 -> 498 | EC6: =CV!E115 -> 0 | ED6: =CV!F123 -> 0 | EE6: =CV!F124 -> 0 | EF6: =CV!F125 -> 0 | EG6: =CV!F126 -> 0 | EH6: =CV!F127 -> 0 | EI6: =CV!D132 -> 184 | EJ6: =CV!E132 -> 0 | EK6: =CV!D133 -> 184 | EL6: =CV!E133 -> 0 | EM6: =CV!D134 -> 80 | EN6: =CV!E134 -> 0 | EO6: =CV!D135 -> 0 | EP6: =CV!E135 -> 0 | EQ6: =CV!D136 -> 0 | ER6: =CV!E136 -> 0 | ES6: =CV!F160 -> 6900 | ET6: =CV!D163 -> 0.2 | EU6: =CV!E163 -> 0 | EV6: =CV!F169 -> 2300 | EW6: =CV!F170 -> 1800 | EX6: =CV!F171 -> 1500 | EY6: =CV!F176 -> 10.98 | EZ6: =CV!F178 -> 2500 | FA6: =CV!F180 -> 50 | FB6: =CV!F186 -> 19 | FC6: =CV!G186 -> 1000 | FD6: =CV!F187 -> 200 | FE6: =CV!G187 -> 100 | FF6: =CV!F188 -> 14 | FG6: =CV!G188 -> 1000 | FH6: =CV!F189 -> 0.038 | FI6: =CV!G189 -> 500 | FJ6: =CV!F190 -> 0.233 | FK6: =CV!G190 -> 1000 | FL6: =CV!F197 -> 8.5e-09 | FM6: =CV!G197 -> 3.59 | FN6: =CV!F198 -> 6.275e-07 | FO6: =CV!G198 -> 49340 | FP6: =CV!F199 -> 1.865e-06 | FQ6: =CV!G199 -> 5084 | FR6: =HC!$F$9 -> 0 | FS6: =HC!F11 -> 10000 | FT6: =HC!F13 -> 0 | FU6: =HC!F21 -> 0 | FV6: =HC!F23 -> 10000 | FW6: =HC!F25 -> 0 | FX6: =HC!F33 -> 500000 | FY6: =HC!F35 -> 10000 | FZ6: =HC!F37 -> 15000 | GA6: =HC!F45 -> 0 | GB6: =HC!F47 -> 10000 | GC6: =HC!F49 -> 0 | GD6: =HC!F57 -> 580000 | GE6: =HC!F59 -> 10000 | GF6: =HC!F61 -> 40000 | GG6: =HC!F69 -> 300000 | GH6: =HC!F71 -> 10000 | GI6: =HC!F73 -> 20000 | GJ6: ='RC'!F10 -> Public Laneway | GK6: ='RC'!F11 -> Local | GL6: ='RC'!G10 -> Two-lane local | GM6: ='RC'!G11 -> Local | GN6: ='RC'!H10 -> Two-lane local | GO6: ='RC'!H11 -> Local | GP6: ='RC'!I10 -> Two-lane collector | GQ6: ='RC'!I11 -> Collector | GR6: ='RC'!J10 -> Four-lane collector | GS6: ='RC'!J11 -> Arterial | GT6: ='RC'!K10 -> Four-lane Arterial | GU6: ='RC'!K11 -> Arterial | GV6: ='RC'!L10 -> User Defined | GW6: ='RC'!L11 -> User Defined | GX6: ='RC'!L13 -> 0 | GY6: ='RC'!L14 -> 0 | GZ6: ='RC'!L15 -> 0 | HA6: ='RC'!L16 -> 0 | HB6: ='RC'!L17 -> 0 | HC6: ='RC'!L18 -> 0 | HD6: ='RC'!L19 -> 0 | HE6: ='RC'!L20 -> 0 | HF6: ='RC'!L21 -> 0 | HG6: ='RC'!L22 -> 0 | HH6: ='RC'!L23 -> 0 | HI6: ='RC'!L24 -> 1 | HJ6: ='RC'!L25 -> 0 | HK6: ='RC'!F44 -> 0 | HL6: ='RC'!G44 -> 0 | HM6: ='RC'!H44 -> 0 | HN6: ='RC'!I44 -> 0 | HO6: ='RC'!J44 -> 0 | HP6: ='RC'!K44 -> 0 | HQ6: ='RC'!L44 -> 0 | HR6: =RV!F15 -> 9000 | HS6: =RV!F18 -> 9000 | HT6: =RV!F19 -> 7000 | HU6: =RV!F22 -> 5000 | HV6: =RV!F23 -> 5000 | HW6: =RV!E30 -> 350000 | HX6: =RV!E34 -> 314000 | HY6: =RV!E35 -> 314000 | HZ6: =RV!E39 -> 200000 | IA6: =RV!E40 -> 200000 | IB6: =RV!F42 -> 4.9 | IC6: =RV!F48 -> 300 | ID6: =RV!F50 -> 0 | IE6: =RV!F52 -> 0.5 | IF6: =RV!E58 -> 0 | IG6: =A!F13 -> 1 | IH6: =A!D28 -> 1 | II6: =A!E28 -> 0 | IJ6: =A!F28 -> 0 | IK6: =A!G28 -> 0 | IL6: =A!J28 -> 1 | IM6: =A!K28 -> 0 | IN6: =A!L28 -> 0 | IO6: =A!M28 -> 0 | IP6: =A!D30 -> 1 | IQ6: =A!E30 -> 0 | IR6: =A!F30 -> 0 | IS6: =A!G30 -> 0 | IT6: =A!J30 -> 1 | IU6: =A!K30 -> 0 | IV6: =A!L30 -> 0 | IW6: =A!M30 -> 0 | IX6: =A!D32 -> 1 | IY6: =A!E32 -> 0 | IZ6: =A!F32 -> 0 | JA6: =A!G32 -> 0 | JB6: =A!J32 -> 1 | JC6: =A!K32 -> 0 | JD6: =A!L32 -> 0 | JE6: =A!M32 -> 0 | JF6: =A!D34 -> 1 | JG6: =A!E34 -> 0 | JH6: =A!F34 -> 0 | JI6: =A!G34 -> 0 | JJ6: =A!J34 -> 1 | JK6: =A!K34 -> 0 | JL6: =A!L34 -> 0 | JM6: =A!M34 -> 0 | JN6: =A!D36 -> 1 | JO6: =A!E36 -> 0 | JP6: =A!F36 -> 0 | JQ6: =A!G36 -> 0 | JR6: =A!J36 -> 1 | JS6: =A!K36 -> 0 | JT6: =A!L36 -> 0 | JU6: =A!M36 -> 0 | JV6: =A!D38 -> 1 | JW6: =A!E38 -> 0 | JX6: =A!F38 -> 0 | JY6: =A!G38 -> 0 | JZ6: =A!J38 -> 1 | KA6: =A!K38 -> 0 | KB6: =A!L38 -> 0 | KC6: =A!M38 -> 0 | KD6: =A!D40 -> 1 | KE6: =A!E40 -> 0 | KF6: =A!F40 -> 0 | KG6: =A!G40 -> 0 | KH6: =A!J40 -> 1 | KI6: =A!K40 -> 0 | KJ6: =A!L40 -> 0 | KK6: =A!M40 -> 0 | KL6: =A!D42 -> 1 | KM6: =A!E42 -> 0 | KN6: =A!F42 -> 0 | KO6: =A!G42 -> 0 | KP6: =A!J42 -> 1 | KQ6: =A!K42 -> 0 | KR6: =A!L42 -> 0 | KS6: =A!M42 -> 0 | KT6: =A!D44 -> 1 | KU6: =A!E44 -> 0 | KV6: =A!F44 -> 0 | KW6: =A!G44 -> 0 | KX6: =A!J44 -> 1 | KY6: =A!K44 -> 0 | KZ6: =A!L44 -> 0 | LA6: =A!M44 -> 0 | LB6: =A!D46 -> 1 | LC6: =A!E46 -> 0 | LD6: =A!F46 -> 0 | LE6: =A!G46 -> 0 | LF6: =A!J46 -> 1 | LG6: =A!K46 -> 0 | LH6: =A!L46 -> 0 | LI6: =A!M46 -> 0 | LJ6: =A!D48 -> 1 | LK6: =A!E48 -> 0 | LL6: =A!F48 -> 0 | LM6: =A!G48 -> 0 | LN6: =A!J48 -> 1 | LO6: =A!K48 -> 0 | LP6: =A!L48 -> 0 | LQ6: =A!M48 -> 0 | LR6: =A!D62 -> 0 | LS6: =A!E62 -> 0 | LT6: =A!F62 -> 0 | LU6: =A!G62 -> 1 | LV6: =A!J62 -> 0 | LW6: =A!K62 -> 0 | LX6: =A!L62 -> 0 | LY6: =A!M62 -> 1 | LZ6: =A!D50 -> 1 | MA6: =A!E50 -> 0 | MB6: =A!F50 -> 0 | MC6: =A!G50 -> 0 | MD6: =A!J50 -> 1 | ME6: =A!K50 -> 0 | MF6: =A!L50 -> 0 | MG6: =A!M50 -> 0 | MH6: =A!D52 -> 1 | MI6: =A!E52 -> 0 | MJ6: =A!F52 -> 0 | MK6: =A!G52 -> 0 | ML6: =A!J52 -> 1 | MM6: =A!K52 -> 0 | MN6: =A!L52 -> 0 | MO6: =A!M52 -> 0 | MP6: =A!D60 -> 1 | MQ6: =A!E60 -> 0 | MR6: =A!F60 -> 0 | MS6: =A!G60 -> 0 | MT6: =A!J60 -> 1 | MU6: =A!K60 -> 0 | MV6: =A!L60 -> 0 | MW6: =A!M60 -> 0 | MX6: =A!D64 -> Capital cost, if any specified, combined with School Transit O&M | MY6: =A!E64 -> 0 | MZ6: =A!F64 -> 0 | NA6: =A!G64 -> 0 | NB6: =A!J64 -> 0 | NC6: =A!K64 -> 0 | ND6: =A!L64 -> 0 | NE6: =A!M64 -> 1 | NF6: =A!D54 -> 1 | NG6: =A!E54 -> 0 | NH6: =A!F54 -> 0 | NI6: =A!G54 -> 0 | NJ6: =A!J54 -> 1 | NK6: =A!K54 -> 0 | NL6: =A!L54 -> 0 | NM6: =A!M54 -> 0 | NN6: =A!D56 -> 1 | NO6: =A!E56 -> 0 | NP6: =A!F56 -> 0 | NQ6: =A!G56 -> 0 | NR6: =A!J56 -> 1 | NS6: =A!K56 -> 0 | NT6: =A!L56 -> 0 | NU6: =A!M56 -> 0 | NV6: =A!D58 -> 1 | NW6: =A!E58 -> 0 | NX6: =A!F58 -> 0 | NY6: =A!G58 -> 0 | NZ6: =A!J58 -> 1 | OA6: =A!K58 -> 0 | OB6: =A!L58 -> 0 | OC6: =A!M58 -> 0 | OD6: =CS!$F11 -> 0 | OE6: =CS!$H11 -> 0 | OF6: =CS!$F13 -> 0 | OG6: =CS!$H13 -> 0 | OH6: =CS!$F15 -> 0 | OI6: =CS!$H15 -> 0 | OJ6: =CS!$F17 -> 0 | OK6: =CS!$H17 -> 0 | OL6: =CS!$F19 -> 0 | OM6: =CS!$H19 -> 0 | ON6: =CS!$F21 -> 0 | OO6: =CS!$H21 -> 0 | OP6: =CS!$F23 -> 0 | OQ6: =CS!$H23 -> 0 | OR6: =CS!$F27 -> 0 | OS6: =CS!$H27 -> 0 | OT6: =CS!$F29 -> 0 | OU6: =CS!$H29 -> 0 | OV6: =CS!F36 -> 0 | OW6: =CS!H36 -> 0 | OX6: =CS!F38 -> 0 | OY6: =CS!H38 -> 0 | OZ6: =CS!F40 -> 0 | PA6: =CS!H40 -> 0 | PB6: =CS!F47 -> 0 | PC6: =CS!H47 -> 0 | PD6: =CS!F49 -> 0 | PE6: =CS!H49 -> 0 | PF6: =CS!F51 -> 0 | PG6: =CS!H51 -> 0 | PH6: =CS!F58 -> 0 | PI6: =CS!H58 -> 0 | PJ6: =CS!F60 -> 0 | PK6: =CS!H60 -> 0 | PL6: =CS!F62 -> 0 | PM6: =CS!H62 -> 0 | PN6: =CS!F79 -> 0 | PO6: =CS!H79 -> 0 | PP6: =CS!F81 -> 0 | PQ6: =CS!H81 -> 0 | PR6: =CS!F69 -> 0 | PS6: =CS!H69 -> 0 | PT6: =CS!$F$71 -> 0 | PU6: =CS!$H$71 -> 0 | PV6: =CS!F77 -> 0 | PW6: =CS!H77 -> 0 | PX6: =CS!F73 -> 0 | PY6: =CS!H73 -> 0 | PZ6: =CS!F75 -> 0 | QA6: =CS!H75 -> 0 | QB6: =CS!F87 -> 30 | QC6: =CS!G87 -> 1 | QD6: =CS!F89 -> 30 | QE6: =CS!G89 -> 1 | QF6: =CS!F91 -> 30 | QG6: =CS!G91 -> 1 | QH6: =CS!F93 -> 30 | QI6: =CS!G93 -> 1 | QJ6: =CS!F95 -> 30 | QK6: =CS!G95 -> 1 | QL6: =CS!F97 -> 30 | QM6: =CS!G97 -> 1 | QN6: =CS!F99 -> 30 | QO6: =CS!G99 -> 1 | QP6: =CS!F103 -> 30 | QQ6: =CS!G103 -> 1 | QR6: =CS!F105 -> 30 | QS6: =CS!G105 -> 1 | QT6: =CS!F111 -> 75 | QU6: =CS!G111 -> 1 | QV6: =CS!$F$113 -> 45 | QW6: =CS!$G$113 -> 1 | QX6: =CS!F115 -> 75 | QY6: =CS!G115 -> 1 | QZ6: =CS!$F$117 -> 45 | RA6: =CS!$G$117 -> 1 | RB6: =CS!F119 -> 75 | RC6: =CS!G119 -> 1 | RD6: =CS!$F$121 -> 75 | RE6: =CS!$G$121 -> 1 | RF6: =CS!F123 -> 25 | RG6: =CS!G123 -> 1 | RH6: =CS!F125 -> 50 | RI6: =CS!G125 -> 1 | RJ6: =CS!F127 -> 20 | RK6: =CS!G127 -> 1 | RL6: =CS!$F$129 -> 50 | RM6: =CS!$G$129 -> 1 | RN6: =CS!F131 -> 15 | RO6: =CS!G131 -> 1 | RP6: =CS!F133 -> 25 | RQ6: =CS!G133 -> 1 | RR6: =CS!F135 -> 25 | RS6: =CS!G135 -> 1 | RT6: =IC!G1520 -> 3062.995922 | RU6: =IC!G1521 -> 2710.359116 | RV6: =IC!G1522 -> 0 | RW6: =IC!G1527 -> 2048.044199 | RX6: =IC!G1528 -> 3210.911602 | RY6: =IC!G1529 -> 0 | RZ6: =IC!G1534 -> 2277.337583 | SA6: =IC!G1535 -> 3383.349101 | SB6: =IC!G1536 -> 0 | SC6: =IC!G1463 -> 2277.337583 | SD6: =IC!G1465 -> 0 | SE6: =IC!G1544 -> 1804.965495 | SF6: =IC!G1514 -> 0 | SG6: =IC!G1553 -> 3662.646775 | SH6: =IC!G1554 -> 193.1187845 | SI6: =IC!G1555 -> 1514.548803 | SJ6: =IC!G1560 -> 197.1136918 | SK6: =IC!G1561 -> 28.49814726 | SL6: =IC!G1562 -> 66.89454683 | SM6: =UD!E24 -> 0 | SN6: =UD!H24 -> 0 | SO6: =UD!$E$26 -> 0 | SP6: =UD!E45 -> 0 | SQ6: =CV!F163 -> 0.2 | SR6: =D!E12 -> 20 | SS6: =D!E13 -> 50 | ST6: =D!E14 -> 80 | SU6: =D!E15 -> 200 | SV6: =D!E16 -> 400 | SW6: =CV!C204 ->  | SX6: =CV!C205 ->  | SY6: =CV!C206 ->  | SZ6: =CV!C207 ->  | TA6: =CV!C208 ->  | TB6: =CV!C209 ->  | TC6: =CV!C210 ->  | TD6: =CV!C211 ->  | TE6: =CV!C212 ->  | TF6: =CV!C213 ->  | TG6: =DC!C112 ->  | TH6: =DC!C113 ->  | TI6: =DC!C114 ->  | TJ6: =DC!C115 ->  | TK6: =DC!C116 ->  | TL6: =DC!C117 ->  | TM6: =DC!C118 ->  | TN6: =DC!C119 ->  | TO6: =DC!C120 ->  | TP6: =DC!C121 ->  | TQ6: =UD!C49 ->  | TR6: =UD!C50 ->  | TS6: =UD!C51 ->  | TT6: =UD!C52 ->  | TU6: =UD!C53 ->  | TV6: =UD!C54 ->  | TW6: =UD!C55 ->  | TX6: =UD!C56 ->  | TY6: =UD!C57 ->  | TZ6: =UD!C58 ->  | UA6: =RV!C62 ->  | UB6: =RV!C63 ->  | UC6: =RV!C64 ->  | UD6: =RV!C65 ->  | UE6: =RV!C66 ->  | UF6: =A!C73 ->  | UG6: =A!C74 ->  | UH6: =A!C75 ->  | UI6: =A!C76 ->  | UJ6: =A!C77 ->  | UK6: =CS!C139 ->  | UL6: =CS!C140 ->  | UM6: =CS!C141 ->  | UN6: =CS!C142 ->  | UO6: =CS!C143 ->  | UP6: ='RC'!C49 ->  | UQ6: ='RC'!C50 ->  | UR6: ='RC'!C51 ->  | US6: ='RC'!C52 ->  | UT6: ='RC'!C53 -> 
A7: CURRENT SCENARIO (retrieved) | D7: 0 | E7: <<Default Scenario>> | F7: 0 | G7: 0 | H7: 12 | I7: 1.6 | J7: 40 | K7: 20 | L7: TRUE | M7: FALSE | N7: FALSE | O7: 0.05 | P7: 0.05 | Q7: 0.1 | R7: 0.3 | S7: 0.5 | T7: 20 | U7: 50 | V7: 160 | W7: 1200 | X7: 4000 | Y7: 3.2 | Z7: 2 | AA7: 125000 | AB7: 2.8 | AC7: 1.8 | AD7: 90000 | AE7: 2.4 | AF7: 1.8 | AG7: 70000 | AH7: 1.6 | AI7: 1.2 | AJ7: 55000 | AK7: 1.6 | AL7: 1.2 | AM7: 55000 | AN7: 200000 | AO7: 0 | AP7: 2000 | AQ7: 2000 | AR7: 0 | AS7: 0 | AT7: 0 | AU7: 0 | AV7: 2000 | AW7: 0 | AX7: Type 6 Four-lane Arterial | AY7: Type 3 Two-lane local | AZ7: 2000 | BA7: 2000 | BB7: 2000 | BC7: 3.5 | BD7: 3.5 | BE7: 0.3 | BF7: 0.06 | BG7: 0 | BH7: 0 | BI7: 0 | BJ7: 0 | BK7: 0 | BL7: 0 | BM7: 0 | BN7: 200 | BO7: 200 | BP7: 200 | BQ7: 200 | BR7: 200 | BS7: 200 | BT7: 200 | BU7: 220 | BV7: 220 | BW7: 220 | BX7: 220 | BY7: 220 | BZ7: 220 | CA7: 220 | CB7: 440 | CC7: 440 | CD7: 440 | CE7: 440 | CF7: 440 | CG7: 440 | CH7: 440 | CI7: 300 | CJ7: 250 | CK7: 500 | CL7: 0 | CM7: 0 | CN7: 246000 | CO7: 0 | CP7: 7000 | CQ7: 3 | CR7: 7 | CS7: 3.6 | CT7: 8.4 | CU7: 6 | CV7: 14 | CW7: 240 | CX7: 60 | CY7: 220 | CZ7: 55 | DA7: 200 | DB7: 50 | DC7: 2 | DD7: 2 | DE7: 200 | DF7: 50 | DG7: 4.2 | DH7: 2.8 | DI7: 1 | DJ7: 1 | DK7: 6541 | DL7: 6949 | DM7: 0 | DN7: 800 | DO7: 33.37653921 | DP7: 300 | DQ7: 0 | DR7: 0 | DS7: 0 | DT7: 0 | DU7: 500000 | DV7: 90 | DW7: 0 | DX7: 40.18146468 | DY7: 328 | DZ7: 0 | EA7: 20.73882048 | EB7: 498 | EC7: 0 | ED7: 0 | EE7: 0 | EF7: 0 | EG7: 0 | EH7: 0 | EI7: 184 | EJ7: 0 | EK7: 184 | EL7: 0 | EM7: 80 | EN7: 0 | EO7: 0 | EP7: 0 | EQ7: 0 | ER7: 0 | ES7: 6900 | ET7: 0.2 | EU7: 0 | EV7: 2300 | EW7: 1800 | EX7: 1500 | EY7: 10.98 | EZ7: 2500 | FA7: 50 | FB7: 19 | FC7: 1000 | FD7: 200 | FE7: 100 | FF7: 14 | FG7: 1000 | FH7: 0.038 | FI7: 500 | FJ7: 0.233 | FK7: 1000 | FL7: 8.5e-09 | FM7: 3.59 | FN7: 6.275e-07 | FO7: 49340 | FP7: 1.865e-06 | FQ7: 5084 | FR7: 0 | FS7: 10000 | FT7: 0 | FU7: 0 | FV7: 10000 | FW7: 0 | FX7: 500000 | FY7: 10000 | FZ7: 15000 | GA7: 0 | GB7: 10000 | GC7: 0 | GD7: 580000 | GE7: 10000 | GF7: 40000 | GG7: 300000 | GH7: 10000 | GI7: 20000 | GJ7: Public Laneway | GK7: Local | GL7: Two-lane local | GM7: Local | GN7: Two-lane local | GO7: Local | GP7: Two-lane collector | GQ7: Collector | GR7: Four-lane collector | GS7: Arterial | GT7: Four-lane Arterial | GU7: Arterial | GV7: User Defined | GW7: User Defined | GX7: 0 | GY7: 0 | GZ7: 0 | HA7: 0 | HB7: 0 | HC7: 0 | HD7: 0 | HE7: 0 | HF7: 0 | HG7: 0 | HH7: 0 | HI7: 1 | HJ7: 0 | HK7: 0 | HL7: 0 | HM7: 0 | HN7: 0 | HO7: 0 | HP7: 0 | HQ7: 0 | HR7: 9000 | HS7: 9000 | HT7: 7000 | HU7: 5000 | HV7: 5000 | HW7: 350000 | HX7: 314000 | HY7: 314000 | HZ7: 200000 | IA7: 200000 | IB7: 4.9 | IC7: 300 | ID7: 0 | IE7: 0.5 | IF7: 0 | IG7: 1 | IH7: 1 | II7: 0 | IJ7: 0 | IK7: 0 | IL7: 1 | IM7: 0 | IN7: 0 | IO7: 0 | IP7: 1 | IQ7: 0 | IR7: 0 | IS7: 0 | IT7: 1 | IU7: 0 | IV7: 0 | IW7: 0 | IX7: 1 | IY7: 0 | IZ7: 0 | JA7: 0 | JB7: 1 | JC7: 0 | JD7: 0 | JE7: 0 | JF7: 1 | JG7: 0 | JH7: 0 | JI7: 0 | JJ7: 1 | JK7: 0 | JL7: 0 | JM7: 0 | JN7: 1 | JO7: 0 | JP7: 0 | JQ7: 0 | JR7: 1 | JS7: 0 | JT7: 0 | JU7: 0 | JV7: 1 | JW7: 0 | JX7: 0 | JY7: 0 | JZ7: 1 | KA7: 0 | KB7: 0 | KC7: 0 | KD7: 1 | KE7: 0 | KF7: 0 | KG7: 0 | KH7: 1 | KI7: 0 | KJ7: 0 | KK7: 0 | KL7: 1 | KM7: 0 | KN7: 0 | KO7: 0 | KP7: 1 | KQ7: 0 | KR7: 0 | KS7: 0 | KT7: 1 | KU7: 0 | KV7: 0 | KW7: 0 | KX7: 1 | KY7: 0 | KZ7: 0 | LA7: 0 | LB7: 1 | LC7: 0 | LD7: 0 | LE7: 0 | LF7: 1 | LG7: 0 | LH7: 0 | LI7: 0 | LJ7: 1 | LK7: 0 | LL7: 0 | LM7: 0 | LN7: 1 | LO7: 0 | LP7: 0 | LQ7: 0 | LR7: 0 | LS7: 0 | LT7: 0 | LU7: 1 | LV7: 0 | LW7: 0 | LX7: 0 | LY7: 1 | LZ7: 1 | MA7: 0 | MB7: 0 | MC7: 0 | MD7: 1 | ME7: 0 | MF7: 0 | MG7: 0 | MH7: 1 | MI7: 0 | MJ7: 0 | MK7: 0 | ML7: 1 | MM7: 0 | MN7: 0 | MO7: 0 | MP7: 1 | MQ7: 0 | MR7: 0 | MS7: 0 | MT7: 1 | MU7: 0 | MV7: 0 | MW7: 0 | MX7: Capital cost, if any specified, combined with School Transit O&M | MY7: 0 | MZ7: 0 | NA7: 0 | NB7: 0 | NC7: 0 | ND7: 0 | NE7: 1 | NF7: 1 | NG7: 0 | NH7: 0 | NI7: 0 | NJ7: 1 | NK7: 0 | NL7: 0 | NM7: 0 | NN7: 1 | NO7: 0 | NP7: 0 | NQ7: 0 | NR7: 1 | NS7: 0 | NT7: 0 | NU7: 0 | NV7: 1 | NW7: 0 | NX7: 0 | NY7: 0 | NZ7: 1 | OA7: 0 | OB7: 0 | OC7: 0 | OD7: 0 | OE7: 0 | OF7: 0 | OG7: 0 | OH7: 0 | OI7: 0 | OJ7: 0 | OK7: 0 | OL7: 0 | OM7: 0 | ON7: 0 | OO7: 0 | OP7: 0 | OQ7: 0 | OR7: 0 | OS7: 0 | OT7: 0 | OU7: 0 | OV7: 0 | OW7: 0 | OX7: 0 | OY7: 0 | OZ7: 0 | PA7: 0 | PB7: 0 | PC7: 0 | PD7: 0 | PE7: 0 | PF7: 0 | PG7: 0 | PH7: 0 | PI7: 0 | PJ7: 0 | PK7: 0 | PL7: 0 | PM7: 0 | PN7: 0 | PO7: 0 | PP7: 0 | PQ7: 0 | PR7: 0 | PS7: 0 | PT7: 0 | PU7: 0 | PV7: 0 | PW7: 0 | PX7: 0 | PY7: 0 | PZ7: 0 | QA7: 0 | QB7: 30 | QC7: 1 | QD7: 30 | QE7: 1 | QF7: 30 | QG7: 1 | QH7: 30 | QI7: 1 | QJ7: 30 | QK7: 1 | QL7: 30 | QM7: 1 | QN7: 30 | QO7: 1 | QP7: 30 | QQ7: 1 | QR7: 30 | QS7: 1 | QT7: 75 | QU7: 1 | QV7: 45 | QW7: 1 | QX7: 75 | QY7: 1 | QZ7: 45 | RA7: 1 | RB7: 75 | RC7: 1 | RD7: 75 | RE7: 1 | RF7: 25 | RG7: 1 | RH7: 50 | RI7: 1 | RJ7: 20 | RK7: 1 | RL7: 50 | RM7: 1 | RN7: 15 | RO7: 1 | RP7: 25 | RQ7: 1 | RR7: 25 | RS7: 1 | RT7: 3062.995922 | RU7: 2710.359116 | RV7: 0 | RW7: 2048.044199 | RX7: 3210.911602 | RY7: 0 | RZ7: 2277.337583 | SA7: 3383.349101 | SB7: 0 | SC7: 2277.337583 | SD7: 0 | SE7: 1804.965495 | SF7: 0 | SG7: 3662.646775 | SH7: 193.1187845 | SI7: 1514.548803 | SJ7: 197.1136918 | SK7: 28.49814726 | SL7: 66.89454683 | SM7: 0 | SN7: 0 | SO7: 0 | SP7: 0 | SQ7: 0.2 | SR7: 20 | SS7: 50 | ST7: 80 | SU7: 200 | SV7: 400
A9: Active Scenario (retrieved) | B9: <<Default Scenario>> | C9: =VLOOKUP(B9,ScenarioID,2,FALSE) -> 0 | D9: =VLOOKUP(VALUE($C$9),$D$12:$UU$28,D1) -> 0 | E9: =VLOOKUP(VALUE($C$9),$D$12:$UU$28,E1) -> <<Default Scenario>> | F9: =D9 -> 0 | G9: =VLOOKUP($F9,$F$11:$G$25,2,FALSE) -> 0 | H9: =MATCH(G9,$D$12:$D$25,0)+ROW(Data_ScenarioName_Top)-1 -> 12 | I9: =VLOOKUP(VALUE($C$9),$D$12:$UU$28,I1,FALSE) -> 1.6 | J9: =VLOOKUP(VALUE($C$9),$D$12:$UU$28,J1) -> 40 | K9: 20 | L9: TRUE | M9: FALSE | N9: FALSE | O9: 0.05 | P9: 0.05 | Q9: 0.1 | R9: 0.3 | S9: 0.5 | T9: 20 | U9: 50 | V9: 160 | W9: 1200 | X9: 4000 | Y9: 3.2 | Z9: 2 | AA9: 125000 | AB9: 2.8 | AC9: 1.8 | AD9: 90000 | AE9: 2.4 | AF9: 1.8 | AG9: 70000 | AH9: 1.6 | AI9: 1.2 | AJ9: 55000 | AK9: 1.6 | AL9: 1.2 | AM9: 55000 | AN9: 200000 | AO9: 0 | AP9: =VLOOKUP(VALUE($C$9),$D$12:$UU$28,AP1) -> 2000 | AQ9: 2000 | AR9: 0 | AS9: 0 | AT9: 0 | AU9: 0 | AV9: 2000 | AW9: 0 | AX9: Type 6 Four-lane Arterial | AY9: Type 3 Two-lane local | AZ9: 2000 | BA9: 2000 | BB9: 2000 | BC9: 3.5 | BD9: 3.5 | BE9: 0.3 | BF9: 0.06 | BG9: 0 | BH9: 0 | BI9: 0 | BJ9: 0 | BK9: 0 | BL9: 0 | BM9: 0 | BN9: 200 | BO9: 200 | BP9: 200 | BQ9: 200 | BR9: 200 | BS9: 200 | BT9: 200 | BU9: 220 | BV9: =VLOOKUP(VALUE($C$9),$D$12:$UU$28,BV1) -> 220 | BW9: 220 | BX9: 220 | BY9: 220 | BZ9: 220 | CA9: 220 | CB9: 440 | CC9: 440 | CD9: 440 | CE9: 440 | CF9: 440 | CG9: 440 | CH9: 440 | CI9: 300 | CJ9: 250 | CK9: 500 | CL9: 0 | CM9: 0 | CN9: 246000 | CO9: 0 | CP9: 7000 | CQ9: 3 | CR9: 7 | CS9: 3.6 | CT9: 8.4 | CU9: 6 | CV9: 14 | CW9: 240 | CX9: 60 | CY9: 220 | CZ9: 55 | DA9: 200 | DB9: =VLOOKUP(VALUE($C$9),$D$12:$UU$28,DB1) -> 50 | DC9: 2 | DD9: 2 | DE9: 200 | DF9: 50 | DG9: 4.2 | DH9: 2.8 | DI9: 1 | DJ9: 1 | DK9: 6541 | DL9: 6949 | DM9: 0 | DN9: 800 | DO9: 33.37653921 | DP9: 300 | DQ9: 0 | DR9: 0 | DS9: 0 | DT9: 0 | DU9: 500000 | DV9: 90 | DW9: 0 | DX9: 40.18146468 | DY9: 328 | DZ9: 0 | EA9: 20.73882048 | EB9: 498 | EC9: 0 | ED9: =VLOOKUP(VALUE($C$9),$D$12:$UU$28,ED1,FALSE) -> 0 | EE9: 0 | EF9: 0 | EG9: 0 | EH9: 0 | EI9: 184 | EJ9: 0 | EK9: 184 | EL9: 0 | EM9: 80 | EN9: 0 | EO9: 0 | EP9: 0 | EQ9: 0 | ER9: 0 | ES9: =VLOOKUP(VALUE($C$9),$D$12:$UU$28,ES1) -> 6900 | ET9: 0.2 | EU9: 0 | EV9: 2300 | EW9: 1800 | EX9: 1500 | EY9: 10.98 | EZ9: 2500 | FA9: 50 | FB9: 19 | FC9: 1000 | FD9: 200 | FE9: 100 | FF9: 14 | FG9: 1000 | FH9: 0.038 | FI9: 500 | FJ9: 0.233 | FK9: 1000 | FL9: 8.5e-09 | FM9: 3.59 | FN9: 6.275e-07 | FO9: 49340 | FP9: 1.865e-06 | FQ9: 5084 | FR9: 0 | FS9: 10000 | FT9: 0 | FU9: 0 | FV9: 10000 | FW9: 0 | FX9: 500000 | FY9: 10000 | FZ9: 15000 | GA9: 0 | GB9: 10000 | GC9: 0 | GD9: 580000 | GE9: 10000 | GF9: 40000 | GG9: 300000 | GH9: 10000 | GI9: 20000 | GJ9: Public Laneway | GK9: Local | GL9: Two-lane local | GM9: Local | GN9: Two-lane local | GO9: Local | GP9: Two-lane collector | GQ9: Collector | GR9: Four-lane collector | GS9: Arterial | GT9: Four-lane Arterial | GU9: Arterial | GV9: User Defined | GW9: User Defined | GX9: 0 | GY9: 0 | GZ9: 0 | HA9: 0 | HB9: 0 | HC9: 0 | HD9: 0 | HE9: =VLOOKUP(VALUE($C$9),$D$12:$UU$28,HE1) -> 0 | HF9: 0 | HG9: 0 | HH9: 0 | HI9: 1 | HJ9: 0 | HK9: 0 | HL9: 0 | HM9: 0 | HN9: 0 | HO9: 0 | HP9: 0 | HQ9: 0 | HR9: 9000 | HS9: 9000 | HT9: 7000 | HU9: 5000 | HV9: 5000 | HW9: 350000 | HX9: 314000 | HY9: 314000 | HZ9: 200000 | IA9: 200000 | IB9: 4.9 | IC9: 300 | ID9: 0 | IE9: 0.5 | IF9: 0 | IG9: 1 | IH9: 1 | II9: 0 | IJ9: 0 | IK9: 0 | IL9: 1 | IM9: 0 | IN9: 0 | IO9: 0 | IP9: 1 | IQ9: 0 | IR9: 0 | IS9: 0 | IT9: 1 | IU9: 0 | IV9: 0 | IW9: 0 | IX9: 1 | IY9: 0 | IZ9: 0 | JA9: 0 | JB9: 1 | JC9: 0 | JD9: 0 | JE9: 0 | JF9: 1 | JG9: 0 | JH9: 0 | JI9: 0 | JJ9: 1 | JK9: 0 | JL9: 0 | JM9: 0 | JN9: 1 | JO9: 0 | JP9: 0 | JQ9: =VLOOKUP(VALUE($C$9),$D$12:$UU$28,JQ1) -> 0 | JR9: 1 | JS9: 0 | JT9: 0 | JU9: 0 | JV9: 1 | JW9: 0 | JX9: 0 | JY9: 0 | JZ9: 1 | KA9: 0 | KB9: 0 | KC9: 0 | KD9: 1 | KE9: 0 | KF9: 0 | KG9: 0 | KH9: 1 | KI9: 0 | KJ9: 0 | KK9: 0 | KL9: 1 | KM9: 0 | KN9: 0 | KO9: 0 | KP9: 1 | KQ9: 0 | KR9: 0 | KS9: 0 | KT9: 1 | KU9: 0 | KV9: 0 | KW9: 0 | KX9: 1 | KY9: 0 | KZ9: 0 | LA9: 0 | LB9: 1 | LC9: 0 | LD9: 0 | LE9: 0 | LF9: 1 | LG9: 0 | LH9: 0 | LI9: 0 | LJ9: 1 | LK9: 0 | LL9: 0 | LM9: 0 | LN9: 1 | LO9: 0 | LP9: 0 | LQ9: 0 | LR9: 0 | LS9: 0 | LT9: 0 | LU9: 1 | LV9: 0 | LW9: 0 | LX9: 0 | LY9: 1 | LZ9: 1 | MA9: 0 | MB9: 0 | MC9: =VLOOKUP(VALUE($C$9),$D$12:$UU$28,MC1) -> 0 | MD9: 1 | ME9: 0 | MF9: 0 | MG9: 0 | MH9: 1 | MI9: 0 | MJ9: 0 | MK9: 0 | ML9: 1 | MM9: 0 | MN9: 0 | MO9: 0 | MP9: 1 | MQ9: 0 | MR9: 0 | MS9: 0 | MT9: 1 | MU9: 0 | MV9: 0 | MW9: 0 | MX9: Capital cost, if any specified, combined with School Transit O&M | MY9: 0 | MZ9: 0 | NA9: 0 | NB9: 0 | NC9: 0 | ND9: 0 | NE9: 1 | NF9: 1 | NG9: 0 | NH9: 0 | NI9: 0 | NJ9: 1 | NK9: 0 | NL9: 0 | NM9: 0 | NN9: 1 | NO9: 0 | NP9: 0 | NQ9: 0 | NR9: 1 | NS9: 0 | NT9: 0 | NU9: 0 | NV9: 1 | NW9: 0 | NX9: 0 | NY9: 0 | NZ9: 1 | OA9: 0 | OB9: 0 | OC9: 0 | OD9: 0 | OE9: 0 | OF9: 0 | OG9: 0 | OH9: 0 | OI9: 0 | OJ9: 0 | OK9: 0 | OL9: 0 | OM9: 0 | ON9: 0 | OO9: =VLOOKUP(VALUE($C$9),$D$12:$UU$28,OO1) -> 0 | OP9: 0 | OQ9: 0 | OR9: 0 | OS9: 0 | OT9: 0 | OU9: 0 | OV9: 0 | OW9: 0 | OX9: 0 | OY9: 0 | OZ9: 0 | PA9: 0 | PB9: 0 | PC9: 0 | PD9: 0 | PE9: 0 | PF9: 0 | PG9: 0 | PH9: 0 | PI9: 0 | PJ9: 0 | PK9: 0 | PL9: 0 | PM9: 0 | PN9: 0 | PO9: 0 | PP9: 0 | PQ9: 0 | PR9: 0 | PS9: 0 | PT9: 0 | PU9: 0 | PV9: 0 | PW9: 0 | PX9: 0 | PY9: 0 | PZ9: 0 | QA9: 0 | QB9: 30 | QC9: 1 | QD9: 30 | QE9: 1 | QF9: 30 | QG9: 1 | QH9: 30 | QI9: 1 | QJ9: 30 | QK9: 1 | QL9: 30 | QM9: 1 | QN9: 30 | QO9: 1 | QP9: 30 | QQ9: 1 | QR9: 30 | QS9: 1 | QT9: 75 | QU9: 1 | QV9: 45 | QW9: 1 | QX9: 75 | QY9: 1 | QZ9: 45 | RA9: =VLOOKUP(VALUE($C$9),$D$12:$UU$28,RA1) -> 1 | RB9: 75 | RC9: 1 | RD9: 75 | RE9: 1 | RF9: 25 | RG9: 1 | RH9: 50 | RI9: 1 | RJ9: 20 | RK9: 1 | RL9: 50 | RM9: 1 | RN9: 15 | RO9: 1 | RP9: 25 | RQ9: 1 | RR9: 25 | RS9: 1 | RT9: 3062.995922 | RU9: 2710.359116 | RV9: 0 | RW9: 2048.044199 | RX9: 3210.911602 | RY9: 0 | RZ9: 2277.337583 | SA9: 3383.349101 | SB9: 0 | SC9: 2277.337583 | SD9: 0 | SE9: 1804.965495 | SF9: 0 | SG9: 3662.646775 | SH9: 193.1187845 | SI9: 1514.548803 | SJ9: 197.1136918 | SK9: 28.49814726 | SL9: 66.89454683 | SM9: 0 | SN9: 0 | SO9: 0 | SP9: 0 | SQ9: 0.2 | SR9: 20 | SS9: 50 | ST9: 80 | SU9: 200 | SV9: 400 | SW9: =IF(VLOOKUP(VALUE($C$9),$D$12:$UU$28,SW1)=0,"",VLOOKUP(VALUE($C$9),$D$12:$UU$28,SW1)) ->  | UC9: =IF(VLOOKUP(VALUE($C$9),$D$12:$UU$28,UC1)=0,"",VLOOKUP(VALUE($C$9),$D$12:$UU$28,UC1)) -> 
A12: Built in Scenario | D12: 0 | E12: <<Default Scenario>> | F12: 0 | G12: 0 | I12: 1.6 | J12: 40 | K12: 20 | L12: TRUE | M12: FALSE | N12: FALSE | O12: 0.05 | P12: 0.05 | Q12: 0.1 | R12: 0.3 | S12: 0.5 | T12: 20 | U12: 50 | V12: 160 | W12: 1200 | X12: 4000 | Y12: 3.2 | Z12: 2 | AA12: 125000 | AB12: 2.8 | AC12: 1.8 | AD12: 90000 | AE12: 2.4 | AF12: 1.8 | AG12: 70000 | AH12: 1.6 | AI12: 1.2 | AJ12: 55000 | AK12: 1.6 | AL12: 1.2 | AM12: 55000 | AN12: 200000 | AO12: 0 | AP12: 2000 | AQ12: 2000 | AR12: 0 | AS12: 0 | AT12: 0 | AU12: 0 | AV12: 2000 | AW12: 0 | AX12: Type 6 Four-lane Arterial | AY12: Type 3 Two-lane local | AZ12: 2000 | BA12: 2000 | BB12: 2000 | BC12: 3.5 | BD12: 3.5 | BE12: 0.3 | BF12: 0.06 | BG12: 0 | BH12: 0 | BI12: 0 | BJ12: 0 | BK12: 0 | BL12: 0 | BM12: 0 | BN12: 200 | BO12: 200 | BP12: 200 | BQ12: 200 | BR12: 200 | BS12: 200 | BT12: 200 | BU12: 220 | BV12: 220 | BW12: 220 | BX12: 220 | BY12: 220 | BZ12: 220 | CA12: 220 | CB12: 440 | CC12: 440 | CD12: 440 | CE12: 440 | CF12: 440 | CG12: 440 | CH12: 440 | CI12: 300 | CJ12: 250 | CK12: 500 | CL12: 0 | CM12: 0 | CN12: 246000 | CO12: 0 | CP12: 7000 | CQ12: 3 | CR12: 7 | CS12: 3.6 | CT12: 8.4 | CU12: 6 | CV12: 14 | CW12: 240 | CX12: 60 | CY12: 220 | CZ12: 55 | DA12: 200 | DB12: 50 | DC12: 2 | DD12: 2 | DE12: 200 | DF12: 50 | DG12: 4.2 | DH12: 2.8 | DI12: 1 | DJ12: 1 | DK12: 6541 | DL12: 6949 | DM12: 0 | DN12: 800 | DO12: 33.37653921 | DP12: 300 | DQ12: 0 | DR12: 0 | DS12: 0 | DT12: 0 | DU12: 500000 | DV12: 90 | DW12: 0 | DX12: 40.18146468 | DY12: 328 | DZ12: 0 | EA12: 20.73882048 | EB12: 498 | EC12: 0 | ED12: 0 | EE12: 0 | EF12: 0 | EG12: 0 | EH12: 0 | EI12: 184 | EJ12: 0 | EK12: 184 | EL12: 0 | EM12: 80 | EN12: 0 | EO12: 0 | EP12: 0 | EQ12: 0 | ER12: 0 | ES12: 6900 | ET12: 0.2 | EU12: 0 | EV12: 2300 | EW12: 1800 | EX12: 1500 | EY12: 10.98 | EZ12: 2500 | FA12: 50 | FB12: 19 | FC12: 1000 | FD12: 200 | FE12: 100 | FF12: 14 | FG12: 1000 | FH12: 0.038 | FI12: 500 | FJ12: 0.233 | FK12: 1000 | FL12: 8.5e-09 | FM12: 3.59 | FN12: 6.275e-07 | FO12: 49340 | FP12: 1.865e-06 | FQ12: 5084 | FR12: 0 | FS12: 10000 | FT12: 0 | FU12: 0 | FV12: 10000 | FW12: 0 | FX12: 500000 | FY12: 10000 | FZ12: 15000 | GA12: 0 | GB12: 10000 | GC12: 0 | GD12: 580000 | GE12: 10000 | GF12: 40000 | GG12: 300000 | GH12: 10000 | GI12: 20000 | GJ12: Public Laneway | GK12: Local | GL12: Two-lane local | GM12: Local | GN12: Two-lane local | GO12: Local | GP12: Two-lane collector | GQ12: Collector | GR12: Four-lane collector | GS12: Arterial | GT12: Four-lane Arterial | GU12: Arterial | GV12: User Defined | GW12: User Defined | GX12: 0 | GY12: 0 | GZ12: 0 | HA12: 0 | HB12: 0 | HC12: 0 | HD12: 0 | HE12: 0 | HF12: 0 | HG12: 0 | HH12: 0 | HI12: 1 | HJ12: 0 | HK12: 0 | HL12: 0 | HM12: 0 | HN12: 0 | HO12: 0 | HP12: 0 | HQ12: 0 | HR12: 9000 | HS12: 9000 | HT12: 7000 | HU12: 5000 | HV12: 5000 | HW12: 350000 | HX12: 314000 | HY12: 314000 | HZ12: 200000 | IA12: 200000 | IB12: 4.9 | IC12: 300 | ID12: 0 | IE12: 0.5 | IF12: 0 | IG12: 1 | IH12: 1 | II12: 0 | IJ12: 0 | IK12: 0 | IL12: 1 | IM12: 0 | IN12: 0 | IO12: 0 | IP12: 1 | IQ12: 0 | IR12: 0 | IS12: 0 | IT12: 1 | IU12: 0 | IV12: 0 | IW12: 0 | IX12: 1 | IY12: 0 | IZ12: 0 | JA12: 0 | JB12: 1 | JC12: 0 | JD12: 0 | JE12: 0 | JF12: 1 | JG12: 0 | JH12: 0 | JI12: 0 | JJ12: 1 | JK12: 0 | JL12: 0 | JM12: 0 | JN12: 1 | JO12: 0 | JP12: 0 | JQ12: 0 | JR12: 1 | JS12: 0 | JT12: 0 | JU12: 0 | JV12: 1 | JW12: 0 | JX12: 0 | JY12: 0 | JZ12: 1 | KA12: 0 | KB12: 0 | KC12: 0 | KD12: 1 | KE12: 0 | KF12: 0 | KG12: 0 | KH12: 1 | KI12: 0 | KJ12: 0 | KK12: 0 | KL12: 1 | KM12: 0 | KN12: 0 | KO12: 0 | KP12: 1 | KQ12: 0 | KR12: 0 | KS12: 0 | KT12: 1 | KU12: 0 | KV12: 0 | KW12: 0 | KX12: 1 | KY12: 0 | KZ12: 0 | LA12: 0 | LB12: 1 | LC12: 0 | LD12: 0 | LE12: 0 | LF12: 1 | LG12: 0 | LH12: 0 | LI12: 0 | LJ12: 1 | LK12: 0 | LL12: 0 | LM12: 0 | LN12: 1 | LO12: 0 | LP12: 0 | LQ12: 0 | LR12: 0 | LS12: 0 | LT12: 0 | LU12: 1 | LV12: 0 | LW12: 0 | LX12: 0 | LY12: 1 | LZ12: 1 | MA12: 0 | MB12: 0 | MC12: 0 | MD12: 1 | ME12: 0 | MF12: 0 | MG12: 0 | MH12: 1 | MI12: 0 | MJ12: 0 | MK12: 0 | ML12: 1 | MM12: 0 | MN12: 0 | MO12: 0 | MP12: 1 | MQ12: 0 | MR12: 0 | MS12: 0 | MT12: 1 | MU12: 0 | MV12: 0 | MW12: 0 | MX12: Capital cost, if any specified, combined with School Transit O&M | MY12: 0 | MZ12: 0 | NA12: 0 | NB12: 0 | NC12: 0 | ND12: 0 | NE12: 1 | NF12: 1 | NG12: 0 | NH12: 0 | NI12: 0 | NJ12: 1 | NK12: 0 | NL12: 0 | NM12: 0 | NN12: 1 | NO12: 0 | NP12: 0 | NQ12: 0 | NR12: 1 | NS12: 0 | NT12: 0 | NU12: 0 | NV12: 1 | NW12: 0 | NX12: 0 | NY12: 0 | NZ12: 1 | OA12: 0 | OB12: 0 | OC12: 0 | OD12: 0 | OE12: 0 | OF12: 0 | OG12: 0 | OH12: 0 | OI12: 0 | OJ12: 0 | OK12: 0 | OL12: 0 | OM12: 0 | ON12: 0 | OO12: 0 | OP12: 0 | OQ12: 0 | OR12: 0 | OS12: 0 | OT12: 0 | OU12: 0 | OV12: 0 | OW12: 0 | OX12: 0 | OY12: 0 | OZ12: 0 | PA12: 0 | PB12: 0 | PC12: 0 | PD12: 0 | PE12: 0 | PF12: 0 | PG12: 0 | PH12: 0 | PI12: 0 | PJ12: 0 | PK12: 0 | PL12: 0 | PM12: 0 | PN12: 0 | PO12: 0 | PP12: 0 | PQ12: 0 | PR12: 0 | PS12: 0 | PT12: 0 | PU12: 0 | PV12: 0 | PW12: 0 | PX12: 0 | PY12: 0 | PZ12: 0 | QA12: 0 | QB12: 30 | QC12: 1 | QD12: 30 | QE12: 1 | QF12: 30 | QG12: 1 | QH12: 30 | QI12: 1 | QJ12: 30 | QK12: 1 | QL12: 30 | QM12: 1 | QN12: 30 | QO12: 1 | QP12: 30 | QQ12: 1 | QR12: 30 | QS12: 1 | QT12: 75 | QU12: 1 | QV12: 45 | QW12: 1 | QX12: 75 | QY12: 1 | QZ12: 45 | RA12: 1 | RB12: 75 | RC12: 1 | RD12: 75 | RE12: 1 | RF12: 25 | RG12: 1 | RH12: 50 | RI12: 1 | RJ12: 20 | RK12: 1 | RL12: 50 | RM12: 1 | RN12: 15 | RO12: 1 | RP12: 25 | RQ12: 1 | RR12: 25 | RS12: 1 | RT12: 3062.995922 | RU12: 2710.359116 | RV12: 0 | RW12: 2048.044199 | RX12: 3210.911602 | RY12: 0 | RZ12: 2277.337583 | SA12: 3383.349101 | SB12: 0 | SC12: 2277.337583 | SD12: 0 | SE12: 1804.965495 | SF12: 0 | SG12: 3662.646775 | SH12: 193.1187845 | SI12: 1514.548803 | SJ12: 197.1136918 | SK12: 28.49814726 | SL12: 66.89454683 | SM12: 0 | SN12: 0 | SO12: 0 | SP12: 0 | SQ12: 0.2 | SR12: 20 | SS12: 50 | ST12: 80 | SU12: 200 | SV12: 400
A13: Built in Scenario | D13: 1 | E13: Inner Core / High Density | F13: 1 | G13: 1 | I13: 1.6 | J13: 40 | K13: 20 | L13: TRUE | M13: FALSE | N13: FALSE | O13: 0.05 | P13: 0.05 | Q13: 0.1 | R13: 0.3 | S13: 0.5 | T13: 20 | U13: 50 | V13: 160 | W13: 1200 | X13: 4000 | Y13: 3.2 | Z13: 2 | AA13: 125000 | AB13: 2.8 | AC13: 1.8 | AD13: 90000 | AE13: 2.4 | AF13: 1.8 | AG13: 70000 | AH13: 1.6 | AI13: 1.2 | AJ13: 55000 | AK13: 1.6 | AL13: 1.2 | AM13: 55000 | AN13: 200000 | AO13: 0 | AP13: 2000 | AQ13: 2000 | AR13: 0 | AS13: 0 | AT13: 0 | AU13: 0 | AV13: 2000 | AW13: 0 | AX13: Type 6 Four-lane Arterial | AY13: Type 3 Two-lane local | AZ13: 2000 | BA13: 2000 | BB13: 2000 | BC13: 3.5 | BD13: 3.5 | BE13: 0.3 | BF13: 0.06 | BG13: 0 | BH13: 0 | BI13: 0 | BJ13: 0 | BK13: 0 | BL13: 0 | BM13: 0 | BN13: 200 | BO13: 200 | BP13: 200 | BQ13: 200 | BR13: 200 | BS13: 200 | BT13: 200 | BU13: 220 | BV13: 220 | BW13: 220 | BX13: 220 | BY13: 220 | BZ13: 220 | CA13: 220 | CB13: 440 | CC13: 440 | CD13: 440 | CE13: 440 | CF13: 440 | CG13: 440 | CH13: 440 | CI13: 300 | CJ13: 250 | CK13: 500 | CL13: 0 | CM13: 0 | CN13: 246000 | CO13: 0 | CP13: 7000 | CQ13: 3 | CR13: 7 | CS13: 3.6 | CT13: 8.4 | CU13: 6 | CV13: 14 | CW13: 240 | CX13: 60 | CY13: 220 | CZ13: 55 | DA13: 200 | DB13: 50 | DC13: 2 | DD13: 2 | DE13: 200 | DF13: 50 | DG13: 4.2 | DH13: 2.8 | DI13: 1 | DJ13: 1 | DK13: 6541 | DL13: 6949 | DM13: 0 | DN13: 800 | DO13: 33.37653921 | DP13: 300 | DQ13: 0 | DR13: 0 | DS13: 0 | DT13: 0 | DU13: 500000 | DV13: 90 | DW13: 0 | DX13: 40.18146468 | DY13: 328 | DZ13: 0 | EA13: 20.73882048 | EB13: 498 | EC13: 0 | ED13: 0 | EE13: 0 | EF13: 0 | EG13: 0 | EH13: 0 | EI13: 184 | EJ13: 0 | EK13: 184 | EL13: 0 | EM13: 80 | EN13: 0 | EO13: 0 | EP13: 0 | EQ13: 0 | ER13: 0 | ES13: 6900 | ET13: 0.2 | EU13: 0 | EV13: 2300 | EW13: 1800 | EX13: 1500 | EY13: 10.98 | EZ13: 2500 | FA13: 50 | FB13: 19 | FC13: 1000 | FD13: 200 | FE13: 100 | FF13: 14 | FG13: 1000 | FH13: 0.038 | FI13: 500 | FJ13: 0.233 | FK13: 1000 | FL13: 8.5e-09 | FM13: 3.59 | FN13: 6.275e-07 | FO13: 49340 | FP13: 1.865e-06 | FQ13: 5084 | FR13: 0 | FS13: 10000 | FT13: 0 | FU13: 0 | FV13: 10000 | FW13: 0 | FX13: 500000 | FY13: 10000 | FZ13: 15000 | GA13: 0 | GB13: 10000 | GC13: 0 | GD13: 580000 | GE13: 10000 | GF13: 40000 | GG13: 300000 | GH13: 10000 | GI13: 20000 | GJ13: Public Laneway | GK13: Local | GL13: Two-lane local | GM13: Local | GN13: Two-lane local | GO13: Local | GP13: Two-lane collector | GQ13: Collector | GR13: Four-lane collector | GS13: Arterial | GT13: Four-lane Arterial | GU13: Arterial | GV13: User Defined | GW13: User Defined | GX13: 0 | GY13: 0 | GZ13: 0 | HA13: 0 | HB13: 0 | HC13: 0 | HD13: 0 | HE13: 0 | HF13: 0 | HG13: 0 | HH13: 0 | HI13: 1 | HJ13: 0 | HK13: 0 | HL13: 0 | HM13: 0 | HN13: 0 | HO13: 0 | HP13: 0 | HQ13: 0 | HR13: 9000 | HS13: 9000 | HT13: 7000 | HU13: 5000 | HV13: 5000 | HW13: 350000 | HX13: 314000 | HY13: 314000 | HZ13: 200000 | IA13: 200000 | IB13: 4.9 | IC13: 300 | ID13: 0 | IE13: 0.5 | IF13: 0 | IG13: 1 | IH13: 1 | II13: 0 | IJ13: 0 | IK13: 0 | IL13: 1 | IM13: 0 | IN13: 0 | IO13: 0 | IP13: 1 | IQ13: 0 | IR13: 0 | IS13: 0 | IT13: 1 | IU13: 0 | IV13: 0 | IW13: 0 | IX13: 1 | IY13: 0 | IZ13: 0 | JA13: 0 | JB13: 1 | JC13: 0 | JD13: 0 | JE13: 0 | JF13: 1 | JG13: 0 | JH13: 0 | JI13: 0 | JJ13: 1 | JK13: 0 | JL13: 0 | JM13: 0 | JN13: 1 | JO13: 0 | JP13: 0 | JQ13: 0 | JR13: 1 | JS13: 0 | JT13: 0 | JU13: 0 | JV13: 1 | JW13: 0 | JX13: 0 | JY13: 0 | JZ13: 1 | KA13: 0 | KB13: 0 | KC13: 0 | KD13: 1 | KE13: 0 | KF13: 0 | KG13: 0 | KH13: 1 | KI13: 0 | KJ13: 0 | KK13: 0 | KL13: 1 | KM13: 0 | KN13: 0 | KO13: 0 | KP13: 1 | KQ13: 0 | KR13: 0 | KS13: 0 | KT13: 1 | KU13: 0 | KV13: 0 | KW13: 0 | KX13: 1 | KY13: 0 | KZ13: 0 | LA13: 0 | LB13: 1 | LC13: 0 | LD13: 0 | LE13: 0 | LF13: 1 | LG13: 0 | LH13: 0 | LI13: 0 | LJ13: 1 | LK13: 0 | LL13: 0 | LM13: 0 | LN13: 1 | LO13: 0 | LP13: 0 | LQ13: 0 | LR13: 0 | LS13: 0 | LT13: 0 | LU13: 1 | LV13: 0 | LW13: 0 | LX13: 0 | LY13: 1 | LZ13: 1 | MA13: 0 | MB13: 0 | MC13: 0 | MD13: 1 | ME13: 0 | MF13: 0 | MG13: 0 | MH13: 1 | MI13: 0 | MJ13: 0 | MK13: 0 | ML13: 1 | MM13: 0 | MN13: 0 | MO13: 0 | MP13: 1 | MQ13: 0 | MR13: 0 | MS13: 0 | MT13: 1 | MU13: 0 | MV13: 0 | MW13: 0 | MX13: Capital cost, if any specified, combined with School Transit O&M | MY13: 0 | MZ13: 0 | NA13: 0 | NB13: 0 | NC13: 0 | ND13: 0 | NE13: 1 | NF13: 1 | NG13: 0 | NH13: 0 | NI13: 0 | NJ13: 1 | NK13: 0 | NL13: 0 | NM13: 0 | NN13: 1 | NO13: 0 | NP13: 0 | NQ13: 0 | NR13: 1 | NS13: 0 | NT13: 0 | NU13: 0 | NV13: 1 | NW13: 0 | NX13: 0 | NY13: 0 | NZ13: 1 | OA13: 0 | OB13: 0 | OC13: 0 | OD13: 0 | OE13: 0 | OF13: 0 | OG13: 0 | OH13: 0 | OI13: 0 | OJ13: 0 | OK13: 0 | OL13: 0 | OM13: 0 | ON13: 0 | OO13: 0 | OP13: 0 | OQ13: 0 | OR13: 0 | OS13: 0 | OT13: 0 | OU13: 0 | OV13: 0 | OW13: 0 | OX13: 0 | OY13: 0 | OZ13: 0 | PA13: 0 | PB13: 0 | PC13: 0 | PD13: 0 | PE13: 0 | PF13: 0 | PG13: 0 | PH13: 0 | PI13: 0 | PJ13: 0 | PK13: 0 | PL13: 0 | PM13: 0 | PN13: 0 | PO13: 0 | PP13: 0 | PQ13: 0 | PR13: 0 | PS13: 0 | PT13: 0 | PU13: 0 | PV13: 0 | PW13: 0 | PX13: 0 | PY13: 0 | PZ13: 0 | QA13: 0 | QB13: 30 | QC13: 1 | QD13: 30 | QE13: 1 | QF13: 30 | QG13: 1 | QH13: 30 | QI13: 1 | QJ13: 30 | QK13: 1 | QL13: 30 | QM13: 1 | QN13: 30 | QO13: 1 | QP13: 30 | QQ13: 1 | QR13: 30 | QS13: 1 | QT13: 75 | QU13: 1 | QV13: 45 | QW13: 1 | QX13: 75 | QY13: 1 | QZ13: 45 | RA13: 1 | RB13: 75 | RC13: 1 | RD13: 75 | RE13: 1 | RF13: 25 | RG13: 1 | RH13: 50 | RI13: 1 | RJ13: 20 | RK13: 1 | RL13: 50 | RM13: 1 | RN13: 15 | RO13: 1 | RP13: 25 | RQ13: 1 | RR13: 25 | RS13: 1 | RT13: 3062.995922 | RU13: 2710.359116 | RV13: 0 | RW13: 2048.044199 | RX13: 3210.911602 | RY13: 0 | RZ13: 2277.337583 | SA13: 3383.349101 | SB13: 0 | SC13: 2277.337583 | SD13: 0 | SE13: 1804.965495 | SF13: 0 | SG13: 3662.646775 | SH13: 193.1187845 | SI13: 1514.548803 | SJ13: 197.1136918 | SK13: 28.49814726 | SL13: 66.89454683 | SM13: 0 | SN13: 0 | SO13: 0 | SP13: 0 | SQ13: 0.2 | SR13: 20 | SS13: 50 | ST13: 80 | SU13: 200 | SV13: 400
A14: Built in Scenario | D14: 2 | E14: Inner Core / Medium Density | F14: 2 | G14: 2 | I14: 1.6 | J14: 40 | K14: 24 | L14: FALSE | M14: TRUE | N14: FALSE | O14: 0.25 | P14: 0.25 | Q14: 0.3 | R14: 0.1 | S14: 0.1 | T14: 120 | U14: 300 | V14: 576 | W14: 480 | X14: 960 | Y14: 3.2 | Z14: 2 | AA14: 125000 | AB14: 2.8 | AC14: 1.8 | AD14: 90000 | AE14: 2.4 | AF14: 1.8 | AG14: 70000 | AH14: 1.6 | AI14: 1.2 | AJ14: 55000 | AK14: 1.6 | AL14: 1.2 | AM14: 55000 | AN14: 200000 | AO14: 0 | AP14: 0 | AQ14: 4000 | AR14: 0 | AS14: 0 | AT14: 0 | AU14: 0 | AV14: 2000 | AW14: 0 | AX14: Type 6 Four-lane Arterial | AY14: Type 3 Two-lane local | AZ14: 2000 | BA14: 2000 | BB14: 2000 | BC14: 3.5 | BD14: 3 | BE14: 0.3 | BF14: 0.06 | BG14: 0 | BH14: 0 | BI14: 0 | BJ14: 0 | BK14: 0 | BL14: 0 | BM14: 0 | BN14: 200 | BO14: 200 | BP14: 200 | BQ14: 200 | BR14: 200 | BS14: 200 | BT14: 200 | BU14: 220 | BV14: 220 | BW14: 220 | BX14: 220 | BY14: 220 | BZ14: 220 | CA14: 220 | CB14: 440 | CC14: 440 | CD14: 440 | CE14: 440 | CF14: 440 | CG14: 440 | CH14: 440 | CI14: 300 | CJ14: 250 | CK14: 500 | CL14: 0 | CM14: 0 | CN14: 246000 | CO14: 0 | CP14: 7000 | CQ14: 3 | CR14: 7 | CS14: 3.6 | CT14: 8.4 | CU14: 6 | CV14: 14 | CW14: 240 | CX14: 60 | CY14: 220 | CZ14: 55 | DA14: 200 | DB14: 50 | DC14: 2 | DD14: 2 | DE14: 200 | DF14: 50 | DG14: 4.2 | DH14: 2.8 | DI14: 1 | DJ14: 1 | DK14: 6541 | DL14: 6949 | DM14: 0 | DN14: 800 | DO14: 41.41202959 | DP14: 300 | DQ14: 0 | DR14: 0 | DS14: 0 | DT14: 0 | DU14: 500000 | DV14: 90 | DW14: 0 | DX14: 49.85525893 | DY14: 328 | DZ14: 0 | EA14: 25.73174654 | EB14: 498 | EC14: 0 | ED14: 0 | EE14: 0 | EF14: 0 | EG14: 0 | EH14: 0 | EI14: 184 | EJ14: 0 | EK14: 184 | EL14: 0 | EM14: 80 | EN14: 0 | EO14: 0 | EP14: 0 | EQ14: 0 | ER14: 0 | ES14: 6900 | ET14: 0.2 | EU14: 0 | EV14: 2300 | EW14: 1800 | EX14: 1500 | EY14: 10.98 | EZ14: 2500 | FA14: 50 | FB14: 19 | FC14: 1000 | FD14: 200 | FE14: 100 | FF14: 14 | FG14: 1000 | FH14: 0.038 | FI14: 500 | FJ14: 0.233 | FK14: 1000 | FL14: 8.5e-09 | FM14: 3.59 | FN14: 6.275e-07 | FO14: 49340 | FP14: 1.865e-06 | FQ14: 5084 | FR14: 0 | FS14: 10000 | FT14: 0 | FU14: 0 | FV14: 10000 | FW14: 0 | FX14: 500000 | FY14: 10000 | FZ14: 15000 | GA14: 0 | GB14: 10000 | GC14: 0 | GD14: 580000 | GE14: 10000 | GF14: 40000 | GG14: 300000 | GH14: 10000 | GI14: 20000 | GJ14: Public Laneway | GK14: Local | GL14: Two-lane local | GM14: Local | GN14: Two-lane local | GO14: Local | GP14: Two-lane collector | GQ14: Collector | GR14: Four-lane collector | GS14: Arterial | GT14: Four-lane Arterial | GU14: Arterial | GV14: User Defined | GW14: User Defined | GX14: 0 | GY14: 0 | GZ14: 0 | HA14: 0 | HB14: 0 | HC14: 0 | HD14: 0 | HE14: 0 | HF14: 0 | HG14: 0 | HH14: 0 | HI14: 1 | HJ14: 0 | HK14: 0 | HL14: 0 | HM14: 0 | HN14: 0 | HO14: 0 | HP14: 0 | HQ14: 0 | HR14: 9000 | HS14: 9000 | HT14: 7000 | HU14: 5000 | HV14: 5000 | HW14: 350000 | HX14: 314000 | HY14: 314000 | HZ14: 200000 | IA14: 200000 | IB14: 4.9 | IC14: 300 | ID14: 0 | IE14: 0.5 | IF14: 0 | IG14: 1 | IH14: 1 | II14: 0 | IJ14: 0 | IK14: 0 | IL14: 1 | IM14: 0 | IN14: 0 | IO14: 0 | IP14: 1 | IQ14: 0 | IR14: 0 | IS14: 0 | IT14: 1 | IU14: 0 | IV14: 0 | IW14: 0 | IX14: 1 | IY14: 0 | IZ14: 0 | JA14: 0 | JB14: 1 | JC14: 0 | JD14: 0 | JE14: 0 | JF14: 1 | JG14: 0 | JH14: 0 | JI14: 0 | JJ14: 1 | JK14: 0 | JL14: 0 | JM14: 0 | JN14: 1 | JO14: 0 | JP14: 0 | JQ14: 0 | JR14: 1 | JS14: 0 | JT14: 0 | JU14: 0 | JV14: 1 | JW14: 0 | JX14: 0 | JY14: 0 | JZ14: 1 | KA14: 0 | KB14: 0 | KC14: 0 | KD14: 1 | KE14: 0 | KF14: 0 | KG14: 0 | KH14: 1 | KI14: 0 | KJ14: 0 | KK14: 0 | KL14: 1 | KM14: 0 | KN14: 0 | KO14: 0 | KP14: 1 | KQ14: 0 | KR14: 0 | KS14: 0 | KT14: 1 | KU14: 0 | KV14: 0 | KW14: 0 | KX14: 1 | KY14: 0 | KZ14: 0 | LA14: 0 | LB14: 1 | LC14: 0 | LD14: 0 | LE14: 0 | LF14: 1 | LG14: 0 | LH14: 0 | LI14: 0 | LJ14: 1 | LK14: 0 | LL14: 0 | LM14: 0 | LN14: 1 | LO14: 0 | LP14: 0 | LQ14: 0 | LR14: 0 | LS14: 0 | LT14: 0 | LU14: 1 | LV14: 0 | LW14: 0 | LX14: 0 | LY14: 1 | LZ14: 1 | MA14: 0 | MB14: 0 | MC14: 0 | MD14: 1 | ME14: 0 | MF14: 0 | MG14: 0 | MH14: 1 | MI14: 0 | MJ14: 0 | MK14: 0 | ML14: 1 | MM14: 0 | MN14: 0 | MO14: 0 | MP14: 1 | MQ14: 0 | MR14: 0 | MS14: 0 | MT14: 1 | MU14: 0 | MV14: 0 | MW14: 0 | MX14: Capital cost, if any specified, combined with School Transit O&M | MY14: 0 | MZ14: 0 | NA14: 0 | NB14: 0 | NC14: 0 | ND14: 0 | NE14: 1 | NF14: 1 | NG14: 0 | NH14: 0 | NI14: 0 | NJ14: 1 | NK14: 0 | NL14: 0 | NM14: 0 | NN14: 1 | NO14: 0 | NP14: 0 | NQ14: 0 | NR14: 1 | NS14: 0 | NT14: 0 | NU14: 0 | NV14: 1 | NW14: 0 | NX14: 0 | NY14: 0 | NZ14: 1 | OA14: 0 | OB14: 0 | OC14: 0 | OD14: 0 | OE14: 0 | OF14: 0 | OG14: 0 | OH14: 0 | OI14: 0 | OJ14: 0 | OK14: 0 | OL14: 0 | OM14: 0 | ON14: 0 | OO14: 0 | OP14: 0 | OQ14: 0 | OR14: 0 | OS14: 0 | OT14: 0 | OU14: 0 | OV14: 0 | OW14: 0 | OX14: 0 | OY14: 0 | OZ14: 0 | PA14: 0 | PB14: 0 | PC14: 0 | PD14: 0 | PE14: 0 | PF14: 0 | PG14: 0 | PH14: 0 | PI14: 0 | PJ14: 0 | PK14: 0 | PL14: 0 | PM14: 0 | PN14: 0 | PO14: 0 | PP14: 0 | PQ14: 0 | PR14: 0 | PS14: 0 | PT14: 0 | PU14: 0 | PV14: 0 | PW14: 0 | PX14: 0 | PY14: 0 | PZ14: 0 | QA14: 0 | QB14: 30 | QC14: 1 | QD14: 30 | QE14: 1 | QF14: 30 | QG14: 1 | QH14: 30 | QI14: 1 | QJ14: 30 | QK14: 1 | QL14: 30 | QM14: 1 | QN14: 30 | QO14: 1 | QP14: 30 | QQ14: 1 | QR14: 30 | QS14: 1 | QT14: 75 | QU14: 1 | QV14: 45 | QW14: 1 | QX14: 75 | QY14: 1 | QZ14: 45 | RA14: 1 | RB14: 75 | RC14: 1 | RD14: 75 | RE14: 1 | RF14: 25 | RG14: 1 | RH14: 50 | RI14: 1 | RJ14: 20 | RK14: 1 | RL14: 50 | RM14: 1 | RN14: 15 | RO14: 1 | RP14: 25 | RQ14: 1 | RR14: 25 | RS14: 1 | RT14: 5954.33323 | RU14: 3666.826601 | RV14: 0 | RW14: 2147.697865 | RX14: 4344.02069 | RY14: 0 | RZ14: 2570.825339 | SA14: 4577.310221 | SB14: 0 | SC14: 2570.825339 | SD14: 0 | SE14: 2084.377698 | SF14: 0 | SG14: 9515.248042 | SH14: 196.4482759 | SI14: 1647.29064 | SJ14: 510.6217703 | SK14: 73.82426999 | SL14: 173.2898999 | SM14: 0 | SN14: 0 | SO14: 0 | SP14: 0 | SQ14: 0.2 | SR14: 20 | SS14: 50 | ST14: 80 | SU14: 200 | SV14: 400
A15: Built in Scenario | D15: 3 | E15: Inner Suburbs / Medium Density | F15: 3 | G15: 3 | I15: 8.7 | J15: 40 | K15: 28 | L15: FALSE | M15: TRUE | N15: FALSE | O15: 0.4 | P15: 0.35 | Q15: 0.2 | R15: 0.05 | S15: 0 | T15: 224 | U15: 490 | V15: 448 | W15: 280 | X15: 0 | Y15: 3.2 | Z15: 2 | AA15: 125000 | AB15: 2.8 | AC15: 1.8 | AD15: 90000 | AE15: 2.4 | AF15: 1.8 | AG15: 70000 | AH15: 1.6 | AI15: 1.2 | AJ15: 55000 | AK15: 1.6 | AL15: 1.2 | AM15: 55000 | AN15: 68200 | AO15: 0 | AP15: 2000 | AQ15: 2000 | AR15: 0 | AS15: 0 | AT15: 0 | AU15: 0 | AV15: 1200 | AW15: 0 | AX15: Type 6 Four-lane Arterial | AY15: Type 3 Two-lane local | AZ15: 1200 | BA15: 1200 | BB15: 1200 | BC15: 3 | BD15: 2.5 | BE15: 0.3 | BF15: 0.06 | BG15: 0 | BH15: 0 | BI15: 0 | BJ15: 0 | BK15: 0 | BL15: 0 | BM15: 0 | BN15: 200 | BO15: 200 | BP15: 200 | BQ15: 200 | BR15: 200 | BS15: 200 | BT15: 200 | BU15: 220 | BV15: 220 | BW15: 220 | BX15: 220 | BY15: 220 | BZ15: 220 | CA15: 220 | CB15: 440 | CC15: 440 | CD15: 440 | CE15: 440 | CF15: 440 | CG15: 440 | CH15: 440 | CI15: 300 | CJ15: 250 | CK15: 500 | CL15: 0 | CM15: 0 | CN15: 246000 | CO15: 0 | CP15: 7000 | CQ15: 3 | CR15: 7 | CS15: 3.6 | CT15: 8.4 | CU15: 6 | CV15: 14 | CW15: 240 | CX15: 60 | CY15: 220 | CZ15: 55 | DA15: 200 | DB15: 50 | DC15: 2 | DD15: 2 | DE15: 200 | DF15: 50 | DG15: 4.2 | DH15: 2.8 | DI15: 1 | DJ15: 1 | DK15: 6541 | DL15: 6949 | DM15: 0 | DN15: 800 | DO15: 45.0096137 | DP15: 300 | DQ15: 0 | DR15: 0 | DS15: 0 | DT15: 0 | DU15: 500000 | DV15: 90 | DW15: 0 | DX15: 54.18633106 | DY15: 328 | DZ15: 0 | EA15: 27.96713861 | EB15: 498 | EC15: 0 | ED15: 0 | EE15: 0 | EF15: 0 | EG15: 0 | EH15: 0 | EI15: 184 | EJ15: 0 | EK15: 184 | EL15: 0 | EM15: 80 | EN15: 0 | EO15: 0 | EP15: 0 | EQ15: 0 | ER15: 0 | ES15: 6900 | ET15: 0.2 | EU15: 0 | EV15: 2300 | EW15: 1800 | EX15: 1500 | EY15: 10.98 | EZ15: 2500 | FA15: 50 | FB15: 19 | FC15: 1000 | FD15: 200 | FE15: 100 | FF15: 14 | FG15: 1000 | FH15: 0.038 | FI15: 500 | FJ15: 0.233 | FK15: 1000 | FL15: 8.5e-09 | FM15: 3.59 | FN15: 6.275e-07 | FO15: 49340 | FP15: 1.865e-06 | FQ15: 5084 | FR15: 0 | FS15: 10000 | FT15: 0 | FU15: 0 | FV15: 10000 | FW15: 0 | FX15: 500000 | FY15: 10000 | FZ15: 15000 | GA15: 0 | GB15: 10000 | GC15: 0 | GD15: 580000 | GE15: 10000 | GF15: 40000 | GG15: 300000 | GH15: 10000 | GI15: 20000 | GJ15: Public Laneway | GK15: Local | GL15: Two-lane local | GM15: Local | GN15: Two-lane local | GO15: Local | GP15: Two-lane collector | GQ15: Collector | GR15: Four-lane collector | GS15: Arterial | GT15: Four-lane Arterial | GU15: Arterial | GV15: User Defined | GW15: User Defined | GX15: 0 | GY15: 0 | GZ15: 0 | HA15: 0 | HB15: 0 | HC15: 0 | HD15: 0 | HE15: 0 | HF15: 0 | HG15: 0 | HH15: 0 | HI15: 1 | HJ15: 0 | HK15: 0 | HL15: 0 | HM15: 0 | HN15: 0 | HO15: 0 | HP15: 0 | HQ15: 0 | HR15: 9000 | HS15: 9000 | HT15: 7000 | HU15: 5000 | HV15: 5000 | HW15: 350000 | HX15: 314000 | HY15: 314000 | HZ15: 200000 | IA15: 200000 | IB15: 4.9 | IC15: 300 | ID15: 0 | IE15: 0.5 | IF15: 0 | IG15: 1 | IH15: 1 | II15: 0 | IJ15: 0 | IK15: 0 | IL15: 1 | IM15: 0 | IN15: 0 | IO15: 0 | IP15: 1 | IQ15: 0 | IR15: 0 | IS15: 0 | IT15: 1 | IU15: 0 | IV15: 0 | IW15: 0 | IX15: 1 | IY15: 0 | IZ15: 0 | JA15: 0 | JB15: 1 | JC15: 0 | JD15: 0 | JE15: 0 | JF15: 1 | JG15: 0 | JH15: 0 | JI15: 0 | JJ15: 1 | JK15: 0 | JL15: 0 | JM15: 0 | JN15: 1 | JO15: 0 | JP15: 0 | JQ15: 0 | JR15: 1 | JS15: 0 | JT15: 0 | JU15: 0 | JV15: 1 | JW15: 0 | JX15: 0 | JY15: 0 | JZ15: 1 | KA15: 0 | KB15: 0 | KC15: 0 | KD15: 1 | KE15: 0 | KF15: 0 | KG15: 0 | KH15: 1 | KI15: 0 | KJ15: 0 | KK15: 0 | KL15: 1 | KM15: 0 | KN15: 0 | KO15: 0 | KP15: 1 | KQ15: 0 | KR15: 0 | KS15: 0 | KT15: 1 | KU15: 0 | KV15: 0 | KW15: 0 | KX15: 1 | KY15: 0 | KZ15: 0 | LA15: 0 | LB15: 1 | LC15: 0 | LD15: 0 | LE15: 0 | LF15: 1 | LG15: 0 | LH15: 0 | LI15: 0 | LJ15: 1 | LK15: 0 | LL15: 0 | LM15: 0 | LN15: 1 | LO15: 0 | LP15: 0 | LQ15: 0 | LR15: 0 | LS15: 0 | LT15: 0 | LU15: 1 | LV15: 0 | LW15: 0 | LX15: 0 | LY15: 1 | LZ15: 1 | MA15: 0 | MB15: 0 | MC15: 0 | MD15: 1 | ME15: 0 | MF15: 0 | MG15: 0 | MH15: 1 | MI15: 0 | MJ15: 0 | MK15: 0 | ML15: 1 | MM15: 0 | MN15: 0 | MO15: 0 | MP15: 1 | MQ15: 0 | MR15: 0 | MS15: 0 | MT15: 1 | MU15: 0 | MV15: 0 | MW15: 0 | MX15: Capital cost, if any specified, combined with School Transit O&M | MY15: 0 | MZ15: 0 | NA15: 0 | NB15: 0 | NC15: 0 | ND15: 0 | NE15: 1 | NF15: 1 | NG15: 0 | NH15: 0 | NI15: 0 | NJ15: 1 | NK15: 0 | NL15: 0 | NM15: 0 | NN15: 1 | NO15: 0 | NP15: 0 | NQ15: 0 | NR15: 1 | NS15: 0 | NT15: 0 | NU15: 0 | NV15: 1 | NW15: 0 | NX15: 0 | NY15: 0 | NZ15: 1 | OA15: 0 | OB15: 0 | OC15: 0 | OD15: 0 | OE15: 0 | OF15: 0 | OG15: 0 | OH15: 0 | OI15: 0 | OJ15: 0 | OK15: 0 | OL15: 0 | OM15: 0 | ON15: 0 | OO15: 0 | OP15: 0 | OQ15: 0 | OR15: 0 | OS15: 0 | OT15: 0 | OU15: 0 | OV15: 0 | OW15: 0 | OX15: 0 | OY15: 0 | OZ15: 0 | PA15: 0 | PB15: 0 | PC15: 0 | PD15: 0 | PE15: 0 | PF15: 0 | PG15: 0 | PH15: 0 | PI15: 0 | PJ15: 0 | PK15: 0 | PL15: 0 | PM15: 0 | PN15: 0 | PO15: 0 | PP15: 0 | PQ15: 0 | PR15: 0 | PS15: 0 | PT15: 0 | PU15: 0 | PV15: 0 | PW15: 0 | PX15: 0 | PY15: 0 | PZ15: 0 | QA15: 0 | QB15: 30 | QC15: 1 | QD15: 30 | QE15: 1 | QF15: 30 | QG15: 1 | QH15: 30 | QI15: 1 | QJ15: 30 | QK15: 1 | QL15: 30 | QM15: 1 | QN15: 30 | QO15: 1 | QP15: 30 | QQ15: 1 | QR15: 30 | QS15: 1 | QT15: 75 | QU15: 1 | QV15: 45 | QW15: 1 | QX15: 75 | QY15: 1 | QZ15: 45 | RA15: 1 | RB15: 75 | RC15: 1 | RD15: 75 | RE15: 1 | RF15: 25 | RG15: 1 | RH15: 50 | RI15: 1 | RJ15: 20 | RK15: 1 | RL15: 50 | RM15: 1 | RN15: 15 | RO15: 1 | RP15: 25 | RQ15: 1 | RR15: 25 | RS15: 1 | RT15: 8739.823346 | RU15: 5169.295146 | RV15: 0 | RW15: 2249.270458 | RX15: 6123.96699 | RY15: 0 | RZ15: 2861.343165 | SA15: 6452.846039 | SB15: 0 | SC15: 2861.343165 | SD15: 0 | SE15: 2407.889029 | SF15: 0 | SG15: 12648.36948 | SH15: 192.8883495 | SI15: 1819.417476 | SJ15: 800.6001176 | SK15: 115.7485299 | SL15: 271.6999593 | SM15: 0 | SN15: 0 | SO15: 0 | SP15: 0 | SQ15: 0.2 | SR15: 20 | SS15: 50 | ST15: 80 | SU15: 200 | SV15: 400
A16: Built in Scenario | D16: 4 | E16: Inner Suburbs / Low Density | F16: 4 | G16: 4 | I16: 8.7 | J16: 40 | K16: 28 | L16: FALSE | M16: FALSE | N16: TRUE | O16: 0.8 | P16: 0.1 | Q16: 0.1 | R16: 0 | S16: 0 | T16: 448 | U16: 140 | V16: 224 | W16: 0 | X16: 0 | Y16: 3.2 | Z16: 2 | AA16: 125000 | AB16: 2.8 | AC16: 1.8 | AD16: 90000 | AE16: 2.4 | AF16: 1.8 | AG16: 70000 | AH16: 1.6 | AI16: 1.2 | AJ16: 55000 | AK16: 1.6 | AL16: 1.2 | AM16: 55000 | AN16: 68200 | AO16: 0 | AP16: 0 | AQ16: 2200 | AR16: 1000 | AS16: 0 | AT16: 0 | AU16: 0 | AV16: 1200 | AW16: 0 | AX16: Type 6 Four-lane Arterial | AY16: Type 3 Two-lane local | AZ16: 1200 | BA16: 1200 | BB16: 1200 | BC16: 2.5 | BD16: 2 | BE16: 0.3 | BF16: 0.06 | BG16: 0 | BH16: 0 | BI16: 0 | BJ16: 0 | BK16: 0 | BL16: 0 | BM16: 0 | BN16: 150 | BO16: 150 | BP16: 150 | BQ16: 150 | BR16: 150 | BS16: 150 | BT16: 150 | BU16: 175 | BV16: 175 | BW16: 175 | BX16: 175 | BY16: 175 | BZ16: 175 | CA16: 175 | CB16: 440 | CC16: 440 | CD16: 440 | CE16: 440 | CF16: 440 | CG16: 440 | CH16: 440 | CI16: 300 | CJ16: 250 | CK16: 500 | CL16: 0 | CM16: 0 | CN16: 246000 | CO16: 0 | CP16: 7000 | CQ16: 3 | CR16: 7 | CS16: 3.6 | CT16: 8.4 | CU16: 6 | CV16: 14 | CW16: 240 | CX16: 60 | CY16: 220 | CZ16: 55 | DA16: 200 | DB16: 50 | DC16: 2 | DD16: 2 | DE16: 200 | DF16: 50 | DG16: 4.2 | DH16: 2.8 | DI16: 1 | DJ16: 1 | DK16: 6541 | DL16: 6949 | DM16: 0 | DN16: 800 | DO16: 47.63226045 | DP16: 300 | DQ16: 0 | DR16: 0 | DS16: 0 | DT16: 0 | DU16: 500000 | DV16: 90 | DW16: 0 | DX16: 57.34369219 | DY16: 328 | DZ16: 0 | EA16: 29.59674436 | EB16: 498 | EC16: 0 | ED16: 0 | EE16: 0 | EF16: 0 | EG16: 0 | EH16: 0 | EI16: 184 | EJ16: 0 | EK16: 184 | EL16: 0 | EM16: 80 | EN16: 0 | EO16: 0 | EP16: 0 | EQ16: 0 | ER16: 0 | ES16: 6900 | ET16: 0.2 | EU16: 0 | EV16: 2300 | EW16: 1800 | EX16: 1500 | EY16: 10.98 | EZ16: 2500 | FA16: 50 | FB16: 19 | FC16: 1000 | FD16: 200 | FE16: 100 | FF16: 14 | FG16: 1000 | FH16: 0.038 | FI16: 500 | FJ16: 0.233 | FK16: 1000 | FL16: 8.5e-09 | FM16: 3.59 | FN16: 6.275e-07 | FO16: 49340 | FP16: 1.865e-06 | FQ16: 5084 | FR16: 0 | FS16: 10000 | FT16: 0 | FU16: 0 | FV16: 10000 | FW16: 0 | FX16: 500000 | FY16: 10000 | FZ16: 15000 | GA16: 0 | GB16: 10000 | GC16: 0 | GD16: 580000 | GE16: 10000 | GF16: 40000 | GG16: 300000 | GH16: 10000 | GI16: 20000 | GJ16: Public Laneway | GK16: Local | GL16: Two-lane local | GM16: Local | GN16: Two-lane local | GO16: Local | GP16: Two-lane collector | GQ16: Collector | GR16: Four-lane collector | GS16: Arterial | GT16: Four-lane Arterial | GU16: Arterial | GV16: User Defined | GW16: User Defined | GX16: 0 | GY16: 0 | GZ16: 0 | HA16: 0 | HB16: 0 | HC16: 0 | HD16: 0 | HE16: 0 | HF16: 0 | HG16: 0 | HH16: 0 | HI16: 1 | HJ16: 0 | HK16: 0 | HL16: 0 | HM16: 0 | HN16: 0 | HO16: 0 | HP16: 0 | HQ16: 0 | HR16: 9000 | HS16: 9000 | HT16: 7000 | HU16: 5000 | HV16: 5000 | HW16: 350000 | HX16: 314000 | HY16: 314000 | HZ16: 200000 | IA16: 200000 | IB16: 4.9 | IC16: 300 | ID16: 0 | IE16: 0.5 | IF16: 0 | IG16: 1 | IH16: 1 | II16: 0 | IJ16: 0 | IK16: 0 | IL16: 1 | IM16: 0 | IN16: 0 | IO16: 0 | IP16: 1 | IQ16: 0 | IR16: 0 | IS16: 0 | IT16: 1 | IU16: 0 | IV16: 0 | IW16: 0 | IX16: 1 | IY16: 0 | IZ16: 0 | JA16: 0 | JB16: 1 | JC16: 0 | JD16: 0 | JE16: 0 | JF16: 1 | JG16: 0 | JH16: 0 | JI16: 0 | JJ16: 1 | JK16: 0 | JL16: 0 | JM16: 0 | JN16: 1 | JO16: 0 | JP16: 0 | JQ16: 0 | JR16: 1 | JS16: 0 | JT16: 0 | JU16: 0 | JV16: 1 | JW16: 0 | JX16: 0 | JY16: 0 | JZ16: 1 | KA16: 0 | KB16: 0 | KC16: 0 | KD16: 1 | KE16: 0 | KF16: 0 | KG16: 0 | KH16: 1 | KI16: 0 | KJ16: 0 | KK16: 0 | KL16: 1 | KM16: 0 | KN16: 0 | KO16: 0 | KP16: 1 | KQ16: 0 | KR16: 0 | KS16: 0 | KT16: 1 | KU16: 0 | KV16: 0 | KW16: 0 | KX16: 1 | KY16: 0 | KZ16: 0 | LA16: 0 | LB16: 1 | LC16: 0 | LD16: 0 | LE16: 0 | LF16: 1 | LG16: 0 | LH16: 0 | LI16: 0 | LJ16: 1 | LK16: 0 | LL16: 0 | LM16: 0 | LN16: 1 | LO16: 0 | LP16: 0 | LQ16: 0 | LR16: 0 | LS16: 0 | LT16: 0 | LU16: 1 | LV16: 0 | LW16: 0 | LX16: 0 | LY16: 1 | LZ16: 1 | MA16: 0 | MB16: 0 | MC16: 0 | MD16: 1 | ME16: 0 | MF16: 0 | MG16: 0 | MH16: 1 | MI16: 0 | MJ16: 0 | MK16: 0 | ML16: 1 | MM16: 0 | MN16: 0 | MO16: 0 | MP16: 1 | MQ16: 0 | MR16: 0 | MS16: 0 | MT16: 1 | MU16: 0 | MV16: 0 | MW16: 0 | MX16: Capital cost, if any specified, combined with School Transit O&M | MY16: 0 | MZ16: 0 | NA16: 0 | NB16: 0 | NC16: 0 | ND16: 0 | NE16: 1 | NF16: 1 | NG16: 0 | NH16: 0 | NI16: 0 | NJ16: 1 | NK16: 0 | NL16: 0 | NM16: 0 | NN16: 1 | NO16: 0 | NP16: 0 | NQ16: 0 | NR16: 1 | NS16: 0 | NT16: 0 | NU16: 0 | NV16: 1 | NW16: 0 | NX16: 0 | NY16: 0 | NZ16: 1 | OA16: 0 | OB16: 0 | OC16: 0 | OD16: 0 | OE16: 0 | OF16: 0 | OG16: 0 | OH16: 0 | OI16: 0 | OJ16: 0 | OK16: 0 | OL16: 0 | OM16: 0 | ON16: 0 | OO16: 0 | OP16: 0 | OQ16: 0 | OR16: 0 | OS16: 0 | OT16: 0 | OU16: 0 | OV16: 0 | OW16: 0 | OX16: 0 | OY16: 0 | OZ16: 0 | PA16: 0 | PB16: 0 | PC16: 0 | PD16: 0 | PE16: 0 | PF16: 0 | PG16: 0 | PH16: 0 | PI16: 0 | PJ16: 0 | PK16: 0 | PL16: 0 | PM16: 0 | PN16: 0 | PO16: 0 | PP16: 0 | PQ16: 0 | PR16: 0 | PS16: 0 | PT16: 0 | PU16: 0 | PV16: 0 | PW16: 0 | PX16: 0 | PY16: 0 | PZ16: 0 | QA16: 0 | QB16: 30 | QC16: 1 | QD16: 30 | QE16: 1 | QF16: 30 | QG16: 1 | QH16: 30 | QI16: 1 | QJ16: 30 | QK16: 1 | QL16: 30 | QM16: 1 | QN16: 30 | QO16: 1 | QP16: 30 | QQ16: 1 | QR16: 30 | QS16: 1 | QT16: 75 | QU16: 1 | QV16: 45 | QW16: 1 | QX16: 75 | QY16: 1 | QZ16: 45 | RA16: 1 | RB16: 75 | RC16: 1 | RD16: 75 | RE16: 1 | RF16: 25 | RG16: 1 | RH16: 50 | RI16: 1 | RJ16: 20 | RK16: 1 | RL16: 50 | RM16: 1 | RN16: 15 | RO16: 1 | RP16: 25 | RQ16: 1 | RR16: 25 | RS16: 1 | RT16: 12058.94324 | RU16: 6541 | RV16: 0 | RW16: 2312.610837 | RX16: 7749 | RY16: 0 | RZ16: 3145.844219 | SA16: 8165.149165 | SB16: 0 | SC16: 3145.844219 | SD16: 0 | SE16: 2616.250079 | SF16: 0 | SG16: 17019.55739 | SH16: 171.9310345 | SI16: 2075.862069 | SJ16: 1194.735994 | SK16: 172.7315945 | SL16: 405.457998 | SM16: 0 | SN16: 0 | SO16: 0 | SP16: 0 | SQ16: 0.2 | SR16: 20 | SS16: 50 | ST16: 80 | SU16: 200 | SV16: 400
A17: Built in Scenario | D17: 5 | E17: Outer Suburbs / Medium Density | F17: 5 | G17: 5 | I17: 25 | J17: 40 | K17: 32 | L17: FALSE | M17: TRUE | N17: FALSE | O17: 0.5 | P17: 0.3 | Q17: 0.1 | R17: 0.1 | S17: 0 | T17: 320 | U17: 480 | V17: 256 | W17: 640 | X17: 0 | Y17: 3.2 | Z17: 2 | AA17: 125000 | AB17: 2.8 | AC17: 1.8 | AD17: 90000 | AE17: 2.4 | AF17: 1.8 | AG17: 70000 | AH17: 1.6 | AI17: 1.2 | AJ17: 55000 | AK17: 1.6 | AL17: 1.2 | AM17: 55000 | AN17: 1900 | AO17: 0 | AP17: 0 | AQ17: 3200 | AR17: 0 | AS17: 0 | AT17: 0 | AU17: 0 | AV17: 800 | AW17: 0 | AX17: Type 6 Four-lane Arterial | AY17: Type 3 Two-lane local | AZ17: 800 | BA17: 800 | BB17: 800 | BC17: 3 | BD17: 1 | BE17: 0.3 | BF17: 0.06 | BG17: 0 | BH17: 0 | BI17: 0 | BJ17: 0 | BK17: 0 | BL17: 0 | BM17: 0 | BN17: 200 | BO17: 200 | BP17: 200 | BQ17: 200 | BR17: 200 | BS17: 200 | BT17: 200 | BU17: 220 | BV17: 220 | BW17: 220 | BX17: 220 | BY17: 220 | BZ17: 220 | CA17: 220 | CB17: 440 | CC17: 440 | CD17: 440 | CE17: 440 | CF17: 440 | CG17: 440 | CH17: 440 | CI17: 300 | CJ17: 250 | CK17: 500 | CL17: 0 | CM17: 0 | CN17: 246000 | CO17: 0 | CP17: 7000 | CQ17: 3 | CR17: 7 | CS17: 3.6 | CT17: 8.4 | CU17: 6 | CV17: 14 | CW17: 240 | CX17: 60 | CY17: 220 | CZ17: 55 | DA17: 200 | DB17: 50 | DC17: 2 | DD17: 2 | DE17: 200 | DF17: 50 | DG17: 4.2 | DH17: 2.8 | DI17: 1 | DJ17: 1 | DK17: 6541 | DL17: 6949 | DM17: 0 | DN17: 800 | DO17: 44.03214774 | DP17: 300 | DQ17: 0 | DR17: 0 | DS17: 0 | DT17: 0 | DU17: 500000 | DV17: 90 | DW17: 0 | DX17: 53.00957592 | DY17: 328 | DZ17: 0 | EA17: 27.35978112 | EB17: 498 | EC17: 0 | ED17: 0 | EE17: 0 | EF17: 0 | EG17: 0 | EH17: 0 | EI17: 184 | EJ17: 0 | EK17: 184 | EL17: 0 | EM17: 80 | EN17: 0 | EO17: 0 | EP17: 0 | EQ17: 0 | ER17: 0 | ES17: 6900 | ET17: 0.2 | EU17: 0 | EV17: 2300 | EW17: 1800 | EX17: 1500 | EY17: 10.98 | EZ17: 2500 | FA17: 50 | FB17: 19 | FC17: 1000 | FD17: 200 | FE17: 100 | FF17: 14 | FG17: 1000 | FH17: 0.038 | FI17: 500 | FJ17: 0.233 | FK17: 1000 | FL17: 8.5e-09 | FM17: 3.59 | FN17: 6.275e-07 | FO17: 49340 | FP17: 1.865e-06 | FQ17: 5084 | FR17: 0 | FS17: 10000 | FT17: 0 | FU17: 0 | FV17: 10000 | FW17: 0 | FX17: 500000 | FY17: 10000 | FZ17: 15000 | GA17: 0 | GB17: 10000 | GC17: 0 | GD17: 580000 | GE17: 10000 | GF17: 40000 | GG17: 300000 | GH17: 10000 | GI17: 20000 | GJ17: Public Laneway | GK17: Local | GL17: Two-lane local | GM17: Local | GN17: Two-lane local | GO17: Local | GP17: Two-lane collector | GQ17: Collector | GR17: Four-lane collector | GS17: Arterial | GT17: Four-lane Arterial | GU17: Arterial | GV17: User Defined | GW17: User Defined | GX17: 0 | GY17: 0 | GZ17: 0 | HA17: 0 | HB17: 0 | HC17: 0 | HD17: 0 | HE17: 0 | HF17: 0 | HG17: 0 | HH17: 0 | HI17: 1 | HJ17: 0 | HK17: 0 | HL17: 0 | HM17: 0 | HN17: 0 | HO17: 0 | HP17: 0 | HQ17: 0 | HR17: 9000 | HS17: 9000 | HT17: 7000 | HU17: 5000 | HV17: 5000 | HW17: 350000 | HX17: 314000 | HY17: 314000 | HZ17: 200000 | IA17: 200000 | IB17: 4.9 | IC17: 300 | ID17: 0 | IE17: 0.5 | IF17: 0 | IG17: 1 | IH17: 1 | II17: 0 | IJ17: 0 | IK17: 0 | IL17: 1 | IM17: 0 | IN17: 0 | IO17: 0 | IP17: 1 | IQ17: 0 | IR17: 0 | IS17: 0 | IT17: 1 | IU17: 0 | IV17: 0 | IW17: 0 | IX17: 1 | IY17: 0 | IZ17: 0 | JA17: 0 | JB17: 1 | JC17: 0 | JD17: 0 | JE17: 0 | JF17: 1 | JG17: 0 | JH17: 0 | JI17: 0 | JJ17: 1 | JK17: 0 | JL17: 0 | JM17: 0 | JN17: 1 | JO17: 0 | JP17: 0 | JQ17: 0 | JR17: 1 | JS17: 0 | JT17: 0 | JU17: 0 | JV17: 1 | JW17: 0 | JX17: 0 | JY17: 0 | JZ17: 1 | KA17: 0 | KB17: 0 | KC17: 0 | KD17: 1 | KE17: 0 | KF17: 0 | KG17: 0 | KH17: 1 | KI17: 0 | KJ17: 0 | KK17: 0 | KL17: 1 | KM17: 0 | KN17: 0 | KO17: 0 | KP17: 1 | KQ17: 0 | KR17: 0 | KS17: 0 | KT17: 1 | KU17: 0 | KV17: 0 | KW17: 0 | KX17: 1 | KY17: 0 | KZ17: 0 | LA17: 0 | LB17: 1 | LC17: 0 | LD17: 0 | LE17: 0 | LF17: 1 | LG17: 0 | LH17: 0 | LI17: 0 | LJ17: 1 | LK17: 0 | LL17: 0 | LM17: 0 | LN17: 1 | LO17: 0 | LP17: 0 | LQ17: 0 | LR17: 0 | LS17: 0 | LT17: 0 | LU17: 1 | LV17: 0 | LW17: 0 | LX17: 0 | LY17: 1 | LZ17: 1 | MA17: 0 | MB17: 0 | MC17: 0 | MD17: 1 | ME17: 0 | MF17: 0 | MG17: 0 | MH17: 1 | MI17: 0 | MJ17: 0 | MK17: 0 | ML17: 1 | MM17: 0 | MN17: 0 | MO17: 0 | MP17: 1 | MQ17: 0 | MR17: 0 | MS17: 0 | MT17: 1 | MU17: 0 | MV17: 0 | MW17: 0 | MX17: Capital cost, if any specified, combined with School Transit O&M | MY17: 0 | MZ17: 0 | NA17: 0 | NB17: 0 | NC17: 0 | ND17: 0 | NE17: 1 | NF17: 1 | NG17: 0 | NH17: 0 | NI17: 0 | NJ17: 1 | NK17: 0 | NL17: 0 | NM17: 0 | NN17: 1 | NO17: 0 | NP17: 0 | NQ17: 0 | NR17: 1 | NS17: 0 | NT17: 0 | NU17: 0 | NV17: 1 | NW17: 0 | NX17: 0 | NY17: 0 | NZ17: 1 | OA17: 0 | OB17: 0 | OC17: 0 | OD17: 0 | OE17: 0 | OF17: 0 | OG17: 0 | OH17: 0 | OI17: 0 | OJ17: 0 | OK17: 0 | OL17: 0 | OM17: 0 | ON17: 0 | OO17: 0 | OP17: 0 | OQ17: 0 | OR17: 0 | OS17: 0 | OT17: 0 | OU17: 0 | OV17: 0 | OW17: 0 | OX17: 0 | OY17: 0 | OZ17: 0 | PA17: 0 | PB17: 0 | PC17: 0 | PD17: 0 | PE17: 0 | PF17: 0 | PG17: 0 | PH17: 0 | PI17: 0 | PJ17: 0 | PK17: 0 | PL17: 0 | PM17: 0 | PN17: 0 | PO17: 0 | PP17: 0 | PQ17: 0 | PR17: 0 | PS17: 0 | PT17: 0 | PU17: 0 | PV17: 0 | PW17: 0 | PX17: 0 | PY17: 0 | PZ17: 0 | QA17: 0 | QB17: 30 | QC17: 1 | QD17: 30 | QE17: 1 | QF17: 30 | QG17: 1 | QH17: 30 | QI17: 1 | QJ17: 30 | QK17: 1 | QL17: 30 | QM17: 1 | QN17: 30 | QO17: 1 | QP17: 30 | QQ17: 1 | QR17: 30 | QS17: 1 | QT17: 75 | QU17: 1 | QV17: 45 | QW17: 1 | QX17: 75 | QY17: 1 | QZ17: 45 | RA17: 1 | RB17: 75 | RC17: 1 | RD17: 75 | RE17: 1 | RF17: 25 | RG17: 1 | RH17: 50 | RI17: 1 | RJ17: 20 | RK17: 1 | RL17: 50 | RM17: 1 | RN17: 15 | RO17: 1 | RP17: 25 | RQ17: 1 | RR17: 25 | RS17: 1 | RT17: 5755.008155 | RU17: 4911.920755 | RV17: 0 | RW17: 1956.79717 | RX17: 5819.060377 | RY17: 0 | RZ17: 2353.86979 | SA17: 6131.564844 | SB17: 0 | SC17: 2353.86979 | SD17: 0 | SE17: 2166.195712 | SF17: 0 | SG17: 15015.25134 | SH17: 72.50943396 | SI17: 1781.132075 | SJ17: 1252.071103 | SK17: 181.0209445 | SL17: 424.9158354 | SM17: 0 | SN17: 0 | SO17: 0 | SP17: 0 | SQ17: 0.2 | SR17: 20 | SS17: 50 | ST17: 80 | SU17: 200 | SV17: 400
A18: Built in Scenario | D18: 6 | E18: Outer Suburbs / Low Density | F18: 6 | G18: 6 | I18: 25 | J18: 40 | K18: 40 | L18: FALSE | M18: FALSE | N18: TRUE | O18: 0.95 | P18: 0.05 | Q18: 0 | R18: 0 | S18: 0 | T18: 760 | U18: 100 | V18: 0 | W18: 0 | X18: 0 | Y18: 3.2 | Z18: 2 | AA18: 125000 | AB18: 2.8 | AC18: 1.8 | AD18: 90000 | AE18: 2.4 | AF18: 1.8 | AG18: 70000 | AH18: 1.6 | AI18: 1.2 | AJ18: 55000 | AK18: 1.6 | AL18: 1.2 | AM18: 55000 | AN18: 1900 | AO18: 0 | AP18: 0 | AQ18: 1800 | AR18: 1000 | AS18: 0 | AT18: 0 | AU18: 0 | AV18: 800 | AW18: 0 | AX18: Type 6 Four-lane Arterial | AY18: Type 3 Two-lane local | AZ18: 800 | BA18: 800 | BB18: 800 | BC18: 2 | BD18: 0.5 | BE18: 0.3 | BF18: 0.06 | BG18: 0 | BH18: 0 | BI18: 0 | BJ18: 0 | BK18: 0 | BL18: 0 | BM18: 0 | BN18: 150 | BO18: 150 | BP18: 150 | BQ18: 150 | BR18: 150 | BS18: 150 | BT18: 150 | BU18: 175 | BV18: 175 | BW18: 175 | BX18: 175 | BY18: 175 | BZ18: 175 | CA18: 175 | CB18: 440 | CC18: 440 | CD18: 440 | CE18: 440 | CF18: 440 | CG18: 440 | CH18: 440 | CI18: 300 | CJ18: 250 | CK18: 500 | CL18: 0 | CM18: 0 | CN18: 246000 | CO18: 0 | CP18: 7000 | CQ18: 3 | CR18: 7 | CS18: 3.6 | CT18: 8.4 | CU18: 6 | CV18: 14 | CW18: 240 | CX18: 60 | CY18: 220 | CZ18: 55 | DA18: 200 | DB18: 50 | DC18: 2 | DD18: 2 | DE18: 200 | DF18: 50 | DG18: 4.2 | DH18: 2.8 | DI18: 1 | DJ18: 1 | DK18: 6541 | DL18: 6949 | DM18: 0 | DN18: 800 | DO18: 47.42173112 | DP18: 300 | DQ18: 0 | DR18: 0 | DS18: 0 | DT18: 0 | DU18: 500000 | DV18: 90 | DW18: 0 | DX18: 57.09023941 | DY18: 328 | DZ18: 0 | EA18: 29.46593002 | EB18: 498 | EC18: 0 | ED18: 0 | EE18: 0 | EF18: 0 | EG18: 0 | EH18: 0 | EI18: 184 | EJ18: 0 | EK18: 184 | EL18: 0 | EM18: 80 | EN18: 0 | EO18: 0 | EP18: 0 | EQ18: 0 | ER18: 0 | ES18: 6900 | ET18: 0.2 | EU18: 0 | EV18: 2300 | EW18: 1800 | EX18: 1500 | EY18: 10.98 | EZ18: 2500 | FA18: 50 | FB18: 19 | FC18: 1000 | FD18: 200 | FE18: 100 | FF18: 14 | FG18: 1000 | FH18: 0.038 | FI18: 500 | FJ18: 0.233 | FK18: 1000 | FL18: 8.5e-09 | FM18: 3.59 | FN18: 6.275e-07 | FO18: 49340 | FP18: 1.865e-06 | FQ18: 5084 | FR18: 0 | FS18: 10000 | FT18: 0 | FU18: 0 | FV18: 10000 | FW18: 0 | FX18: 500000 | FY18: 10000 | FZ18: 15000 | GA18: 0 | GB18: 10000 | GC18: 0 | GD18: 580000 | GE18: 10000 | GF18: 40000 | GG18: 300000 | GH18: 10000 | GI18: 20000 | GJ18: Public Laneway | GK18: Local | GL18: Two-lane local | GM18: Local | GN18: Two-lane local | GO18: Local | GP18: Two-lane collector | GQ18: Collector | GR18: Four-lane collector | GS18: Arterial | GT18: Four-lane Arterial | GU18: Arterial | GV18: User Defined | GW18: User Defined | GX18: 0 | GY18: 0 | GZ18: 0 | HA18: 0 | HB18: 0 | HC18: 0 | HD18: 0 | HE18: 0 | HF18: 0 | HG18: 0 | HH18: 0 | HI18: 1 | HJ18: 0 | HK18: 0 | HL18: 0 | HM18: 0 | HN18: 0 | HO18: 0 | HP18: 0 | HQ18: 0 | HR18: 9000 | HS18: 9000 | HT18: 7000 | HU18: 5000 | HV18: 5000 | HW18: 350000 | HX18: 314000 | HY18: 314000 | HZ18: 200000 | IA18: 200000 | IB18: 4.9 | IC18: 300 | ID18: 0 | IE18: 0.5 | IF18: 0 | IG18: 1 | IH18: 1 | II18: 0 | IJ18: 0 | IK18: 0 | IL18: 1 | IM18: 0 | IN18: 0 | IO18: 0 | IP18: 1 | IQ18: 0 | IR18: 0 | IS18: 0 | IT18: 1 | IU18: 0 | IV18: 0 | IW18: 0 | IX18: 1 | IY18: 0 | IZ18: 0 | JA18: 0 | JB18: 1 | JC18: 0 | JD18: 0 | JE18: 0 | JF18: 1 | JG18: 0 | JH18: 0 | JI18: 0 | JJ18: 1 | JK18: 0 | JL18: 0 | JM18: 0 | JN18: 1 | JO18: 0 | JP18: 0 | JQ18: 0 | JR18: 1 | JS18: 0 | JT18: 0 | JU18: 0 | JV18: 1 | JW18: 0 | JX18: 0 | JY18: 0 | JZ18: 1 | KA18: 0 | KB18: 0 | KC18: 0 | KD18: 1 | KE18: 0 | KF18: 0 | KG18: 0 | KH18: 1 | KI18: 0 | KJ18: 0 | KK18: 0 | KL18: 1 | KM18: 0 | KN18: 0 | KO18: 0 | KP18: 1 | KQ18: 0 | KR18: 0 | KS18: 0 | KT18: 1 | KU18: 0 | KV18: 0 | KW18: 0 | KX18: 1 | KY18: 0 | KZ18: 0 | LA18: 0 | LB18: 1 | LC18: 0 | LD18: 0 | LE18: 0 | LF18: 1 | LG18: 0 | LH18: 0 | LI18: 0 | LJ18: 1 | LK18: 0 | LL18: 0 | LM18: 0 | LN18: 1 | LO18: 0 | LP18: 0 | LQ18: 0 | LR18: 0 | LS18: 0 | LT18: 0 | LU18: 1 | LV18: 0 | LW18: 0 | LX18: 0 | LY18: 1 | LZ18: 1 | MA18: 0 | MB18: 0 | MC18: 0 | MD18: 1 | ME18: 0 | MF18: 0 | MG18: 0 | MH18: 1 | MI18: 0 | MJ18: 0 | MK18: 0 | ML18: 1 | MM18: 0 | MN18: 0 | MO18: 0 | MP18: 1 | MQ18: 0 | MR18: 0 | MS18: 0 | MT18: 1 | MU18: 0 | MV18: 0 | MW18: 0 | MX18: Capital cost, if any specified, combined with School Transit O&M | MY18: 0 | MZ18: 0 | NA18: 0 | NB18: 0 | NC18: 0 | ND18: 0 | NE18: 1 | NF18: 1 | NG18: 0 | NH18: 0 | NI18: 0 | NJ18: 1 | NK18: 0 | NL18: 0 | NM18: 0 | NN18: 1 | NO18: 0 | NP18: 0 | NQ18: 0 | NR18: 1 | NS18: 0 | NT18: 0 | NU18: 0 | NV18: 1 | NW18: 0 | NX18: 0 | NY18: 0 | NZ18: 1 | OA18: 0 | OB18: 0 | OC18: 0 | OD18: 0 | OE18: 0 | OF18: 0 | OG18: 0 | OH18: 0 | OI18: 0 | OJ18: 0 | OK18: 0 | OL18: 0 | OM18: 0 | ON18: 0 | OO18: 0 | OP18: 0 | OQ18: 0 | OR18: 0 | OS18: 0 | OT18: 0 | OU18: 0 | OV18: 0 | OW18: 0 | OX18: 0 | OY18: 0 | OZ18: 0 | PA18: 0 | PB18: 0 | PC18: 0 | PD18: 0 | PE18: 0 | PF18: 0 | PG18: 0 | PH18: 0 | PI18: 0 | PJ18: 0 | PK18: 0 | PL18: 0 | PM18: 0 | PN18: 0 | PO18: 0 | PP18: 0 | PQ18: 0 | PR18: 0 | PS18: 0 | PT18: 0 | PU18: 0 | PV18: 0 | PW18: 0 | PX18: 0 | PY18: 0 | PZ18: 0 | QA18: 0 | QB18: 30 | QC18: 1 | QD18: 30 | QE18: 1 | QF18: 30 | QG18: 1 | QH18: 30 | QI18: 1 | QJ18: 30 | QK18: 1 | QL18: 30 | QM18: 1 | QN18: 30 | QO18: 1 | QP18: 30 | QQ18: 1 | QR18: 30 | QS18: 1 | QT18: 75 | QU18: 1 | QV18: 45 | QW18: 1 | QX18: 75 | QY18: 1 | QZ18: 45 | RA18: 1 | RB18: 75 | RC18: 1 | RD18: 75 | RE18: 1 | RF18: 25 | RG18: 1 | RH18: 50 | RI18: 1 | RJ18: 20 | RK18: 1 | RL18: 50 | RM18: 1 | RN18: 15 | RO18: 1 | RP18: 25 | RQ18: 1 | RR18: 25 | RS18: 1 | RT18: 9239.850306 | RU18: 7697.083721 | RV18: 0 | RW18: 2060.930233 | RX18: 9118.590698 | RY18: 0 | RZ18: 2691.31917 | SA18: 9608.291808 | SB18: 0 | SC18: 2691.31917 | SD18: 0 | SE18: 2580.561323 | SF18: 0 | SG18: 20881.36765 | SH18: 44.47674419 | SI18: 2241.860465 | SJ18: 1747.714915 | SK18: 252.6797432 | SL18: 593.1226602 | SM18: 0 | SN18: 0 | SO18: 0 | SP18: 0 | SQ18: 0.2 | SR18: 20 | SS18: 50 | ST18: 80 | SU18: 200 | SV18: 400
D19: 7 | F19: 7 | DN19: 0
E28: =IntermediateCalculations_ScenarioComparison_HardInfrastructureMunicipalCosts_Scenario2 -> Inner Core / High Density
A29: =ROW() -> 29 | D29: IntermediateCalculations_ScenarioComparison_HardInfrastructureMunicipalCosts_Scenario2 | E29: =IF(INDIRECT($D29)=0,"",$D29) -> IntermediateCalculations_ScenarioComparison_HardInfrastructureMunicipalCosts_Scenario2 | F29: =IF(INDIRECT($D29)=0,"",VLOOKUP(INDIRECT($D29),ComparisonScenarios,F$1-1,FALSE)) -> 1 | G29: 1 | H29: 0 | I29: 1.6 | J29: 40 | L29: TRUE | M29: FALSE | N29: FALSE | O29: =IF(INDIRECT($D29)=0,"",VLOOKUP(INDIRECT($D29),ComparisonScenarios,O$1-1,FALSE)) -> 0.05 | P29: 0.05 | Q29: 0.1 | R29: 0.3 | S29: 0.5 | T29: 20 | U29: 50 | V29: 160 | W29: 1200 | X29: 4000 | Y29: =IF(INDIRECT($D29)=0,"",VLOOKUP(INDIRECT($D29),ComparisonScenarios,Y$1-1,FALSE)) -> 3.2 | Z29: 2 | AA29: 125000 | AB29: 2.8 | AC29: 1.8 | AD29: 90000 | AE29: 2.4 | AF29: 1.8 | AG29: 70000 | AH29: 1.6 | AI29: =IF(INDIRECT($D29)=0,"",VLOOKUP(INDIRECT($D29),ComparisonScenarios,AI$1-1,FALSE)) -> 1.2 | AJ29: 55000 | AK29: 1.6 | AL29: 1.2 | AM29: 55000 | AN29: 200000 | AO29: 0 | AP29: 2000 | AQ29: 2000 | AR29: 0 | AS29: =IF(INDIRECT($D29)=0,"",VLOOKUP(INDIRECT($D29),ComparisonScenarios,AS$1-1,FALSE)) -> 0 | AT29: 0 | AU29: 0 | AV29: =IF(INDIRECT($D29)=0,"",VLOOKUP(INDIRECT($D29),ComparisonScenarios,AV$1-1,FALSE)) -> 2000 | AW29: 0 | AX29: Type 6 Four-lane Arterial | AY29: Type 3 Two-lane local | AZ29: 2000 | BA29: 2000 | BB29: 2000 | BC29: =IF(INDIRECT($D29)=0,"",VLOOKUP(INDIRECT($D29),ComparisonScenarios,BC$1-1,FALSE)) -> 3.5 | BD29: 3.5 | BE29: 0.3 | BF29: 0.06 | BG29: =IF(INDIRECT($D29)=0,"",VLOOKUP(INDIRECT($D29),ComparisonScenarios,BG$1-1,FALSE)) -> 0 | BH29: =IF(INDIRECT($D29)=0,"",VLOOKUP(INDIRECT($D29),ComparisonScenarios,BH$1-1,FALSE)) -> 0 | BI29: 0 | BJ29: 0 | BK29: 0 | BL29: 0 | BM29: 0 | BN29: 200 | BO29: 200 | BP29: 200 | BQ29: 200 | BR29: 200 | BS29: =IF(INDIRECT($D29)=0,"",VLOOKUP(INDIRECT($D29),ComparisonScenarios,BS$1-1,FALSE)) -> 200 | BT29: 200 | BU29: 220 | BV29: 220 | BW29: 220 | BX29: 220 | BY29: 220 | BZ29: 220 | CA29: 220 | CB29: 440 | CC29: 440 | CD29: 440 | CE29: =IF(INDIRECT($D29)=0,"",VLOOKUP(INDIRECT($D29),ComparisonScenarios,CE$1-1,FALSE)) -> 440 | CF29: 440 | CG29: 440 | CH29: 440 | CI29: 300 | CJ29: 250 | CK29: 500 | CL29: 0 | CM29: 0 | CN29: 246000 | CQ29: 3 | CR29: 7 | CS29: 3.6 | CT29: 8.4 | CU29: =IF(INDIRECT($D29)=0,"",VLOOKUP(INDIRECT($D29),ComparisonScenarios,CU$1-1,FALSE)) -> 6 | CV29: 14 | CW29: 240 | CX29: 60 | CY29: 220 | CZ29: 55 | DA29: 200 | DB29: 50 | DC29: 2 | DD29: 2 | DE29: 200 | DF29: 50 | DG29: 4.2 | DH29: 2.8 | DI29: 1 | DJ29: 1 | DK29: 6541 | DL29: 6949 | DM29: 0 | DN29: 800 | DO29: 33.37653921 | DP29: 300 | DQ29: =IF(INDIRECT($D29)=0,"",VLOOKUP(INDIRECT($D29),ComparisonScenarios,DQ$1-1,FALSE)) -> 0 | DR29: 0 | DS29: =IF(INDIRECT($D29)=0,"",VLOOKUP(INDIRECT($D29),ComparisonScenarios,DS$1-1,FALSE)) -> 0 | DT29: 0 | DU29: 500000 | DV29: 90 | DW29: 0 | DX29: 40.18146468 | DY29: 328 | DZ29: 0 | EA29: 20.73882048 | EB29: 498 | EC29: 0 | ED29: 0 | EI29: 184 | EJ29: 0 | EK29: 184 | EL29: 0 | EM29: 80 | EN29: 0 | EO29: 0 | EP29: 0 | EQ29: 0 | ER29: 0 | ES29: 6900 | ET29: 0.2 | EU29: 0 | EV29: 2300 | EW29: =IF(INDIRECT($D29)=0,"",VLOOKUP(INDIRECT($D29),ComparisonScenarios,EW$1-1,FALSE)) -> 1800 | EX29: 1500 | EY29: 10.98 | EZ29: 2500 | FA29: 50 | FB29: 19 | FC29: 1000 | FD29: 200 | FE29: 100 | FF29: 14 | FG29: =IF(INDIRECT($D29)=0,"",VLOOKUP(INDIRECT($D29),ComparisonScenarios,FG$1-1,FALSE)) -> 1000 | FH29: 0.038 | FI29: 500 | FJ29: 0.233 | FK29: 1000 | FL29: 8.5e-09 | FM29: 3.59 | FN29: 6.275e-07 | FO29: 49340 | FP29: 1.865e-06 | FQ29: =IF(INDIRECT($D29)=0,"",VLOOKUP(INDIRECT($D29),ComparisonScenarios,FQ$1-1,FALSE)) -> 5084 | FR29: =IF(INDIRECT($D29)=0,"",VLOOKUP(INDIRECT($D29),ComparisonScenarios,FR$1-1,FALSE)) -> 0 | FS29: 10000 | FT29: 0 | FU29: 0 | FV29: 10000 | FW29: 0 | FX29: 500000 | FY29: 10000 | FZ29: 15000 | GA29: 0 | GB29: =IF(INDIRECT($D29)=0,"",VLOOKUP(INDIRECT($D29),ComparisonScenarios,GB$1-1,FALSE)) -> 10000 | GC29: 0 | GD29: 580000 | GE29: 10000 | GF29: 40000 | GG29: 300000 | GH29: 10000 | GI29: 20000 | GJ29: Public Laneway | GK29: Local | GL29: Two-lane local | GM29: Local | GN29: Two-lane local | GO29: Local | GP29: Two-lane collector | GQ29: Collector | GR29: Four-lane collector | GS29: Arterial | GT29: Four-lane Arterial | GU29: Arterial | GV29: User Defined | GW29: User Defined | GX29: 0 | GY29: =IF(INDIRECT($D29)=0,"",VLOOKUP(INDIRECT($D29),ComparisonScenarios,GY$1-1,FALSE)) -> 0 | GZ29: 0 | HA29: 0 | HB29: 0 | HC29: 0 | HD29: 0 | HE29: 0 | HF29: 0 | HG29: 0 | HH29: 0 | HI29: 1 | HJ29: 0 | HK29: 0 | HL29: 0 | HM29: 0 | HN29: =IF(INDIRECT($D29)=0,"",VLOOKUP(INDIRECT($D29),ComparisonScenarios,HN$1-1,FALSE)) -> 0 | HO29: 0 | HP29: 0 | HQ29: 0 | HR29: =IF(INDIRECT($D29)=0,"",VLOOKUP(INDIRECT($D29),ComparisonScenarios,HR$1-1,FALSE)) -> 9000 | HS29: 9000 | HT29: 7000 | HU29: 5000 | HV29: 5000 | HW29: 350000 | HX29: 314000 | HY29: 314000 | HZ29: 200000 | IA29: =IF(INDIRECT($D29)=0,"",VLOOKUP(INDIRECT($D29),ComparisonScenarios,IA$1-1,FALSE)) -> 200000 | IB29: 4.9 | IC29: 300 | ID29: 0 | IE29: 0.5 | IF29: 0 | IG29: 1 | IH29: 1 | II29: 0 | IJ29: 0 | IK29: 0 | IL29: 1 | IM29: =IF(INDIRECT($D29)=0,"",VLOOKUP(INDIRECT($D29),ComparisonScenarios,IM$1-1,FALSE)) -> 0 | IN29: 0 | IO29: 0 | IP29: 1 | IQ29: 0 | IR29: 0 | IS29: 0 | IT29: 1 | IU29: 0 | IV29: 0 | IW29: =IF(INDIRECT($D29)=0,"",VLOOKUP(INDIRECT($D29),ComparisonScenarios,IW$1-1,FALSE)) -> 0 | IX29: 1 | IY29: 0 | IZ29: 0 | JA29: 0 | JB29: 1 | JC29: 0 | JD29: 0 | JE29: 0 | JF29: 1 | JG29: 0 | JH29: 0 | JI29: 0 | JJ29: 1 | JK29: 0 | JL29: 0 | JM29: 0 | JN29: 1 | JO29: 0 | JP29: 0 | JQ29: 0 | JR29: 1 | JS29: 0 | JT29: 0 | JU29: 0 | JV29: 1 | JW29: =IF(INDIRECT($D29)=0,"",VLOOKUP(INDIRECT($D29),ComparisonScenarios,JW$1-1,FALSE)) -> 0 | JX29: 0 | JY29: 0 | JZ29: 1 | KA29: 0 | KB29: 0 | KC29: 0 | KD29: 1 | KE29: 0 | KF29: 0 | KG29: 0 | KH29: 1 | KI29: 0 | KJ29: 0 | KK29: 0 | KL29: 1 | KM29: 0 | KN29: 0 | KO29: 0 | KP29: 1 | KQ29: 0 | KR29: 0 | KS29: 0 | KT29: 1 | KU29: 0 | KV29: 0 | KW29: =IF(INDIRECT($D29)=0,"",VLOOKUP(INDIRECT($D29),ComparisonScenarios,KW$1-1,FALSE)) -> 0 | KX29: 1 | KY29: 0 | KZ29: 0 | LA29: 0 | LB29: 1 | LC29: 0 | LD29: 0 | LE29: 0 | LF29: 1 | LG29: 0 | LH29: 0 | LI29: 0 | LJ29: 1 | LK29: 0 | LL29: 0 | LM29: 0 | LN29: 1 | LO29: 0 | LP29: 0 | LQ29: 0 | LR29: 0 | LS29: 0 | LT29: 0 | LU29: 1 | LV29: 0 | LW29: =IF(INDIRECT($D29)=0,"",VLOOKUP(INDIRECT($D29),ComparisonScenarios,LW$1-1,FALSE)) -> 0 | LX29: 0 | LY29: 1 | LZ29: 1 | MA29: 0 | MB29: 0 | MC29: 0 | MD29: 1 | ME29: 0 | MF29: 0 | MG29: =IF(INDIRECT($D29)=0,"",VLOOKUP(INDIRECT($D29),ComparisonScenarios,MG$1-1,FALSE)) -> 0 | MH29: 1 | MI29: 0 | MJ29: 0 | MK29: 0 | ML29: 1 | MM29: =IF(INDIRECT($D29)=0,"",VLOOKUP(INDIRECT($D29),ComparisonScenarios,MM$1-1,FALSE)) -> 0 | MN29: 0 | MO29: 0 | MP29: 1 | MQ29: 0 | MR29: 0 | MS29: 0 | MT29: 1 | MU29: 0 | MV29: 0 | MW29: 0 | MX29: Capital cost, if any specified, combined with School Transit O&M | MY29: =IF(INDIRECT($D29)=0,"",VLOOKUP(INDIRECT($D29),ComparisonScenarios,MY$1-1,FALSE)) -> 0 | MZ29: 0 | NA29: 0 | NB29: 0 | NC29: 0 | ND29: 0 | NE29: 1 | NF29: 1 | NG29: 0 | NH29: 0 | NI29: =IF(INDIRECT($D29)=0,"",VLOOKUP(INDIRECT($D29),ComparisonScenarios,NI$1-1,FALSE)) -> 0 | NJ29: 1 | NK29: 0 | NL29: 0 | NM29: 0 | NN29: 1 | NO29: 0 | NP29: 0 | NQ29: 0 | NR29: 1 | NS29: =IF(INDIRECT($D29)=0,"",VLOOKUP(INDIRECT($D29),ComparisonScenarios,NS$1-1,FALSE)) -> 0 | NT29: 0 | NU29: 0 | NV29: 1 | NW29: 0 | NX29: 0 | NY29: 0 | NZ29: 1 | OA29: 0 | OB29: 0 | OC29: =IF(INDIRECT($D29)=0,"",VLOOKUP(INDIRECT($D29),ComparisonScenarios,OC$1-1,FALSE)) -> 0 | OD29: 0 | OE29: 0 | OF29: 0 | OG29: 0 | OH29: 0 | OI29: 0 | OJ29: 0 | OK29: 0 | OL29: 0 | OM29: 0 | ON29: 0 | OO29: 0 | OP29: 0 | OQ29: 0 | OR29: =IF(INDIRECT($D29)=0,"",VLOOKUP(INDIRECT($D29),ComparisonScenarios,OR$1-1,FALSE)) -> 0 | OS29: 0 | OT29: 0 | OU29: 0 | OV29: 0 | OW29: 0 | OX29: 0 | OY29: 0 | OZ29: 0 | PA29: 0 | PB29: 0 | PC29: 0 | PD29: 0 | PE29: 0 | PF29: 0 | PG29: 0 | PH29: 0 | PI29: 0 | PJ29: 0 | PK29: 0 | PL29: 0 | PM29: 0 | PN29: =IF(INDIRECT($D29)=0,"",VLOOKUP(INDIRECT($D29),ComparisonScenarios,PN$1-1,FALSE)) -> 0 | PO29: 0 | PP29: =IF(INDIRECT($D29)=0,"",VLOOKUP(INDIRECT($D29),ComparisonScenarios,PP$1-1,FALSE)) -> 0 | PQ29: 0 | PR29: 0 | PS29: 0 | PT29: 0 | PU29: 0 | PV29: 0 | PW29: 0 | PX29: 0 | PY29: 0 | PZ29: 0 | QA29: =IF(INDIRECT($D29)=0,"",VLOOKUP(INDIRECT($D29),ComparisonScenarios,QA$1-1,FALSE)) -> 0 | QB29: =IF(INDIRECT($D29)=0,"",VLOOKUP(INDIRECT($D29),ComparisonScenarios,QB$1-1,FALSE)) -> 30 | QC29: 1 | QD29: 30 | QE29: 1 | QF29: 30 | QG29: 1 | QH29: 30 | QI29: 1 | QJ29: 30 | QK29: 1 | QL29: 30 | QM29: 1 | QN29: 30 | QO29: 1 | QP29: =IF(INDIRECT($D29)=0,"",VLOOKUP(INDIRECT($D29),ComparisonScenarios,QP$1-1,FALSE)) -> 30 | QQ29: 1 | QR29: 30 | QS29: 1 | QT29: =IF(INDIRECT($D29)=0,"",VLOOKUP(INDIRECT($D29),ComparisonScenarios,QT$1-1,FALSE)) -> 75 | QU29: 1 | QV29: 45 | QW29: 1 | QX29: 75 | QY29: 1 | QZ29: 45 | RA29: 1 | RB29: 75 | RC29: 1 | RD29: 75 | RE29: 1 | RF29: 25 | RG29: 1 | RH29: 50 | RI29: 1 | RJ29: 20 | RK29: 1 | RL29: 50 | RM29: 1 | RN29: 15 | RO29: 1 | RP29: 25 | RQ29: 1 | RR29: 25 | RS29: 1 | RT29: =IF(INDIRECT($D29)=0,"",VLOOKUP(INDIRECT($D29),ComparisonScenarios,RT$1-1,FALSE)) -> 3062.995922 | RU29: =IF(INDIRECT($D29)=0,"",VLOOKUP(INDIRECT($D29),ComparisonScenarios,RU$1-1,FALSE)) -> 2710.359116 | RV29: 0 | RW29: 2048.044199 | RX29: 3210.911602 | RY29: 0 | RZ29: 2277.337583 | SA29: 3383.349101 | SB29: 0 | SC29: =IF(INDIRECT($D29)=0,"",VLOOKUP(INDIRECT($D29),ComparisonScenarios,SC$1-1,FALSE)) -> 2277.337583 | SD29: 0 | SE29: 1804.965495 | SF29: 0 | SG29: 3662.646775 | SH29: 193.1187845 | SI29: 1514.548803 | SJ29: 197.1136918 | SK29: 28.49814726 | SL29: 66.89454683 | SM29: =IF(INDIRECT($D29)=0,"",VLOOKUP(INDIRECT($D29),ComparisonScenarios,SM$1-1,FALSE)) -> 0 | SN29: 0 | SO29: 0 | SP29: 0 | SQ29: 0.2 | SR29: =IF(INDIRECT($D29)=0,"",VLOOKUP(INDIRECT($D29),ComparisonScenarios,SR$1-1,FALSE)) -> 20 | SS29: 50 | ST29: 80 | SU29: 200 | SV29: 400 | TB29: =IF(INDIRECT($D29)=0,"",VLOOKUP(INDIRECT($D29),ComparisonScenarios,TB$1-1,FALSE)) ->  | TG29: =IF(INDIRECT($D29)=0,"",VLOOKUP(INDIRECT($D29),ComparisonScenarios,TG$1-1,FALSE)) ->  | TW29: =IF(INDIRECT($D29)=0,"",VLOOKUP(INDIRECT($D29),ComparisonScenarios,TW$1-1,FALSE)) ->  | UP29: =IF(INDIRECT($D29)=0,"",VLOOKUP(INDIRECT($D29),ComparisonScenarios,UP$1-1,FALSE)) -> 
A30: =ROW() -> 30 | D30: IntermediateCalculations_ScenarioComparison_HardInfrastructureMunicipalCosts_Scenario3 | E30: IntermediateCalculations_ScenarioComparison_HardInfrastructureMunicipalCosts_Scenario3 | F30: 2 | G30: 2 | H30: 0 | I30: 1.6 | J30: 40 | L30: FALSE | M30: TRUE | N30: FALSE | O30: 0.25 | P30: 0.25 | Q30: 0.3 | R30: 0.1 | S30: 0.1 | T30: 120 | U30: 300 | V30: 576 | W30: 480 | X30: 960 | Y30: 3.2 | Z30: 2 | AA30: 125000 | AB30: 2.8 | AC30: 1.8 | AD30: 90000 | AE30: 2.4 | AF30: 1.8 | AG30: 70000 | AH30: 1.6 | AI30: 1.2 | AJ30: 55000 | AK30: 1.6 | AL30: 1.2 | AM30: 55000 | AN30: 200000 | AO30: 0 | AP30: 0 | AQ30: 4000 | AR30: 0 | AS30: 0 | AT30: 0 | AU30: 0 | AV30: 2000 | AW30: 0 | AX30: Type 6 Four-lane Arterial | AY30: Type 3 Two-lane local | AZ30: 2000 | BA30: 2000 | BB30: 2000 | BC30: 3.5 | BD30: 3 | BE30: 0.3 | BF30: 0.06 | BG30: 0 | BH30: 0 | BI30: 0 | BJ30: 0 | BK30: 0 | BL30: 0 | BM30: 0 | BN30: 200 | BO30: 200 | BP30: 200 | BQ30: 200 | BR30: 200 | BS30: 200 | BT30: 200 | BU30: 220 | BV30: 220 | BW30: 220 | BX30: 220 | BY30: 220 | BZ30: 220 | CA30: 220 | CB30: 440 | CC30: 440 | CD30: 440 | CE30: 440 | CF30: 440 | CG30: 440 | CH30: 440 | CI30: 300 | CJ30: 250 | CK30: 500 | CL30: 0 | CM30: 0 | CN30: 246000 | CQ30: 3 | CR30: 7 | CS30: 3.6 | CT30: 8.4 | CU30: 6 | CV30: 14 | CW30: 240 | CX30: 60 | CY30: 220 | CZ30: 55 | DA30: 200 | DB30: 50 | DC30: 2 | DD30: 2 | DE30: 200 | DF30: 50 | DG30: 4.2 | DH30: 2.8 | DI30: 1 | DJ30: 1 | DK30: 6541 | DL30: 6949 | DM30: 0 | DN30: 800 | DO30: 41.41202959 | DP30: 300 | DQ30: 0 | DR30: 0 | DS30: 0 | DT30: 0 | DU30: 500000 | DV30: 90 | DW30: 0 | DX30: 49.85525893 | DY30: 328 | DZ30: 0 | EA30: 25.73174654 | EB30: 498 | EC30: 0 | ED30: 0 | EI30: 184 | EJ30: 0 | EK30: 184 | EL30: 0 | EM30: 80 | EN30: 0 | EO30: 0 | EP30: 0 | EQ30: 0 | ER30: 0 | ES30: 6900 | ET30: 0.2 | EU30: 0 | EV30: 2300 | EW30: 1800 | EX30: 1500 | EY30: 10.98 | EZ30: 2500 | FA30: 50 | FB30: 19 | FC30: 1000 | FD30: 200 | FE30: 100 | FF30: 14 | FG30: 1000 | FH30: 0.038 | FI30: 500 | FJ30: 0.233 | FK30: 1000 | FL30: 8.5e-09 | FM30: 3.59 | FN30: 6.275e-07 | FO30: 49340 | FP30: 1.865e-06 | FQ30: 5084 | FR30: 0 | FS30: 10000 | FT30: 0 | FU30: 0 | FV30: 10000 | FW30: 0 | FX30: 500000 | FY30: 10000 | FZ30: 15000 | GA30: 0 | GB30: 10000 | GC30: 0 | GD30: 580000 | GE30: 10000 | GF30: 40000 | GG30: 300000 | GH30: 10000 | GI30: 20000 | GJ30: Public Laneway | GK30: Local | GL30: Two-lane local | GM30: Local | GN30: Two-lane local | GO30: Local | GP30: Two-lane collector | GQ30: Collector | GR30: Four-lane collector | GS30: Arterial | GT30: Four-lane Arterial | GU30: Arterial | GV30: User Defined | GW30: User Defined | GX30: 0 | GY30: 0 | GZ30: 0 | HA30: 0 | HB30: 0 | HC30: 0 | HD30: 0 | HE30: 0 | HF30: 0 | HG30: 0 | HH30: 0 | HI30: 1 | HJ30: 0 | HK30: 0 | HL30: 0 | HM30: 0 | HN30: 0 | HO30: 0 | HP30: 0 | HQ30: 0 | HR30: 9000 | HS30: 9000 | HT30: 7000 | HU30: 5000 | HV30: 5000 | HW30: 350000 | HX30: 314000 | HY30: 314000 | HZ30: 200000 | IA30: 200000 | IB30: 4.9 | IC30: 300 | ID30: 0 | IE30: 0.5 | IF30: 0 | IG30: 1 | IH30: 1 | II30: 0 | IJ30: 0 | IK30: 0 | IL30: 1 | IM30: 0 | IN30: 0 | IO30: 0 | IP30: 1 | IQ30: 0 | IR30: 0 | IS30: 0 | IT30: 1 | IU30: 0 | IV30: 0 | IW30: 0 | IX30: 1 | IY30: 0 | IZ30: 0 | JA30: 0 | JB30: 1 | JC30: 0 | JD30: 0 | JE30: 0 | JF30: 1 | JG30: 0 | JH30: 0 | JI30: 0 | JJ30: 1 | JK30: 0 | JL30: 0 | JM30: 0 | JN30: 1 | JO30: 0 | JP30: 0 | JQ30: 0 | JR30: 1 | JS30: 0 | JT30: 0 | JU30: 0 | JV30: 1 | JW30: 0 | JX30: 0 | JY30: 0 | JZ30: 1 | KA30: 0 | KB30: 0 | KC30: 0 | KD30: 1 | KE30: 0 | KF30: 0 | KG30: 0 | KH30: 1 | KI30: 0 | KJ30: 0 | KK30: 0 | KL30: 1 | KM30: 0 | KN30: 0 | KO30: 0 | KP30: 1 | KQ30: 0 | KR30: 0 | KS30: 0 | KT30: 1 | KU30: 0 | KV30: 0 | KW30: 0 | KX30: 1 | KY30: 0 | KZ30: 0 | LA30: 0 | LB30: 1 | LC30: 0 | LD30: 0 | LE30: 0 | LF30: 1 | LG30: 0 | LH30: 0 | LI30: 0 | LJ30: 1 | LK30: 0 | LL30: 0 | LM30: 0 | LN30: 1 | LO30: 0 | LP30: 0 | LQ30: 0 | LR30: 0 | LS30: 0 | LT30: 0 | LU30: 1 | LV30: 0 | LW30: 0 | LX30: 0 | LY30: 1 | LZ30: 1 | MA30: 0 | MB30: 0 | MC30: 0 | MD30: 1 | ME30: 0 | MF30: 0 | MG30: 0 | MH30: 1 | MI30: 0 | MJ30: 0 | MK30: 0 | ML30: 1 | MM30: 0 | MN30: 0 | MO30: 0 | MP30: 1 | MQ30: 0 | MR30: 0 | MS30: 0 | MT30: 1 | MU30: 0 | MV30: 0 | MW30: 0 | MX30: Capital cost, if any specified, combined with School Transit O&M | MY30: 0 | MZ30: 0 | NA30: 0 | NB30: 0 | NC30: 0 | ND30: 0 | NE30: 1 | NF30: 1 | NG30: 0 | NH30: 0 | NI30: 0 | NJ30: 1 | NK30: 0 | NL30: 0 | NM30: 0 | NN30: 1 | NO30: 0 | NP30: 0 | NQ30: 0 | NR30: 1 | NS30: 0 | NT30: 0 | NU30: 0 | NV30: 1 | NW30: 0 | NX30: 0 | NY30: 0 | NZ30: 1 | OA30: 0 | OB30: 0 | OC30: 0 | OD30: 0 | OE30: 0 | OF30: 0 | OG30: 0 | OH30: 0 | OI30: 0 | OJ30: 0 | OK30: 0 | OL30: 0 | OM30: 0 | ON30: 0 | OO30: 0 | OP30: 0 | OQ30: 0 | OR30: 0 | OS30: 0 | OT30: 0 | OU30: 0 | OV30: 0 | OW30: 0 | OX30: 0 | OY30: 0 | OZ30: 0 | PA30: 0 | PB30: 0 | PC30: 0 | PD30: 0 | PE30: 0 | PF30: 0 | PG30: 0 | PH30: 0 | PI30: 0 | PJ30: 0 | PK30: 0 | PL30: 0 | PM30: 0 | PN30: 0 | PO30: 0 | PP30: 0 | PQ30: 0 | PR30: 0 | PS30: 0 | PT30: 0 | PU30: 0 | PV30: 0 | PW30: 0 | PX30: 0 | PY30: 0 | PZ30: 0 | QA30: 0 | QB30: 30 | QC30: 1 | QD30: 30 | QE30: 1 | QF30: 30 | QG30: 1 | QH30: 30 | QI30: 1 | QJ30: 30 | QK30: 1 | QL30: 30 | QM30: 1 | QN30: 30 | QO30: 1 | QP30: 30 | QQ30: 1 | QR30: 30 | QS30: 1 | QT30: 75 | QU30: 1 | QV30: 45 | QW30: 1 | QX30: 75 | QY30: 1 | QZ30: 45 | RA30: 1 | RB30: 75 | RC30: 1 | RD30: 75 | RE30: 1 | RF30: 25 | RG30: 1 | RH30: 50 | RI30: 1 | RJ30: 20 | RK30: 1 | RL30: 50 | RM30: 1 | RN30: 15 | RO30: 1 | RP30: 25 | RQ30: 1 | RR30: 25 | RS30: 1 | RT30: 5954.33323 | RU30: 3666.826601 | RV30: 0 | RW30: 2147.697865 | RX30: 4344.02069 | RY30: 0 | RZ30: 2570.825339 | SA30: 4577.310221 | SB30: 0 | SC30: 2570.825339 | SD30: 0 | SE30: 2084.377698 | SF30: 0 | SG30: 9515.248042 | SH30: 196.4482759 | SI30: 1647.29064 | SJ30: 510.6217703 | SK30: 73.82426999 | SL30: 173.2898999 | SM30: 0 | SN30: 0 | SO30: 0 | SP30: 0 | SQ30: 0.2 | SR30: 20 | SS30: 50 | ST30: 80 | SU30: 200 | SV30: 400
A31: =ROW() -> 31 | D31: IntermediateCalculations_ScenarioComparison_CostsRevenues_Scenario2 | E31: IntermediateCalculations_ScenarioComparison_CostsRevenues_Scenario2 | F31: 1 | G31: 1 | H31: 0 | I31: 1.6 | J31: 40 | L31: TRUE | M31: FALSE | N31: FALSE | O31: 0.05 | P31: 0.05 | Q31: 0.1 | R31: 0.3 | S31: 0.5 | T31: 20 | U31: 50 | V31: 160 | W31: 1200 | X31: 4000 | Y31: 3.2 | Z31: 2 | AA31: 125000 | AB31: 2.8 | AC31: 1.8 | AD31: 90000 | AE31: 2.4 | AF31: 1.8 | AG31: 70000 | AH31: 1.6 | AI31: 1.2 | AJ31: 55000 | AK31: 1.6 | AL31: 1.2 | AM31: 55000 | AN31: 200000 | AO31: 0 | AP31: 2000 | AQ31: 2000 | AR31: 0 | AS31: 0 | AT31: 0 | AU31: 0 | AV31: 2000 | AW31: 0 | AX31: Type 6 Four-lane Arterial | AY31: Type 3 Two-lane local | AZ31: 2000 | BA31: 2000 | BB31: 2000 | BC31: 3.5 | BD31: 3.5 | BE31: 0.3 | BF31: 0.06 | BG31: 0 | BH31: 0 | BI31: 0 | BJ31: 0 | BK31: 0 | BL31: 0 | BM31: 0 | BN31: 200 | BO31: 200 | BP31: 200 | BQ31: 200 | BR31: 200 | BS31: 200 | BT31: 200 | BU31: 220 | BV31: 220 | BW31: 220 | BX31: 220 | BY31: 220 | BZ31: 220 | CA31: 220 | CB31: 440 | CC31: 440 | CD31: 440 | CE31: 440 | CF31: 440 | CG31: 440 | CH31: 440 | CI31: 300 | CJ31: 250 | CK31: 500 | CL31: 0 | CM31: 0 | CN31: 246000 | CQ31: 3 | CR31: 7 | CS31: 3.6 | CT31: 8.4 | CU31: 6 | CV31: 14 | CW31: 240 | CX31: 60 | CY31: 220 | CZ31: 55 | DA31: 200 | DB31: 50 | DC31: 2 | DD31: 2 | DE31: 200 | DF31: 50 | DG31: 4.2 | DH31: 2.8 | DI31: 1 | DJ31: 1 | DK31: 6541 | DL31: 6949 | DM31: 0 | DN31: 800 | DO31: 33.37653921 | DP31: 300 | DQ31: 0 | DR31: 0 | DS31: 0 | DT31: 0 | DU31: 500000 | DV31: 90 | DW31: 0 | DX31: 40.18146468 | DY31: 328 | DZ31: 0 | EA31: 20.73882048 | EB31: 498 | EC31: 0 | EI31: 184 | EJ31: 0 | EK31: 184 | EL31: 0 | EM31: 80 | EN31: 0 | EO31: 0 | EP31: 0 | EQ31: 0 | ER31: 0 | ES31: 6900 | ET31: 0.2 | EU31: 0 | EV31: 2300 | EW31: 1800 | EX31: 1500 | EY31: 10.98 | EZ31: 2500 | FA31: 50 | FB31: 19 | FC31: 1000 | FD31: 200 | FE31: 100 | FF31: 14 | FG31: 1000 | FH31: 0.038 | FI31: 500 | FJ31: 0.233 | FK31: 1000 | FL31: 8.5e-09 | FM31: 3.59 | FN31: 6.275e-07 | FO31: 49340 | FP31: 1.865e-06 | FQ31: 5084 | FS31: =IF(INDIRECT($D31)=0,"",VLOOKUP(INDIRECT($D31),ComparisonScenarios,FS$1-1,FALSE)) -> 10000 | FT31: 0 | FU31: 0 | FV31: 10000 | FW31: 0 | FX31: 500000 | FY31: 10000 | FZ31: 15000 | GA31: 0 | GB31: 10000 | GC31: =IF(INDIRECT($D31)=0,"",VLOOKUP(INDIRECT($D31),ComparisonScenarios,GC$1-1,FALSE)) -> 0 | GD31: 580000 | GE31: 10000 | GF31: 40000 | GG31: 300000 | GH31: 10000 | GI31: 20000 | GJ31: Public Laneway | GK31: Local | GL31: Two-lane local | GM31: Local | GN31: Two-lane local | GO31: Local | GP31: Two-lane collector | GQ31: Collector | GR31: Four-lane collector | GS31: Arterial | GT31: Four-lane Arterial | GU31: Arterial | GV31: User Defined | GW31: User Defined | GX31: 0 | GY31: 0 | GZ31: 0 | HA31: 0 | HB31: 0 | HC31: 0 | HD31: 0 | HE31: 0 | HF31: 0 | HG31: 0 | HH31: 0 | HI31: 1 | HJ31: 0 | HK31: 0 | HL31: 0 | HM31: 0 | HN31: 0 | HO31: 0 | HP31: 0 | HQ31: 0 | HR31: 9000 | HS31: 9000 | HT31: 7000 | HU31: 5000 | HV31: 5000 | HW31: 350000 | HX31: 314000 | HY31: 314000 | HZ31: 200000 | IA31: 200000 | IB31: 4.9 | IC31: 300 | ID31: 0 | IE31: 0.5 | IF31: 0 | IG31: 1 | IH31: 1 | II31: 0 | IJ31: 0 | IK31: 0 | IL31: 1 | IM31: 0 | IN31: 0 | IO31: 0 | IP31: 1 | IQ31: 0 | IR31: 0 | IS31: 0 | IT31: 1 | IU31: 0 | IV31: 0 | IW31: 0 | IX31: 1 | IY31: 0 | IZ31: 0 | JA31: 0 | JB31: 1 | JC31: 0 | JD31: 0 | JE31: 0 | JF31: 1 | JG31: 0 | JH31: 0 | JI31: 0 | JJ31: 1 | JK31: 0 | JL31: 0 | JM31: 0 | JN31: 1 | JO31: 0 | JP31: 0 | JQ31: 0 | JR31: 1 | JS31: 0 | JT31: 0 | JU31: 0 | JV31: 1 | JW31: 0 | JX31: 0 | JY31: 0 | JZ31: 1 | KA31: 0 | KB31: 0 | KC31: 0 | KD31: 1 | KE31: 0 | KF31: 0 | KG31: 0 | KH31: 1 | KI31: 0 | KJ31: 0 | KK31: 0 | KL31: 1 | KM31: 0 | KN31: 0 | KO31: 0 | KP31: 1 | KQ31: 0 | KR31: 0 | KS31: 0 | KT31: 1 | KU31: 0 | KV31: 0 | KW31: 0 | KX31: 1 | KY31: 0 | KZ31: 0 | LA31: 0 | LB31: 1 | LC31: 0 | LD31: 0 | LE31: 0 | LF31: 1 | LG31: 0 | LH31: 0 | LI31: 0 | LJ31: 1 | LK31: 0 | LL31: 0 | LM31: 0 | LN31: 1 | LO31: 0 | LP31: 0 | LQ31: 0 | LR31: 0 | LS31: 0 | LT31: 0 | LU31: 1 | LV31: 0 | LW31: 0 | LX31: 0 | LY31: 1 | LZ31: 1 | MA31: 0 | MB31: 0 | MC31: 0 | MD31: 1 | ME31: 0 | MF31: 0 | MG31: 0 | MH31: 1 | MI31: 0 | MJ31: 0 | MK31: 0 | ML31: 1 | MM31: 0 | MN31: 0 | MO31: 0 | MP31: 1 | MQ31: 0 | MR31: 0 | MS31: 0 | MT31: 1 | MU31: 0 | MV31: 0 | MW31: 0 | MX31: Capital cost, if any specified, combined with School Transit O&M | MY31: 0 | MZ31: 0 | NA31: 0 | NB31: 0 | NC31: 0 | ND31: 0 | NE31: 1 | NF31: 1 | NG31: 0 | NH31: 0 | NI31: 0 | NJ31: 1 | NK31: 0 | NL31: 0 | NM31: 0 | NN31: 1 | NO31: 0 | NP31: 0 | NQ31: 0 | NR31: 1 | NS31: 0 | NT31: 0 | NU31: 0 | NV31: 1 | NW31: 0 | NX31: 0 | NY31: 0 | NZ31: 1 | OA31: 0 | OB31: 0 | OC31: 0 | OD31: 0 | OE31: 0 | OF31: 0 | OG31: 0 | OH31: 0 | OI31: 0 | OJ31: 0 | OK31: 0 | OL31: 0 | OM31: 0 | ON31: 0 | OO31: 0 | OP31: 0 | OQ31: 0 | OR31: 0 | OS31: 0 | OT31: 0 | OU31: 0 | OV31: 0 | OW31: 0 | OX31: 0 | OY31: 0 | OZ31: 0 | PA31: 0 | PB31: 0 | PC31: 0 | PD31: 0 | PE31: 0 | PF31: 0 | PG31: 0 | PH31: 0 | PI31: 0 | PJ31: 0 | PK31: 0 | PL31: 0 | PM31: 0 | PN31: 0 | PO31: 0 | PP31: 0 | PQ31: 0 | PR31: 0 | PS31: 0 | PT31: 0 | PU31: 0 | PV31: 0 | PW31: 0 | PX31: 0 | PY31: 0 | PZ31: 0 | QA31: 0 | QB31: 30 | QC31: 1 | QD31: 30 | QE31: 1 | QF31: 30 | QG31: 1 | QH31: 30 | QI31: 1 | QJ31: 30 | QK31: 1 | QL31: 30 | QM31: 1 | QN31: 30 | QO31: 1 | QP31: 30 | QQ31: 1 | QR31: 30 | QS31: 1 | QT31: 75 | QU31: 1 | QV31: 45 | QW31: 1 | QX31: 75 | QY31: 1 | QZ31: 45 | RA31: 1 | RB31: 75 | RC31: 1 | RD31: 75 | RE31: 1 | RF31: 25 | RG31: 1 | RH31: 50 | RI31: 1 | RJ31: 20 | RK31: 1 | RL31: 50 | RM31: 1 | RN31: 15 | RO31: 1 | RP31: 25 | RQ31: 1 | RR31: 25 | RS31: 1 | RT31: 3062.995922 | RU31: 2710.359116 | RV31: 0 | RW31: 2048.044199 | RX31: 3210.911602 | RY31: 0 | RZ31: 2277.337583 | SA31: 3383.349101 | SB31: 0 | SC31: 2277.337583 | SD31: 0 | SE31: 1804.965495 | SF31: 0 | SG31: 3662.646775 | SH31: 193.1187845 | SI31: 1514.548803 | SJ31: 197.1136918 | SK31: 28.49814726 | SL31: 66.89454683 | SM31: 0 | SN31: 0 | SO31: 0 | SP31: 0 | SQ31: 0.2 | SR31: 20 | SS31: 50 | ST31: 80 | SU31: 200 | SV31: 400
A32: =ROW() -> 32 | D32: IntermediateCalculations_ScenarioComparison_CostsRevenues_Scenario3 | E32: IntermediateCalculations_ScenarioComparison_CostsRevenues_Scenario3 | F32: 2 | G32: 2 | H32: 0 | I32: 1.6 | J32: 40 | L32: FALSE | M32: TRUE | N32: FALSE | O32: 0.25 | P32: 0.25 | Q32: 0.3 | R32: 0.1 | S32: 0.1 | T32: 120 | U32: 300 | V32: 576 | W32: 480 | X32: 960 | Y32: 3.2 | Z32: 2 | AA32: 125000 | AB32: 2.8 | AC32: 1.8 | AD32: 90000 | AE32: 2.4 | AF32: 1.8 | AG32: 70000 | AH32: 1.6 | AI32: 1.2 | AJ32: 55000 | AK32: 1.6 | AL32: 1.2 | AM32: 55000 | AN32: 200000 | AO32: 0 | AP32: 0 | AQ32: 4000 | AR32: 0 | AS32: 0 | AT32: 0 | AU32: 0 | AV32: 2000 | AW32: 0 | AX32: Type 6 Four-lane Arterial | AY32: Type 3 Two-lane local | AZ32: 2000 | BA32: 2000 | BB32: 2000 | BC32: 3.5 | BD32: 3 | BE32: 0.3 | BF32: 0.06 | BG32: 0 | BH32: 0 | BI32: 0 | BJ32: 0 | BK32: 0 | BL32: 0 | BM32: 0 | BN32: 200 | BO32: 200 | BP32: 200 | BQ32: 200 | BR32: 200 | BS32: 200 | BT32: 200 | BU32: 220 | BV32: 220 | BW32: 220 | BX32: 220 | BY32: 220 | BZ32: 220 | CA32: 220 | CB32: 440 | CC32: 440 | CD32: 440 | CE32: 440 | CF32: 440 | CG32: 440 | CH32: 440 | CI32: 300 | CJ32: 250 | CK32: 500 | CL32: 0 | CM32: 0 | CN32: 246000 | CQ32: 3 | CR32: 7 | CS32: 3.6 | CT32: 8.4 | CU32: 6 | CV32: 14 | CW32: 240 | CX32: 60 | CY32: 220 | CZ32: 55 | DA32: 200 | DB32: 50 | DC32: 2 | DD32: 2 | DE32: 200 | DF32: 50 | DG32: 4.2 | DH32: 2.8 | DI32: 1 | DJ32: 1 | DK32: 6541 | DL32: 6949 | DM32: 0 | DN32: 800 | DO32: 41.41202959 | DP32: 300 | DQ32: 0 | DR32: 0 | DS32: 0 | DT32: 0 | DU32: 500000 | DV32: 90 | DW32: 0 | DX32: 49.85525893 | DY32: 328 | DZ32: 0 | EA32: 25.73174654 | EB32: 498 | EC32: 0 | EI32: 184 | EJ32: 0 | EK32: 184 | EL32: 0 | EM32: 80 | EN32: 0 | EO32: 0 | EP32: 0 | EQ32: 0 | ER32: 0 | ES32: 6900 | ET32: 0.2 | EU32: 0 | EV32: 2300 | EW32: 1800 | EX32: 1500 | EY32: 10.98 | EZ32: 2500 | FA32: 50 | FB32: 19 | FC32: 1000 | FD32: 200 | FE32: 100 | FF32: 14 | FG32: 1000 | FH32: 0.038 | FI32: 500 | FJ32: 0.233 | FK32: 1000 | FL32: 8.5e-09 | FM32: 3.59 | FN32: 6.275e-07 | FO32: 49340 | FP32: 1.865e-06 | FQ32: 5084 | FS32: 10000 | FT32: 0 | FU32: 0 | FV32: 10000 | FW32: 0 | FX32: 500000 | FY32: 10000 | FZ32: 15000 | GA32: 0 | GB32: 10000 | GC32: 0 | GD32: 580000 | GE32: 10000 | GF32: 40000 | GG32: 300000 | GH32: 10000 | GI32: 20000 | GJ32: Public Laneway | GK32: Local | GL32: Two-lane local | GM32: Local | GN32: Two-lane local | GO32: Local | GP32: Two-lane collector | GQ32: Collector | GR32: Four-lane collector | GS32: Arterial | GT32: Four-lane Arterial | GU32: Arterial | GV32: User Defined | GW32: User Defined | GX32: 0 | GY32: 0 | GZ32: 0 | HA32: 0 | HB32: 0 | HC32: 0 | HD32: 0 | HE32: 0 | HF32: 0 | HG32: 0 | HH32: 0 | HI32: 1 | HJ32: 0 | HL32: 0 | HM32: 0 | HN32: 0 | HO32: 0 | HP32: 0 | HQ32: 0 | HR32: 9000 | HS32: 9000 | HT32: 7000 | HU32: 5000 | HV32: 5000 | HW32: 350000 | HX32: 314000 | HY32: 314000 | HZ32: 200000 | IA32: 200000 | IB32: 4.9 | IC32: 300 | ID32: 0 | IE32: 0.5 | IF32: 0 | IG32: 1 | IH32: 1 | II32: 0 | IJ32: 0 | IK32: 0 | IL32: 1 | IM32: 0 | IN32: 0 | IO32: 0 | IP32: 1 | IQ32: 0 | IR32: 0 | IS32: 0 | IT32: 1 | IU32: 0 | IV32: 0 | IW32: 0 | IX32: 1 | IY32: 0 | IZ32: 0 | JA32: 0 | JB32: 1 | JC32: 0 | JD32: 0 | JE32: 0 | JF32: 1 | JG32: 0 | JH32: 0 | JI32: 0 | JJ32: 1 | JK32: 0 | JL32: 0 | JM32: 0 | JN32: 1 | JO32: 0 | JP32: 0 | JQ32: 0 | JR32: 1 | JS32: 0 | JT32: 0 | JU32: 0 | JV32: 1 | JW32: 0 | JX32: 0 | JY32: 0 | JZ32: 1 | KA32: 0 | KB32: 0 | KC32: 0 | KD32: 1 | KE32: 0 | KF32: 0 | KG32: 0 | KH32: 1 | KI32: 0 | KJ32: 0 | KK32: 0 | KL32: 1 | KM32: 0 | KN32: 0 | KO32: 0 | KP32: 1 | KQ32: 0 | KR32: 0 | KS32: 0 | KT32: 1 | KU32: 0 | KV32: 0 | KW32: 0 | KX32: 1 | KY32: 0 | KZ32: 0 | LA32: 0 | LB32: 1 | LC32: 0 | LD32: 0 | LE32: 0 | LF32: 1 | LG32: 0 | LH32: 0 | LI32: 0 | LJ32: 1 | LK32: 0 | LL32: 0 | LM32: 0 | LN32: 1 | LO32: 0 | LP32: 0 | LQ32: 0 | LR32: 0 | LS32: 0 | LT32: 0 | LU32: 1 | LV32: 0 | LW32: 0 | LX32: 0 | LY32: 1 | LZ32: 1 | MA32: 0 | MB32: 0 | MC32: 0 | MD32: 1 | ME32: 0 | MF32: 0 | MG32: 0 | MH32: 1 | MI32: 0 | MJ32: 0 | MK32: 0 | ML32: 1 | MM32: 0 | MN32: 0 | MO32: 0 | MP32: 1 | MQ32: 0 | MR32: 0 | MS32: 0 | MT32: 1 | MU32: 0 | MV32: 0 | MW32: 0 | MX32: Capital cost, if any specified, combined with School Transit O&M | MY32: 0 | MZ32: 0 | NA32: 0 | NB32: 0 | NC32: 0 | ND32: 0 | NE32: 1 | NF32: 1 | NG32: 0 | NH32: 0 | NI32: 0 | NJ32: 1 | NK32: 0 | NL32: 0 | NM32: 0 | NN32: 1 | NO32: 0 | NP32: 0 | NQ32: 0 | NR32: 1 | NS32: 0 | NT32: 0 | NU32: 0 | NV32: 1 | NW32: 0 | NX32: 0 | NY32: 0 | NZ32: 1 | OA32: 0 | OB32: 0 | OC32: 0 | OD32: 0 | OE32: 0 | OF32: 0 | OG32: 0 | OH32: 0 | OI32: 0 | OJ32: 0 | OK32: 0 | OL32: 0 | OM32: 0 | ON32: 0 | OO32: 0 | OP32: 0 | OQ32: 0 | OR32: 0 | OS32: 0 | OT32: 0 | OU32: 0 | OV32: 0 | OW32: 0 | OX32: 0 | OY32: 0 | OZ32: 0 | PA32: 0 | PB32: 0 | PC32: 0 | PD32: 0 | PE32: 0 | PF32: 0 | PG32: 0 | PH32: 0 | PI32: 0 | PJ32: 0 | PK32: 0 | PL32: 0 | PM32: 0 | PN32: 0 | PO32: 0 | PP32: 0 | PQ32: 0 | PR32: 0 | PS32: 0 | PT32: 0 | PU32: 0 | PV32: 0 | PW32: 0 | PX32: 0 | PY32: 0 | PZ32: 0 | QA32: 0 | QB32: 30 | QC32: 1 | QD32: 30 | QE32: 1 | QF32: 30 | QG32: 1 | QH32: 30 | QI32: 1 | QJ32: 30 | QK32: 1 | QL32: 30 | QM32: 1 | QN32: 30 | QO32: 1 | QP32: 30 | QQ32: 1 | QR32: 30 | QS32: 1 | QT32: 75 | QU32: 1 | QV32: 45 | QW32: 1 | QX32: 75 | QY32: 1 | QZ32: 45 | RA32: 1 | RB32: 75 | RC32: 1 | RD32: 75 | RE32: 1 | RF32: 25 | RG32: 1 | RH32: 50 | RI32: 1 | RJ32: 20 | RK32: 1 | RL32: 50 | RM32: 1 | RN32: 15 | RO32: 1 | RP32: 25 | RQ32: 1 | RR32: 25 | RS32: 1 | RT32: 5954.33323 | RU32: 3666.826601 | RV32: 0 | RW32: 2147.697865 | RX32: 4344.02069 | RY32: 0 | RZ32: 2570.825339 | SA32: 4577.310221 | SB32: 0 | SC32: 2570.825339 | SD32: 0 | SE32: 2084.377698 | SF32: 0 | SG32: 9515.248042 | SH32: 196.4482759 | SI32: 1647.29064 | SJ32: 510.6217703 | SK32: 73.82426999 | SL32: 173.2898999 | SM32: 0 | SN32: 0 | SO32: 0 | SP32: 0 | SQ32: 0.2 | SR32: 20 | SS32: 50 | ST32: 80 | SU32: 200 | SV32: 400
A33: =ROW() -> 33 | D33: IntermediateCalculations_ScenarioComparison_PrivateExternalCosts_Scenario2 | E33: IntermediateCalculations_ScenarioComparison_PrivateExternalCosts_Scenario2 | F33: 1 | G33: 1 | H33: 0 | I33: 1.6 | J33: 40 | L33: TRUE | M33: FALSE | N33: FALSE | O33: 0.05 | P33: 0.05 | Q33: 0.1 | R33: 0.3 | S33: 0.5 | T33: 20 | U33: 50 | V33: 160 | W33: 1200 | X33: 4000 | Y33: 3.2 | Z33: 2 | AA33: 125000 | AB33: 2.8 | AC33: 1.8 | AD33: 90000 | AE33: 2.4 | AF33: 1.8 | AG33: 70000 | AH33: 1.6 | AI33: 1.2 | AJ33: 55000 | AK33: 1.6 | AL33: 1.2 | AM33: 55000 | AN33: 200000 | AO33: 0 | AP33: 2000 | AQ33: 2000 | AR33: 0 | AS33: 0 | AT33: 0 | AU33: 0 | AV33: 2000 | AW33: 0 | AX33: Type 6 Four-lane Arterial | AY33: Type 3 Two-lane local | AZ33: 2000 | BA33: 2000 | BB33: 2000 | BC33: 3.5 | BD33: 3.5 | BE33: 0.3 | BF33: 0.06 | BG33: 0 | BH33: 0 | BI33: 0 | BJ33: 0 | BK33: 0 | BL33: 0 | BM33: 0 | BN33: 200 | BO33: 200 | BP33: 200 | BQ33: 200 | BR33: 200 | BS33: 200 | BT33: 200 | BU33: 220 | BV33: 220 | BW33: 220 | BX33: 220 | BY33: 220 | BZ33: 220 | CA33: 220 | CB33: 440 | CC33: 440 | CD33: 440 | CE33: 440 | CF33: 440 | CG33: 440 | CH33: 440 | CI33: 300 | CJ33: 250 | CK33: 500 | CL33: 0 | CM33: 0 | CQ33: 3 | CR33: 7 | CS33: 3.6 | CT33: 8.4 | CU33: 6 | CV33: 14 | CW33: 240 | CX33: 60 | CY33: 220 | CZ33: 55 | DA33: 200 | DB33: 50 | DC33: 2 | DD33: 2 | DE33: 200 | DF33: 50 | DG33: 4.2 | DH33: 2.8 | DI33: 1 | DJ33: 1 | DK33: 6541 | DL33: 6949 | DM33: 0 | DN33: 800 | DP33: 300 | DQ33: 0 | DS33: 0 | DT33: 0 | DU33: 500000 | DV33: 90 | DW33: 0 | DX33: 40.18146468 | DY33: 328 | DZ33: 0 | EA33: 20.73882048 | EB33: 498 | EC33: 0 | EI33: 184 | EJ33: 0 | EK33: 184 | EL33: 0 | EM33: 80 | EN33: 0 | EO33: 0 | EP33: 0 | EQ33: 0 | ER33: 0 | ES33: 6900 | ET33: 0.2 | EU33: 0 | EV33: 2300 | EW33: 1800 | EX33: 1500 | EY33: 10.98 | EZ33: 2500 | FA33: 50 | FB33: 19 | FC33: 1000 | FD33: 200 | FE33: 100 | FF33: 14 | FG33: 1000 | FH33: 0.038 | FI33: 500 | FJ33: 0.233 | FK33: 1000 | FL33: 8.5e-09 | FM33: 3.59 | FN33: 6.275e-07 | FO33: 49340 | FP33: 1.865e-06 | FQ33: 5084 | FR33: =IF(INDIRECT($D33)=0,"",VLOOKUP(INDIRECT($D33),ComparisonScenarios,FR$1-1,FALSE)) -> 0 | FS33: 10000 | FT33: 0 | FU33: 0 | FV33: 10000 | FW33: 0 | FX33: 500000 | FY33: 10000 | FZ33: 15000 | GA33: 0 | GB33: 10000 | GC33: 0 | GD33: 580000 | GE33: 10000 | GF33: 40000 | GG33: 300000 | GH33: 10000 | GI33: 20000 | GJ33: Public Laneway | GK33: Local | GL33: Two-lane local | GM33: Local | GN33: Two-lane local | GO33: Local | GP33: Two-lane collector | GQ33: Collector | GR33: Four-lane collector | GS33: Arterial | GT33: Four-lane Arterial | GU33: Arterial | GV33: User Defined | GW33: User Defined | GX33: 0 | GY33: 0 | GZ33: 0 | HA33: 0 | HB33: 0 | HC33: 0 | HD33: 0 | HE33: 0 | HF33: 0 | HG33: 0 | HH33: 0 | HI33: 1 | HR33: 9000 | HS33: 9000 | HT33: 7000 | HU33: 5000 | HV33: 5000 | HW33: 350000 | HX33: 314000 | HY33: 314000 | HZ33: 200000 | IA33: 200000 | IB33: 4.9 | IC33: 300 | ID33: 0 | IE33: 0.5 | IF33: 0 | IG33: 1 | IH33: 1 | II33: 0 | IJ33: 0 | IK33: 0 | IL33: 1 | IM33: 0 | IN33: 0 | IO33: 0 | IP33: 1 | IQ33: 0 | IR33: 0 | IS33: 0 | IT33: 1 | IU33: 0 | IV33: 0 | IW33: 0 | IX33: 1 | IY33: 0 | IZ33: 0 | JA33: 0 | JB33: 1 | JC33: 0 | JD33: 0 | JE33: 0 | JG33: 0 | JH33: 0 | JI33: 0 | JJ33: 1 | JK33: 0 | JL33: 0 | JM33: 0 | JN33: 1 | JO33: 0 | JP33: 0 | JQ33: 0 | JR33: 1 | JS33: 0 | JT33: 0 | JU33: 0 | JV33: 1 | JW33: 0 | JX33: 0 | JY33: 0 | JZ33: 1 | KA33: 0 | KB33: 0 | KC33: 0 | KD33: 1 | KE33: 0 | KF33: 0 | KG33: 0 | KH33: 1 | KI33: 0 | KJ33: 0 | KK33: 0 | KL33: 1 | KM33: 0 | KN33: 0 | KO33: 0 | KP33: 1 | KQ33: 0 | KR33: 0 | KS33: 0 | KT33: 1 | KU33: 0 | KV33: 0 | KW33: 0 | KX33: 1 | KY33: 0 | KZ33: 0 | LA33: 0 | LB33: 1 | LC33: 0 | LD33: 0 | LE33: 0 | LF33: 1 | LG33: 0 | LH33: 0 | LI33: 0 | LJ33: 1 | LK33: 0 | LL33: 0 | LM33: 0 | LN33: 1 | LO33: 0 | LP33: 0 | LQ33: 0 | LR33: 0 | LS33: 0 | LT33: 0 | LU33: 1 | LV33: 0 | LW33: 0 | LX33: 0 | LY33: 1 | LZ33: 1 | MA33: 0 | MB33: 0 | MC33: 0 | MD33: 1 | ME33: 0 | MF33: 0 | MG33: 0 | MH33: 1 | MI33: 0 | MJ33: 0 | MK33: 0 | ML33: 1 | MM33: 0 | MN33: 0 | MO33: 0 | MP33: 1 | MQ33: 0 | MR33: 0 | MS33: 0 | MT33: 1 | MU33: 0 | MV33: 0 | MW33: 0 | MX33: Capital cost, if any specified, combined with School Transit O&M | MY33: 0 | MZ33: 0 | NA33: 0 | NB33: 0 | NC33: 0 | ND33: 0 | NE33: 1 | NF33: 1 | NG33: 0 | NH33: 0 | NI33: 0 | NJ33: 1 | NK33: 0 | NL33: 0 | NM33: 0 | NN33: 1 | NO33: 0 | NP33: 0 | NQ33: 0 | NR33: 1 | NS33: 0 | NT33: 0 | NU33: 0 | NV33: 1 | NW33: 0 | NX33: 0 | NY33: 0 | NZ33: 1 | OA33: 0 | OB33: 0 | OC33: 0 | OD33: 0 | OE33: 0 | OF33: 0 | OG33: 0 | OH33: 0 | OI33: 0 | OJ33: 0 | OK33: 0 | OL33: 0 | OM33: 0 | ON33: 0 | OO33: 0 | OP33: 0 | OQ33: 0 | OR33: 0 | OS33: 0 | OT33: 0 | OU33: 0 | OV33: 0 | OW33: 0 | OX33: 0 | OY33: 0 | OZ33: 0 | PA33: 0 | PB33: 0 | PC33: 0 | PD33: 0 | PE33: 0 | PF33: 0 | PG33: 0 | PH33: 0 | PI33: 0 | PJ33: 0 | PK33: 0 | PL33: 0 | PM33: 0 | PN33: 0 | PO33: 0 | PP33: 0 | PQ33: 0 | PR33: 0 | PS33: 0 | PT33: 0 | PU33: 0 | PV33: 0 | PW33: 0 | PX33: 0 | PY33: 0 | PZ33: 0 | QA33: 0 | QB33: 30 | QC33: 1 | QD33: 30 | QE33: 1 | QF33: 30 | QG33: 1 | QH33: 30 | QI33: 1 | QJ33: 30 | QK33: 1 | QL33: 30 | QM33: 1 | QN33: 30 | QO33: 1 | QP33: 30 | QQ33: 1 | QR33: 30 | QS33: 1 | QT33: 75 | QU33: 1 | QV33: 45 | QW33: 1 | QX33: 75 | QY33: 1 | QZ33: 45 | RA33: 1 | RB33: 75 | RC33: 1 | RD33: 75 | RE33: 1 | RF33: 25 | RG33: 1 | RH33: 50 | RI33: 1 | RJ33: 20 | RK33: 1 | RL33: 50 | RM33: 1 | RN33: 15 | RO33: 1 | RP33: 25 | RQ33: 1 | RR33: 25 | RS33: 1 | RT33: 3062.995922 | RU33: 2710.359116 | RV33: 0 | RW33: 2048.044199 | RX33: 3210.911602 | RY33: 0 | RZ33: 2277.337583 | SA33: 3383.349101 | SB33: 0 | SC33: 2277.337583 | SD33: 0 | SE33: 1804.965495 | SF33: 0 | SG33: 3662.646775 | SH33: 193.1187845 | SI33: 1514.548803 | SJ33: 197.1136918 | SK33: 28.49814726 | SL33: 66.89454683 | SM33: 0 | SN33: 0 | SO33: 0 | SP33: 0 | SQ33: 0.2 | SR33: 20 | SS33: 50 | ST33: 80 | SU33: 200 | SV33: 400
A34: =ROW() -> 34 | D34: IntermediateCalculations_ScenarioComparison_PrivateExternalCosts_Scenario3 | E34: IntermediateCalculations_ScenarioComparison_PrivateExternalCosts_Scenario3 | F34: 2 | G34: 2 | H34: 0 | I34: 1.6 | J34: 40 | L34: FALSE | M34: TRUE | N34: FALSE | O34: 0.25 | P34: 0.25 | Q34: 0.3 | R34: 0.1 | S34: 0.1 | T34: 120 | U34: 300 | V34: 576 | W34: 480 | X34: 960 | Y34: 3.2 | Z34: 2 | AA34: 125000 | AB34: 2.8 | AC34: 1.8 | AD34: 90000 | AE34: 2.4 | AF34: 1.8 | AG34: 70000 | AH34: 1.6 | AI34: 1.2 | AJ34: 55000 | AK34: 1.6 | AL34: 1.2 | AM34: 55000 | AN34: 200000 | AO34: 0 | AP34: 0 | AQ34: 4000 | AR34: 0 | AS34: 0 | AT34: 0 | AU34: 0 | AV34: 2000 | AW34: 0 | AX34: Type 6 Four-lane Arterial | AY34: Type 3 Two-lane local | AZ34: 2000 | BA34: 2000 | BB34: 2000 | BC34: 3.5 | BD34: 3 | BE34: 0.3 | BF34: 0.06 | BG34: 0 | BH34: 0 | BI34: 0 | BJ34: 0 | BK34: 0 | BL34: 0 | BM34: 0 | BN34: 200 | BO34: 200 | BP34: 200 | BQ34: 200 | BR34: 200 | BS34: 200 | BT34: 200 | BU34: 220 | BV34: 220 | BW34: 220 | BX34: 220 | BY34: 220 | BZ34: 220 | CA34: 220 | CB34: 440 | CC34: 440 | CD34: 440 | CE34: 440 | CF34: 440 | CG34: 440 | CH34: 440 | CI34: 300 | CJ34: 250 | CK34: 500 | CL34: 0 | CM34: 0 | CQ34: 3 | CR34: 7 | CS34: 3.6 | CT34: 8.4 | CU34: 6 | CV34: 14 | CW34: 240 | CX34: 60 | CY34: 220 | CZ34: 55 | DA34: 200 | DB34: 50 | DC34: 2 | DD34: 2 | DE34: 200 | DF34: 50 | DG34: 4.2 | DH34: 2.8 | DI34: 1 | DJ34: 1 | DK34: 6541 | DL34: 6949 | DM34: 0 | DN34: 800 | DP34: 300 | DQ34: 0 | DS34: 0 | DT34: 0 | DU34: 500000 | DV34: 90 | DW34: 0 | DX34: 49.85525893 | DY34: 328 | DZ34: 0 | EA34: 25.73174654 | EB34: 498 | EC34: 0 | EI34: 184 | EJ34: 0 | EK34: 184 | EL34: 0 | EM34: 80 | EN34: 0 | EO34: 0 | EP34: 0 | EQ34: 0 | ER34: 0 | ES34: 6900 | ET34: 0.2 | EU34: 0 | EV34: 2300 | EW34: 1800 | EX34: 1500 | EY34: 10.98 | EZ34: 2500 | FA34: 50 | FB34: 19 | FC34: 1000 | FD34: 200 | FE34: 100 | FF34: 14 | FG34: 1000 | FH34: 0.038 | FI34: 500 | FJ34: 0.233 | FK34: 1000 | FL34: 8.5e-09 | FM34: 3.59 | FN34: 6.275e-07 | FO34: 49340 | FP34: 1.865e-06 | FQ34: 5084 | FR34: =IF(INDIRECT($D34)=0,"",VLOOKUP(INDIRECT($D34),ComparisonScenarios,FR$1-1,FALSE)) -> 0 | FS34: 10000 | FT34: 0 | FU34: 0 | FV34: 10000 | FW34: 0 | FX34: 500000 | FY34: 10000 | FZ34: 15000 | GA34: 0 | GB34: 10000 | GC34: 0 | GD34: 580000 | GE34: 10000 | GF34: 40000 | GG34: 300000 | GH34: 10000 | GI34: 20000 | GJ34: Public Laneway | GK34: Local | GL34: Two-lane local | GM34: Local | GN34: Two-lane local | GO34: Local | GP34: Two-lane collector | GQ34: Collector | GR34: Four-lane collector | GS34: Arterial | GT34: Four-lane Arterial | GU34: Arterial | GV34: User Defined | GW34: User Defined | GX34: 0 | GY34: 0 | GZ34: 0 | HA34: 0 | HB34: 0 | HC34: 0 | HD34: 0 | HE34: 0 | HF34: 0 | HG34: 0 | HH34: 0 | HI34: 1 | HJ34: 0 | HK34: 0 | HL34: 0 | HM34: 0 | HN34: 0 | HO34: 0 | HP34: 0 | HQ34: 0 | HR34: 9000 | HS34: 9000 | HT34: 7000 | HU34: 5000 | HV34: 5000 | HW34: 350000 | HX34: 314000 | HY34: 314000 | HZ34: 200000 | IA34: 200000 | IB34: 4.9 | IC34: 300 | ID34: 0 | IE34: 0.5 | IF34: 0 | IG34: 1 | IH34: 1 | II34: 0 | IJ34: 0 | IK34: 0 | IL34: 1 | IM34: 0 | IN34: 0 | IO34: 0 | IP34: 1 | IQ34: 0 | IR34: 0 | IS34: 0 | IT34: 1 | IU34: 0 | IV34: 0 | IW34: 0 | IX34: 1 | IY34: 0 | IZ34: 0 | JA34: 0 | JB34: 1 | JC34: 0 | JD34: 0 | JE34: 0 | JG34: 0 | JH34: 0 | JI34: 0 | JJ34: 1 | JK34: 0 | JL34: 0 | JM34: 0 | JN34: 1 | JO34: 0 | JP34: 0 | JQ34: 0 | JR34: 1 | JS34: 0 | JT34: 0 | JU34: 0 | JV34: 1 | JW34: 0 | JX34: 0 | JY34: 0 | JZ34: 1 | KA34: 0 | KB34: 0 | KC34: 0 | KD34: 1 | KE34: 0 | KF34: 0 | KG34: 0 | KH34: 1 | KI34: 0 | KJ34: 0 | KK34: 0 | KL34: 1 | KM34: 0 | KN34: 0 | KO34: 0 | KP34: 1 | KQ34: 0 | KR34: 0 | KS34: 0 | KT34: 1 | KU34: 0 | KV34: 0 | KW34: 0 | KX34: 1 | KY34: 0 | KZ34: 0 | LA34: 0 | LB34: 1 | LC34: 0 | LD34: 0 | LE34: 0 | LF34: 1 | LG34: 0 | LH34: 0 | LI34: 0 | LJ34: 1 | LK34: 0 | LL34: 0 | LM34: 0 | LN34: 1 | LO34: 0 | LP34: 0 | LQ34: 0 | LR34: 0 | LS34: 0 | LT34: 0 | LU34: 1 | LV34: 0 | LW34: 0 | LX34: 0 | LY34: 1 | LZ34: 1 | MA34: 0 | MB34: 0 | MC34: 0 | MD34: 1 | ME34: 0 | MF34: 0 | MG34: 0 | MH34: 1 | MI34: 0 | MJ34: 0 | MK34: 0 | ML34: 1 | MM34: 0 | MN34: 0 | MO34: 0 | MP34: 1 | MQ34: 0 | MR34: 0 | MS34: 0 | MT34: 1 | MU34: 0 | MV34: 0 | MW34: 0 | MX34: Capital cost, if any specified, combined with School Transit O&M | MY34: 0 | MZ34: 0 | NA34: 0 | NB34: 0 | NC34: 0 | ND34: 0 | NE34: 1 | NF34: 1 | NG34: 0 | NH34: 0 | NI34: 0 | NJ34: 1 | NK34: 0 | NL34: 0 | NM34: 0 | NN34: 1 | NO34: 0 | NP34: 0 | NQ34: 0 | NR34: 1 | NS34: 0 | NT34: 0 | NU34: 0 | NV34: 1 | NW34: 0 | NX34: 0 | NY34: 0 | NZ34: 1 | OA34: 0 | OB34: 0 | OC34: 0 | OD34: 0 | OE34: 0 | OF34: 0 | OG34: 0 | OH34: 0 | OI34: 0 | OJ34: 0 | OK34: 0 | OL34: 0 | OM34: 0 | ON34: 0 | OO34: 0 | OP34: 0 | OQ34: 0 | OR34: 0 | OS34: 0 | OT34: 0 | OU34: 0 | OV34: 0 | OW34: 0 | OX34: 0 | OY34: 0 | OZ34: 0 | PA34: 0 | PB34: 0 | PC34: 0 | PD34: 0 | PE34: 0 | PF34: 0 | PG34: 0 | PH34: 0 | PI34: 0 | PJ34: 0 | PK34: 0 | PL34: 0 | PM34: 0 | PN34: 0 | PO34: 0 | PP34: 0 | PQ34: 0 | PR34: 0 | PS34: 0 | PT34: 0 | PU34: 0 | PV34: 0 | PW34: 0 | PX34: 0 | PY34: 0 | PZ34: 0 | QA34: 0 | QB34: 30 | QC34: 1 | QD34: 30 | QE34: 1 | QF34: 30 | QG34: 1 | QH34: 30 | QI34: 1 | QJ34: 30 | QK34: 1 | QL34: 30 | QM34: 1 | QN34: 30 | QO34: 1 | QP34: 30 | QQ34: 1 | QR34: 30 | QS34: 1 | QT34: 75 | QU34: 1 | QV34: 45 | QW34: 1 | QX34: 75 | QY34: 1 | QZ34: 45 | RA34: 1 | RB34: 75 | RC34: 1 | RD34: 75 | RE34: 1 | RF34: 25 | RG34: 1 | RH34: 50 | RI34: 1 | RJ34: 20 | RK34: 1 | RL34: 50 | RM34: 1 | RN34: 15 | RO34: 1 | RP34: 25 | RQ34: 1 | RR34: 25 | RS34: 1 | RT34: 5954.33323 | RU34: 3666.826601 | RW34: 2147.697865 | RX34: 4344.02069 | RY34: 0 | RZ34: 2570.825339 | SA34: 4577.310221 | SB34: 0 | SC34: 2570.825339 | SD34: 0 | SE34: 2084.377698 | SF34: 0 | SG34: 9515.248042 | SH34: 196.4482759 | SI34: 1647.29064 | SJ34: 510.6217703 | SK34: 73.82426999 | SL34: 173.2898999 | SM34: 0 | SN34: 0 | SO34: 0 | SP34: 0 | SQ34: 0.2 | SR34: 20 | SS34: 50 | ST34: 80 | SU34: 200 | SV34: 400
B35: ="#"&OFFSET(Data_Scenario_Active_Name,0,1)&" - "&Data_Scenario_Active_Name -> #0 - <<Default Scenario>> | C35: Note: Changes to Scenarios #0 - 6 cannot be SAVED as they are the built-in scenarios | I35: =$I3&I4 -> General Scenario CharacteristicsDistance to Central Business District | J35: General Scenario CharacteristicsGross Land Area | K35: General Scenario CharacteristicsNet Residential Land Area (Ha) | L35: General Scenario CharacteristicsCompact Development | M35: General Scenario CharacteristicsMedium Density | N35: General Scenario CharacteristicsSuburban Type | O35: =$O3&O4 -> Development Densities% Single Detached | P35: Development Densities% Semi Detached | Q35: Development Densities% Rowhouse/Townhouse/Duplex | R35: Development Densities% Low Rise | S35: Development Densities% High Rise | T35: Development DensitiesSingle Detached | U35: Development DensitiesSemi Detached | V35: Development DensitiesRowhouse/Townhouse/Duplex | W35: Development DensitiesLow Rise | X35: Development DensitiesHigh Rise | Y35: =$Y3&Y4 -> Demographic AssumptionsHousehold Size Single Detached | Z35: Demographic AssumptionsAdults (16+) Single Detached | AA35: Demographic AssumptionsAverage Household Income Single Detached | AB35: Demographic AssumptionsHousehold Size Semi Detached | AC35: Demographic AssumptionsAdults (16+) Semi Detached | AD35: Demographic AssumptionsAverage Household Income Semi Detached | AE35: Demographic AssumptionsHousehold Size Rowhouse/Townhouse/Duplex | AF35: Demographic AssumptionsAdults (16+) Rowhouse/Townhouse/Duplex | AG35: Demographic AssumptionsAverage Household Income Rowhouse/Townhouse/Duplex | AH35: Demographic AssumptionsHousehold Size Low Rise | AI35: Demographic AssumptionsAdults (16+) Low Rise | AJ35: Demographic AssumptionsAverage Household Income Low Rise | AK35: Demographic AssumptionsHousehold Size High Rise | AL35: Demographic AssumptionsAdults (16+) High Rise | AM35: Demographic AssumptionsAverage Household Income High Rise | AN35: Demographic AssumptionsJobs within 5 Km | AO35: =$AO3&AO4 -> Internal RoadsLength of Road Type 1 Public Laneway | AP35: Internal RoadsLength of Road Type 2 Two-lane local | AQ35: Internal RoadsLength of Road Type 3 Two-lane local | AR35: Internal RoadsLength of Road Type 4 Two-lane collector | AS35: Internal RoadsLength of Road Type 5 Four-lane collector | AT35: Internal RoadsLength of Road Type 6 Four-lane Arterial | AU35: Internal RoadsLength of Road Type 7 User Defined | AV35: =$AV3&AV4 -> External RoadsLength of Road Type 6 Four-lane Arterial | AW35: =$AV3&AW4 -> External RoadsLength of Road Type 3 Two-lane local | AX35: =$AV3&AX4 -> External RoadsType 6 Four-lane Arterial | AY35: =$AV3&AY4 -> External RoadsType 3 Two-lane local | AZ35: =$AZ3&AZ4 -> Water and Sewer TrunkLength Trunk Sanitary Sewer | BA35: =$AZ3&BA4 -> Water and Sewer TrunkLength Trunk Storm Sewer | BB35: =$AZ3&BB4 -> Water and Sewer TrunkLength Trunk Water Distribution | BC35: =$AZ$3&BC4 -> Water and Sewer TrunkArea of Stormwater Management Pond | BD35: =$BD3&BD4 -> Transit InfrastructureAnnual Vehicle Service Hours per Capita | BE35: =$BD3&BE4 -> Transit InfrastructureNumber of Buses per 1000 VSH | BF35: =$BF3&BF4 -> General Cost AssumptionsInterest Rate for Amortizing Capital Costs | BG35: =$BG3&BG4 -> Roads, Water, Sanitary and Storm - Capital CostsSidewalks Type 1 | BH35: Roads, Water, Sanitary and Storm - Capital CostsSidewalks Type 2 | BI35: Roads, Water, Sanitary and Storm - Capital CostsSidewalks Type 3 | BJ35: Roads, Water, Sanitary and Storm - Capital CostsSidewalks Type 4 | BK35: Roads, Water, Sanitary and Storm - Capital CostsSidewalks Type 5 | BL35: Roads, Water, Sanitary and Storm - Capital CostsSidewalks Type 6 | BM35: Roads, Water, Sanitary and Storm - Capital CostsSidewalks Type 7 | BN35: Roads, Water, Sanitary and Storm - Capital CostsPotable Water Distribution Type 1 | BO35: Roads, Water, Sanitary and Storm - Capital CostsPotable Water Distribution Type 2 | BP35: Roads, Water, Sanitary and Storm - Capital CostsPotable Water Distribution Type 3 | BQ35: Roads, Water, Sanitary and Storm - Capital CostsPotable Water Distribution Type 4 | BR35: Roads, Water, Sanitary and Storm - Capital CostsPotable Water Distribution Type 5 | BS35: Roads, Water, Sanitary and Storm - Capital CostsPotable Water Distribution Type 6 | BT35: Roads, Water, Sanitary and Storm - Capital CostsPotable Water Distribution Type 7 | BU35: Roads, Water, Sanitary and Storm - Capital CostsSanitary Sewer Collection Type 1 | BV35: Roads, Water, Sanitary and Storm - Capital CostsSanitary Sewer Collection Type 2 | BW35: Roads, Water, Sanitary and Storm - Capital CostsSanitary Sewer Collection Type 3 | BX35: Roads, Water, Sanitary and Storm - Capital CostsSanitary Sewer Collection Type 4 | BY35: Roads, Water, Sanitary and Storm - Capital CostsSanitary Sewer Collection Type 5 | BZ35: Roads, Water, Sanitary and Storm - Capital CostsSanitary Sewer Collection Type 6 | CA35: Roads, Water, Sanitary and Storm - Capital CostsSanitary Sewer Collection Type 7 | CB35: Roads, Water, Sanitary and Storm - Capital CostsStorm Sewer Collection Type 1 | CC35: Roads, Water, Sanitary and Storm - Capital CostsStorm Sewer Collection Type 2 | CD35: Roads, Water, Sanitary and Storm - Capital CostsStorm Sewer Collection Type 3 | CE35: Roads, Water, Sanitary and Storm - Capital CostsStorm Sewer Collection Type 4 | CF35: Roads, Water, Sanitary and Storm - Capital CostsStorm Sewer Collection Type 5 | CG35: Roads, Water, Sanitary and Storm - Capital CostsStorm Sewer Collection Type 6 | CH35: Roads, Water, Sanitary and Storm - Capital CostsStorm Sewer Collection Type 7 | CI35: =$CI3&CI4 -> Regional Municipal Services - Capital CostsPotable Water Distribution | CJ35: =$CI3&CJ4 -> Regional Municipal Services - Capital CostsSanitary Sewer Collection | CK35: =$CI3&CK4 -> Regional Municipal Services - Capital CostsStorm Sewer Collection | CL35: =$CI3&CL4 -> Regional Municipal Services - Capital CostsWastewater Treatment | CM35: =$CI3&CM4 -> Regional Municipal Services - Capital CostsPotable Water Treatment | CN35: =$CN3&CN4 -> Local Storm Water Management - Capital and O&M CostPond Cost | CO35: =$CN3&CO4 -> Local Storm Water Management - Capital and O&M CostO&M Cost Operating | CP35: =$CN3&CP4 -> Local Storm Water Management - Capital and O&M CostO&M Cost Maintenance | CQ35: =$CQ3&CQ4 -> Roads, Water, Sanitary and Storm - O&M CostsRoad O&M Costs Local Operating | CR35: Roads, Water, Sanitary and Storm - O&M CostsRoad O&M Costs Local Maintenance | CS35: Roads, Water, Sanitary and Storm - O&M CostsRoad O&M Costs Collector Operating | CT35: Roads, Water, Sanitary and Storm - O&M CostsRoad O&M Costs Collector Maintenance | CU35: Roads, Water, Sanitary and Storm - O&M CostsRoad O&M Costs Arterial Operating | CV35: Roads, Water, Sanitary and Storm - O&M CostsRoad O&M Costs Arterial Maintenance | CW35: Roads, Water, Sanitary and Storm - O&M CostsPotable Water Treatment Single Detached Operating | CX35: Roads, Water, Sanitary and Storm - O&M CostsPotable Water Treatment Single Detached Maintenance | CY35: Roads, Water, Sanitary and Storm - O&M CostsPotable Water Treatment Semi-detached/Rowhouses Operating | CZ35: Roads, Water, Sanitary and Storm - O&M CostsPotable Water Treatment Semi-detached/Rowhouses Maintenance | DA35: Roads, Water, Sanitary and Storm - O&M CostsPotable Water Treatment Apartments Operating | DB35: Roads, Water, Sanitary and Storm - O&M CostsPotable Water Treatment Apartments Maintenance | DC35: Roads, Water, Sanitary and Storm - O&M CostsPotable Water Distribution Operating | DD35: Roads, Water, Sanitary and Storm - O&M CostsPotable Water Distribution Maintenance | DE35: Roads, Water, Sanitary and Storm - O&M CostsWastewater Treatment Operating | DF35: Roads, Water, Sanitary and Storm - O&M CostsWastewater Treatment Maintenance | DG35: Roads, Water, Sanitary and Storm - O&M CostsSanitary Sewer Collection Operating | DH35: Roads, Water, Sanitary and Storm - O&M CostsSanitary Sewer Collection Maintenance | DI35: Roads, Water, Sanitary and Storm - O&M CostsStorm Sewer Collection Operating | DJ35: Roads, Water, Sanitary and Storm - O&M CostsStorm Sewer Collection Maintenance | DK35: =$DK3&DK4 -> Schools - Capital and O&M CostCapital Cost | DL35: =$DK3&DL4 -> Schools - Capital and O&M CostO&M Cost Operating | DM35: =$DK3&DM4 -> Schools - Capital and O&M CostO&M Cost Maintenance | DN35: =$DK3&DN4 -> Schools - Capital and O&M CostSchool Bus Total Cost | DO35: =$DO3&DO4 -> Parks and Open Space - Capital and O&M CostCapital Cost | DP35: =$DO3&DP4 -> Parks and Open Space - Capital and O&M CostO&M Cost Operating | DQ35: =$DO3&DQ4 -> Parks and Open Space - Capital and O&M CostO&M Cost Maintenance | DR35: =$DR3&DR4 -> Community Facilities - Capital and O&M CostCapital Cost | DS35: =$DR3&DS4 -> Community Facilities - Capital and O&M CostO&M Cost Operating | DT35: =$DR3&DT4 -> Community Facilities - Capital and O&M CostO&M Cost Maintenance | DU35: =$DU3&DU4 -> Transit - Capital and O&M CostCapital Cost | DV35: =$DU3&DV4 -> Transit - Capital and O&M CostO&M Cost Operating | DW35: =$DU3&DW4 -> Transit - Capital and O&M CostO&M Cost Maintenance | DX35: =$DX3&DX4 -> Fire Protection - Capital and O&M CostCapital Cost | DY35: =$DX3&DY4 -> Fire Protection - Capital and O&M CostO&M Cost Operating | DZ35: =$DX3&DZ4 -> Fire Protection - Capital and O&M CostO&M Cost Maintenance | EA35: =$EA3&EA4 -> Police Services - Capital and O&M CostCapital Cost | EB35: =$EA3&EB4 -> Police Services - Capital and O&M CostO&M Cost Operating | EC35: =$EA3&EC4 -> Police Services - Capital and O&M CostO&M Cost Maintenance | ED35: =$ED3&ED4 -> Waste Management - Capital and O&M CostCapital Cost - Single Detached | EE35: Waste Management - Capital and O&M CostCapital Cost - Semi Detached | EF35: Waste Management - Capital and O&M CostCapital Cost - Rowhouse/Townhouse/Duplex | EG35: Waste Management - Capital and O&M CostCapital Cost - Low Rise | EH35: Waste Management - Capital and O&M CostCapital Cost - High Rise | EI35: Waste Management - Capital and O&M CostOperating - Single Detached | EJ35: Waste Management - Capital and O&M CostMaintenance - Single Detached | EK35: Waste Management - Capital and O&M CostOperating - Semi Detached | EL35: Waste Management - Capital and O&M CostMaintenance - Semi Detached | EM35: Waste Management - Capital and O&M CostOperating - Rowhouse/Townhouse/Duplex | EN35: Waste Management - Capital and O&M CostMaintenance - Rowhouse/Townhouse/Duplex | EO35: Waste Management - Capital and O&M CostOperating - Low Rise | EP35: Waste Management - Capital and O&M CostMaintenance - Low Rise | EQ35: Waste Management - Capital and O&M CostOperating - High Rise | ER35: Waste Management - Capital and O&M CostMaintenance - High Rise | ES35: =$ES3&ES4 -> Vehicle CostsAnnual Vehicle Ownership Cost | ET35: =$ES3&ET4 -> Vehicle CostsO&M Driving Cost Operating | EU35: =$ES3&EU4 -> Vehicle CostsO&M Driving Cost Maintenance | EV35: =$EV3&EV4 -> Home HeatingAnnual Home Energy Costs Single Detached | EW35: =$EV3&EW4 -> Home HeatingAnnual Home Energy Costs Semi-detached/Rowhouses | EX35: =$EV3&EX4 -> Home HeatingAnnual Home Energy Costs Apartments | EY35: =$EY3&EY4 -> Climate Change and Air PollutionAverage Fuel Efficiency for Passenger Vehicles | EZ35: Climate Change and Air PollutionGHG Emissions Factor | FA35: Climate Change and Air PollutionCost per tonne GHG | FB35: Climate Change and Air PollutionEmissions Factor VOCs | FC35: Climate Change and Air PollutionCost per Tonne VOCs | FD35: Climate Change and Air PollutionEmissions Factor CO | FE35: Climate Change and Air PollutionCost per Tonne CO | FF35: Climate Change and Air PollutionEmissions Factor NOx | FG35: Climate Change and Air PollutionCost per Tonne NOx | FH35: Climate Change and Air PollutionEmissions Factor SOx | FI35: Climate Change and Air PollutionCost per Tonne Sox | FJ35: Climate Change and Air PollutionEmissions Factor PM10 | FK35: Climate Change and Air PollutionCost per Tonne PM10 | FL35: =$FL3&FL4 -> Motor Vehicle CollisionsFatal Collision Rate per VKT | FM35: Motor Vehicle CollisionsFatal Cost per Collision | FN35: Motor Vehicle CollisionsInjury Collision Rate per VKT | FO35: Motor Vehicle CollisionsInjury Cost per Collision | FP35: Motor Vehicle CollisionsProperty Damage Collision Rate per VKT | FQ35: Motor Vehicle CollisionsProperty Damage Cost per Collision | FR35: =FR3&FR4 -> WASTEWATER TREATMENTReplacement / Capital Value of Existing Assets | FS35: =$FR$3&FS4 -> WASTEWATER TREATMENTExisting Households Serviced | FT35: =$FR$3&FT4 -> WASTEWATER TREATMENTCapital Value of New / Expansions Triggered | FU35: =$FU$3&FU4 -> POTABLE WATER TREATMENTReplacement / Capital Value of Existing Assets | FV35: =$FU$3&FV4 -> POTABLE WATER TREATMENTExisting Households Serviced | FW35: =$FU$3&FW4 -> POTABLE WATER TREATMENTCapital Value of New / Expansions Triggered | FX35: =$FX$3&FX4 -> PARKS & OPEN SPACEReplacement / Capital Value of Existing Assets | FY35: =$FX$3&FY4 -> PARKS & OPEN SPACEExisting Households Serviced | FZ35: =$FX$3&FZ4 -> PARKS & OPEN SPACECapital Value of New / Expansions Triggered | GA35: =$GA$3&GA4 -> COMMUNITY FACILITIESReplacement / Capital Value of Existing Assets | GB35: =$GA$3&GB4 -> COMMUNITY FACILITIESExisting Households Serviced | GC35: =$GA$3&GC4 -> COMMUNITY FACILITIESCapital Value of New / Expansions Triggered | GD35: =$GD$3&GD4 -> FIRE PROTECTIONReplacement / Capital Value of Existing Assets | GE35: =$GD$3&GE4 -> FIRE PROTECTIONExisting Households Serviced | GF35: =$GD$3&GF4 -> FIRE PROTECTIONCapital Value of New / Expansions Triggered | GG35: =$GG$3&GG4 -> POLICE SERVICEReplacement / Capital Value of Existing Assets | GH35: =$GG$3&GH4 -> POLICE SERVICEExisting Households Serviced | GI35: =$GG$3&GI4 -> POLICE SERVICECapital Value of New / Expansions Triggered | GJ35: =$GJ3&GJ4 -> ROAD ALLOWANCE ASSUMPTIONSNameType 1 | GK35: ROAD ALLOWANCE ASSUMPTIONSCategoryType 1 | GL35: ROAD ALLOWANCE ASSUMPTIONSNameType 2 | GM35: ROAD ALLOWANCE ASSUMPTIONSCategoryType 2 | GN35: ROAD ALLOWANCE ASSUMPTIONSNameType 3 | GO35: ROAD ALLOWANCE ASSUMPTIONSCategoryType 3 | GP35: ROAD ALLOWANCE ASSUMPTIONSNameType 4 | GQ35: ROAD ALLOWANCE ASSUMPTIONSCategoryType 4 | GR35: ROAD ALLOWANCE ASSUMPTIONSNameType 5 | GS35: ROAD ALLOWANCE ASSUMPTIONSCategoryType 5 | GT35: ROAD ALLOWANCE ASSUMPTIONSNameType 6 | GU35: ROAD ALLOWANCE ASSUMPTIONSCategoryType 6 | GV35: ROAD ALLOWANCE ASSUMPTIONSNameType 7 | GW35: ROAD ALLOWANCE ASSUMPTIONSCategoryType 7 | GX35: ROAD ALLOWANCE ASSUMPTIONSRight-of-way Width | GY35: ROAD ALLOWANCE ASSUMPTIONSPavement Width (Gutter to Gutter) | GZ35: ROAD ALLOWANCE ASSUMPTIONSTop Asphalt thickness | HA35: ROAD ALLOWANCE ASSUMPTIONSBase Asphalt thickness | HB35: ROAD ALLOWANCE ASSUMPTIONSGranular "A" Road Base Thickness | HC35: ROAD ALLOWANCE ASSUMPTIONSGranular "B" Road Sub-Base Thickness | HD35: ROAD ALLOWANCE ASSUMPTIONSConc. sidewalk, total width | HE35: ROAD ALLOWANCE ASSUMPTIONSUnit Paver / Asphalt sidewalk, total width | HF35: ROAD ALLOWANCE ASSUMPTIONSCurb/Gutters - both sides or one? | HG35: ROAD ALLOWANCE ASSUMPTIONSAverage Stop and Street Sign Spacing | HH35: ROAD ALLOWANCE ASSUMPTIONSStreetlight Spacing | HI35: ROAD ALLOWANCE ASSUMPTIONSStreetlights - both sides or one? | HJ35: ROAD ALLOWANCE ASSUMPTIONSStreet Tree Spacing on Both Sides | HK35: =$GJ2&$HK3&HK4 -> ROAD COSTSOther costs not covered in above categoriesType 1 | HL35: ROAD COSTSOther costs not covered in above categoriesType 2 | HM35: ROAD COSTSOther costs not covered in above categoriesType 3 | HN35: ROAD COSTSOther costs not covered in above categoriesType 4 | HO35: ROAD COSTSOther costs not covered in above categoriesType 5 | HP35: ROAD COSTSOther costs not covered in above categoriesType 6 | HQ35: ROAD COSTSOther costs not covered in above categoriesType 7 | HR35: =$HR3&HR4 -> Development ChargesSingle Detached | HS35: =$HR3&HS4 -> Development ChargesSemi Detached | HT35: =$HR3&HT4 -> Development ChargesRowhouse/Townhouse/Duplex | HU35: =$HR3&HU4 -> Development ChargesLow Rise | HV35: =$HR3&HV4 -> Development ChargesHigh Rise | HW35: =$HW3&HW4 -> Property TaxesSingle Detached | HX35: Property TaxesSemi Detached | HY35: Property TaxesRowhouse/Townhouse/Duplex | HZ35: Property TaxesLow Rise | IA35: Property TaxesHigh Rise | IB35: Property TaxesProperty Tax Mil Rate (‰) | IC35: =$IC3&IC4 -> User FeesWater and Sewers | ID35: =$IC3&ID4 -> User FeesOther | IE35: =$IC3&IE4 -> User FeesTransit operating Cost Recovery | IF35: =$IF3&IF4 -> Non-Residential RevenuesTotal | IG35: =IG3&IG4 -> RESIDENTIAL COST ALLOCATION% Cost Attributed to Residential Development: | IH35: =$IH3&IH4 -> Internal Roads Allocation CAPITAL Cost Municipal | II35: Internal Roads Allocation CAPITAL Cost Developer | IJ35: Internal Roads Allocation CAPITAL Cost User* | IK35: Internal Roads Allocation CAPITAL Cost Other | IL35: Internal Roads Allocation O&M Cost Municipal | IM35: Internal Roads Allocation O&M Cost Developer | IN35: Internal Roads Allocation O&M Cost User* | IO35: Internal Roads Allocation O&M Cost Other | IP35: =$IP3&IP4 -> External Roads Allocation CAPITAL Cost Municipal | IQ35: External Roads Allocation CAPITAL Cost Developer | IR35: External Roads Allocation CAPITAL Cost User* | IS35: External Roads Allocation CAPITAL Cost Other | IT35: External Roads Allocation O&M Cost Municipal | IU35: External Roads Allocation O&M Cost Developer | IV35: External Roads Allocation O&M Cost User* | IW35: External Roads Allocation O&M Cost Other | IX35: =$IX3&IX4 -> Potable Water Distribution Network (local)Allocation CAPITAL Cost Municipal | IY35: Potable Water Distribution Network (local)Allocation CAPITAL Cost Developer | IZ35: Potable Water Distribution Network (local)Allocation CAPITAL Cost User* | JA35: Potable Water Distribution Network (local)Allocation CAPITAL Cost Other | JB35: Potable Water Distribution Network (local)Allocation O&M Cost Municipal | JC35: Potable Water Distribution Network (local)Allocation O&M Cost Developer | JD35: Potable Water Distribution Network (local)Allocation O&M Cost User* | JE35: Potable Water Distribution Network (local)Allocation O&M Cost Other | JF35: =$JF3&JF4 -> Potable Water Treatment SystemAllocation CAPITAL Cost Municipal | JG35: Potable Water Treatment SystemAllocation CAPITAL Cost Developer | JH35: Potable Water Treatment SystemAllocation CAPITAL Cost User* | JI35: Potable Water Treatment SystemAllocation CAPITAL Cost Other | JJ35: Potable Water Treatment SystemAllocation O&M Cost Municipal | JK35: Potable Water Treatment SystemAllocation O&M Cost Developer | JL35: Potable Water Treatment SystemAllocation O&M Cost User* | JM35: Potable Water Treatment SystemAllocation O&M Cost Other | JN35: =$JN3&JN4 -> Potable Water Distribution Network (regional trunks)Allocation CAPITAL Cost Municipal | JO35: Potable Water Distribution Network (regional trunks)Allocation CAPITAL Cost Developer | JP35: Potable Water Distribution Network (regional trunks)Allocation CAPITAL Cost User* | JQ35: Potable Water Distribution Network (regional trunks)Allocation CAPITAL Cost Other | JR35: Potable Water Distribution Network (regional trunks)Allocation O&M Cost Municipal | JS35: Potable Water Distribution Network (regional trunks)Allocation O&M Cost Developer | JT35: Potable Water Distribution Network (regional trunks)Allocation O&M Cost User* | JU35: Potable Water Distribution Network (regional trunks)Allocation O&M Cost Other | JV35: =$JV3&JV4 -> Sanitary Sewer Collection Network (local)Allocation CAPITAL Cost Municipal | JW35: Sanitary Sewer Collection Network (local)Allocation CAPITAL Cost Developer | JX35: Sanitary Sewer Collection Network (local)Allocation CAPITAL Cost User* | JY35: Sanitary Sewer Collection Network (local)Allocation CAPITAL Cost Other | JZ35: Sanitary Sewer Collection Network (local)Allocation O&M Cost Municipal | KA35: Sanitary Sewer Collection Network (local)Allocation O&M Cost Developer | KB35: Sanitary Sewer Collection Network (local)Allocation O&M Cost User* | KC35: Sanitary Sewer Collection Network (local)Allocation O&M Cost Other | KD35: =$KD3&KD4 -> Sanitary Sewer Treatment SystemAllocation CAPITAL Cost Municipal | KE35: Sanitary Sewer Treatment SystemAllocation CAPITAL Cost Developer | KF35: Sanitary Sewer Treatment SystemAllocation CAPITAL Cost User* | KG35: Sanitary Sewer Treatment SystemAllocation CAPITAL Cost Other | KH35: Sanitary Sewer Treatment SystemAllocation O&M Cost Municipal | KI35: Sanitary Sewer Treatment SystemAllocation O&M Cost Developer | KJ35: Sanitary Sewer Treatment SystemAllocation O&M Cost User* | KK35: Sanitary Sewer Treatment SystemAllocation O&M Cost Other | KL35: =$KL3&KL4 -> Sanitary Sewer Collection Network (regional trunks)Allocation CAPITAL Cost Municipal | KM35: Sanitary Sewer Collection Network (regional trunks)Allocation CAPITAL Cost Developer | KN35: Sanitary Sewer Collection Network (regional trunks)Allocation CAPITAL Cost User* | KO35: Sanitary Sewer Collection Network (regional trunks)Allocation CAPITAL Cost Other | KP35: Sanitary Sewer Collection Network (regional trunks)Allocation O&M Cost Municipal | KQ35: Sanitary Sewer Collection Network (regional trunks)Allocation O&M Cost Developer | KR35: Sanitary Sewer Collection Network (regional trunks)Allocation O&M Cost User* | KS35: Sanitary Sewer Collection Network (regional trunks)Allocation O&M Cost Other | KT35: =$KT3&KT4 -> Storm Sewer Collection Network (local)Allocation CAPITAL Cost Municipal | KU35: Storm Sewer Collection Network (local)Allocation CAPITAL Cost Developer | KV35: Storm Sewer Collection Network (local)Allocation CAPITAL Cost User* | KW35: Storm Sewer Collection Network (local)Allocation CAPITAL Cost Other | KX35: Storm Sewer Collection Network (local)Allocation O&M Cost Municipal | KY35: Storm Sewer Collection Network (local)Allocation O&M Cost Developer | KZ35: Storm Sewer Collection Network (local)Allocation O&M Cost User* | LA35: Storm Sewer Collection Network (local)Allocation O&M Cost Other | LB35: =$LB3&LB4 -> Storm Water PondsAllocation CAPITAL Cost Municipal | LC35: Storm Water PondsAllocation CAPITAL Cost Developer | LD35: Storm Water PondsAllocation CAPITAL Cost User* | LE35: Storm Water PondsAllocation CAPITAL Cost Other | LF35: Storm Water PondsAllocation O&M Cost Municipal | LG35: Storm Water PondsAllocation O&M Cost Developer | LH35: Storm Water PondsAllocation O&M Cost User* | LI35: Storm Water PondsAllocation O&M Cost Other | LJ35: =$LJ3&LJ4 -> Storm Sewer Collection Network (regional trunks)Allocation CAPITAL Cost Municipal | LK35: Storm Sewer Collection Network (regional trunks)Allocation CAPITAL Cost Developer | LL35: Storm Sewer Collection Network (regional trunks)Allocation CAPITAL Cost User* | LM35: Storm Sewer Collection Network (regional trunks)Allocation CAPITAL Cost Other | LN35: Storm Sewer Collection Network (regional trunks)Allocation O&M Cost Municipal | LO35: Storm Sewer Collection Network (regional trunks)Allocation O&M Cost Developer | LP35: Storm Sewer Collection Network (regional trunks)Allocation O&M Cost User* | LQ35: Storm Sewer Collection Network (regional trunks)Allocation O&M Cost Other | LR35: =$LR3&LR4 -> Schools Allocation CAPITAL Cost Municipal | LS35: Schools Allocation CAPITAL Cost Developer | LT35: Schools Allocation CAPITAL Cost User* | LU35: Schools Allocation CAPITAL Cost Other | LV35: Schools Allocation O&M Cost Municipal | LW35: Schools Allocation O&M Cost Developer | LX35: Schools Allocation O&M Cost User* | LY35: Schools Allocation O&M Cost Other | LZ35: =$LZ3&LZ4 -> Parks and Open SpaceAllocation CAPITAL Cost Municipal | MA35: Parks and Open SpaceAllocation CAPITAL Cost Developer | MB35: Parks and Open SpaceAllocation CAPITAL Cost User* | MC35: Parks and Open SpaceAllocation CAPITAL Cost Other | MD35: Parks and Open SpaceAllocation O&M Cost Municipal | ME35: Parks and Open SpaceAllocation O&M Cost Developer | MF35: Parks and Open SpaceAllocation O&M Cost User* | MG35: Parks and Open SpaceAllocation O&M Cost Other | MH35: =$MH3&MH4 -> Community FacilitiesAllocation CAPITAL Cost Municipal | MI35: Community FacilitiesAllocation CAPITAL Cost Developer | MJ35: Community FacilitiesAllocation CAPITAL Cost User* | MK35: Community FacilitiesAllocation CAPITAL Cost Other | ML35: Community FacilitiesAllocation O&M Cost Municipal | MM35: Community FacilitiesAllocation O&M Cost Developer | MN35: Community FacilitiesAllocation O&M Cost User* | MO35: Community FacilitiesAllocation O&M Cost Other | MP35: =$MP3&MP4 -> Bus Transit Allocation CAPITAL Cost Municipal | MQ35: Bus Transit Allocation CAPITAL Cost Developer | MR35: Bus Transit Allocation CAPITAL Cost User* | MS35: Bus Transit Allocation CAPITAL Cost Other | MT35: Bus Transit Allocation O&M Cost Municipal | MU35: Bus Transit Allocation O&M Cost Developer | MV35: Bus Transit Allocation O&M Cost User* | MW35: Bus Transit Allocation O&M Cost Other | MX35: =$MX3&MX4 -> School Transit Allocation CAPITAL Cost Municipal | MY35: School Transit Allocation CAPITAL Cost Developer | MZ35: School Transit Allocation CAPITAL Cost User* | NA35: School Transit Allocation CAPITAL Cost Other | NB35: School Transit Allocation O&M Cost Municipal | NC35: School Transit Allocation O&M Cost Developer | ND35: School Transit Allocation O&M Cost User* | NE35: School Transit Allocation O&M Cost Other | NF35: =$NF3&NF4 -> Fire Service Allocation CAPITAL Cost Municipal | NG35: Fire Service Allocation CAPITAL Cost Developer | NH35: Fire Service Allocation CAPITAL Cost User* | NI35: Fire Service Allocation CAPITAL Cost Other | NJ35: Fire Service Allocation O&M Cost Municipal | NK35: Fire Service Allocation O&M Cost Developer | NL35: Fire Service Allocation O&M Cost User* | NM35: Fire Service Allocation O&M Cost Other | NN35: =$NN3&NN4 -> Police Service Allocation CAPITAL Cost Municipal | NO35: Police Service Allocation CAPITAL Cost Developer | NP35: Police Service Allocation CAPITAL Cost User* | NQ35: Police Service Allocation CAPITAL Cost Other | NR35: Police Service Allocation O&M Cost Municipal | NS35: Police Service Allocation O&M Cost Developer | NT35: Police Service Allocation O&M Cost User* | NU35: Police Service Allocation O&M Cost Other | NV35: =$NV3&NV4 -> Waste Management Service Allocation CAPITAL Cost Municipal | NW35: Waste Management Service Allocation CAPITAL Cost Developer | NX35: Waste Management Service Allocation CAPITAL Cost User* | NY35: Waste Management Service Allocation CAPITAL Cost Other | NZ35: Waste Management Service Allocation O&M Cost Municipal | OA35: Waste Management Service Allocation O&M Cost Developer | OB35: Waste Management Service Allocation O&M Cost User* | OC35: Waste Management Service Allocation O&M Cost Other | OD35: =$OD3&OD4 -> Existing InfrastructureInternalType 1 Public LanewayPercentage in place | OE35: Existing InfrastructureInternalType 1 Public LanewayAge of Existing | OF35: Existing InfrastructureInternalType 2 Two-lane localPercentage in place | OG35: Existing InfrastructureInternalType 2 Two-lane localAge of Existing | OH35: Existing InfrastructureInternalType 3 Two-lane localPercentage in place | OI35: Existing InfrastructureInternalType 3 Two-lane localAge of Existing | OJ35: Existing InfrastructureInternalType 4 Two-lane collectorPercentage in place | OK35: Existing InfrastructureInternalType 4 Two-lane collectorAge of Existing | OL35: Existing InfrastructureInternalType 5 Four-lane collectorPercentage in place | OM35: Existing InfrastructureInternalType 5 Four-lane collectorAge of Existing | ON35: Existing InfrastructureInternalType 6 Four-lane ArterialPercentage in place | OO35: Existing InfrastructureInternalType 6 Four-lane ArterialAge of Existing | OP35: Existing InfrastructureInternalType 7 User DefinedPercentage in place | OQ35: Existing InfrastructureInternalType 7 User DefinedAge of Existing | OR35: Existing InfrastructureExternalType 6 Four-lane ArterialPercentage in place | OS35: Existing InfrastructureExternalType 6 Four-lane ArterialAge of Existing | OT35: Existing InfrastructureExternalType 3 Two-lane localPercentage in place | OU35: Existing InfrastructureExternalType 3 Two-lane localAge of Existing | OV35: Existing InfrastructurePotable Water Distribution Network (local)Percentage in place | OW35: Existing InfrastructurePotable Water Distribution Network (local)Age of Existing | OX35: Existing InfrastructurePotable Water Treatment SystemPercentage in place | OY35: Existing InfrastructurePotable Water Treatment SystemAge of Existing | OZ35: Existing InfrastructurePotable Water Distribution Network (regional trunks)Percentage in place | PA35: Existing InfrastructurePotable Water Distribution Network (regional trunks)Age of Existing | PB35: Existing InfrastructureSanitary Sewer Collection Network (local)Percentage in place | PC35: Existing InfrastructureSanitary Sewer Collection Network (local)Age of Existing | PD35: Existing InfrastructureSanitary Sewer Treatment SystemPercentage in place | PE35: Existing InfrastructureSanitary Sewer Treatment SystemAge of Existing | PF35: Existing InfrastructureSanitary Sewer Collection Network (regional trunks)Percentage in place | PG35: Existing InfrastructureSanitary Sewer Collection Network (regional trunks)Age of Existing | PH35: Existing InfrastructureStorm Sewer Collection Network (local)Percentage in place | PI35: Existing InfrastructureStorm Sewer Collection Network (local)Age of Existing | PJ35: =$OD3&PJ4 -> Existing InfrastructureStorm Water PondsPercentage in place | PK35: Existing InfrastructureStorm Water PondsAge of Existing | PL35: Existing InfrastructureStorm Sewer Collection Network (regional trunks)Percentage in place | PM35: Existing InfrastructureStorm Sewer Collection Network (regional trunks)Age of Existing | PN35: Existing InfrastructureWaste ManagementPercentage in place | PO35: Existing InfrastructureWaste ManagementAge of Existing | PP35: Existing InfrastructureSchool ConstructionPercentage in place | PQ35: Existing InfrastructureSchool ConstructionAge of Existing | PR35: Existing InfrastructureParks and Open SpacePercentage in place | PS35: Existing InfrastructureParks and Open SpaceAge of Existing | PT35: Existing InfrastructureCommunity FacilitiesPercentage in place | PU35: Existing InfrastructureCommunity FacilitiesAge of Existing | PV35: Existing InfrastructureTransit ServicesPercentage in place | PW35: Existing InfrastructureTransit ServicesAge of Existing | PX35: Existing InfrastructureFire ServicesPercentage in place | PY35: Existing InfrastructureFire ServicesAge of Existing | PZ35: Existing InfrastructurePolice ServicesPercentage in place | QA35: Existing InfrastructurePolice ServicesAge of Existing | QB35: =$QB3&QB4 -> Infrastructure ReplacementInternalType 1 Public LanewayYears for Replacement | QC35: Infrastructure ReplacementInternalType 1 Public LanewayReplacement Cost % | QD35: Infrastructure ReplacementInternalType 2 Two-lane localYears for Replacement | QE35: Infrastructure ReplacementInternalType 2 Two-lane localReplacement Cost % | QF35: Infrastructure ReplacementInternalType 3 Two-lane localYears for Replacement | QG35: Infrastructure ReplacementInternalType 3 Two-lane localReplacement Cost % | QH35: Infrastructure ReplacementInternalType 4 Two-lane collectorYears for Replacement | QI35: Infrastructure ReplacementInternalType 4 Two-lane collectorReplacement Cost % | QJ35: Infrastructure ReplacementInternalType 5 Four-lane collectorYears for Replacement | QK35: Infrastructure ReplacementInternalType 5 Four-lane collectorReplacement Cost % | QL35: Infrastructure ReplacementInternalType 6 Four-lane ArterialYears for Replacement | QM35: Infrastructure ReplacementInternalType 6 Four-lane ArterialReplacement Cost % | QN35: Infrastructure ReplacementInternalType 7 User DefinedYears for Replacement | QO35: Infrastructure ReplacementInternalType 7 User DefinedReplacement Cost % | QP35: Infrastructure ReplacementExternalType 6 Four-lane ArterialYears for Replacement | QQ35: Infrastructure ReplacementExternalType 6 Four-lane ArterialReplacement Cost % | QR35: Infrastructure ReplacementExternalType 3 Two-lane localYears for Replacement | QS35: Infrastructure ReplacementExternalType 3 Two-lane localReplacement Cost % | QT35: Infrastructure ReplacementPotable Water Distribution NetworkYears for Replacement | QU35: Infrastructure ReplacementPotable Water Distribution NetworkReplacement Cost % | QV35: Infrastructure ReplacementPotable Water Treatment SystemYears for Replacement | QW35: Infrastructure ReplacementPotable Water Treatment SystemReplacement Cost % | QX35: Infrastructure ReplacementSanitary Sewer Collection NetworkYears for Replacement | QY35: Infrastructure ReplacementSanitary Sewer Collection NetworkReplacement Cost % | QZ35: Infrastructure ReplacementSanitary Sewer Treatment SystemYears for Replacement | RA35: Infrastructure ReplacementSanitary Sewer Treatment SystemReplacement Cost % | RB35: Infrastructure ReplacementStorm Sewer Collection NetworkYears for Replacement | RC35: Infrastructure ReplacementStorm Sewer Collection NetworkReplacement Cost % | RD35: Infrastructure ReplacementStorm Water PondsYears for Replacement | RE35: Infrastructure ReplacementStorm Water PondsReplacement Cost % | RF35: Infrastructure ReplacementWaste ManagementYears for Replacement | RG35: Infrastructure ReplacementWaste ManagementReplacement Cost % | RH35: Infrastructure ReplacementSchool Construction and OperationYears for Replacement | RI35: Infrastructure ReplacementSchool Construction and OperationReplacement Cost % | RJ35: Infrastructure ReplacementParks and Open SpaceYears for Replacement | RK35: Infrastructure ReplacementParks and Open SpaceReplacement Cost % | RL35: Infrastructure ReplacementCommunity FacilitiesYears for Replacement | RM35: Infrastructure ReplacementCommunity FacilitiesReplacement Cost % | RN35: Infrastructure ReplacementTransit ServicesYears for Replacement | RO35: Infrastructure ReplacementTransit ServicesReplacement Cost % | RP35: Infrastructure ReplacementFire ServicesYears for Replacement | RQ35: Infrastructure ReplacementFire ServicesReplacement Cost % | RR35: Infrastructure ReplacementPolice ServicesYears for Replacement | RS35: Infrastructure ReplacementPolice ServicesReplacement Cost % | RT35: =$RT3&RT4 -> Initial Capital Costs (hh)Potential Community Services | RU35: =$RT3&RU4 -> Initial Capital Costs (hh)Schools | RV35: =$RT3&RV4 -> Initial Capital Costs (hh)User Defined Costs | RW35: =$RW3&RW4 -> Annual O&M Costs (hh)Potential Community Services | RX35: =$RW3&RX4 -> Annual O&M Costs (hh)Schools | RY35: =$RW3&RY4 -> Annual O&M Costs (hh)User Defined Costs | RZ35: =$RZ3&RZ4 -> Lifecycle Costs (hh)Potential Community Services | SA35: =$RZ3&SA4 -> Lifecycle Costs (hh)Schools | SB35: =$RZ3&SB4 -> Lifecycle Costs (hh)User Defined Costs | SC35: =$SC3&SC4 -> Lifecycle Costs and Revenues (hh)Municipal Portion of Residential Costs (hh) | SD35: =$SC3&SD4 -> Lifecycle Costs and Revenues (hh)Municipal Portion of Non-Residential Costs (hh) | SE35: =$SC3&SE4 -> Lifecycle Costs and Revenues (hh)Municipal Portion of Residential Revenues (hh) | SF35: =$SC3&SF4 -> Lifecycle Costs and Revenues (hh)Municipal Portion of Non-Residential Revenues (hh) | SG35: =$SG3&SG4 -> Annual Private Costs (hh)Driving Costs | SH35: =$SG3&SH4 -> Annual Private Costs (hh)Transit Fares | SI35: =$SG3&SI4 -> Annual Private Costs (hh)Home Heating Costs | SJ35: =$SJ3&SJ4 -> Annual External (hh)Motor Vehicle Collisions | SK35: =$SJ3&SK4 -> Annual External (hh)Air Pollution | SL35: =$SJ3&SL4 -> Annual External (hh)Climate Change | SM35: =$SM$3&SM4 -> CostsInitial Capital Costs | SN35: =$SM$3&SN4 -> CostsAnnual O&M Costs | SO35: =$SM$3&SO4 -> CostsYears for Replacement | SP35: =$SP$3&SP4 -> RevenuesAnnual Revenues | SQ35: =$SQ$3&SQ4 -> Vehicle CostsO&M Driving Cost Total O&M | SR35: =$SR$3&SR4 -> Typical CoverageSingle Detached | SS35: =$SR$3&SS4 -> Typical CoverageSemi Detached | ST35: =$SR$3&ST4 -> Typical CoverageRowhouse/Townhouse/Duplex | SU35: =$SR$3&SU4 -> Typical CoverageLow Rise | SV35: =$SR$3&SV4 -> Typical CoverageHigh Rise | SW35: =$SW$3&SW4 -> CV USER COMMENTS1 | SX35: CV USER COMMENTS2 | SY35: CV USER COMMENTS3 | SZ35: CV USER COMMENTS4 | TA35: CV USER COMMENTS5 | TB35: CV USER COMMENTS6 | TC35: CV USER COMMENTS7 | TD35: CV USER COMMENTS8 | TE35: CV USER COMMENTS9 | TF35: CV USER COMMENTS10 | TG35: =$TG$3&TG4 -> DC USER COMMENTS1 | TH35: DC USER COMMENTS2 | TI35: DC USER COMMENTS3 | TJ35: DC USER COMMENTS4 | TK35: DC USER COMMENTS5 | TL35: DC USER COMMENTS6 | TM35: DC USER COMMENTS7 | TN35: DC USER COMMENTS8 | TO35: DC USER COMMENTS9 | TP35: DC USER COMMENTS10 | TQ35: =$TQ$3&TQ4 -> UD USER COMMENTS1 | TR35: UD USER COMMENTS2 | TS35: UD USER COMMENTS3 | TT35: UD USER COMMENTS4 | TU35: UD USER COMMENTS5 | TV35: UD USER COMMENTS6 | TW35: UD USER COMMENTS7 | TX35: UD USER COMMENTS8 | TY35: UD USER COMMENTS9 | TZ35: UD USER COMMENTS10 | UA35: =$UA$3&UA4 -> RV USER COMMENTS1 | UB35: =$UA$3&UB4 -> RV USER COMMENTS2 | UC35: =$UA$3&UC4 -> RV USER COMMENTS3 | UD35: =$UA$3&UD4 -> RV USER COMMENTS4 | UE35: =$UA$3&UE4 -> RV USER COMMENTS5 | UF35: =$UF$3&UF4 -> A USER COMMENTS1 | UG35: =$UF$3&UG4 -> A USER COMMENTS2 | UH35: =$UF$3&UH4 -> A USER COMMENTS3 | UI35: =$UF$3&UI4 -> A USER COMMENTS4 | UJ35: =$UF$3&UJ4 -> A USER COMMENTS5 | UK35: =$UK$3&UK4 -> CS USER COMMENTS1 | UL35: =$UK$3&UL4 -> CS USER COMMENTS2 | UM35: =$UK$3&UM4 -> CS USER COMMENTS3 | UN35: =$UK$3&UN4 -> CS USER COMMENTS4 | UO35: =$UK$3&UO4 -> CS USER COMMENTS5 | UP35: =$UP$3&UP4 -> RC USER COMMENTS1 | UQ35: =$UP$3&UQ4 -> RC USER COMMENTS2 | UR35: =$UP$3&UR4 -> RC USER COMMENTS3 | US35: =$UP$3&US4 -> RC USER COMMENTS4 | UT35: =$UP$3&UT4 -> RC USER COMMENTS5
I36: =VLOOKUP($I$2,Tabs,2,FALSE)&"!" -> DC! | J36: DC! | K36: DC! | L36: DC! | M36: DC! | N36: DC! | O36: =VLOOKUP($O$2,Tabs,2,FALSE)&"!" -> D! | P36: =VLOOKUP($O$2,Tabs,2,FALSE)&"!" -> D! | Q36: =VLOOKUP($O$2,Tabs,2,FALSE)&"!" -> D! | R36: =VLOOKUP($O$2,Tabs,2,FALSE)&"!" -> D! | S36: =VLOOKUP($O$2,Tabs,2,FALSE)&"!" -> D! | T36: =VLOOKUP($T$2,Tabs,2,FALSE)&"!" -> DC! | U36: DC! | V36: DC! | W36: DC! | X36: DC! | Y36: DC! | Z36: DC! | AA36: DC! | AB36: DC! | AC36: DC! | AD36: DC! | AE36: DC! | AF36: DC! | AG36: DC! | AH36: DC! | AI36: DC! | AJ36: DC! | AK36: DC! | AL36: DC! | AM36: DC! | AN36: DC! | AO36: DC! | AP36: DC! | AQ36: DC! | AR36: DC! | AS36: DC! | AT36: DC! | AU36: DC! | AV36: DC! | AW36: DC! | AX36: DC! | AY36: DC! | AZ36: DC! | BA36: DC! | BB36: DC! | BC36: DC! | BD36: DC! | BE36: DC! | BF36: =VLOOKUP($BF$2,Tabs,2,FALSE)&"!" -> CV! | BG36: CV! | BH36: CV! | BI36: CV! | BJ36: CV! | BK36: CV! | BL36: CV! | BM36: CV! | BN36: CV! | BO36: CV! | BP36: CV! | BQ36: CV! | BR36: CV! | BS36: CV! | BT36: CV! | BU36: CV! | BV36: CV! | BW36: CV! | BX36: CV! | BY36: CV! | BZ36: CV! | CA36: CV! | CB36: CV! | CC36: CV! | CD36: CV! | CE36: CV! | CF36: =VLOOKUP($BF$2,Tabs,2,FALSE)&"!" -> CV! | CG36: CV! | CH36: CV! | CI36: CV! | CJ36: CV! | CK36: CV! | CL36: CV! | CM36: CV! | CN36: CV! | CO36: CV! | CP36: CV! | CQ36: CV! | CR36: CV! | CS36: CV! | CT36: CV! | CU36: CV! | CV36: CV! | CW36: CV! | CX36: CV! | CY36: CV! | CZ36: CV! | DA36: CV! | DB36: CV! | DC36: CV! | DD36: CV! | DE36: CV! | DF36: CV! | DG36: CV! | DH36: CV! | DI36: CV! | DJ36: CV! | DK36: CV! | DL36: CV! | DM36: CV! | DN36: CV! | DO36: CV! | DP36: CV! | DQ36: CV! | DR36: CV! | DS36: CV! | DT36: CV! | DU36: CV! | DV36: CV! | DW36: CV! | DX36: CV! | DY36: CV! | DZ36: CV! | EA36: CV! | EB36: CV! | EC36: CV! | ED36: CV! | EE36: CV! | EF36: CV! | EG36: CV! | EH36: CV! | EI36: CV! | EJ36: CV! | EK36: CV! | EL36: CV! | EM36: CV! | EN36: CV! | EO36: CV! | EP36: CV! | EQ36: CV! | ER36: CV! | ES36: CV! | ET36: CV! | EU36: CV! | EV36: CV! | EW36: CV! | EX36: CV! | EY36: CV! | EZ36: =VLOOKUP($BF$2,Tabs,2,FALSE)&"!" -> CV! | FA36: CV! | FB36: CV! | FC36: CV! | FD36: CV! | FE36: CV! | FF36: CV! | FG36: CV! | FH36: CV! | FI36: CV! | FJ36: CV! | FK36: CV! | FL36: CV! | FM36: CV! | FN36: CV! | FO36: CV! | FP36: CV! | FQ36: CV! | FR36: =VLOOKUP($FR$2,Tabs,2,FALSE)&"!" -> HC! | FS36: HC! | FT36: HC! | FU36: HC! | FV36: HC! | FW36: HC! | FX36: HC! | FY36: HC! | FZ36: HC! | GA36: HC! | GB36: HC! | GC36: HC! | GD36: HC! | GE36: HC! | GF36: HC! | GG36: HC! | GH36: HC! | GI36: HC! | GJ36: =VLOOKUP($GJ$2,Tabs,2,FALSE)&"!" -> RC! | GK36: RC! | GL36: RC! | GM36: RC! | GN36: RC! | GO36: RC! | GP36: RC! | GQ36: RC! | GR36: RC! | GS36: RC! | GT36: RC! | GU36: RC! | GV36: RC! | GW36: RC! | GX36: RC! | GY36: RC! | GZ36: RC! | HA36: RC! | HB36: RC! | HC36: RC! | HD36: RC! | HE36: RC! | HF36: RC! | HG36: RC! | HH36: RC! | HI36: RC! | HJ36: RC! | HK36: RC! | HL36: RC! | HM36: RC! | HN36: RC! | HO36: RC! | HP36: RC! | HQ36: RC! | HR36: =VLOOKUP($HR$2,Tabs,2,FALSE)&"!" -> RV! | HS36: RV! | HT36: RV! | HU36: RV! | HV36: RV! | HW36: RV! | HX36: RV! | HY36: RV! | HZ36: RV! | IA36: RV! | IB36: RV! | IC36: RV! | ID36: RV! | IE36: RV! | IF36: RV! | IG36: =VLOOKUP($IG$2,Tabs,2,FALSE)&"!" -> A! | IH36: A! | II36: A! | IJ36: A! | IK36: A! | IL36: A! | IM36: A! | IN36: A! | IO36: A! | IP36: A! | IQ36: A! | IR36: A! | IS36: A! | IT36: A! | IU36: A! | IV36: A! | IW36: A! | IX36: A! | IY36: A! | IZ36: A! | JA36: A! | JB36: A! | JC36: A! | JD36: A! | JE36: A! | JF36: A! | JG36: A! | JH36: A! | JI36: A! | JJ36: A! | JK36: A! | JL36: A! | JM36: A! | JN36: A! | JO36: A! | JP36: A! | JQ36: A! | JR36: A! | JS36: A! | JT36: A! | JU36: A! | JV36: A! | JW36: A! | JX36: A! | JY36: A! | JZ36: A! | KA36: A! | KB36: A! | KC36: =VLOOKUP($IG$2,Tabs,2,FALSE)&"!" -> A! | KD36: A! | KE36: A! | KF36: A! | KG36: A! | KH36: A! | KI36: A! | KJ36: A! | KK36: A! | KL36: A! | KM36: A! | KN36: A! | KO36: A! | KP36: A! | KQ36: A! | KR36: A! | KS36: A! | KT36: A! | KU36: A! | KV36: A! | KW36: A! | KX36: A! | KY36: A! | KZ36: A! | LA36: A! | LB36: A! | LC36: A! | LD36: A! | LE36: A! | LF36: A! | LG36: A! | LH36: A! | LI36: A! | LJ36: A! | LK36: A! | LL36: A! | LM36: A! | LN36: A! | LO36: A! | LP36: A! | LQ36: A! | LR36: A! | LS36: A! | LT36: A! | LU36: A! | LV36: A! | LW36: A! | LX36: A! | LY36: A! | LZ36: A! | MA36: A! | MB36: A! | MC36: A! | MD36: A! | ME36: A! | MF36: A! | MG36: A! | MH36: A! | MI36: A! | MJ36: A! | MK36: A! | ML36: A! | MM36: A! | MN36: A! | MO36: A! | MP36: A! | MQ36: A! | MR36: A! | MS36: A! | MT36: A! | MU36: A! | MV36: A! | MW36: =VLOOKUP($IG$2,Tabs,2,FALSE)&"!" -> A! | MX36: A! | MY36: A! | MZ36: A! | NA36: A! | NB36: A! | NC36: A! | ND36: A! | NE36: A! | NF36: A! | NG36: A! | NH36: A! | NI36: A! | NJ36: A! | NK36: A! | NL36: A! | NM36: A! | NN36: A! | NO36: A! | NP36: A! | NQ36: A! | NR36: A! | NS36: A! | NT36: A! | NU36: A! | NV36: A! | NW36: A! | NX36: A! | NY36: A! | NZ36: A! | OA36: A! | OB36: A! | OC36: A! | OD36: =VLOOKUP($OD$2,Tabs,2,FALSE)&"!" -> CS! | OE36: CS! | OF36: CS! | OG36: CS! | OH36: CS! | OI36: CS! | OJ36: CS! | OK36: CS! | OL36: CS! | OM36: CS! | ON36: CS! | OO36: CS! | OP36: CS! | OQ36: CS! | OR36: CS! | OS36: CS! | OT36: CS! | OU36: CS! | OV36: CS! | OW36: CS! | OX36: CS! | OY36: CS! | OZ36: CS! | PA36: CS! | PB36: CS! | PC36: CS! | PD36: CS! | PE36: CS! | PF36: CS! | PG36: CS! | PH36: CS! | PI36: CS! | PJ36: =VLOOKUP($OD$2,Tabs,2,FALSE)&"!" -> CS! | PK36: CS! | PL36: CS! | PM36: CS! | PN36: CS! | PO36: CS! | PP36: CS! | PQ36: CS! | PR36: CS! | PS36: CS! | PT36: CS! | PU36: CS! | PV36: CS! | PW36: CS! | PX36: CS! | PY36: CS! | PZ36: CS! | QA36: CS! | QB36: CS! | QC36: CS! | QD36: CS! | QE36: CS! | QF36: CS! | QG36: CS! | QH36: CS! | QI36: CS! | QJ36: CS! | QK36: CS! | QL36: CS! | QM36: CS! | QN36: CS! | QO36: CS! | QP36: =VLOOKUP($OD$2,Tabs,2,FALSE)&"!" -> CS! | QQ36: CS! | QR36: CS! | QS36: CS! | QT36: CS! | QU36: CS! | QV36: CS! | QW36: CS! | QX36: CS! | QY36: CS! | QZ36: CS! | RA36: CS! | RB36: CS! | RC36: CS! | RD36: CS! | RE36: CS! | RF36: CS! | RG36: CS! | RH36: CS! | RI36: CS! | RJ36: CS! | RK36: CS! | RL36: CS! | RM36: CS! | RN36: CS! | RO36: CS! | RP36: CS! | RQ36: CS! | RR36: CS! | RS36: CS! | RT36: =VLOOKUP($RT$2,Tabs,2,FALSE)&"!" -> R! | RU36: R! | RV36: R! | RW36: R! | RX36: R! | RY36: R! | RZ36: R! | SA36: R! | SB36: R! | SC36: R! | SD36: R! | SE36: R! | SF36: R! | SG36: R! | SH36: R! | SI36: R! | SJ36: R! | SK36: R! | SL36: R! | SM36: =VLOOKUP($SM$2,Tabs,2,FALSE)&"!" -> UD! | SN36: =VLOOKUP($SM$2,Tabs,2,FALSE)&"!" -> UD! | SO36: =VLOOKUP($SM$2,Tabs,2,FALSE)&"!" -> UD! | SP36: =VLOOKUP($SM$2,Tabs,2,FALSE)&"!" -> UD! | SQ36: =VLOOKUP($SQ$2,Tabs,2,FALSE)&"!" -> CV! | SR36: =VLOOKUP($SR$2,Tabs,2,FALSE)&"!" -> D! | SS36: =VLOOKUP($SR$2,Tabs,2,FALSE)&"!" -> D! | ST36: =VLOOKUP($SR$2,Tabs,2,FALSE)&"!" -> D! | SU36: =VLOOKUP($SR$2,Tabs,2,FALSE)&"!" -> D! | SV36: =VLOOKUP($SR$2,Tabs,2,FALSE)&"!" -> D! | SW36: =VLOOKUP($SW$2,Tabs,2,FALSE)&"!" -> CV! | SX36: CV! | SY36: CV! | SZ36: CV! | TA36: CV! | TB36: CV! | TC36: CV! | TD36: CV! | TE36: CV! | TF36: CV! | TG36: =VLOOKUP($TG$2,Tabs,2,FALSE)&"!" -> DC! | TH36: DC! | TI36: DC! | TJ36: DC! | TK36: DC! | TL36: DC! | TM36: DC! | TN36: DC! | TO36: DC! | TP36: DC! | TQ36: =VLOOKUP($TQ$2,Tabs,2,FALSE)&"!" -> UD! | TR36: UD! | TS36: UD! | TT36: UD! | TU36: UD! | TV36: UD! | TW36: UD! | TX36: UD! | TY36: UD! | TZ36: UD! | UA36: =VLOOKUP($UA$2,Tabs,2,FALSE)&"!" -> RV! | UB36: =VLOOKUP($UA$2,Tabs,2,FALSE)&"!" -> RV! | UC36: =VLOOKUP($UA$2,Tabs,2,FALSE)&"!" -> RV! | UD36: =VLOOKUP($UA$2,Tabs,2,FALSE)&"!" -> RV! | UE36: =VLOOKUP($UA$2,Tabs,2,FALSE)&"!" -> RV! | UF36: =VLOOKUP($UF$2,Tabs,2,FALSE)&"!" -> A! | UG36: =VLOOKUP($UF$2,Tabs,2,FALSE)&"!" -> A! | UH36: =VLOOKUP($UF$2,Tabs,2,FALSE)&"!" -> A! | UI36: =VLOOKUP($UF$2,Tabs,2,FALSE)&"!" -> A! | UJ36: =VLOOKUP($UF$2,Tabs,2,FALSE)&"!" -> A! | UK36: =VLOOKUP($UK$2,Tabs,2,FALSE)&"!" -> CS! | UL36: =VLOOKUP($UK$2,Tabs,2,FALSE)&"!" -> CS! | UM36: =VLOOKUP($UK$2,Tabs,2,FALSE)&"!" -> CS! | UN36: =VLOOKUP($UK$2,Tabs,2,FALSE)&"!" -> CS! | UO36: =VLOOKUP($UK$2,Tabs,2,FALSE)&"!" -> CS! | UP36: =VLOOKUP($UP$2,Tabs,2,FALSE)&"!" -> RC! | UQ36: =VLOOKUP($UP$2,Tabs,2,FALSE)&"!" -> RC! | UR36: =VLOOKUP($UP$2,Tabs,2,FALSE)&"!" -> RC! | US36: =VLOOKUP($UP$2,Tabs,2,FALSE)&"!" -> RC! | UT36: =VLOOKUP($UP$2,Tabs,2,FALSE)&"!" -> RC!
I37: =I$36&ADDRESS(MATCH(I$35,INDIRECT(I$36&I$39),0),COLUMN(INDIRECT(I$36&"$F$1"))+I$38) -> DC!$F$12 | J37: DC!$F$14 | K37: DC!$F$19 | L37: DC!$F$23 | M37: DC!$F$26 | N37: DC!$F$29 | O37: D!$E$29 | P37: D!$E$30 | Q37: D!$E$31 | R37: D!$E$32 | S37: D!$E$33 | T37: =T$36&ADDRESS(MATCH(T$35,INDIRECT(T$36&T$39),0),COLUMN(INDIRECT(T$36&"$F$1"))+T$38) -> DC!$G$36 | U37: DC!$G$37 | V37: DC!$G$38 | W37: DC!$G$39 | X37: DC!$G$40 | Y37: DC!$E$53 | Z37: DC!$F$53 | AA37: DC!$H$53 | AB37: DC!$E$54 | AC37: DC!$F$54 | AD37: DC!$H$54 | AE37: DC!$E$55 | AF37: DC!$F$55 | AG37: DC!$H$55 | AH37: DC!$E$56 | AI37: DC!$F$56 | AJ37: DC!$H$56 | AK37: DC!$E$57 | AL37: DC!$F$57 | AM37: DC!$H$57 | AN37: DC!$G$65 | AO37: DC!$H$72 | AP37: DC!$H$73 | AQ37: DC!$H$74 | AR37: DC!$H$75 | AS37: DC!$H$76 | AT37: DC!$H$77 | AU37: DC!$H$78 | AV37: DC!$H$82 | AW37: DC!$H$83 | AX37: DC!$E$82 | AY37: DC!$E$83 | AZ37: DC!$G$89 | BA37: DC!$G$90 | BB37: DC!$G$91 | BC37: =BC$36&ADDRESS(MATCH(BC$35,INDIRECT(BC$36&BC$39),0),COLUMN(INDIRECT(BC$36&"$F$1"))+BC$38) -> DC!$G$92 | BD37: DC!$G$96 | BE37: DC!$G$97 | BF37: =BF$36&ADDRESS(MATCH(BF$35,INDIRECT(BF$36&BF39),0),COLUMN(INDIRECT(BF$36&"$F$1"))+BF38) -> CV!$F$9 | BG37: CV!$D$23 | BH37: CV!$E$23 | BI37: CV!$F$23 | BJ37: CV!$G$23 | BK37: CV!$H$23 | BL37: CV!$I$23 | BM37: CV!$J$23 | BN37: CV!$D$28 | BO37: CV!$E$28 | BP37: CV!$F$28 | BQ37: CV!$G$28 | BR37: CV!$H$28 | BS37: CV!$I$28 | BT37: CV!$J$28 | BU37: CV!$D$30 | BV37: CV!$E$30 | BW37: CV!$F$30 | BX37: CV!$G$30 | BY37: CV!$H$30 | BZ37: CV!$I$30 | CA37: CV!$J$30 | CB37: CV!$D$32 | CC37: CV!$E$32 | CD37: CV!$F$32 | CE37: CV!$G$32 | CF37: CV!$H$32 | CG37: CV!$I$32 | CH37: CV!$J$32 | CI37: CV!$F$41 | CJ37: CV!$F$43 | CK37: CV!$F$45 | CL37: CV!$F$47 | CM37: CV!$F$49 | CN37: CV!$F$53 | CO37: =CO$36&ADDRESS(MATCH(CO$35,INDIRECT(CO$36&CO39),0),COLUMN(INDIRECT(CO$36&"$F$1"))+CO38) -> CV!$D$56 | CP37: CV!$E$56 | CQ37: CV!$D$64 | CR37: CV!$E$64 | CS37: CV!$D$65 | CT37: CV!$E$65 | CU37: CV!$D$66 | CV37: =CV$36&ADDRESS(MATCH(CV$35,INDIRECT(CV$36&CV39),0),COLUMN(INDIRECT(CV$36&"$F$1"))+CV38) -> CV!$E$66 | CW37: CV!$D$70 | CX37: CV!$E$70 | CY37: CV!$D$71 | CZ37: CV!$E$71 | DA37: CV!$D$72 | DB37: CV!$E$72 | DC37: CV!$D$75 | DD37: CV!$E$75 | DE37: CV!$D$78 | DF37: CV!$E$78 | DG37: CV!$D$81 | DH37: CV!$E$81 | DI37: CV!$D$84 | DJ37: CV!$E$84 | DK37: CV!$F$149 | DL37: CV!$D$152 | DM37: CV!$E$152 | DN37: CV!$F$154 | DO37: CV!$F$88 | DP37: CV!$D$91 | DQ37: CV!$E$91 | DR37: =DR$36&ADDRESS(MATCH(DR$35,INDIRECT(DR$36&DR39),0),COLUMN(INDIRECT(DR$36&"$F$1"))+DR38) -> CV!$F$97 | DS37: CV!$D$100 | DT37: CV!$E$100 | DU37: CV!$F$140 | DV37: CV!$D$143 | DW37: CV!$E$143 | DX37: CV!$F$105 | DY37: CV!$D$108 | DZ37: CV!$E$108 | EA37: CV!$F$112 | EB37: CV!$D$115 | EC37: CV!$E$115 | ED37: CV!$F$123 | EE37: CV!$F$124 | EF37: CV!$F$125 | EG37: CV!$F$126 | EH37: CV!$F$127 | EI37: =EI$36&ADDRESS(MATCH(EI$35,INDIRECT(EI$36&EI39),0),COLUMN(INDIRECT(EI$36&"$F$1"))+EI38) -> CV!$D$132 | EJ37: CV!$E$132 | EK37: =EK$36&ADDRESS(MATCH(EK$35,INDIRECT(EK$36&EK39),0),COLUMN(INDIRECT(EK$36&"$F$1"))+EK38) -> CV!$D$133 | EL37: CV!$E$133 | EM37: =EM$36&ADDRESS(MATCH(EM$35,INDIRECT(EM$36&EM39),0),COLUMN(INDIRECT(EM$36&"$F$1"))+EM38) -> CV!$D$134 | EN37: CV!$E$134 | EO37: =EO$36&ADDRESS(MATCH(EO$35,INDIRECT(EO$36&EO39),0),COLUMN(INDIRECT(EO$36&"$F$1"))+EO38) -> CV!$D$135 | EP37: CV!$E$135 | EQ37: CV!$D$136 | ER37: CV!$E$136 | ES37: CV!$F$160 | ET37: CV!$D$163 | EU37: CV!$E$163 | EV37: CV!$F$169 | EW37: CV!$F$170 | EX37: CV!$F$171 | EY37: CV!$F$176 | EZ37: =EZ$36&ADDRESS(MATCH(EZ$35,INDIRECT(EZ$36&EZ39),0),COLUMN(INDIRECT(EZ$36&"$F$1"))+EZ38) -> CV!$F$178 | FA37: CV!$F$180 | FB37: CV!$F$186 | FC37: CV!$G$186 | FD37: CV!$F$187 | FE37: CV!$G$187 | FF37: CV!$F$188 | FG37: CV!$G$188 | FH37: CV!$F$189 | FI37: CV!$G$189 | FJ37: CV!$F$190 | FK37: CV!$G$190 | FL37: CV!$F$197 | FM37: CV!$G$197 | FN37: CV!$F$198 | FO37: CV!$G$198 | FP37: CV!$F$199 | FQ37: CV!$G$199 | FR37: =FR$36&ADDRESS(MATCH(FR$35,INDIRECT(FR$36&FR39),0),COLUMN(INDIRECT(FR$36&"$F$1"))+FR38) -> HC!$F$9 | FS37: =FS$36&ADDRESS(MATCH(FS$35,INDIRECT(FS$36&FS$39),0),COLUMN(INDIRECT(FS$36&"$F$1"))+FS$38) -> HC!$F$11 | FT37: HC!$F$13 | FU37: HC!$F$21 | FV37: HC!$F$23 | FW37: HC!$F$25 | FX37: HC!$F$33 | FY37: HC!$F$35 | FZ37: HC!$F$37 | GA37: HC!$F$45 | GB37: HC!$F$47 | GC37: HC!$F$49 | GD37: HC!$F$57 | GE37: HC!$F$59 | GF37: HC!$F$61 | GG37: HC!$F$69 | GH37: HC!$F$71 | GI37: HC!$F$73 | GJ37: RC!$F$10 | GK37: RC!$F$11 | GL37: RC!$G$10 | GM37: RC!$G$11 | GN37: RC!$H$10 | GO37: RC!$H$11 | GP37: RC!$I$10 | GQ37: RC!$I$11 | GR37: RC!$J$10 | GS37: RC!$J$11 | GT37: RC!$K$10 | GU37: RC!$K$11 | GV37: RC!$L$10 | GW37: RC!$L$11 | GX37: RC!$L$13 | GY37: RC!$L$14 | GZ37: RC!$L$15 | HA37: RC!$L$16 | HB37: RC!$L$17 | HC37: RC!$L$18 | HD37: RC!$L$19 | HE37: RC!$L$20 | HF37: RC!$L$21 | HG37: RC!$L$22 | HH37: RC!$L$23 | HI37: RC!$L$24 | HJ37: RC!$L$25 | HK37: =HK$36&ADDRESS(MATCH(HK$35,INDIRECT(HK$36&HK39),0),COLUMN(INDIRECT(HK$36&"$F$1"))+HK38) -> RC!$L$44 | HL37: RC!$L$44 | HM37: RC!$L$44 | HN37: RC!$L$44 | HO37: RC!$L$44 | HP37: RC!$L$44 | HQ37: RC!$L$44 | HR37: RV!$F$15 | HS37: RV!$F$18 | HT37: RV!$F$19 | HU37: RV!$F$22 | HV37: RV!$F$23 | HW37: RV!$E$30 | HX37: RV!$E$34 | HY37: RV!$E$35 | HZ37: RV!$E$39 | IA37: RV!$E$40 | IB37: RV!$F$42 | IC37: RV!$F$48 | ID37: RV!$F$50 | IE37: RV!$F$52 | IF37: RV!$F$58 | IG37: =IG$36&ADDRESS(MATCH(IG$35,INDIRECT(IG$36&IG39),0),COLUMN(INDIRECT(IG$36&"$g$1"))+IG38) -> A!$E$13 | IH37: A!$D$28 | II37: A!$E$28 | IJ37: A!$F$28 | IK37: A!$G$28 | IL37: A!$J$28 | IM37: A!$K$28 | IN37: A!$L$28 | IO37: A!$M$28 | IP37: A!$D$30 | IQ37: A!$E$30 | IR37: A!$F$30 | IS37: A!$G$30 | IT37: =IT$36&ADDRESS(MATCH(IT$35,INDIRECT(IT$36&IT39),0),COLUMN(INDIRECT(IT$36&"$F$1"))+IT38) -> A!$J$30 | IU37: A!$K$30 | IV37: A!$L$30 | IW37: A!$M$30 | IX37: A!$D$32 | IY37: A!$E$32 | IZ37: A!$F$32 | JA37: A!$G$32 | JB37: A!$J$32 | JC37: A!$K$32 | JD37: A!$L$32 | JE37: A!$M$32 | JF37: =JF$36&ADDRESS(MATCH(JF$35,INDIRECT(JF$36&JF39),0),COLUMN(INDIRECT(JF$36&"$F$1"))+JF38) -> A!$D$34 | JG37: A!$E$34 | JH37: A!$F$34 | JI37: A!$G$34 | JJ37: A!$J$34 | JK37: A!$K$34 | JL37: A!$L$34 | JM37: A!$M$34 | JN37: A!$D$36 | JO37: A!$E$36 | JP37: A!$F$36 | JQ37: A!$G$36 | JR37: A!$J$36 | JS37: A!$K$36 | JT37: A!$L$36 | JU37: A!$M$36 | JV37: A!$D$38 | JW37: A!$E$38 | JX37: A!$F$38 | JY37: A!$G$38 | JZ37: A!$J$38 | KA37: A!$K$38 | KB37: A!$L$38 | KC37: A!$M$38 | KD37: =KD$36&ADDRESS(MATCH(KD$35,INDIRECT(KD$36&KD39),0),COLUMN(INDIRECT(KD$36&"$F$1"))+KD38) -> A!$D$40 | KE37: A!$E$40 | KF37: A!$F$40 | KG37: A!$G$40 | KH37: A!$J$40 | KI37: A!$K$40 | KJ37: A!$L$40 | KK37: A!$M$40 | KL37: A!$D$42 | KM37: A!$E$42 | KN37: A!$F$42 | KO37: A!$G$42 | KP37: A!$J$42 | KQ37: A!$K$42 | KR37: A!$L$42 | KS37: A!$M$42 | KT37: A!$D$44 | KU37: A!$E$44 | KV37: A!$F$44 | KW37: A!$G$44 | KX37: A!$J$44 | KY37: A!$K$44 | KZ37: A!$L$44 | LA37: A!$M$44 | LB37: =LB$36&ADDRESS(MATCH(LB$35,INDIRECT(LB$36&LB39),0),COLUMN(INDIRECT(LB$36&"$F$1"))+LB38) -> A!$D$46 | LC37: A!$E$46 | LD37: A!$F$46 | LE37: A!$G$46 | LF37: A!$J$46 | LG37: A!$K$46 | LH37: A!$L$46 | LI37: A!$M$46 | LJ37: A!$D$48 | LK37: A!$E$48 | LL37: A!$F$48 | LM37: A!$G$48 | LN37: A!$J$48 | LO37: A!$K$48 | LP37: A!$L$48 | LQ37: A!$M$48 | LR37: =LR$36&ADDRESS(MATCH(LR$35,INDIRECT(LR$36&LR39),0),COLUMN(INDIRECT(LR$36&"$F$1"))+LR38) -> A!$D$62 | LS37: A!$E$62 | LT37: A!$F$62 | LU37: A!$G$62 | LV37: A!$J$62 | LW37: A!$K$62 | LX37: A!$L$62 | LY37: A!$M$62 | LZ37: A!$D$50 | MA37: A!$E$50 | MB37: A!$F$50 | MC37: A!$G$50 | MD37: A!$J$50 | ME37: A!$K$50 | MF37: A!$L$50 | MG37: A!$M$50 | MH37: =MH$36&ADDRESS(MATCH(MH$35,INDIRECT(MH$36&MH39),0),COLUMN(INDIRECT(MH$36&"$F$1"))+MH38) -> A!$D$52 | MI37: A!$E$52 | MJ37: A!$F$52 | MK37: A!$G$52 | ML37: A!$J$52 | MM37: A!$K$52 | MN37: A!$L$52 | MO37: A!$M$52 | MP37: A!$D$60 | MQ37: A!$E$60 | MR37: A!$F$60 | MS37: A!$G$60 | MT37: A!$J$60 | MU37: A!$K$60 | MV37: A!$L$60 | MW37: A!$M$60 | MX37: A!$D$64 | MY37: A!$E$64 | MZ37: A!$F$64 | NA37: A!$G$64 | NB37: A!$J$64 | NC37: A!$K$64 | ND37: A!$L$64 | NE37: A!$M$64 | NF37: A!$D$54 | NG37: A!$E$54 | NH37: A!$F$54 | NI37: A!$G$54 | NJ37: =NJ$36&ADDRESS(MATCH(NJ$35,INDIRECT(NJ$36&NJ39),0),COLUMN(INDIRECT(NJ$36&"$F$1"))+NJ38) -> A!$J$54 | NK37: A!$K$54 | NL37: A!$L$54 | NM37: A!$M$54 | NN37: A!$D$56 | NO37: A!$E$56 | NP37: A!$F$56 | NQ37: A!$G$56 | NR37: A!$J$56 | NS37: A!$K$56 | NT37: A!$L$56 | NU37: A!$M$56 | NV37: A!$D$58 | NW37: A!$E$58 | NX37: A!$F$58 | NY37: A!$G$58 | NZ37: A!$J$58 | OA37: A!$K$58 | OB37: A!$L$58 | OC37: A!$M$58 | OD37: =OD$36&ADDRESS(MATCH(OD$35,INDIRECT(OD$36&OD39),0),COLUMN(INDIRECT(OD$36&"$F$1"))+OD38) -> CS!$F$11 | OE37: =OE$36&ADDRESS(MATCH(OE$35,INDIRECT(OE$36&OE39),0),COLUMN(INDIRECT(OE$36&"$F$1"))+OE38) -> CS!$H$11 | OF37: =OF$36&ADDRESS(MATCH(OF$35,INDIRECT(OF$36&OF39),0),COLUMN(INDIRECT(OF$36&"$F$1"))+OF38) -> CS!$F$13 | OG37: CS!$H$13 | OH37: CS!$F$15 | OI37: CS!$H$15 | OJ37: CS!$F$17 | OK37: CS!$H$17 | OL37: CS!$F$19 | OM37: CS!$H$19 | ON37: CS!$F$21 | OO37: CS!$H$21 | OP37: CS!$F$23 | OQ37: CS!$H$23 | OR37: =OR$36&ADDRESS(MATCH(OR$35,INDIRECT(OR$36&OR39),0),COLUMN(INDIRECT(OR$36&"$F$1"))+OR38) -> CS!$F$27 | OS37: CS!$H$27 | OT37: CS!$F$29 | OU37: CS!$H$29 | OV37: CS!$F$36 | OW37: CS!$H$36 | OX37: CS!$F$38 | OY37: CS!$H$38 | OZ37: CS!$F$40 | PA37: CS!$H$40 | PB37: =PB$36&ADDRESS(MATCH(PB$35,INDIRECT(PB$36&PB39),0),COLUMN(INDIRECT(PB$36&"$F$1"))+PB38) -> CS!$F$47 | PC37: CS!$H$47 | PD37: CS!$F$49 | PE37: CS!$H$49 | PF37: CS!$F$51 | PG37: CS!$H$51 | PH37: CS!$F$58 | PI37: CS!$H$58 | PJ37: CS!$F$60 | PK37: CS!$H$60 | PL37: CS!$F$62 | PM37: CS!$H$62 | PN37: CS!$F$79 | PO37: CS!$H$79 | PP37: CS!$F$81 | PQ37: CS!$H$81 | PR37: CS!$F$69 | PS37: CS!$H$69 | PT37: =PT$36&ADDRESS(MATCH(PT$35,INDIRECT(PT$36&PT39),0),COLUMN(INDIRECT(PT$36&"$F$1"))+PT38) -> CS!$F$71 | PU37: CS!$H$71 | PV37: CS!$F$77 | PW37: CS!$H$77 | PX37: CS!$F$73 | PY37: CS!$H$73 | PZ37: CS!$F$75 | QA37: CS!$H$75 | QB37: =QB$36&ADDRESS(MATCH(QB$35,INDIRECT(QB$36&QB39),0),COLUMN(INDIRECT(QB$36&"$F$1"))+QB38) -> CS!$F$87 | QC37: CS!$G$87 | QD37: CS!$F$89 | QE37: CS!$G$89 | QF37: CS!$F$91 | QG37: CS!$G$91 | QH37: CS!$F$93 | QI37: CS!$G$93 | QJ37: CS!$F$95 | QK37: CS!$G$95 | QL37: CS!$F$97 | QM37: CS!$G$97 | QN37: CS!$F$99 | QO37: CS!$G$99 | QP37: CS!$F$103 | QQ37: CS!$G$103 | QR37: CS!$F$105 | QS37: CS!$G$105 | QT37: =QT$36&ADDRESS(MATCH(QT$35,INDIRECT(QT$36&QT39),0),COLUMN(INDIRECT(QT$36&"$F$1"))+QT38) -> CS!$F$111 | QU37: CS!$G$111 | QV37: =QV$36&ADDRESS(MATCH(QV$35,INDIRECT(QV$36&QV39),0),COLUMN(INDIRECT(QV$36&"$F$1"))+QV38) -> CS!$F$113 | QW37: CS!$G$113 | QX37: CS!$F$115 | QY37: CS!$G$115 | QZ37: =QZ$36&ADDRESS(MATCH(QZ$35,INDIRECT(QZ$36&QZ39),0),COLUMN(INDIRECT(QZ$36&"$F$1"))+QZ38) -> CS!$F$117 | RA37: CS!$G$117 | RB37: CS!$F$119 | RC37: CS!$G$119 | RD37: =RD$36&ADDRESS(MATCH(RD$35,INDIRECT(RD$36&RD39),0),COLUMN(INDIRECT(RD$36&"$F$1"))+RD38) -> CS!$F$121 | RE37: CS!$G$121 | RF37: CS!$F$123 | RG37: CS!$G$123 | RH37: CS!$F$125 | RI37: CS!$G$125 | RJ37: CS!$F$127 | RK37: CS!$G$127 | RL37: =RL$36&ADDRESS(MATCH(RL$35,INDIRECT(RL$36&RL39),0),COLUMN(INDIRECT(RL$36&"$F$1"))+RL38) -> CS!$F$129 | RM37: CS!$G$129 | RN37: CS!$F$131 | RO37: CS!$G$131 | RP37: CS!$F$133 | RQ37: CS!$G$133 | RR37: CS!$F$135 | RS37: CS!$G$135 | RT37: R!$F$306 | RU37: R!$F$307 | RV37: R!$F$308 | RW37: R!$F$325 | RX37: R!$F$326 | RY37: R!$F$327 | RZ37: R!$F$344 | SA37: R!$F$345 | SB37: R!$F$346 | SC37: R!$F$404 | SD37: R!$F$406 | SE37: R!$F$410 | SF37: R!$F$412 | SG37: R!$F$451 | SH37: R!$F$452 | SI37: R!$F$453 | SJ37: R!$F$470 | SK37: R!$F$471 | SL37: R!$F$472 | SM37: =SM$36&ADDRESS(MATCH(SM$35,INDIRECT(SM$36&SM$39),0),COLUMN(INDIRECT(SM$36&"$F$1"))+SM$38) -> UD!$E$24 | SN37: =SN$36&ADDRESS(MATCH(SN$35,INDIRECT(SN$36&SN$39),0),COLUMN(INDIRECT(SN$36&"$F$1"))+SN$38) -> UD!$H$24 | SO37: =SO$36&ADDRESS(MATCH(SO$35,INDIRECT(SO$36&SO$39),0),COLUMN(INDIRECT(SO$36&"$F$1"))+SO$38) -> UD!$E$26 | SP37: =SP$36&ADDRESS(MATCH(SP$35,INDIRECT(SP$36&SP$39),0),COLUMN(INDIRECT(SP$36&"$F$1"))+SP$38) -> UD!$E$45 | SQ37: =SQ$36&ADDRESS(MATCH(SQ$35,INDIRECT(SQ$36&SQ39),0),COLUMN(INDIRECT(SQ$36&"$F$1"))+SQ38) -> CV!$F$163 | SR37: =SR$36&ADDRESS(MATCH(SR$35,INDIRECT(SR$36&SR$39),0),COLUMN(INDIRECT(SR$36&"$F$1"))+SR$38) -> D!$E$12 | SS37: D!$E$13 | ST37: D!$E$14 | SU37: D!$E$15 | SV37: D!$E$16 | SW37: CV!$C$204 | SX37: =SX$36&ADDRESS(MATCH(SX$35,INDIRECT(SX$36&SX$39),0),COLUMN(INDIRECT(SX$36&"$F$1"))+SX$38) -> CV!$C$205 | SY37: CV!$C$206 | SZ37: CV!$C$207 | TA37: CV!$C$208 | TB37: CV!$C$209 | TC37: CV!$C$210 | TD37: CV!$C$211 | TE37: CV!$C$212 | TF37: CV!$C$213 | TG37: =TG$36&ADDRESS(MATCH(TG$35,INDIRECT(TG$36&TG$39),0),COLUMN(INDIRECT(TG$36&"$F$1"))+TG$38) -> DC!$C$112 | TH37: DC!$C$113 | TI37: DC!$C$114 | TJ37: DC!$C$115 | TK37: DC!$C$116 | TL37: DC!$C$117 | TM37: DC!$C$118 | TN37: DC!$C$119 | TO37: DC!$C$120 | TP37: DC!$C$121 | TQ37: UD!$C$49 | TR37: UD!$C$50 | TS37: UD!$C$51 | TT37: UD!$C$52 | TU37: UD!$C$53 | TV37: UD!$C$54 | TW37: UD!$C$55 | TX37: UD!$C$56 | TY37: UD!$C$57 | TZ37: UD!$C$58 | UA37: RV!$C$62 | UB37: RV!$C$63 | UC37: RV!$C$64 | UD37: RV!$C$65 | UE37: RV!$C$66 | UF37: A!$C$73 | UG37: A!$C$74 | UH37: A!$C$75 | UI37: A!$C$76 | UJ37: A!$C$77 | UK37: CS!$C$139 | UL37: CS!$C$140 | UM37: CS!$C$141 | UN37: CS!$C$142 | UO37: CS!$C$143 | UP37: =UP$36&ADDRESS(MATCH(UP$35,INDIRECT(UP$36&UP$39),0),COLUMN(INDIRECT(UP$36&"$F$1"))+UP$38) -> RC!$C$49 | UQ37: =UQ$36&ADDRESS(MATCH(UQ$35,INDIRECT(UQ$36&UQ$39),0),COLUMN(INDIRECT(UQ$36&"$F$1"))+UQ$38) -> RC!$C$50 | UR37: =UR$36&ADDRESS(MATCH(UR$35,INDIRECT(UR$36&UR$39),0),COLUMN(INDIRECT(UR$36&"$F$1"))+UR$38) -> RC!$C$51 | US37: =US$36&ADDRESS(MATCH(US$35,INDIRECT(US$36&US$39),0),COLUMN(INDIRECT(US$36&"$F$1"))+US$38) -> RC!$C$52 | UT37: =UT$36&ADDRESS(MATCH(UT$35,INDIRECT(UT$36&UT$39),0),COLUMN(INDIRECT(UT$36&"$F$1"))+UT$38) -> RC!$C$53
I38: 0 | J38: 0 | K38: 0 | L38: 0 | M38: 0 | N38: 0 | O38: -1 | P38: -1 | Q38: -1 | R38: -1 | S38: -1 | T38: 1 | U38: 1 | V38: 1 | W38: 1 | X38: 1 | Y38: -1 | Z38: 0 | AA38: 2 | AB38: -1 | AC38: 0 | AD38: 2 | AE38: -1 | AF38: 0 | AG38: 2 | AH38: -1 | AI38: 0 | AJ38: 2 | AK38: -1 | AL38: 0 | AM38: 2 | AN38: 1 | AO38: 2 | AP38: 2 | AQ38: 2 | AR38: 2 | AS38: 2 | AT38: 2 | AU38: 2 | AV38: 2 | AW38: 2 | AX38: -1 | AY38: -1 | AZ38: 1 | BA38: 1 | BB38: 1 | BC38: 1 | BD38: 1 | BE38: 1 | BF38: 0 | BG38: =OFFSET(BG38,0,1)-1 -> -2 | BH38: =OFFSET(BH38,0,1)-1 -> -1 | BI38: 0 | BJ38: =OFFSET(BJ38,0,-1)+1 -> 1 | BK38: =OFFSET(BK38,0,-1)+1 -> 2 | BL38: =OFFSET(BL38,0,-1)+1 -> 3 | BM38: =OFFSET(BM38,0,-1)+1 -> 4 | BN38: -2 | BO38: =OFFSET(BO38,0,1)-1 -> -1 | BP38: 0 | BQ38: =OFFSET(BQ38,0,-1)+1 -> 1 | BR38: =OFFSET(BR38,0,-1)+1 -> 2 | BS38: =OFFSET(BS38,0,-1)+1 -> 3 | BT38: =OFFSET(BT38,0,-1)+1 -> 4 | BU38: -2 | BV38: =OFFSET(BV38,0,1)-1 -> -1 | BW38: 0 | BX38: =OFFSET(BX38,0,-1)+1 -> 1 | BY38: =OFFSET(BY38,0,-1)+1 -> 2 | BZ38: =OFFSET(BZ38,0,-1)+1 -> 3 | CA38: =OFFSET(CA38,0,-1)+1 -> 4 | CB38: -2 | CC38: =OFFSET(CC38,0,1)-1 -> -1 | CD38: 0 | CE38: =OFFSET(CE38,0,-1)+1 -> 1 | CF38: =OFFSET(CF38,0,-1)+1 -> 2 | CG38: =OFFSET(CG38,0,-1)+1 -> 3 | CH38: =OFFSET(CH38,0,-1)+1 -> 4 | CI38: 0 | CJ38: 0 | CK38: 0 | CL38: 0 | CM38: 0 | CN38: 0 | CO38: -2 | CP38: -1 | CQ38: -2 | CR38: -1 | CS38: -2 | CT38: -1 | CU38: -2 | CV38: -1 | CW38: -2 | CX38: -1 | CY38: -2 | CZ38: -1 | DA38: -2 | DB38: -1 | DC38: -2 | DD38: -1 | DE38: -2 | DF38: -1 | DG38: -2 | DH38: -1 | DI38: -2 | DJ38: -1 | DK38: 0 | DL38: -2 | DM38: -1 | DN38: 0 | DO38: 0 | DP38: -2 | DQ38: -1 | DR38: 0 | DS38: -2 | DT38: -1 | DU38: 0 | DV38: -2 | DW38: -1 | DX38: 0 | DY38: -2 | DZ38: -1 | EA38: 0 | EB38: -2 | EC38: -1 | ED38: 0 | EE38: 0 | EF38: 0 | EG38: 0 | EH38: 0 | EI38: -2 | EJ38: -1 | EK38: -2 | EL38: -1 | EM38: -2 | EN38: -1 | EO38: -2 | EP38: -1 | EQ38: -2 | ER38: -1 | ES38: 0 | ET38: -2 | EU38: -1 | EV38: 0 | EW38: 0 | EX38: 0 | EY38: 0 | EZ38: 0 | FA38: 0 | FB38: 0 | FC38: 1 | FD38: 0 | FE38: 1 | FF38: 0 | FG38: 1 | FH38: 0 | FI38: 1 | FJ38: 0 | FK38: 1 | FL38: 0 | FM38: 1 | FN38: 0 | FO38: 1 | FP38: 0 | FQ38: 1 | FR38: 0 | FS38: 0 | FT38: 0 | FU38: 0 | FV38: 0 | FW38: 0 | FX38: 0 | FY38: 0 | FZ38: 0 | GA38: 0 | GB38: 0 | GC38: 0 | GD38: 0 | GE38: 0 | GF38: 0 | GG38: 0 | GH38: 0 | GI38: 0 | GJ38: 0 | GK38: 0 | GL38: 1 | GM38: 1 | GN38: 2 | GO38: 2 | GP38: 3 | GQ38: 3 | GR38: 4 | GS38: 4 | GT38: 5 | GU38: 5 | GV38: 6 | GW38: 6 | GX38: 6 | GY38: 6 | GZ38: 6 | HA38: 6 | HB38: 6 | HC38: 6 | HD38: 6 | HE38: 6 | HF38: 6 | HG38: 6 | HH38: 6 | HI38: 6 | HJ38: 6 | HK38: 6 | HL38: 6 | HM38: 6 | HN38: 6 | HO38: 6 | HP38: 6 | HQ38: 6 | HR38: 0 | HS38: 0 | HT38: 0 | HU38: 0 | HV38: 0 | HW38: -1 | HX38: -1 | HY38: -1 | HZ38: -1 | IA38: -1 | IB38: 0 | IC38: 0 | ID38: 0 | IE38: 0 | IF38: 0 | IG38: -2 | IH38: -2 | II38: -1 | IJ38: 0 | IK38: 1 | IL38: 4 | IM38: 5 | IN38: 6 | IO38: 7 | IP38: -2 | IQ38: -1 | IR38: 0 | IS38: 1 | IT38: 4 | IU38: 5 | IV38: 6 | IW38: 7 | IX38: -2 | IY38: -1 | IZ38: 0 | JA38: 1 | JB38: 4 | JC38: 5 | JD38: 6 | JE38: 7 | JF38: -2 | JG38: -1 | JH38: 0 | JI38: 1 | JJ38: 4 | JK38: 5 | JL38: 6 | JM38: 7 | JN38: -2 | JO38: -1 | JP38: 0 | JQ38: 1 | JR38: 4 | JS38: 5 | JT38: 6 | JU38: 7 | JV38: -2 | JW38: -1 | JX38: 0 | JY38: 1 | JZ38: 4 | KA38: 5 | KB38: 6 | KC38: 7 | KD38: -2 | KE38: -1 | KF38: 0 | KG38: 1 | KH38: 4 | KI38: 5 | KJ38: 6 | KK38: 7 | KL38: -2 | KM38: -1 | KN38: 0 | KO38: 1 | KP38: 4 | KQ38: 5 | KR38: 6 | KS38: 7 | KT38: -2 | KU38: -1 | KV38: 0 | KW38: 1 | KX38: 4 | KY38: 5 | KZ38: 6 | LA38: 7 | LB38: -2 | LC38: -1 | LD38: 0 | LE38: 1 | LF38: 4 | LG38: 5 | LH38: 6 | LI38: 7 | LJ38: -2 | LK38: -1 | LL38: 0 | LM38: 1 | LN38: 4 | LO38: 5 | LP38: 6 | LQ38: 7 | LR38: -2 | LS38: -1 | LT38: 0 | LU38: 1 | LV38: 4 | LW38: 5 | LX38: 6 | LY38: 7 | LZ38: -2 | MA38: -1 | MB38: 0 | MC38: 1 | MD38: 4 | ME38: 5 | MF38: 6 | MG38: 7 | MH38: -2 | MI38: -1 | MJ38: 0 | MK38: 1 | ML38: 4 | MM38: 5 | MN38: 6 | MO38: 7 | MP38: -2 | MQ38: -1 | MR38: 0 | MS38: 1 | MT38: 4 | MU38: 5 | MV38: 6 | MW38: 7 | MX38: -2 | MY38: -1 | MZ38: 0 | NA38: 1 | NB38: 4 | NC38: 5 | ND38: 6 | NE38: 7 | NF38: -2 | NG38: -1 | NH38: 0 | NI38: 1 | NJ38: 4 | NK38: 5 | NL38: 6 | NM38: 7 | NN38: -2 | NO38: -1 | NP38: 0 | NQ38: 1 | NR38: 4 | NS38: 5 | NT38: 6 | NU38: 7 | NV38: -2 | NW38: -1 | NX38: 0 | NY38: 1 | NZ38: 4 | OA38: 5 | OB38: 6 | OC38: 7 | OD38: 0 | OE38: 2 | OF38: 0 | OG38: 2 | OH38: 0 | OI38: 2 | OJ38: 0 | OK38: 2 | OL38: 0 | OM38: 2 | ON38: 0 | OO38: 2 | OP38: 0 | OQ38: 2 | OR38: 0 | OS38: 2 | OT38: 0 | OU38: 2 | OV38: 0 | OW38: 2 | OX38: 0 | OY38: 2 | OZ38: 0 | PA38: 2 | PB38: 0 | PC38: 2 | PD38: 0 | PE38: 2 | PF38: 0 | PG38: 2 | PH38: 0 | PI38: 2 | PJ38: 0 | PK38: 2 | PL38: 0 | PM38: 2 | PN38: 0 | PO38: 2 | PP38: 0 | PQ38: 2 | PR38: 0 | PS38: 2 | PT38: 0 | PU38: 2 | PV38: 0 | PW38: 2 | PX38: 0 | PY38: 2 | PZ38: 0 | QA38: 2 | QB38: 0 | QC38: 1 | QD38: 0 | QE38: 1 | QF38: 0 | QG38: 1 | QH38: 0 | QI38: 1 | QJ38: 0 | QK38: 1 | QL38: 0 | QM38: 1 | QN38: 0 | QO38: 1 | QP38: 0 | QQ38: 1 | QR38: 0 | QS38: 1 | QT38: 0 | QU38: 1 | QV38: 0 | QW38: 1 | QX38: 0 | QY38: 1 | QZ38: 0 | RA38: 1 | RB38: 0 | RC38: 1 | RD38: 0 | RE38: 1 | RF38: 0 | RG38: 1 | RH38: 0 | RI38: 1 | RJ38: 0 | RK38: 1 | RL38: 0 | RM38: 1 | RN38: 0 | RO38: 1 | RP38: 0 | RQ38: 1 | RR38: 0 | RS38: 1 | RT38: 0 | RU38: 0 | RV38: 0 | RW38: 0 | RX38: 0 | RY38: 0 | RZ38: 0 | SA38: 0 | SB38: 0 | SC38: 0 | SD38: 0 | SE38: 0 | SF38: 0 | SG38: 0 | SH38: 0 | SI38: 0 | SJ38: 0 | SK38: 0 | SL38: 0 | SM38: -1 | SN38: 2 | SO38: -1 | SP38: -1 | SQ38: 0 | SR38: -1 | SS38: -1 | ST38: -1 | SU38: -1 | SV38: -1 | SW38: -3 | SX38: -3 | SY38: -3 | SZ38: -3 | TA38: -3 | TB38: -3 | TC38: -3 | TD38: -3 | TE38: -3 | TF38: -3 | TG38: -3 | TH38: -3 | TI38: -3 | TJ38: -3 | TK38: -3 | TL38: -3 | TM38: -3 | TN38: -3 | TO38: -3 | TP38: -3 | TQ38: -3 | TR38: -3 | TS38: -3 | TT38: -3 | TU38: -3 | TV38: -3 | TW38: -3 | TX38: -3 | TY38: -3 | TZ38: -3 | UA38: -3 | UB38: -3 | UC38: -3 | UD38: -3 | UE38: -3 | UF38: -3 | UG38: -3 | UH38: -3 | UI38: -3 | UJ38: -3 | UK38: -3 | UL38: -3 | UM38: -3 | UN38: -3 | UO38: -3 | UP38: -3 | UQ38: -3 | UR38: -3 | US38: -3 | UT38: -3
I39: =LEFT(ADDRESS(1,COLUMN(INDIRECT(I$36&"$S5")),3),LEN(ADDRESS(1,COLUMN(INDIRECT(I$36&"$S5")),2))-1)&":"&LEFT(ADDRESS(1,COLUMN(INDIRECT(I$36&"$S5")),3),LEN(ADDRESS(1,COLUMN(INDIRECT(I$36&"$S5")),2))-1) -> $S:$S | J39: $S:$S | K39: $S:$S | L39: $S:$S | M39: $S:$S | N39: $S:$S | O39: =HLOOKUP(O$38,INDIRECT(O$36&"RangeColumns"),2,FALSE) -> $R:$R | P39: $R:$R | Q39: $R:$R | R39: $R:$R | S39: $R:$R | T39: $T:$T | U39: $T:$T | V39: $T:$T | W39: $T:$T | X39: $T:$T | Y39: $R:$R | Z39: $S:$S | AA39: $U:$U | AB39: $R:$R | AC39: $S:$S | AD39: $U:$U | AE39: $R:$R | AF39: $S:$S | AG39: $U:$U | AH39: $R:$R | AI39: $S:$S | AJ39: $U:$U | AK39: $R:$R | AL39: $S:$S | AM39: $U:$U | AN39: $T:$T | AO39: $U:$U | AP39: $U:$U | AQ39: $U:$U | AR39: $U:$U | AS39: $U:$U | AT39: $U:$U | AU39: $U:$U | AV39: $U:$U | AW39: $U:$U | AX39: $R:$R | AY39: $R:$R | AZ39: $T:$T | BA39: $T:$T | BB39: $T:$T | BC39: =HLOOKUP(BC$38,INDIRECT(BC$36&"RangeColumns"),2,FALSE) -> $T:$T | BD39: $T:$T | BE39: $T:$T | BF39: $S:$S | BG39: $Q:$Q | BH39: $R:$R | BI39: $S:$S | BJ39: $T:$T | BK39: $U:$U | BL39: $V:$V | BM39: $W:$W | BN39: $Q:$Q | BO39: $R:$R | BP39: $S:$S | BQ39: $T:$T | BR39: $U:$U | BS39: =HLOOKUP(BS$38,INDIRECT(BS$36&"RangeColumns"),2,FALSE) -> $V:$V | BT39: $W:$W | BU39: $Q:$Q | BV39: $R:$R | BW39: $S:$S | BX39: $T:$T | BY39: $U:$U | BZ39: $V:$V | CA39: $W:$W | CB39: $Q:$Q | CC39: $R:$R | CD39: $S:$S | CE39: $T:$T | CF39: $U:$U | CG39: $V:$V | CH39: $W:$W | CI39: $S:$S | CJ39: $S:$S | CK39: $S:$S | CL39: $S:$S | CM39: $S:$S | CN39: $S:$S | CO39: $Q:$Q | CP39: $R:$R | CQ39: $Q:$Q | CR39: $R:$R | CS39: $Q:$Q | CT39: $R:$R | CU39: $Q:$Q | CV39: $R:$R | CW39: $Q:$Q | CX39: $R:$R | CY39: $Q:$Q | CZ39: $R:$R | DA39: $Q:$Q | DB39: $R:$R | DC39: $Q:$Q | DD39: $R:$R | DE39: $Q:$Q | DF39: $R:$R | DG39: $Q:$Q | DH39: $R:$R | DI39: $Q:$Q | DJ39: $R:$R | DK39: $S:$S | DL39: $Q:$Q | DM39: $R:$R | DN39: $S:$S | DO39: $S:$S | DP39: $Q:$Q | DQ39: $R:$R | DR39: $S:$S | DS39: $Q:$Q | DT39: $R:$R | DU39: $S:$S | DV39: $Q:$Q | DW39: $R:$R | DX39: $S:$S | DY39: $Q:$Q | DZ39: $R:$R | EA39: $S:$S | EB39: $Q:$Q | EC39: $R:$R | ED39: $S:$S | EE39: $S:$S | EF39: $S:$S | EG39: $S:$S | EH39: $S:$S | EI39: $Q:$Q | EJ39: $R:$R | EK39: $Q:$Q | EL39: $R:$R | EM39: $Q:$Q | EN39: $R:$R | EO39: $Q:$Q | EP39: $R:$R | EQ39: $Q:$Q | ER39: $R:$R | ES39: $S:$S | ET39: $Q:$Q | EU39: $R:$R | EV39: $S:$S | EW39: $S:$S | EX39: $S:$S | EY39: $S:$S | EZ39: $S:$S | FA39: $S:$S | FB39: $S:$S | FC39: $T:$T | FD39: $S:$S | FE39: $T:$T | FF39: $S:$S | FG39: $T:$T | FH39: $S:$S | FI39: $T:$T | FJ39: $S:$S | FK39: $T:$T | FL39: $S:$S | FM39: $T:$T | FN39: $S:$S | FO39: $T:$T | FP39: $S:$S | FQ39: $T:$T | FR39: =HLOOKUP(FR$38,INDIRECT(FR$36&"RangeColumns"),2,FALSE) -> $S:$S | FS39: $S:$S | FT39: $S:$S | FU39: $S:$S | FV39: $S:$S | FW39: $S:$S | FX39: $S:$S | FY39: $S:$S | FZ39: $S:$S | GA39: $S:$S | GB39: $S:$S | GC39: $S:$S | GD39: $S:$S | GE39: $S:$S | GF39: $S:$S | GG39: $S:$S | GH39: $S:$S | GI39: $S:$S | GJ39: $S:$S | GK39: $S:$S | GL39: $T:$T | GM39: =HLOOKUP(GM$38,INDIRECT(GM$36&"RangeColumns"),2,FALSE) -> $T:$T | GN39: $U:$U | GO39: $U:$U | GP39: $V:$V | GQ39: $V:$V | GR39: $W:$W | GS39: $W:$W | GT39: $X:$X | GU39: $X:$X | GV39: $Y:$Y | GW39: $Y:$Y | GX39: $Y:$Y | GY39: $Y:$Y | GZ39: $Y:$Y | HA39: $Y:$Y | HB39: $Y:$Y | HC39: $Y:$Y | HD39: $Y:$Y | HE39: $Y:$Y | HF39: $Y:$Y | HG39: $Y:$Y | HH39: $Y:$Y | HI39: $Y:$Y | HJ39: $Y:$Y | HK39: $S:$S | HL39: $T:$T | HM39: $U:$U | HN39: $V:$V | HO39: $W:$W | HP39: $X:$X | HQ39: $Y:$Y | HR39: =HLOOKUP(HR$38,INDIRECT(HR$36&"RangeColumns"),2,FALSE) -> $S:$S | HS39: $S:$S | HT39: $S:$S | HU39: $S:$S | HV39: $S:$S | HW39: $R:$R | HX39: $R:$R | HY39: $R:$R | HZ39: $R:$R | IA39: $R:$R | IB39: $S:$S | IC39: $S:$S | ID39: $S:$S | IE39: $S:$S | IF39: $S:$S | IG39: =HLOOKUP(IG$38,INDIRECT(IG$36&"RangeColumns"),2,FALSE) -> $Q:$Q | IH39: =HLOOKUP(IH$38,INDIRECT(IH$36&"RangeColumns"),2,FALSE) -> $Q:$Q | II39: $R:$R | IJ39: $S:$S | IK39: $T:$T | IL39: $W:$W | IM39: $X:$X | IN39: $Y:$Y | IO39: $Z:$Z | IP39: $Q:$Q | IQ39: $R:$R | IR39: $S:$S | IS39: $T:$T | IT39: $W:$W | IU39: $X:$X | IV39: $Y:$Y | IW39: $Z:$Z | IX39: $Q:$Q | IY39: $R:$R | IZ39: $S:$S | JA39: $T:$T | JB39: $W:$W | JC39: $X:$X | JD39: $Y:$Y | JE39: $Z:$Z | JF39: $Q:$Q | JG39: $R:$R | JH39: $S:$S | JI39: $T:$T | JJ39: $W:$W | JK39: $X:$X | JL39: $Y:$Y | JM39: $Z:$Z | JN39: $Q:$Q | JO39: $R:$R | JP39: $S:$S | JQ39: $T:$T | JR39: $W:$W | JS39: $X:$X | JT39: $Y:$Y | JU39: $Z:$Z | JV39: $Q:$Q | JW39: $R:$R | JX39: $S:$S | JY39: $T:$T | JZ39: $W:$W | KA39: $X:$X | KB39: $Y:$Y | KC39: $Z:$Z | KD39: $Q:$Q | KE39: $R:$R | KF39: $S:$S | KG39: $T:$T | KH39: $W:$W | KI39: $X:$X | KJ39: $Y:$Y | KK39: $Z:$Z | KL39: $Q:$Q | KM39: $R:$R | KN39: $S:$S | KO39: $T:$T | KP39: $W:$W | KQ39: $X:$X | KR39: $Y:$Y | KS39: $Z:$Z | KT39: $Q:$Q | KU39: =HLOOKUP(KU$38,INDIRECT(KU$36&"RangeColumns"),2,FALSE) -> $R:$R | KV39: $S:$S | KW39: $T:$T | KX39: $W:$W | KY39: $X:$X | KZ39: $Y:$Y | LA39: $Z:$Z | LB39: $Q:$Q | LC39: $R:$R | LD39: $S:$S | LE39: $T:$T | LF39: $W:$W | LG39: $X:$X | LH39: $Y:$Y | LI39: $Z:$Z | LJ39: $Q:$Q | LK39: $R:$R | LL39: $S:$S | LM39: $T:$T | LN39: $W:$W | LO39: $X:$X | LP39: $Y:$Y | LQ39: $Z:$Z | LR39: $Q:$Q | LS39: $R:$R | LT39: $S:$S | LU39: $T:$T | LV39: $W:$W | LW39: $X:$X | LX39: $Y:$Y | LY39: $Z:$Z | LZ39: $Q:$Q | MA39: $R:$R | MB39: $S:$S | MC39: $T:$T | MD39: $W:$W | ME39: $X:$X | MF39: $Y:$Y | MG39: $Z:$Z | MH39: $Q:$Q | MI39: $R:$R | MJ39: $S:$S | MK39: $T:$T | ML39: $W:$W | MM39: $X:$X | MN39: $Y:$Y | MO39: $Z:$Z | MP39: $Q:$Q | MQ39: $R:$R | MR39: $S:$S | MS39: $T:$T | MT39: $W:$W | MU39: $X:$X | MV39: $Y:$Y | MW39: $Z:$Z | MX39: $Q:$Q | MY39: $R:$R | MZ39: $S:$S | NA39: $T:$T | NB39: $W:$W | NC39: $X:$X | ND39: $Y:$Y | NE39: $Z:$Z | NF39: $Q:$Q | NG39: $R:$R | NH39: $S:$S | NI39: $T:$T | NJ39: $W:$W | NK39: $X:$X | NL39: $Y:$Y | NM39: $Z:$Z | NN39: $Q:$Q | NO39: $R:$R | NP39: $S:$S | NQ39: $T:$T | NR39: $W:$W | NS39: $X:$X | NT39: $Y:$Y | NU39: $Z:$Z | NV39: $Q:$Q | NW39: $R:$R | NX39: $S:$S | NY39: $T:$T | NZ39: $W:$W | OA39: $X:$X | OB39: $Y:$Y | OC39: $Z:$Z | OD39: $S:$S | OE39: $U:$U | OF39: $S:$S | OG39: $U:$U | OH39: =HLOOKUP(OH$38,INDIRECT(OH$36&"RangeColumns"),2,FALSE) -> $S:$S | OI39: $U:$U | OJ39: $S:$S | OK39: $U:$U | OL39: $S:$S | OM39: $U:$U | ON39: $S:$S | OO39: $U:$U | OP39: $S:$S | OQ39: $U:$U | OR39: =HLOOKUP(OR$38,INDIRECT(OR$36&"RangeColumns"),2,FALSE) -> $S:$S | OS39: $U:$U | OT39: $S:$S | OU39: $U:$U | OV39: $S:$S | OW39: $U:$U | OX39: $S:$S | OY39: $U:$U | OZ39: $S:$S | PA39: $U:$U | PB39: $S:$S | PC39: $U:$U | PD39: $S:$S | PE39: $U:$U | PF39: $S:$S | PG39: $U:$U | PH39: $S:$S | PI39: $U:$U | PJ39: $S:$S | PK39: $U:$U | PL39: $S:$S | PM39: $U:$U | PN39: $S:$S | PO39: $U:$U | PP39: $S:$S | PQ39: $U:$U | PR39: $S:$S | PS39: $U:$U | PT39: $S:$S | PU39: $U:$U | PV39: $S:$S | PW39: $U:$U | PX39: $S:$S | PY39: $U:$U | PZ39: $S:$S | QA39: $U:$U | QB39: =HLOOKUP(QB$38,INDIRECT(QB$36&"RangeColumns"),2,FALSE) -> $S:$S | QC39: $T:$T | QD39: $S:$S | QE39: $T:$T | QF39: $S:$S | QG39: $T:$T | QH39: =HLOOKUP(QH$38,INDIRECT(QH$36&"RangeColumns"),2,FALSE) -> $S:$S | QI39: $T:$T | QJ39: $S:$S | QK39: $T:$T | QL39: $S:$S | QM39: $T:$T | QN39: $S:$S | QO39: $T:$T | QP39: =HLOOKUP(QP$38,INDIRECT(QP$36&"RangeColumns"),2,FALSE) -> $S:$S | QQ39: =HLOOKUP(QQ$38,INDIRECT(QQ$36&"RangeColumns"),2,FALSE) -> $T:$T | QR39: =HLOOKUP(QR$38,INDIRECT(QR$36&"RangeColumns"),2,FALSE) -> $S:$S | QS39: =HLOOKUP(QS$38,INDIRECT(QS$36&"RangeColumns"),2,FALSE) -> $T:$T | QT39: =HLOOKUP(QT$38,INDIRECT(QT$36&"RangeColumns"),2,FALSE) -> $S:$S | QU39: $T:$T | QV39: $S:$S | QW39: $T:$T | QX39: $S:$S | QY39: $T:$T | QZ39: $S:$S | RA39: $T:$T | RB39: $S:$S | RC39: $T:$T | RD39: $S:$S | RE39: $T:$T | RF39: $S:$S | RG39: $T:$T | RH39: $S:$S | RI39: $T:$T | RJ39: $S:$S | RK39: $T:$T | RL39: $S:$S | RM39: $T:$T | RN39: $S:$S | RO39: $T:$T | RP39: $S:$S | RQ39: $T:$T | RR39: $S:$S | RS39: $T:$T | RT39: $S:$S | RU39: $S:$S | RV39: $S:$S | RW39: $S:$S | RX39: $S:$S | RY39: $S:$S | RZ39: $S:$S | SA39: $S:$S | SB39: $S:$S | SC39: $S:$S | SD39: $S:$S | SE39: $S:$S | SF39: $S:$S | SG39: $S:$S | SH39: $S:$S | SI39: $S:$S | SJ39: $S:$S | SK39: $S:$S | SL39: $S:$S | SM39: $R:$R | SN39: $U:$U | SO39: $R:$R | SP39: $R:$R | SQ39: $S:$S | SR39: =HLOOKUP(SR$38,INDIRECT(SR$36&"RangeColumns"),2,FALSE) -> $R:$R | SS39: $R:$R | ST39: $R:$R | SU39: $R:$R | SV39: $R:$R | SW39: $P:$P | SX39: =HLOOKUP(SX$38,INDIRECT(SX$36&"RangeColumns"),2,FALSE) -> $P:$P | SY39: $P:$P | SZ39: $P:$P | TA39: $P:$P | TB39: $P:$P | TC39: $P:$P | TD39: $P:$P | TE39: $P:$P | TF39: $P:$P | TG39: =HLOOKUP(TG$38,INDIRECT(TG$36&"RangeColumns"),2,FALSE) -> $P:$P | TH39: $P:$P | TI39: $P:$P | TJ39: $P:$P | TK39: $P:$P | TL39: $P:$P | TM39: $P:$P | TN39: $P:$P | TO39: $P:$P | TP39: $P:$P | TQ39: $P:$P | TR39: $P:$P | TS39: $P:$P | TT39: $P:$P | TU39: $P:$P | TV39: $P:$P | TW39: $P:$P | TX39: $P:$P | TY39: $P:$P | TZ39: $P:$P | UA39: $P:$P | UB39: $P:$P | UC39: $P:$P | UD39: $P:$P | UE39: $P:$P | UF39: $P:$P | UG39: $P:$P | UH39: $P:$P | UI39: $P:$P | UJ39: $P:$P | UK39: $P:$P | UL39: $P:$P | UM39: $P:$P | UN39: $P:$P | UO39: $P:$P | UP39: =HLOOKUP(UP$38,INDIRECT(UP$36&"RangeColumns"),2,FALSE) -> $P:$P | UQ39: =HLOOKUP(UQ$38,INDIRECT(UQ$36&"RangeColumns"),2,FALSE) -> $P:$P | UR39: =HLOOKUP(UR$38,INDIRECT(UR$36&"RangeColumns"),2,FALSE) -> $P:$P | US39: =HLOOKUP(US$38,INDIRECT(US$36&"RangeColumns"),2,FALSE) -> $P:$P | UT39: =HLOOKUP(UT$38,INDIRECT(UT$36&"RangeColumns"),2,FALSE) -> $P:$P
A77: =VLOOKUP(IC!$J$1519,ComparisonScenarios,$F$1-1,FALSE) -> 1

Sheet M
A4: MAIN MENU
N7: VERSION 2.0 (Dec 2018)
T8: Note to MCSCD
N9: For INSTRUCTIONS and | T9: Potential tool updates identified
N10: Definition of Terms | T10: in the following priority categories:
N11: =HYPERLINK("","click here") -> click here | U11: basic
U12: research
N13: For the Tool USER GUIDE | U13: technical
N14: click here | U14: advanced
B17: Current Scenario: | D17: =Data_Scenario_Active_Label -> #0 - <<Default Scenario>> | E17: =Data_Scenario_Active_Name -> <<Default Scenario>> | F17: <<Default Scenario>> | G17: <<Default Scenario>> | H17: F | I17: To view a different scenario click on "Select, Create or Delete Scenarios", and follow the steps
D18: <<Default Scenario>> | E18: <<Default Scenario>> | F18: <<Default Scenario>> | G18: <<Default Scenario>>
F22: F | G22: This step allows users to choose from six default scenarios,
G23: begin a new scenario, or delete an existing scenario.
F25: F | G25: This step specifies the unit costs for all variables,
G26: as well as related costing parameters.
F28: F | G28: This step inputs revenue information such as
G29: property tax rates and development charges
F31: F | G31: This step specifies the characteristics of the scenario
G32: including development densities, length of roads, sewers, etc.
F34: F | G34: This step allows users to allocate costs and revenues
G35: between developers, the municipality and users.
F37: F | G37: This step enables users to specify replacement periods for all assests, and
G38: discount costs to account for infrastructure that may already be in place.
F40: F | G40: This is an optional step where users can input additional
G41: costs or revenues that are not considered in the basic tool.
F43: F | G43: This step illustrates results in several ways and allows
G44: the user to compare up to three different scenarios.
F46: F | G46: This step allows users to view and
G47: print their inserted comments.

Sheet S
A4: STEP 1: | B4: SELECT/CREATE/DELETE SCENARIO
H6: Note: It will take a minute to populate the relevant data when the scenario is changed.
A7: SELECT SCENARIO
A9: Choose the scenario that best reflects the characteristics of the development scenario you wish to explore.
A10: F | B10: See below for a brief description of each of the six built-in scenarios
I11: Scenarios 1 to 6 must be saved under a NEW name before they can be modified. To view the results of any scenario, select the scenario and click 'Main Menu' above.
B12: Name / Description | G12: Scenario #
H13: F
A17: If you want to modify the scenario under a NEW name, enter the new name
B19: NEW Name / Description
H20: F | I20: Creates a copy of the scenario selected. This step is mandatory if the user wants to modify scenarios 1 to 6.
A26: If you want to delete the scenario selected above, click on Delete Scenario
H28: F | I28: Deletes the scenario selected. Scenarios 1 to 6 cannot be deleted.
A33: DEFAULT BUILT-IN SCENARIOS - DESCRIPTION
A64: F | B64: Refer to User Guide for a more detailed description of the above scenarios.
A65: & | B65: For a detailed and illustrative description of the neighbourhood/development types for 6 large Canadian cities, see
L66: Comparing Sustainable Communities

Sheet CV
AG3: =MID(ADDRESS(ROW(Data!$A$35),1,2),FIND("$",ADDRESS(ROW(Data!$A$35),1,2)),100)&":"&MID(ADDRESS(ROW(Data!$A$35),1,2),FIND("$",ADDRESS(ROW(Data!$A$35),1,2)),100) -> $35:$35
A4: STEP 2: | B4: COSTING VARIABLES | P4: =OFFSET(P4,0,1)-1 -> -3 | Q4: =OFFSET(Q4,0,1)-1 -> -2 | R4: =OFFSET(R4,0,1)-1 -> -1 | S4: 0 | T4: =OFFSET(T4,0,-1)+1 -> 1 | U4: =OFFSET(U4,0,-1)+1 -> 2 | V4: =OFFSET(V4,0,-1)+1 -> 3 | W4: =OFFSET(W4,0,-1)+1 -> 4 | Z4: =COLUMN(Z4)-COLUMN($F4) -> 20 | AN4: =COLUMN(AN4)-COLUMN($F4) -> 34
P5: =LEFT(ADDRESS(1,COLUMN(P1),3),LEN(ADDRESS(1,COLUMN(P1),3))-1)&":"&LEFT(ADDRESS(1,COLUMN(P1),3),LEN(ADDRESS(1,COLUMN(P1),3))-1) -> $P:$P | Q5: =LEFT(ADDRESS(1,COLUMN(Q1),3),LEN(ADDRESS(1,COLUMN(Q1),3))-1)&":"&LEFT(ADDRESS(1,COLUMN(Q1),3),LEN(ADDRESS(1,COLUMN(Q1),3))-1) -> $Q:$Q | R5: =LEFT(ADDRESS(1,COLUMN(R1),3),LEN(ADDRESS(1,COLUMN(R1),3))-1)&":"&LEFT(ADDRESS(1,COLUMN(R1),3),LEN(ADDRESS(1,COLUMN(R1),3))-1) -> $R:$R | S5: $S:$S | T5: $T:$T | U5: $U:$U | V5: $V:$V | W5: $W:$W | AG5: Data!
A6: F | C6: Current Scenario: | D6: =Data_Scenario_Active_Label -> #0 - <<Default Scenario>> | H6: =Data_Scenario_Active_Note -> Note: Changes to Scenarios #0 - 6 cannot be SAVED as they are the built-in scenarios
A7: GENERAL COST ASSUMPTIONS
E9: Interest Rate for Amortizing Capital Costs | F9: 0.06 | G9: F | H9: This is usually 0-1% above the current long term residential lending rate | S9: =A$7&E9 -> GENERAL COST ASSUMPTIONSInterest Rate for Amortizing Capital Costs | Z9: =INDEX(Data!$1:$1048576,ROW(Data!$A$7),MATCH(S9,Data!$35:$35,0)) -> 0.06 | AG9: =$AG$5&ADDRESS(ROW(Data!$A$7),MATCH(S9,INDIRECT($AG$5&$AG$3),0)) -> Data!$BF$7 | AN9: =INDEX(Data!$1:$1048576,Data_Scenario_Current_RefScenario_Row,MATCH(S9,Data!$35:$35,0)) -> 0.06
A11: POTENTIAL COMMUNITY SERVICES
A12: Roads, Water, Sanitary and Storm - Capital Costs
B14: This section refers to the cost of road infrastructure within the community/development being examined.
B15: The costs are then applied to the road layout specified in Step 4.
D18: Type 1 | E18: Type 2 | F18: Type 3 | G18: Type 4 | H18: Type 5 | I18: Type 6 | J18: Type 7
D19: ='RC'!F10 -> Public Laneway | E19: ='RC'!G10 -> Two-lane local | F19: ='RC'!H10 -> Two-lane local | G19: ='RC'!I10 -> Two-lane collector | H19: ='RC'!J10 -> Four-lane collector | I19: ='RC'!K10 -> Four-lane Arterial | J19: ='RC'!L10 -> User Defined
D20: ='RC'!F12 -> 20 m R.O.W | E20: ='RC'!G12 -> 20 m R.O.W | F20: ='RC'!H12 -> 20 m R.O.W | G20: ='RC'!I12 -> 23 m R.O.W | H20: ='RC'!J12 -> 25 m R.O.W | I20: ='RC'!K12 -> 8 m R.O.W | J20: ='RC'!L12 -> 0 m R.O.W
C21: Basic Roadworks ($/m) | D21: ='RC'!F45 -> 641.7065145 | E21: ='RC'!G45 -> 1450.096525 | F21: ='RC'!H45 -> 1586.239609 | G21: ='RC'!I45 -> 1675.82674 | H21: ='RC'!J45 -> 1878.701494 | I21: ='RC'!K45 -> 211.6 | J21: ='RC'!L45 -> 0 | K21: F | L21: Incudes excavation, granular fill, asphalt | X21: 1437.769697 | Y21: 1133.85303 | Z21: 1685.686364 | AA21: 1772.686364 | AB21: 2260.536364 | AC21: 2452.961364 | AD21: 3266.136364 | AL21: 852.3530303 | AM21: 1133.85303 | AN21: 1685.686364 | AO21: 1772.686364 | AP21: 2260.536364 | AQ21: 2452.961364 | AR21: 2260.536364
L22: sidewalks, and basic landscaping
C23: Sidewalks ($/m) | D23: 0 | E23: 0 | F23: 0 | G23: 0 | H23: 0 | I23: 0 | J23: 0 | K23: F | L23: NOT USED: Sidewalk costs are accounted | Q23: =$A$12&LEFT($C23,FIND("(",$C23)-1)&D$18 -> Roads, Water, Sanitary and Storm - Capital CostsSidewalks Type 1 | R23: Roads, Water, Sanitary and Storm - Capital CostsSidewalks Type 2 | S23: Roads, Water, Sanitary and Storm - Capital CostsSidewalks Type 3 | T23: Roads, Water, Sanitary and Storm - Capital CostsSidewalks Type 4 | U23: Roads, Water, Sanitary and Storm - Capital CostsSidewalks Type 5 | V23: Roads, Water, Sanitary and Storm - Capital CostsSidewalks Type 6 | W23: Roads, Water, Sanitary and Storm - Capital CostsSidewalks Type 7 | X23: =INDEX(Data!$1:$1048576,ROW(Data!$A$7),MATCH(Q23,Data!$35:$35,0)) -> 0 | Y23: =INDEX(Data!$1:$1048576,ROW(Data!$A$7),MATCH(R23,Data!$35:$35,0)) -> 0 | Z23: =INDEX(Data!$1:$1048576,ROW(Data!$A$7),MATCH(S23,Data!$35:$35,0)) -> 0 | AA23: =INDEX(Data!$1:$1048576,ROW(Data!$A$7),MATCH(T23,Data!$35:$35,0)) -> 0 | AB23: =INDEX(Data!$1:$1048576,ROW(Data!$A$7),MATCH(U23,Data!$35:$35,0)) -> 0 | AC23: =INDEX(Data!$1:$1048576,ROW(Data!$A$7),MATCH(V23,Data!$35:$35,0)) -> 0 | AD23: =INDEX(Data!$1:$1048576,ROW(Data!$A$7),MATCH(W23,Data!$35:$35,0)) -> 0 | AE23: =$AG$5&ADDRESS(ROW(Data!$A$7),MATCH(Q23,INDIRECT($AG$5&$AG$3),0)) -> Data!$BG$7 | AF23: =$AG$5&ADDRESS(ROW(Data!$A$7),MATCH(R23,INDIRECT($AG$5&$AG$3),0)) -> Data!$BH$7 | AG23: =$AG$5&ADDRESS(ROW(Data!$A$7),MATCH(S23,INDIRECT($AG$5&$AG$3),0)) -> Data!$BI$7 | AH23: =$AG$5&ADDRESS(ROW(Data!$A$7),MATCH(T23,INDIRECT($AG$5&$AG$3),0)) -> Data!$BJ$7 | AI23: =$AG$5&ADDRESS(ROW(Data!$A$7),MATCH(U23,INDIRECT($AG$5&$AG$3),0)) -> Data!$BK$7 | AJ23: =$AG$5&ADDRESS(ROW(Data!$A$7),MATCH(V23,INDIRECT($AG$5&$AG$3),0)) -> Data!$BL$7 | AK23: =$AG$5&ADDRESS(ROW(Data!$A$7),MATCH(W23,INDIRECT($AG$5&$AG$3),0)) -> Data!$BM$7 | AL23: =INDEX(Data!$1:$1048576,Data_Scenario_Current_RefScenario_Row,MATCH(Q23,Data!$35:$35,0)) -> 0 | AM23: =INDEX(Data!$1:$1048576,Data_Scenario_Current_RefScenario_Row,MATCH(R23,Data!$35:$35,0)) -> 0 | AN23: =INDEX(Data!$1:$1048576,Data_Scenario_Current_RefScenario_Row,MATCH(S23,Data!$35:$35,0)) -> 0 | AO23: =INDEX(Data!$1:$1048576,Data_Scenario_Current_RefScenario_Row,MATCH(T23,Data!$35:$35,0)) -> 0 | AP23: =INDEX(Data!$1:$1048576,Data_Scenario_Current_RefScenario_Row,MATCH(U23,Data!$35:$35,0)) -> 0 | AQ23: =INDEX(Data!$1:$1048576,Data_Scenario_Current_RefScenario_Row,MATCH(V23,Data!$35:$35,0)) -> 0 | AR23: =INDEX(Data!$1:$1048576,Data_Scenario_Current_RefScenario_Row,MATCH(W23,Data!$35:$35,0)) -> 0
L24: for in the Road unit costs. (HIDE THESE ROWS)
E25: For information on the assumptions for road costs,
E26: including quantities and unit costs, click here:
C28: Potable Water Distribution ($/m) | D28: 200 | E28: 200 | F28: 200 | G28: 200 | H28: 200 | I28: 200 | J28: 200 | K28: F | L28: Includes 150 mm watermain, connectors | Q28: =$A$12&LEFT($C28,FIND("(",$C28)-1)&D$18 -> Roads, Water, Sanitary and Storm - Capital CostsPotable Water Distribution Type 1 | R28: Roads, Water, Sanitary and Storm - Capital CostsPotable Water Distribution Type 2 | S28: Roads, Water, Sanitary and Storm - Capital CostsPotable Water Distribution Type 3 | T28: Roads, Water, Sanitary and Storm - Capital CostsPotable Water Distribution Type 4 | U28: Roads, Water, Sanitary and Storm - Capital CostsPotable Water Distribution Type 5 | V28: Roads, Water, Sanitary and Storm - Capital CostsPotable Water Distribution Type 6 | W28: Roads, Water, Sanitary and Storm - Capital CostsPotable Water Distribution Type 7 | X28: =INDEX(Data!$1:$1048576,ROW(Data!$A$7),MATCH(Q28,Data!$35:$35,0)) -> 200 | Y28: =INDEX(Data!$1:$1048576,ROW(Data!$A$7),MATCH(R28,Data!$35:$35,0)) -> 200 | Z28: =INDEX(Data!$1:$1048576,ROW(Data!$A$7),MATCH(S28,Data!$35:$35,0)) -> 200 | AA28: =INDEX(Data!$1:$1048576,ROW(Data!$A$7),MATCH(T28,Data!$35:$35,0)) -> 200 | AB28: =INDEX(Data!$1:$1048576,ROW(Data!$A$7),MATCH(U28,Data!$35:$35,0)) -> 200 | AC28: =INDEX(Data!$1:$1048576,ROW(Data!$A$7),MATCH(V28,Data!$35:$35,0)) -> 200 | AD28: =INDEX(Data!$1:$1048576,ROW(Data!$A$7),MATCH(W28,Data!$35:$35,0)) -> 200 | AE28: =$AG$5&ADDRESS(ROW(Data!$A$7),MATCH(Q28,INDIRECT($AG$5&$AG$3),0)) -> Data!$BN$7 | AF28: =$AG$5&ADDRESS(ROW(Data!$A$7),MATCH(R28,INDIRECT($AG$5&$AG$3),0)) -> Data!$BO$7 | AG28: =$AG$5&ADDRESS(ROW(Data!$A$7),MATCH(S28,INDIRECT($AG$5&$AG$3),0)) -> Data!$BP$7 | AH28: =$AG$5&ADDRESS(ROW(Data!$A$7),MATCH(T28,INDIRECT($AG$5&$AG$3),0)) -> Data!$BQ$7 | AI28: =$AG$5&ADDRESS(ROW(Data!$A$7),MATCH(U28,INDIRECT($AG$5&$AG$3),0)) -> Data!$BR$7 | AJ28: =$AG$5&ADDRESS(ROW(Data!$A$7),MATCH(V28,INDIRECT($AG$5&$AG$3),0)) -> Data!$BS$7 | AK28: =$AG$5&ADDRESS(ROW(Data!$A$7),MATCH(W28,INDIRECT($AG$5&$AG$3),0)) -> Data!$BT$7 | AL28: =INDEX(Data!$1:$1048576,Data_Scenario_Current_RefScenario_Row,MATCH(Q28,Data!$35:$35,0)) -> 200 | AM28: =INDEX(Data!$1:$1048576,Data_Scenario_Current_RefScenario_Row,MATCH(R28,Data!$35:$35,0)) -> 200 | AN28: =INDEX(Data!$1:$1048576,Data_Scenario_Current_RefScenario_Row,MATCH(S28,Data!$35:$35,0)) -> 200 | AO28: =INDEX(Data!$1:$1048576,Data_Scenario_Current_RefScenario_Row,MATCH(T28,Data!$35:$35,0)) -> 200 | AP28: =INDEX(Data!$1:$1048576,Data_Scenario_Current_RefScenario_Row,MATCH(U28,Data!$35:$35,0)) -> 200 | AQ28: =INDEX(Data!$1:$1048576,Data_Scenario_Current_RefScenario_Row,MATCH(V28,Data!$35:$35,0)) -> 200 | AR28: =INDEX(Data!$1:$1048576,Data_Scenario_Current_RefScenario_Row,MATCH(W28,Data!$35:$35,0)) -> 200
L29: and hydrants
C30: Sanitary Sewer Collection ($/m) | D30: 220 | E30: 220 | F30: 220 | G30: 220 | H30: 220 | I30: 220 | J30: 220 | K30: F | L30: Includes 200 mm pipe, connectors | Q30: =$A$12&LEFT($C30,FIND("(",$C30)-1)&D$18 -> Roads, Water, Sanitary and Storm - Capital CostsSanitary Sewer Collection Type 1 | R30: Roads, Water, Sanitary and Storm - Capital CostsSanitary Sewer Collection Type 2 | S30: Roads, Water, Sanitary and Storm - Capital CostsSanitary Sewer Collection Type 3 | T30: Roads, Water, Sanitary and Storm - Capital CostsSanitary Sewer Collection Type 4 | U30: Roads, Water, Sanitary and Storm - Capital CostsSanitary Sewer Collection Type 5 | V30: Roads, Water, Sanitary and Storm - Capital CostsSanitary Sewer Collection Type 6 | W30: Roads, Water, Sanitary and Storm - Capital CostsSanitary Sewer Collection Type 7 | X30: =INDEX(Data!$1:$1048576,ROW(Data!$A$7),MATCH(Q30,Data!$35:$35,0)) -> 220 | Y30: =INDEX(Data!$1:$1048576,ROW(Data!$A$7),MATCH(R30,Data!$35:$35,0)) -> 220 | Z30: =INDEX(Data!$1:$1048576,ROW(Data!$A$7),MATCH(S30,Data!$35:$35,0)) -> 220 | AA30: =INDEX(Data!$1:$1048576,ROW(Data!$A$7),MATCH(T30,Data!$35:$35,0)) -> 220 | AB30: =INDEX(Data!$1:$1048576,ROW(Data!$A$7),MATCH(U30,Data!$35:$35,0)) -> 220 | AC30: =INDEX(Data!$1:$1048576,ROW(Data!$A$7),MATCH(V30,Data!$35:$35,0)) -> 220 | AD30: =INDEX(Data!$1:$1048576,ROW(Data!$A$7),MATCH(W30,Data!$35:$35,0)) -> 220 | AE30: =$AG$5&ADDRESS(ROW(Data!$A$7),MATCH(Q30,INDIRECT($AG$5&$AG$3),0)) -> Data!$BU$7 | AF30: =$AG$5&ADDRESS(ROW(Data!$A$7),MATCH(R30,INDIRECT($AG$5&$AG$3),0)) -> Data!$BV$7 | AG30: =$AG$5&ADDRESS(ROW(Data!$A$7),MATCH(S30,INDIRECT($AG$5&$AG$3),0)) -> Data!$BW$7 | AH30: =$AG$5&ADDRESS(ROW(Data!$A$7),MATCH(T30,INDIRECT($AG$5&$AG$3),0)) -> Data!$BX$7 | AI30: =$AG$5&ADDRESS(ROW(Data!$A$7),MATCH(U30,INDIRECT($AG$5&$AG$3),0)) -> Data!$BY$7 | AJ30: =$AG$5&ADDRESS(ROW(Data!$A$7),MATCH(V30,INDIRECT($AG$5&$AG$3),0)) -> Data!$BZ$7 | AK30: =$AG$5&ADDRESS(ROW(Data!$A$7),MATCH(W30,INDIRECT($AG$5&$AG$3),0)) -> Data!$CA$7 | AL30: =INDEX(Data!$1:$1048576,Data_Scenario_Current_RefScenario_Row,MATCH(Q30,Data!$35:$35,0)) -> 220 | AM30: =INDEX(Data!$1:$1048576,Data_Scenario_Current_RefScenario_Row,MATCH(R30,Data!$35:$35,0)) -> 220 | AN30: =INDEX(Data!$1:$1048576,Data_Scenario_Current_RefScenario_Row,MATCH(S30,Data!$35:$35,0)) -> 220 | AO30: =INDEX(Data!$1:$1048576,Data_Scenario_Current_RefScenario_Row,MATCH(T30,Data!$35:$35,0)) -> 220 | AP30: =INDEX(Data!$1:$1048576,Data_Scenario_Current_RefScenario_Row,MATCH(U30,Data!$35:$35,0)) -> 220 | AQ30: =INDEX(Data!$1:$1048576,Data_Scenario_Current_RefScenario_Row,MATCH(V30,Data!$35:$35,0)) -> 220 | AR30: =INDEX(Data!$1:$1048576,Data_Scenario_Current_RefScenario_Row,MATCH(W30,Data!$35:$35,0)) -> 220
L31: and maintenance holes
C32: Storm Sewer Collection ($/m) | D32: 440 | E32: 440 | F32: 440 | G32: 440 | H32: 440 | I32: 440 | J32: 440 | K32: F | L32: Includes 300 mm pipe, connectors | Q32: =$A$12&LEFT($C32,FIND("(",$C32)-1)&D$18 -> Roads, Water, Sanitary and Storm - Capital CostsStorm Sewer Collection Type 1 | R32: Roads, Water, Sanitary and Storm - Capital CostsStorm Sewer Collection Type 2 | S32: Roads, Water, Sanitary and Storm - Capital CostsStorm Sewer Collection Type 3 | T32: Roads, Water, Sanitary and Storm - Capital CostsStorm Sewer Collection Type 4 | U32: Roads, Water, Sanitary and Storm - Capital CostsStorm Sewer Collection Type 5 | V32: Roads, Water, Sanitary and Storm - Capital CostsStorm Sewer Collection Type 6 | W32: Roads, Water, Sanitary and Storm - Capital CostsStorm Sewer Collection Type 7 | X32: =INDEX(Data!$1:$1048576,ROW(Data!$A$7),MATCH(Q32,Data!$35:$35,0)) -> 440 | Y32: =INDEX(Data!$1:$1048576,ROW(Data!$A$7),MATCH(R32,Data!$35:$35,0)) -> 440 | Z32: =INDEX(Data!$1:$1048576,ROW(Data!$A$7),MATCH(S32,Data!$35:$35,0)) -> 440 | AA32: =INDEX(Data!$1:$1048576,ROW(Data!$A$7),MATCH(T32,Data!$35:$35,0)) -> 440 | AB32: =INDEX(Data!$1:$1048576,ROW(Data!$A$7),MATCH(U32,Data!$35:$35,0)) -> 440 | AC32: =INDEX(Data!$1:$1048576,ROW(Data!$A$7),MATCH(V32,Data!$35:$35,0)) -> 440 | AD32: =INDEX(Data!$1:$1048576,ROW(Data!$A$7),MATCH(W32,Data!$35:$35,0)) -> 440 | AE32: =$AG$5&ADDRESS(ROW(Data!$A$7),MATCH(Q32,INDIRECT($AG$5&$AG$3),0)) -> Data!$CB$7 | AF32: =$AG$5&ADDRESS(ROW(Data!$A$7),MATCH(R32,INDIRECT($AG$5&$AG$3),0)) -> Data!$CC$7 | AG32: =$AG$5&ADDRESS(ROW(Data!$A$7),MATCH(S32,INDIRECT($AG$5&$AG$3),0)) -> Data!$CD$7 | AH32: =$AG$5&ADDRESS(ROW(Data!$A$7),MATCH(T32,INDIRECT($AG$5&$AG$3),0)) -> Data!$CE$7 | AI32: =$AG$5&ADDRESS(ROW(Data!$A$7),MATCH(U32,INDIRECT($AG$5&$AG$3),0)) -> Data!$CF$7 | AJ32: =$AG$5&ADDRESS(ROW(Data!$A$7),MATCH(V32,INDIRECT($AG$5&$AG$3),0)) -> Data!$CG$7 | AK32: =$AG$5&ADDRESS(ROW(Data!$A$7),MATCH(W32,INDIRECT($AG$5&$AG$3),0)) -> Data!$CH$7 | AL32: =INDEX(Data!$1:$1048576,Data_Scenario_Current_RefScenario_Row,MATCH(Q32,Data!$35:$35,0)) -> 440 | AM32: =INDEX(Data!$1:$1048576,Data_Scenario_Current_RefScenario_Row,MATCH(R32,Data!$35:$35,0)) -> 440 | AN32: =INDEX(Data!$1:$1048576,Data_Scenario_Current_RefScenario_Row,MATCH(S32,Data!$35:$35,0)) -> 440 | AO32: =INDEX(Data!$1:$1048576,Data_Scenario_Current_RefScenario_Row,MATCH(T32,Data!$35:$35,0)) -> 440 | AP32: =INDEX(Data!$1:$1048576,Data_Scenario_Current_RefScenario_Row,MATCH(U32,Data!$35:$35,0)) -> 440 | AQ32: =INDEX(Data!$1:$1048576,Data_Scenario_Current_RefScenario_Row,MATCH(V32,Data!$35:$35,0)) -> 440 | AR32: =INDEX(Data!$1:$1048576,Data_Scenario_Current_RefScenario_Row,MATCH(W32,Data!$35:$35,0)) -> 440
L33: and maintenance holes
A35: Regional Municipal Services - Capital Costs
B37: This section refers to the cost of regional infrastructure, namely potable water, wastewater and storm water.
B38: These costs may vary considerably depending on topography, environmental constraints, distance to existing infrastructure, etc.
B39: The costs refer to facilities that are over and above facilities internal to the development.
E41: Potable Water Distribution ($/metre of trunk pipe) | F41: 300 | G41: F | H41: Based on 300 mm trunk line. | S41: =A$35&LEFT(E41,FIND("(",E41)-2) -> Regional Municipal Services - Capital CostsPotable Water Distribution | Z41: =INDEX(Data!$1:$1048576,ROW(Data!$A$7),MATCH($S41,Data!$35:$35,0)) -> 300 | AG41: =$AG$5&ADDRESS(ROW(Data!$A$7),MATCH(S41,INDIRECT($AG$5&$AG$3),0)) -> Data!$CI$7 | AN41: =INDEX(Data!$1:$1048576,Data_Scenario_Current_RefScenario_Row,MATCH(S41,Data!$35:$35,0)) -> 300
E43: Sanitary Sewer Collection ($/metre of trunk pipe) | F43: 250 | G43: F | H43: Based on 300 mm trunk main, includes maintenance holes | S43: =A$35&LEFT(E43,FIND("(",E43)-2) -> Regional Municipal Services - Capital CostsSanitary Sewer Collection | Z43: =INDEX(Data!$1:$1048576,ROW(Data!$A$7),MATCH($S43,Data!$35:$35,0)) -> 250 | AG43: =$AG$5&ADDRESS(ROW(Data!$A$7),MATCH(S43,INDIRECT($AG$5&$AG$3),0)) -> Data!$CJ$7 | AN43: =INDEX(Data!$1:$1048576,Data_Scenario_Current_RefScenario_Row,MATCH(S43,Data!$35:$35,0)) -> 250
E45: Storm Sewer Collection ($/metre of trunk pipe) | F45: 500 | G45: F | H45: Based on 600 mm storm pipe, includes maintenance holes. | S45: =A$35&LEFT(E45,FIND("(",E45)-2) -> Regional Municipal Services - Capital CostsStorm Sewer Collection | Z45: =INDEX(Data!$1:$1048576,ROW(Data!$A$7),MATCH($S45,Data!$35:$35,0)) -> 500 | AG45: =$AG$5&ADDRESS(ROW(Data!$A$7),MATCH(S45,INDIRECT($AG$5&$AG$3),0)) -> Data!$CK$7 | AN45: =INDEX(Data!$1:$1048576,Data_Scenario_Current_RefScenario_Row,MATCH(S45,Data!$35:$35,0)) -> 500
E47: Wastewater Treatment ($/household) | F47: =HC!$F$17 -> 0 | S47: =A$35&LEFT(E47,FIND("(",E47)-2) -> Regional Municipal Services - Capital CostsWastewater Treatment | Z47: =INDEX(Data!$1:$1048576,ROW(Data!$A$7),MATCH($S47,Data!$35:$35,0)) -> 0 | AG47: =$AG$5&ADDRESS(ROW(Data!$A$7),MATCH(S47,INDIRECT($AG$5&$AG$3),0)) -> Data!$CL$7 | AN47: =INDEX(Data!$1:$1048576,Data_Scenario_Current_RefScenario_Row,MATCH(S47,Data!$35:$35,0)) -> 0
E49: Potable Water Treatment ($/household) | F49: =HC!$F$29 -> 0 | S49: =A$35&LEFT(E49,FIND("(",E49)-2) -> Regional Municipal Services - Capital CostsPotable Water Treatment | Z49: =INDEX(Data!$1:$1048576,ROW(Data!$A$7),MATCH($S49,Data!$35:$35,0)) -> 0 | AG49: =$AG$5&ADDRESS(ROW(Data!$A$7),MATCH(S49,INDIRECT($AG$5&$AG$3),0)) -> Data!$CM$7 | AN49: =INDEX(Data!$1:$1048576,Data_Scenario_Current_RefScenario_Row,MATCH(S49,Data!$35:$35,0)) -> 0
A51: Local Storm Water Management - Capital and O&M Cost
E53: Pond Cost ($/ha) | F53: 246000 | G53: F | H53: Costs may vary significantly. | S53: =A$51&LEFT(E53,FIND("(",E53)-2) -> Local Storm Water Management - Capital and O&M CostPond Cost | Z53: =INDEX(Data!$1:$1048576,ROW(Data!$A$7),MATCH($S53,Data!$35:$35,0)) -> 246000 | AG53: =$AG$5&ADDRESS(ROW(Data!$A$7),MATCH(S53,INDIRECT($AG$5&$AG$3),0)) -> Data!$CN$7 | AN53: =INDEX(Data!$1:$1048576,Data_Scenario_Current_RefScenario_Row,MATCH(S53,Data!$35:$35,0)) -> 246000
D55: Operating | E55: Maintenance | F55: Total O&M
C56: O&M Cost ($/ha): | D56: 0 | E56: 7000 | F56: =SUM(D56:E56) -> 7000 | Q56: =$A$51&LEFT($C$108,FIND("(",$C$108)-2)&" "&D$107 -> Local Storm Water Management - Capital and O&M CostO&M Cost Operating | R56: =$A$51&LEFT($C$108,FIND("(",$C$108)-2)&" "&E$107 -> Local Storm Water Management - Capital and O&M CostO&M Cost Maintenance | X56: =INDEX(Data!$1:$1048576,ROW(Data!$A$7),MATCH(Q56,Data!$35:$35,0)) -> 0 | Y56: =INDEX(Data!$1:$1048576,ROW(Data!$A$7),MATCH(R56,Data!$35:$35,0)) -> 7000 | AE56: =$AG$5&ADDRESS(ROW(Data!$A$7),MATCH(Q56,INDIRECT($AG$5&$AG$3),0)) -> Data!$CO$7 | AF56: =$AG$5&ADDRESS(ROW(Data!$A$7),MATCH(R56,INDIRECT($AG$5&$AG$3),0)) -> Data!$CP$7 | AL56: =INDEX(Data!$1:$1048576,Data_Scenario_Current_RefScenario_Row,MATCH(Q56,Data!$35:$35,0)) -> 0 | AM56: =INDEX(Data!$1:$1048576,Data_Scenario_Current_RefScenario_Row,MATCH(R56,Data!$35:$35,0)) -> 7000
A58: Roads, Water, Sanitary and Storm - O&M Costs
A59: F | B59: It is best practice to separate Operatng Costs from Maintenance Cost.
B60: Where separate values don't exist, the user can add the combined total in either
B61: category as only total combined O&M Cost is used to calculate lifecycle cost.
A62: Road O&M Costs ($/m)
D63: Operating | E63: Maintenance | F63: Total O&M | G63: F | H63: Road maintenance costs may vary by local climatic conditions and policies
C64: Local | D64: 3 | E64: 7 | F64: =SUM(D64:E64) -> 10 | H64: for snow clearing. | Q64: =$A$58&LEFT($A$62,FIND("(",$A$62)-1)&$C64&" "&D$63 -> Roads, Water, Sanitary and Storm - O&M CostsRoad O&M Costs Local Operating | R64: Roads, Water, Sanitary and Storm - O&M CostsRoad O&M Costs Local Maintenance | X64: =INDEX(Data!$1:$1048576,ROW(Data!$A$7),MATCH(Q64,Data!$35:$35,0)) -> 3 | Y64: =INDEX(Data!$1:$1048576,ROW(Data!$A$7),MATCH(R64,Data!$35:$35,0)) -> 7 | AE64: =$AG$5&ADDRESS(ROW(Data!$A$7),MATCH(Q64,INDIRECT($AG$5&$AG$3),0)) -> Data!$CQ$7 | AF64: =$AG$5&ADDRESS(ROW(Data!$A$7),MATCH(R64,INDIRECT($AG$5&$AG$3),0)) -> Data!$CR$7 | AL64: =INDEX(Data!$1:$1048576,Data_Scenario_Current_RefScenario_Row,MATCH(Q64,Data!$35:$35,0)) -> 3 | AM64: =INDEX(Data!$1:$1048576,Data_Scenario_Current_RefScenario_Row,MATCH(R64,Data!$35:$35,0)) -> 7
C65: Collector | D65: 3.6 | E65: 8.4 | F65: =SUM(D65:E65) -> 12 | Q65: Roads, Water, Sanitary and Storm - O&M CostsRoad O&M Costs Collector Operating | R65: Roads, Water, Sanitary and Storm - O&M CostsRoad O&M Costs Collector Maintenance | X65: =INDEX(Data!$1:$1048576,ROW(Data!$A$7),MATCH(Q65,Data!$35:$35,0)) -> 3.6 | Y65: =INDEX(Data!$1:$1048576,ROW(Data!$A$7),MATCH(R65,Data!$35:$35,0)) -> 8.4 | AE65: =$AG$5&ADDRESS(ROW(Data!$A$7),MATCH(Q65,INDIRECT($AG$5&$AG$3),0)) -> Data!$CS$7 | AF65: =$AG$5&ADDRESS(ROW(Data!$A$7),MATCH(R65,INDIRECT($AG$5&$AG$3),0)) -> Data!$CT$7 | AL65: =INDEX(Data!$1:$1048576,Data_Scenario_Current_RefScenario_Row,MATCH(Q65,Data!$35:$35,0)) -> 3.6 | AM65: =INDEX(Data!$1:$1048576,Data_Scenario_Current_RefScenario_Row,MATCH(R65,Data!$35:$35,0)) -> 8.4
C66: Arterial | D66: 6 | E66: 14 | F66: =SUM(D66:E66) -> 20 | Q66: Roads, Water, Sanitary and Storm - O&M CostsRoad O&M Costs Arterial Operating | R66: Roads, Water, Sanitary and Storm - O&M CostsRoad O&M Costs Arterial Maintenance | X66: =INDEX(Data!$1:$1048576,ROW(Data!$A$7),MATCH(Q66,Data!$35:$35,0)) -> 6 | Y66: =INDEX(Data!$1:$1048576,ROW(Data!$A$7),MATCH(R66,Data!$35:$35,0)) -> 14 | AE66: =$AG$5&ADDRESS(ROW(Data!$A$7),MATCH(Q66,INDIRECT($AG$5&$AG$3),0)) -> Data!$CU$7 | AF66: =$AG$5&ADDRESS(ROW(Data!$A$7),MATCH(R66,INDIRECT($AG$5&$AG$3),0)) -> Data!$CV$7 | AL66: =INDEX(Data!$1:$1048576,Data_Scenario_Current_RefScenario_Row,MATCH(Q66,Data!$35:$35,0)) -> 6 | AM66: =INDEX(Data!$1:$1048576,Data_Scenario_Current_RefScenario_Row,MATCH(R66,Data!$35:$35,0)) -> 14
A68: Potable Water Treatment ($/household)
D69: Operating | E69: Maintenance | F69: Total O&M
C70: Single Detached | D70: 240 | E70: 60 | F70: =SUM(D70:E70) -> 300 | G70: F | H70: Includes the cost of centralized treatment. | Q70: =$A$58&LEFT($A$68,FIND("(",$A$68)-1)&$C70&" "&D$69 -> Roads, Water, Sanitary and Storm - O&M CostsPotable Water Treatment Single Detached Operating | R70: Roads, Water, Sanitary and Storm - O&M CostsPotable Water Treatment Single Detached Maintenance | X70: =INDEX(Data!$1:$1048576,ROW(Data!$A$7),MATCH(Q70,Data!$35:$35,0)) -> 240 | Y70: =INDEX(Data!$1:$1048576,ROW(Data!$A$7),MATCH(R70,Data!$35:$35,0)) -> 60 | AE70: =$AG$5&ADDRESS(ROW(Data!$A$7),MATCH(Q70,INDIRECT($AG$5&$AG$3),0)) -> Data!$CW$7 | AF70: =$AG$5&ADDRESS(ROW(Data!$A$7),MATCH(R70,INDIRECT($AG$5&$AG$3),0)) -> Data!$CX$7 | AL70: =INDEX(Data!$1:$1048576,Data_Scenario_Current_RefScenario_Row,MATCH(Q70,Data!$35:$35,0)) -> 240 | AM70: =INDEX(Data!$1:$1048576,Data_Scenario_Current_RefScenario_Row,MATCH(R70,Data!$35:$35,0)) -> 60
C71: Semi-detached/Rowhouses | D71: 220 | E71: 55 | F71: =SUM(D71:E71) -> 275 | H71: Lower costs for higher density neighbourhoods | Q71: Roads, Water, Sanitary and Storm - O&M CostsPotable Water Treatment Semi-detached/Rowhouses Operating | R71: Roads, Water, Sanitary and Storm - O&M CostsPotable Water Treatment Semi-detached/Rowhouses Maintenance | X71: =INDEX(Data!$1:$1048576,ROW(Data!$A$7),MATCH(Q71,Data!$35:$35,0)) -> 220 | Y71: =INDEX(Data!$1:$1048576,ROW(Data!$A$7),MATCH(R71,Data!$35:$35,0)) -> 55 | AE71: =$AG$5&ADDRESS(ROW(Data!$A$7),MATCH(Q71,INDIRECT($AG$5&$AG$3),0)) -> Data!$CY$7 | AF71: =$AG$5&ADDRESS(ROW(Data!$A$7),MATCH(R71,INDIRECT($AG$5&$AG$3),0)) -> Data!$CZ$7 | AL71: =INDEX(Data!$1:$1048576,Data_Scenario_Current_RefScenario_Row,MATCH(Q71,Data!$35:$35,0)) -> 220 | AM71: =INDEX(Data!$1:$1048576,Data_Scenario_Current_RefScenario_Row,MATCH(R71,Data!$35:$35,0)) -> 55
C72: Apartments | D72: 200 | E72: 50 | F72: =SUM(D72:E72) -> 250 | H72: are due to lower lawn watering, etc. | Q72: Roads, Water, Sanitary and Storm - O&M CostsPotable Water Treatment Apartments Operating | R72: Roads, Water, Sanitary and Storm - O&M CostsPotable Water Treatment Apartments Maintenance | X72: =INDEX(Data!$1:$1048576,ROW(Data!$A$7),MATCH(Q72,Data!$35:$35,0)) -> 200 | Y72: =INDEX(Data!$1:$1048576,ROW(Data!$A$7),MATCH(R72,Data!$35:$35,0)) -> 50 | AE72: =$AG$5&ADDRESS(ROW(Data!$A$7),MATCH(Q72,INDIRECT($AG$5&$AG$3),0)) -> Data!$DA$7 | AF72: =$AG$5&ADDRESS(ROW(Data!$A$7),MATCH(R72,INDIRECT($AG$5&$AG$3),0)) -> Data!$DB$7 | AL72: =INDEX(Data!$1:$1048576,Data_Scenario_Current_RefScenario_Row,MATCH(Q72,Data!$35:$35,0)) -> 200 | AM72: =INDEX(Data!$1:$1048576,Data_Scenario_Current_RefScenario_Row,MATCH(R72,Data!$35:$35,0)) -> 50
D74: Operating | E74: Maintenance | F74: Total O&M
C75: Potable Water Distribution ($/m) | D75: 2 | E75: 2 | F75: =SUM(D75:E75) -> 4 | G75: F | H75: Include all costs associated with main pipes, service laterals and | Q75: =$A$58&LEFT($C$75,FIND("(",$C$75)-2)&" "&D$74 -> Roads, Water, Sanitary and Storm - O&M CostsPotable Water Distribution Operating | R75: =$A$58&LEFT($C$75,FIND("(",$C$75)-2)&" "&E$74 -> Roads, Water, Sanitary and Storm - O&M CostsPotable Water Distribution Maintenance | X75: =INDEX(Data!$1:$1048576,ROW(Data!$A$7),MATCH(Q75,Data!$35:$35,0)) -> 2 | Y75: =INDEX(Data!$1:$1048576,ROW(Data!$A$7),MATCH(R75,Data!$35:$35,0)) -> 2 | AE75: =$AG$5&ADDRESS(ROW(Data!$A$7),MATCH(Q75,INDIRECT($AG$5&$AG$3),0)) -> Data!$DC$7 | AF75: =$AG$5&ADDRESS(ROW(Data!$A$7),MATCH(R75,INDIRECT($AG$5&$AG$3),0)) -> Data!$DD$7 | AL75: =INDEX(Data!$1:$1048576,Data_Scenario_Current_RefScenario_Row,MATCH(Q75,Data!$35:$35,0)) -> 2 | AM75: =INDEX(Data!$1:$1048576,Data_Scenario_Current_RefScenario_Row,MATCH(R75,Data!$35:$35,0)) -> 2
H76: any other components of the distribution or collection system.
D77: Operating | E77: Maintenance | F77: Total O&M
C78: Wastewater Treatment ($/household) | D78: 200 | E78: 50 | F78: =SUM(D78:E78) -> 250 | G78: F | H78: Includes the cost of centralized treatment. | Q78: =$A$58&LEFT($C$78,FIND("(",$C$78)-2)&" "&D$77 -> Roads, Water, Sanitary and Storm - O&M CostsWastewater Treatment Operating | R78: =$A$58&LEFT($C$78,FIND("(",$C$78)-2)&" "&E$77 -> Roads, Water, Sanitary and Storm - O&M CostsWastewater Treatment Maintenance | X78: =INDEX(Data!$1:$1048576,ROW(Data!$A$7),MATCH(Q78,Data!$35:$35,0)) -> 200 | Y78: =INDEX(Data!$1:$1048576,ROW(Data!$A$7),MATCH(R78,Data!$35:$35,0)) -> 50 | AE78: =$AG$5&ADDRESS(ROW(Data!$A$7),MATCH(Q78,INDIRECT($AG$5&$AG$3),0)) -> Data!$DE$7 | AF78: =$AG$5&ADDRESS(ROW(Data!$A$7),MATCH(R78,INDIRECT($AG$5&$AG$3),0)) -> Data!$DF$7 | AL78: =INDEX(Data!$1:$1048576,Data_Scenario_Current_RefScenario_Row,MATCH(Q78,Data!$35:$35,0)) -> 200 | AM78: =INDEX(Data!$1:$1048576,Data_Scenario_Current_RefScenario_Row,MATCH(R78,Data!$35:$35,0)) -> 50
D80: Operating | E80: Maintenance | F80: Total O&M
C81: Sanitary Sewer Collection ($/m) | D81: 4.2 | E81: 2.8 | F81: =SUM(D81:E81) -> 7 | G81: F | H81: Include all costs associated with main pipes, service laterals and | Q81: =$A$58&LEFT($C$81,FIND("(",$C$81)-2)&" "&D$80 -> Roads, Water, Sanitary and Storm - O&M CostsSanitary Sewer Collection Operating | R81: =$A$58&LEFT($C$81,FIND("(",$C$81)-2)&" "&E$80 -> Roads, Water, Sanitary and Storm - O&M CostsSanitary Sewer Collection Maintenance | X81: =INDEX(Data!$1:$1048576,ROW(Data!$A$7),MATCH(Q81,Data!$35:$35,0)) -> 4.2 | Y81: =INDEX(Data!$1:$1048576,ROW(Data!$A$7),MATCH(R81,Data!$35:$35,0)) -> 2.8 | AE81: =$AG$5&ADDRESS(ROW(Data!$A$7),MATCH(Q81,INDIRECT($AG$5&$AG$3),0)) -> Data!$DG$7 | AF81: =$AG$5&ADDRESS(ROW(Data!$A$7),MATCH(R81,INDIRECT($AG$5&$AG$3),0)) -> Data!$DH$7 | AL81: =INDEX(Data!$1:$1048576,Data_Scenario_Current_RefScenario_Row,MATCH(Q81,Data!$35:$35,0)) -> 4.2 | AM81: =INDEX(Data!$1:$1048576,Data_Scenario_Current_RefScenario_Row,MATCH(R81,Data!$35:$35,0)) -> 2.8
H82: any other components of the distribution or collection system.
D83: Operating | E83: Maintenance | F83: Total O&M
C84: Storm Sewer Collection ($/m) | D84: 1 | E84: 1 | F84: =SUM(D84:E84) -> 2 | G84: F | H84: Include all costs associated with main pipes, service laterals and | Q84: =$A$58&LEFT($C$84,FIND("(",$C$84)-2)&" "&D$83 -> Roads, Water, Sanitary and Storm - O&M CostsStorm Sewer Collection Operating | R84: =$A$58&LEFT($C$84,FIND("(",$C$84)-2)&" "&E$83 -> Roads, Water, Sanitary and Storm - O&M CostsStorm Sewer Collection Maintenance | X84: =INDEX(Data!$1:$1048576,ROW(Data!$A$7),MATCH(Q84,Data!$35:$35,0)) -> 1 | Y84: =INDEX(Data!$1:$1048576,ROW(Data!$A$7),MATCH(R84,Data!$35:$35,0)) -> 1 | AE84: =$AG$5&ADDRESS(ROW(Data!$A$7),MATCH(Q84,INDIRECT($AG$5&$AG$3),0)) -> Data!$DI$7 | AF84: =$AG$5&ADDRESS(ROW(Data!$A$7),MATCH(R84,INDIRECT($AG$5&$AG$3),0)) -> Data!$DJ$7 | AL84: =INDEX(Data!$1:$1048576,Data_Scenario_Current_RefScenario_Row,MATCH(Q84,Data!$35:$35,0)) -> 1 | AM84: =INDEX(Data!$1:$1048576,Data_Scenario_Current_RefScenario_Row,MATCH(R84,Data!$35:$35,0)) -> 1
H85: any other components of the distribution or collection system.
A86: Parks and Open Space - Capital and O&M Cost
E88: Capital cost ($/household) | F88: =HC!$F$41 -> 33.37653921 | S88: =A$86&LEFT(E88,FIND("(",E88)-2) -> Parks and Open Space - Capital and O&M CostCapital cost | Z88: =INDEX(Data!$1:$1048576,ROW(Data!$A$7),MATCH($S88,Data!$35:$35,0)) -> 33.37653921 | AG88: =$AG$5&ADDRESS(ROW(Data!$A$7),MATCH(S88,INDIRECT($AG$5&$AG$3),0)) -> Data!$DO$7 | AN88: =INDEX(Data!$1:$1048576,Data_Scenario_Current_RefScenario_Row,MATCH(S88,Data!$35:$35,0)) -> 33.37653921
D90: Operating | E90: Maintenance | F90: Total O&M
C91: O&M Cost ($/household) | D91: 300 | E91: 0 | F91: =SUM(D91:E91) -> 300 | G91: F | H91: Costs may vary significantly. | Q91: =$A$86&LEFT($C$91,FIND("(",$C$91)-2)&" "&D$90 -> Parks and Open Space - Capital and O&M CostO&M Cost Operating | R91: =$A$86&LEFT($C$91,FIND("(",$C$91)-2)&" "&E$90 -> Parks and Open Space - Capital and O&M CostO&M Cost Maintenance | X91: =INDEX(Data!$1:$1048576,ROW(Data!$A$7),MATCH(Q91,Data!$35:$35,0)) -> 300 | Y91: =INDEX(Data!$1:$1048576,ROW(Data!$A$7),MATCH(R91,Data!$35:$35,0)) -> 0 | AE91: =$AG$5&ADDRESS(ROW(Data!$A$7),MATCH(Q91,INDIRECT($AG$5&$AG$3),0)) -> Data!$DP$7 | AF91: =$AG$5&ADDRESS(ROW(Data!$A$7),MATCH(R91,INDIRECT($AG$5&$AG$3),0)) -> Data!$DQ$7 | AL91: =INDEX(Data!$1:$1048576,Data_Scenario_Current_RefScenario_Row,MATCH(Q91,Data!$35:$35,0)) -> 300 | AM91: =INDEX(Data!$1:$1048576,Data_Scenario_Current_RefScenario_Row,MATCH(R91,Data!$35:$35,0)) -> 0
A94: Community Facilities - Capital and O&M Cost
A95: Recreation centers, libraries, etc (note fire, police, WWTP included elsewhere)
E97: Capital cost ($/household) | F97: =HC!$F$53 -> 0 | S97: =A$94&LEFT(E97,FIND("(",E97)-2) -> Community Facilities - Capital and O&M CostCapital cost | Z97: =INDEX(Data!$1:$1048576,ROW(Data!$A$7),MATCH($S97,Data!$35:$35,0)) -> 0 | AG97: =$AG$5&ADDRESS(ROW(Data!$A$7),MATCH(S97,INDIRECT($AG$5&$AG$3),0)) -> Data!$DR$7 | AN97: =INDEX(Data!$1:$1048576,Data_Scenario_Current_RefScenario_Row,MATCH(S97,Data!$35:$35,0)) -> 0
D99: Operating | E99: Maintenance | F99: Total O&M
C100: O&M Cost ($/household) | D100: 0 | E100: 0 | F100: =SUM(D100:E100) -> 0 | G100: F | H100: Costs may vary significantly. | Q100: =$A$94&LEFT($C$100,FIND("(",$C$100)-2)&" "&D$99 -> Community Facilities - Capital and O&M CostO&M Cost Operating | R100: =$A$94&LEFT($C$100,FIND("(",$C$91)-2)&" "&E$99 -> Community Facilities - Capital and O&M CostO&M Cost Maintenance | X100: =INDEX(Data!$1:$1048576,ROW(Data!$A$7),MATCH(Q100,Data!$35:$35,0)) -> 0 | Y100: =INDEX(Data!$1:$1048576,ROW(Data!$A$7),MATCH(R100,Data!$35:$35,0)) -> 0 | AE100: =$AG$5&ADDRESS(ROW(Data!$A$7),MATCH(Q100,INDIRECT($AG$5&$AG$3),0)) -> Data!$DS$7 | AF100: =$AG$5&ADDRESS(ROW(Data!$A$7),MATCH(R100,INDIRECT($AG$5&$AG$3),0)) -> Data!$DT$7 | AL100: =INDEX(Data!$1:$1048576,Data_Scenario_Current_RefScenario_Row,MATCH(Q100,Data!$35:$35,0)) -> 0 | AM100: =INDEX(Data!$1:$1048576,Data_Scenario_Current_RefScenario_Row,MATCH(R100,Data!$35:$35,0)) -> 0
A103: Fire Protection - Capital and O&M Cost
E105: Capital Cost ($/household): | F105: =HC!$F$65 -> 40.18146468 | S105: =A$103&LEFT(E105,FIND("(",E105)-2) -> Fire Protection - Capital and O&M CostCapital Cost | Z105: =INDEX(Data!$1:$1048576,ROW(Data!$A$7),MATCH($S105,Data!$35:$35,0)) -> 40.18146468 | AG105: =$AG$5&ADDRESS(ROW(Data!$A$7),MATCH(S105,INDIRECT($AG$5&$AG$3),0)) -> Data!$DX$7 | AN105: =INDEX(Data!$1:$1048576,Data_Scenario_Current_RefScenario_Row,MATCH(S105,Data!$35:$35,0)) -> 40.18146468
D107: Operating | E107: Maintenance
C108: O&M Cost ($/household): | D108: 328 | E108: 0 | F108: =SUM(D108:E108) -> 328 | Q108: =$A$103&LEFT($C$108,FIND("(",$C$108)-2)&" "&D$107 -> Fire Protection - Capital and O&M CostO&M Cost Operating | R108: =$A$103&LEFT($C$108,FIND("(",$C$108)-2)&" "&E$107 -> Fire Protection - Capital and O&M CostO&M Cost Maintenance | X108: =INDEX(Data!$1:$1048576,ROW(Data!$A$7),MATCH(Q108,Data!$35:$35,0)) -> 328 | Y108: =INDEX(Data!$1:$1048576,ROW(Data!$A$7),MATCH(R108,Data!$35:$35,0)) -> 0 | AE108: =$AG$5&ADDRESS(ROW(Data!$A$7),MATCH(Q108,INDIRECT($AG$5&$AG$3),0)) -> Data!$DY$7 | AF108: =$AG$5&ADDRESS(ROW(Data!$A$7),MATCH(R108,INDIRECT($AG$5&$AG$3),0)) -> Data!$DZ$7 | AL108: =INDEX(Data!$1:$1048576,Data_Scenario_Current_RefScenario_Row,MATCH(Q108,Data!$35:$35,0)) -> 328 | AM108: =INDEX(Data!$1:$1048576,Data_Scenario_Current_RefScenario_Row,MATCH(R108,Data!$35:$35,0)) -> 0
A110: Police Services - Capital and O&M Cost
E112: Capital Cost ($/household): | F112: =HC!$F$77 -> 20.73882048 | S112: =A$110&LEFT(E112,FIND("(",E112)-2) -> Police Services - Capital and O&M CostCapital Cost | Z112: =INDEX(Data!$1:$1048576,ROW(Data!$A$7),MATCH($S112,Data!$35:$35,0)) -> 20.73882048 | AG112: =$AG$5&ADDRESS(ROW(Data!$A$7),MATCH(S112,INDIRECT($AG$5&$AG$3),0)) -> Data!$EA$7 | AN112: =INDEX(Data!$1:$1048576,Data_Scenario_Current_RefScenario_Row,MATCH(S112,Data!$35:$35,0)) -> 20.73882048
D114: Operating | E114: Maintenance | F114: Total O&M
C115: O&M Cost ($/household): | D115: 498 | E115: 0 | F115: =D115+E115 -> 498 | Q115: =$A$110&LEFT($C$115,FIND("(",$C$115)-2)&" "&D$114 -> Police Services - Capital and O&M CostO&M Cost Operating | R115: =$A$110&LEFT($C$115,FIND("(",$C$115)-2)&" "&E$114 -> Police Services - Capital and O&M CostO&M Cost Maintenance | X115: =INDEX(Data!$1:$1048576,ROW(Data!$A$7),MATCH(Q115,Data!$35:$35,0)) -> 498 | Y115: =INDEX(Data!$1:$1048576,ROW(Data!$A$7),MATCH(R115,Data!$35:$35,0)) -> 0 | AE115: =$AG$5&ADDRESS(ROW(Data!$A$7),MATCH(Q115,INDIRECT($AG$5&$AG$3),0)) -> Data!$EB$7 | AF115: =$AG$5&ADDRESS(ROW(Data!$A$7),MATCH(R115,INDIRECT($AG$5&$AG$3),0)) -> Data!$EC$7 | AL115: =INDEX(Data!$1:$1048576,Data_Scenario_Current_RefScenario_Row,MATCH(Q115,Data!$35:$35,0)) -> 498 | AM115: =INDEX(Data!$1:$1048576,Data_Scenario_Current_RefScenario_Row,MATCH(R115,Data!$35:$35,0)) -> 0
A117: Waste Management - Capital and O&M Cost
A119: Capital Cost
E121: Housing Type | F121: Capital Cost | G121: F | H121: Include costs for landfills, recycling, trucks, etc. Cost might vary to allow variances
F122: per hh | H122: i.e. single-family curbside pick-up vs multifamily dumpster pickup
E123: Single Detached: | F123: 0 | S123: =A$117&$F$121 & " - "&LEFT(E123,FIND(":",E123)-1) -> Waste Management - Capital and O&M CostCapital Cost - Single Detached | Z123: =INDEX(Data!$1:$1048576,ROW(Data!$A$7),MATCH($S123,Data!$35:$35,0)) -> 0 | AG123: =$AG$5&ADDRESS(ROW(Data!$A$7),MATCH(S123,INDIRECT($AG$5&$AG$3),0)) -> Data!$ED$7 | AN123: =INDEX(Data!$1:$1048576,Data_Scenario_Current_RefScenario_Row,MATCH(S123,Data!$35:$35,0)) -> 0
E124: Semi Detached: | F124: 0 | S124: =A$117&$F$121 & " - "&LEFT(E124,FIND(":",E124)-1) -> Waste Management - Capital and O&M CostCapital Cost - Semi Detached | Z124: =INDEX(Data!$1:$1048576,ROW(Data!$A$7),MATCH($S124,Data!$35:$35,0)) -> 0 | AG124: =$AG$5&ADDRESS(ROW(Data!$A$7),MATCH(S124,INDIRECT($AG$5&$AG$3),0)) -> Data!$EE$7 | AN124: =INDEX(Data!$1:$1048576,Data_Scenario_Current_RefScenario_Row,MATCH(S124,Data!$35:$35,0)) -> 0
E125: Rowhouse/Townhouse/Duplex: | F125: 0 | S125: Waste Management - Capital and O&M CostCapital Cost - Rowhouse/Townhouse/Duplex | Z125: =INDEX(Data!$1:$1048576,ROW(Data!$A$7),MATCH($S125,Data!$35:$35,0)) -> 0 | AG125: =$AG$5&ADDRESS(ROW(Data!$A$7),MATCH(S125,INDIRECT($AG$5&$AG$3),0)) -> Data!$EF$7 | AN125: =INDEX(Data!$1:$1048576,Data_Scenario_Current_RefScenario_Row,MATCH(S125,Data!$35:$35,0)) -> 0
E126: Low Rise: | F126: 0 | S126: =A$117&$F$121 & " - "&LEFT(E126,FIND(":",E126)-1) -> Waste Management - Capital and O&M CostCapital Cost - Low Rise | Z126: =INDEX(Data!$1:$1048576,ROW(Data!$A$7),MATCH($S126,Data!$35:$35,0)) -> 0 | AG126: =$AG$5&ADDRESS(ROW(Data!$A$7),MATCH(S126,INDIRECT($AG$5&$AG$3),0)) -> Data!$EG$7 | AN126: =INDEX(Data!$1:$1048576,Data_Scenario_Current_RefScenario_Row,MATCH(S126,Data!$35:$35,0)) -> 0
E127: High Rise: | F127: 0 | S127: Waste Management - Capital and O&M CostCapital Cost - High Rise | Z127: =INDEX(Data!$1:$1048576,ROW(Data!$A$7),MATCH($S127,Data!$35:$35,0)) -> 0 | AG127: =$AG$5&ADDRESS(ROW(Data!$A$7),MATCH(S127,INDIRECT($AG$5&$AG$3),0)) -> Data!$EH$7 | AN127: =INDEX(Data!$1:$1048576,Data_Scenario_Current_RefScenario_Row,MATCH(S127,Data!$35:$35,0)) -> 0
A129: Operations & Maintenance
C130: Housing Type | D130: Operating | E130: Maintenance
D131: ($/hh) | E131: ($/hh) | F131: ($/hh)
C132: Single Detached: | D132: 184 | E132: 0 | F132: =SUM(D132:E132) -> 184 | Q132: =$A$117& D$130&" - " & LEFT($C132,FIND(":",$C132)-1) -> Waste Management - Capital and O&M CostOperating - Single Detached | R132: =$A$117& E$130&" - " & LEFT($C132,FIND(":",$C132)-1) -> Waste Management - Capital and O&M CostMaintenance - Single Detached | X132: =INDEX(Data!$1:$1048576,ROW(Data!$A$7),MATCH(Q132,Data!$35:$35,0)) -> 184 | Y132: =INDEX(Data!$1:$1048576,ROW(Data!$A$7),MATCH(R132,Data!$35:$35,0)) -> 0 | AE132: =$AG$5&ADDRESS(ROW(Data!$A$7),MATCH(Q132,INDIRECT($AG$5&$AG$3),0)) -> Data!$EI$7 | AF132: =$AG$5&ADDRESS(ROW(Data!$A$7),MATCH(R132,INDIRECT($AG$5&$AG$3),0)) -> Data!$EJ$7 | AL132: =INDEX(Data!$1:$1048576,Data_Scenario_Current_RefScenario_Row,MATCH(Q132,Data!$35:$35,0)) -> 184 | AM132: =INDEX(Data!$1:$1048576,Data_Scenario_Current_RefScenario_Row,MATCH(R132,Data!$35:$35,0)) -> 0
C133: Semi Detached: | D133: 184 | E133: 0 | F133: 184 | Q133: =$A$117& D$130&" - " & LEFT($C133,FIND(":",$C133)-1) -> Waste Management - Capital and O&M CostOperating - Semi Detached | R133: Waste Management - Capital and O&M CostMaintenance - Semi Detached | X133: =INDEX(Data!$1:$1048576,ROW(Data!$A$7),MATCH(Q133,Data!$35:$35,0)) -> 184 | Y133: =INDEX(Data!$1:$1048576,ROW(Data!$A$7),MATCH(R133,Data!$35:$35,0)) -> 0 | AE133: =$AG$5&ADDRESS(ROW(Data!$A$7),MATCH(Q133,INDIRECT($AG$5&$AG$3),0)) -> Data!$EK$7 | AF133: =$AG$5&ADDRESS(ROW(Data!$A$7),MATCH(R133,INDIRECT($AG$5&$AG$3),0)) -> Data!$EL$7 | AL133: =INDEX(Data!$1:$1048576,Data_Scenario_Current_RefScenario_Row,MATCH(Q133,Data!$35:$35,0)) -> 184 | AM133: =INDEX(Data!$1:$1048576,Data_Scenario_Current_RefScenario_Row,MATCH(R133,Data!$35:$35,0)) -> 0
C134: Rowhouse/Townhouse/Duplex: | D134: 80 | E134: 0 | F134: 80 | Q134: Waste Management - Capital and O&M CostOperating - Rowhouse/Townhouse/Duplex | R134: Waste Management - Capital and O&M CostMaintenance - Rowhouse/Townhouse/Duplex | X134: =INDEX(Data!$1:$1048576,ROW(Data!$A$7),MATCH(Q134,Data!$35:$35,0)) -> 80 | Y134: =INDEX(Data!$1:$1048576,ROW(Data!$A$7),MATCH(R134,Data!$35:$35,0)) -> 0 | AE134: =$AG$5&ADDRESS(ROW(Data!$A$7),MATCH(Q134,INDIRECT($AG$5&$AG$3),0)) -> Data!$EM$7 | AF134: =$AG$5&ADDRESS(ROW(Data!$A$7),MATCH(R134,INDIRECT($AG$5&$AG$3),0)) -> Data!$EN$7 | AL134: =INDEX(Data!$1:$1048576,Data_Scenario_Current_RefScenario_Row,MATCH(Q134,Data!$35:$35,0)) -> 80 | AM134: =INDEX(Data!$1:$1048576,Data_Scenario_Current_RefScenario_Row,MATCH(R134,Data!$35:$35,0)) -> 0
C135: Low Rise: | D135: 0 | E135: 0 | F135: 0 | Q135: Waste Management - Capital and O&M CostOperating - Low Rise | R135: Waste Management - Capital and O&M CostMaintenance - Low Rise | X135: =INDEX(Data!$1:$1048576,ROW(Data!$A$7),MATCH(Q135,Data!$35:$35,0)) -> 0 | Y135: =INDEX(Data!$1:$1048576,ROW(Data!$A$7),MATCH(R135,Data!$35:$35,0)) -> 0 | AE135: =$AG$5&ADDRESS(ROW(Data!$A$7),MATCH(Q135,INDIRECT($AG$5&$AG$3),0)) -> Data!$EO$7 | AF135: =$AG$5&ADDRESS(ROW(Data!$A$7),MATCH(R135,INDIRECT($AG$5&$AG$3),0)) -> Data!$EP$7 | AL135: =INDEX(Data!$1:$1048576,Data_Scenario_Current_RefScenario_Row,MATCH(Q135,Data!$35:$35,0)) -> 0 | AM135: =INDEX(Data!$1:$1048576,Data_Scenario_Current_RefScenario_Row,MATCH(R135,Data!$35:$35,0)) -> 0
C136: High Rise: | D136: 0 | E136: 0 | F136: =SUM(D136:E136) -> 0 | Q136: Waste Management - Capital and O&M CostOperating - High Rise | R136: Waste Management - Capital and O&M CostMaintenance - High Rise | X136: =INDEX(Data!$1:$1048576,ROW(Data!$A$7),MATCH(Q136,Data!$35:$35,0)) -> 0 | Y136: =INDEX(Data!$1:$1048576,ROW(Data!$A$7),MATCH(R136,Data!$35:$35,0)) -> 0 | AE136: =$AG$5&ADDRESS(ROW(Data!$A$7),MATCH(Q136,INDIRECT($AG$5&$AG$3),0)) -> Data!$EQ$7 | AF136: =$AG$5&ADDRESS(ROW(Data!$A$7),MATCH(R136,INDIRECT($AG$5&$AG$3),0)) -> Data!$ER$7 | AL136: =INDEX(Data!$1:$1048576,Data_Scenario_Current_RefScenario_Row,MATCH(Q136,Data!$35:$35,0)) -> 0 | AM136: =INDEX(Data!$1:$1048576,Data_Scenario_Current_RefScenario_Row,MATCH(R136,Data!$35:$35,0)) -> 0
A138: Transit - Capital and O&M Cost
E140: Capital Cost ($/bus): | F140: 500000 | G140: F | H140: Transit capital costs assume a bus-based system. Capital costs for other forms of | S140: =A$138&LEFT(E140,FIND("(",E140)-2) -> Transit - Capital and O&M CostCapital Cost | Z140: =INDEX(Data!$1:$1048576,ROW(Data!$A$7),MATCH($S140,Data!$35:$35,0)) -> 500000 | AG140: =$AG$5&ADDRESS(ROW(Data!$A$7),MATCH(S140,INDIRECT($AG$5&$AG$3),0)) -> Data!$DU$7 | AN140: =INDEX(Data!$1:$1048576,Data_Scenario_Current_RefScenario_Row,MATCH(S140,Data!$35:$35,0)) -> 500000
H141: transit (e.g. subway, LRT, commuter rail) vary by urban area.
D142: Operating | E142: Maintenance | H142: Other transit costs may be added as a "user defined cost" Step 7.
C143: O&M Cost ($/Vehicle service hour): | D143: 90 | E143: 0 | F143: =D143+E143 -> 90 | Q143: =$A$138&LEFT($C$143,FIND("(",$C$143)-2)&" "&D$142 -> Transit - Capital and O&M CostO&M Cost Operating | R143: =$A$138&LEFT($C$143,FIND("(",$C$143)-2)&" "&E$142 -> Transit - Capital and O&M CostO&M Cost Maintenance | X143: =INDEX(Data!$1:$1048576,ROW(Data!$A$7),MATCH(Q143,Data!$35:$35,0)) -> 90 | Y143: =INDEX(Data!$1:$1048576,ROW(Data!$A$7),MATCH(R143,Data!$35:$35,0)) -> 0 | AE143: =$AG$5&ADDRESS(ROW(Data!$A$7),MATCH(Q143,INDIRECT($AG$5&$AG$3),0)) -> Data!$DV$7 | AF143: =$AG$5&ADDRESS(ROW(Data!$A$7),MATCH(R143,INDIRECT($AG$5&$AG$3),0)) -> Data!$DW$7 | AL143: =INDEX(Data!$1:$1048576,Data_Scenario_Current_RefScenario_Row,MATCH(Q143,Data!$35:$35,0)) -> 90 | AM143: =INDEX(Data!$1:$1048576,Data_Scenario_Current_RefScenario_Row,MATCH(R143,Data!$35:$35,0)) -> 0
A146: Schools - Capital and O&M Cost
E149: Capital cost ($/student): | F149: 6541 | G149: F | H149: Includes construction of schools and facilities. Costs may be discounted in Step 6 | S149: =A$146&LEFT(E149,FIND("(",E149)-2) -> Schools - Capital and O&M CostCapital cost | Z149: =INDEX(Data!$1:$1048576,ROW(Data!$A$7),MATCH($S149,Data!$35:$35,0)) -> 6541 | AG149: =$AG$5&ADDRESS(ROW(Data!$A$7),MATCH(S149,INDIRECT($AG$5&$AG$3),0)) -> Data!$DK$7 | AN149: =INDEX(Data!$1:$1048576,Data_Scenario_Current_RefScenario_Row,MATCH(S149,Data!$35:$35,0)) -> 6541
H150: in situations where schools already exist.
D151: Operating | E151: Maintenance | F151: Total O&M
C152: O&M Cost ($/student): | D152: 6949 | E152: 0 | F152: =SUM(D152:E152) -> 6949 | G152: F | H152: Includes all cost of all school operations, administration, governance, maintenance, etc. | Q152: =$A$146&LEFT($C$152,FIND("(",$C$152)-2)&" "&D$151 -> Schools - Capital and O&M CostO&M Cost Operating | R152: =$A$146&LEFT($C$152,FIND("(",$C$152)-2)&" "&E$151 -> Schools - Capital and O&M CostO&M Cost Maintenance | X152: =INDEX(Data!$1:$1048576,ROW(Data!$A$7),MATCH(Q152,Data!$35:$35,0)) -> 6949 | Y152: =INDEX(Data!$1:$1048576,ROW(Data!$A$7),MATCH(R152,Data!$35:$35,0)) -> 0 | AE152: =$AG$5&ADDRESS(ROW(Data!$A$7),MATCH(Q152,INDIRECT($AG$5&$AG$3),0)) -> Data!$DL$7 | AF152: =$AG$5&ADDRESS(ROW(Data!$A$7),MATCH(R152,INDIRECT($AG$5&$AG$3),0)) -> Data!$DM$7 | AL152: =INDEX(Data!$1:$1048576,Data_Scenario_Current_RefScenario_Row,MATCH(Q152,Data!$35:$35,0)) -> 6949 | AM152: =INDEX(Data!$1:$1048576,Data_Scenario_Current_RefScenario_Row,MATCH(R152,Data!$35:$35,0)) -> 0
E154: School Bus Total Cost ($/student): | F154: 800 | G154: F | H154: All inclusive (capital plus operating) cost of school bus service. | S154: =A$146&LEFT(E154,FIND("(",E154)-2) -> Schools - Capital and O&M CostSchool Bus Total Cost | Z154: =INDEX(Data!$1:$1048576,ROW(Data!$A$7),MATCH($S154,Data!$35:$35,0)) -> 800 | AG154: =$AG$5&ADDRESS(ROW(Data!$A$7),MATCH(S154,INDIRECT($AG$5&$AG$3),0)) -> Data!$DN$7 | AN154: =INDEX(Data!$1:$1048576,Data_Scenario_Current_RefScenario_Row,MATCH(S154,Data!$35:$35,0)) -> 800
A156: PRIVATE COSTS
A157: Vehicle Costs
E160: Annual Vehicle Ownership Cost ($/Vehicle): | F160: 6900 | G160: F | H160: Includes the cost of finance, depreciation, insurance and licences | S160: =A$157&LEFT(E160,FIND("(",E160)-2) -> Vehicle CostsAnnual Vehicle Ownership Cost | Z160: =INDEX(Data!$1:$1048576,ROW(Data!$A$7),MATCH($S160,Data!$35:$35,0)) -> 6900 | AG160: =$AG$5&ADDRESS(ROW(Data!$A$7),MATCH(S160,INDIRECT($AG$5&$AG$3),0)) -> Data!$ES$7 | AN160: =INDEX(Data!$1:$1048576,Data_Scenario_Current_RefScenario_Row,MATCH(S160,Data!$35:$35,0)) -> 6900
D162: Operating | E162: Maintenance | F162: Total O&M
C163: O&M Driving Cost ($/km): | D163: 0.2 | E163: 0 | F163: =SUM(D163:E163) -> 0.2 | G163: F | H163: Includes fuel, maintenance and tires | Q163: =$A$157&LEFT($C$163,FIND("(",$C$163)-2)&" "&D$162 -> Vehicle CostsO&M Driving Cost Operating | R163: =$A$157&LEFT($C$163,FIND("(",$C$163)-2)&" "&E$162 -> Vehicle CostsO&M Driving Cost Maintenance | S163: =$A$157&LEFT($C$163,FIND("(",$C$163)-2)&" "&F$162 -> Vehicle CostsO&M Driving Cost Total O&M | X163: =INDEX(Data!$1:$1048576,ROW(Data!$A$7),MATCH(Q163,Data!$35:$35,0)) -> 0.2 | Y163: =INDEX(Data!$1:$1048576,ROW(Data!$A$7),MATCH(R163,Data!$35:$35,0)) -> 0 | Z163: =INDEX(Data!$1:$1048576,ROW(Data!$A$7),MATCH(S163,Data!$35:$35,0)) -> 0.2 | AE163: =$AG$5&ADDRESS(ROW(Data!$A$7),MATCH(Q163,INDIRECT($AG$5&$AG$3),0)) -> Data!$ET$7 | AF163: =$AG$5&ADDRESS(ROW(Data!$A$7),MATCH(R163,INDIRECT($AG$5&$AG$3),0)) -> Data!$EU$7 | AG163: =$AG$5&ADDRESS(ROW(Data!$A$7),MATCH(S163,INDIRECT($AG$5&$AG$3),0)) -> Data!$SQ$7 | AL163: =INDEX(Data!$1:$1048576,Data_Scenario_Current_RefScenario_Row,MATCH(Q163,Data!$35:$35,0)) -> 0.2 | AM163: =INDEX(Data!$1:$1048576,Data_Scenario_Current_RefScenario_Row,MATCH(R163,Data!$35:$35,0)) -> 0 | AN163: =INDEX(Data!$1:$1048576,Data_Scenario_Current_RefScenario_Row,MATCH(S163,Data!$35:$35,0)) -> 0.2
G164: & | H164: See Canadian Automobile Association Driving Costs | M164: Click Here
A166: Home Heating
E168: Annual Home Energy Costs ($/household)
E169: Single Detached | F169: 2300 | G169: F | H169: Costs are based on National Energy Code for Housing Standards. | S169: =A$166&LEFT(E$168,FIND("(",E$168)-1)&E169 -> Home HeatingAnnual Home Energy Costs Single Detached | Z169: =INDEX(Data!$1:$1048576,ROW(Data!$A$7),MATCH($S169,Data!$35:$35,0)) -> 2300 | AG169: =$AG$5&ADDRESS(ROW(Data!$A$7),MATCH(S169,INDIRECT($AG$5&$AG$3),0)) -> Data!$EV$7 | AN169: =INDEX(Data!$1:$1048576,Data_Scenario_Current_RefScenario_Row,MATCH(S169,Data!$35:$35,0)) -> 2300
E170: Semi-detached/Rowhouses | F170: 1800 | H170: For information on costs for other types of dwelling units (e.g. R-2000 homes), see | S170: =A$166&LEFT(E$168,FIND("(",E$168)-1)&E170 -> Home HeatingAnnual Home Energy Costs Semi-detached/Rowhouses | Z170: =INDEX(Data!$1:$1048576,ROW(Data!$A$7),MATCH($S170,Data!$35:$35,0)) -> 1800 | AG170: =$AG$5&ADDRESS(ROW(Data!$A$7),MATCH(S170,INDIRECT($AG$5&$AG$3),0)) -> Data!$EW$7 | AN170: =INDEX(Data!$1:$1048576,Data_Scenario_Current_RefScenario_Row,MATCH(S170,Data!$35:$35,0)) -> 1800
E171: Apartments | F171: 1500 | M171: Office of Energy Efficiency | S171: =A$166&LEFT(E$168,FIND("(",E$168)-1)&E171 -> Home HeatingAnnual Home Energy Costs Apartments | Z171: =INDEX(Data!$1:$1048576,ROW(Data!$A$7),MATCH($S171,Data!$35:$35,0)) -> 1500 | AG171: =$AG$5&ADDRESS(ROW(Data!$A$7),MATCH(S171,INDIRECT($AG$5&$AG$3),0)) -> Data!$EX$7 | AN171: =INDEX(Data!$1:$1048576,Data_Scenario_Current_RefScenario_Row,MATCH(S171,Data!$35:$35,0)) -> 1500
A173: EXTERNAL COSTS
A174: Climate Change and Air Pollution
E176: Average Fuel Efficiency for Passenger Vehicles (L/100 km) | F176: 10.98 | G176: F | H176: This is used to calculate fuel consumption, greenhouse gas emissions and air emissions | S176: =A$174&LEFT(E176,FIND("(",E176)-2) -> Climate Change and Air PollutionAverage Fuel Efficiency for Passenger Vehicles | Z176: =INDEX(Data!$1:$1048576,ROW(Data!$A$7),MATCH($S176,Data!$35:$35,0)) -> 10.98 | AG176: =$AG$5&ADDRESS(ROW(Data!$A$7),MATCH(S176,INDIRECT($AG$5&$AG$3),0)) -> Data!$EY$7 | AN176: =INDEX(Data!$1:$1048576,Data_Scenario_Current_RefScenario_Row,MATCH(S176,Data!$35:$35,0)) -> 10.98
E178: GHG Emissions Factor (grams/L): | F178: 2500 | G178: F | H178: This is a standard factor based on conventional petroleum fuels | S178: =A$174&LEFT(E178,FIND("(",E178)-2) -> Climate Change and Air PollutionGHG Emissions Factor | Z178: =INDEX(Data!$1:$1048576,ROW(Data!$A$7),MATCH($S178,Data!$35:$35,0)) -> 2500 | AG178: =$AG$5&ADDRESS(ROW(Data!$A$7),MATCH(S178,INDIRECT($AG$5&$AG$3),0)) -> Data!$EZ$7 | AN178: =INDEX(Data!$1:$1048576,Data_Scenario_Current_RefScenario_Row,MATCH(S178,Data!$35:$35,0)) -> 2500
E180: Cost per tonne GHG ($/tonne of CO2 equivalents): | F180: 50 | G180: F | H180: Costs per tonne of GHG have a large variance and will depend on emerging carbon | S180: =A$174&LEFT(E180,FIND("(",E180)-2) -> Climate Change and Air PollutionCost per tonne GHG | Z180: =INDEX(Data!$1:$1048576,ROW(Data!$A$7),MATCH($S180,Data!$35:$35,0)) -> 50 | AG180: =$AG$5&ADDRESS(ROW(Data!$A$7),MATCH(S180,INDIRECT($AG$5&$AG$3),0)) -> Data!$FA$7 | AN180: =INDEX(Data!$1:$1048576,Data_Scenario_Current_RefScenario_Row,MATCH(S180,Data!$35:$35,0)) -> 50
H181: trading markets. This is a preliminary working value.
E183: Air Emissions | G183: & | H183: CMHC Tool for Evaluating Neighbourhood Sustainability | M183: Click Here
F184: Emissions Factor | H184: F | I184: Emissions factors apply to passenger cars only. Other emissions
F185: grams/litre of fuel | G185: Cost Per Tonne | I185: may occur due to transit vehicles and commercial vehicles.
E186: Volatile Organic Compounds (VOCs) | F186: 19 | G186: 1000 | S186: =$A$174&$F$184&LEFT(MID($E186,FIND("(",$E186)+1,100),LEN(MID($E186,FIND("(",$E186)+1,100))-1) -> Climate Change and Air PollutionEmissions Factor VOCs | T186: =$A$174&$G$185&LEFT(MID($E186,FIND("(",$E186)+1,100),LEN(MID($E186,FIND("(",$E186)+1,100))-1) -> Climate Change and Air PollutionCost Per Tonne VOCs | Z186: =INDEX(Data!$1:$1048576,ROW(Data!$A$7),MATCH(S186,Data!$35:$35,0)) -> 19 | AA186: =INDEX(Data!$1:$1048576,ROW(Data!$A$7),MATCH(T186,Data!$35:$35,0)) -> 1000 | AG186: =$AG$5&ADDRESS(ROW(Data!$A$7),MATCH(S186,INDIRECT($AG$5&$AG$3),0)) -> Data!$FB$7 | AH186: =$AG$5&ADDRESS(ROW(Data!$A$7),MATCH(T186,INDIRECT($AG$5&$AG$3),0)) -> Data!$FC$7 | AN186: =INDEX(Data!$1:$1048576,Data_Scenario_Current_RefScenario_Row,MATCH(S186,Data!$35:$35,0)) -> 19 | AO186: =INDEX(Data!$1:$1048576,Data_Scenario_Current_RefScenario_Row,MATCH(T186,Data!$35:$35,0)) -> 1000
E187: Carbon Monoxide (CO) | F187: 200 | G187: 100 | H187: & | I187: Transportation Emissions Guidebook | S187: =$A$174&$F$184&LEFT(MID($E187,FIND("(",$E187)+1,100),LEN(MID($E187,FIND("(",$E187)+1,100))-1) -> Climate Change and Air PollutionEmissions Factor CO | T187: =$A$174&$G$185&LEFT(MID($E187,FIND("(",$E187)+1,100),LEN(MID($E187,FIND("(",$E187)+1,100))-1) -> Climate Change and Air PollutionCost Per Tonne CO | Z187: =INDEX(Data!$1:$1048576,ROW(Data!$A$7),MATCH(S187,Data!$35:$35,0)) -> 200 | AA187: =INDEX(Data!$1:$1048576,ROW(Data!$A$7),MATCH(T187,Data!$35:$35,0)) -> 100 | AG187: =$AG$5&ADDRESS(ROW(Data!$A$7),MATCH(S187,INDIRECT($AG$5&$AG$3),0)) -> Data!$FD$7 | AH187: =$AG$5&ADDRESS(ROW(Data!$A$7),MATCH(T187,INDIRECT($AG$5&$AG$3),0)) -> Data!$FE$7 | AN187: =INDEX(Data!$1:$1048576,Data_Scenario_Current_RefScenario_Row,MATCH(S187,Data!$35:$35,0)) -> 200 | AO187: =INDEX(Data!$1:$1048576,Data_Scenario_Current_RefScenario_Row,MATCH(T187,Data!$35:$35,0)) -> 100
E188: Nitrogen Oxides (NOx) | F188: 14 | G188: 1000 | I188: Center for Clean Air Policy | L188: http://www.ccap.org/guidebook/ | S188: =$A$174&$F$184&LEFT(MID($E188,FIND("(",$E188)+1,100),LEN(MID($E188,FIND("(",$E188)+1,100))-1) -> Climate Change and Air PollutionEmissions Factor NOx | T188: =$A$174&$G$185&LEFT(MID($E188,FIND("(",$E188)+1,100),LEN(MID($E188,FIND("(",$E188)+1,100))-1) -> Climate Change and Air PollutionCost Per Tonne NOx | Z188: =INDEX(Data!$1:$1048576,ROW(Data!$A$7),MATCH(S188,Data!$35:$35,0)) -> 14 | AA188: =INDEX(Data!$1:$1048576,ROW(Data!$A$7),MATCH(T188,Data!$35:$35,0)) -> 1000 | AG188: =$AG$5&ADDRESS(ROW(Data!$A$7),MATCH(S188,INDIRECT($AG$5&$AG$3),0)) -> Data!$FF$7 | AH188: =$AG$5&ADDRESS(ROW(Data!$A$7),MATCH(T188,INDIRECT($AG$5&$AG$3),0)) -> Data!$FG$7 | AN188: =INDEX(Data!$1:$1048576,Data_Scenario_Current_RefScenario_Row,MATCH(S188,Data!$35:$35,0)) -> 14 | AO188: =INDEX(Data!$1:$1048576,Data_Scenario_Current_RefScenario_Row,MATCH(T188,Data!$35:$35,0)) -> 1000
E189: Sulphur Oxides (SOx) | F189: 0.038 | G189: 500 | S189: =$A$174&$F$184&LEFT(MID($E189,FIND("(",$E189)+1,100),LEN(MID($E189,FIND("(",$E189)+1,100))-1) -> Climate Change and Air PollutionEmissions Factor SOx | T189: =$A$174&$G$185&LEFT(MID($E189,FIND("(",$E189)+1,100),LEN(MID($E189,FIND("(",$E189)+1,100))-1) -> Climate Change and Air PollutionCost Per Tonne SOx | Z189: =INDEX(Data!$1:$1048576,ROW(Data!$A$7),MATCH(S189,Data!$35:$35,0)) -> 0.038 | AA189: =INDEX(Data!$1:$1048576,ROW(Data!$A$7),MATCH(T189,Data!$35:$35,0)) -> 500 | AG189: =$AG$5&ADDRESS(ROW(Data!$A$7),MATCH(S189,INDIRECT($AG$5&$AG$3),0)) -> Data!$FH$7 | AH189: =$AG$5&ADDRESS(ROW(Data!$A$7),MATCH(T189,INDIRECT($AG$5&$AG$3),0)) -> Data!$FI$7 | AN189: =INDEX(Data!$1:$1048576,Data_Scenario_Current_RefScenario_Row,MATCH(S189,Data!$35:$35,0)) -> 0.038 | AO189: =INDEX(Data!$1:$1048576,Data_Scenario_Current_RefScenario_Row,MATCH(T189,Data!$35:$35,0)) -> 500
E190: Particulate Matter less than 10 microns (PM10) | F190: 0.233 | G190: 1000 | S190: =$A$174&$F$184&LEFT(MID($E190,FIND("(",$E190)+1,100),LEN(MID($E190,FIND("(",$E190)+1,100))-1) -> Climate Change and Air PollutionEmissions Factor PM10 | T190: =$A$174&$G$185&LEFT(MID($E190,FIND("(",$E190)+1,100),LEN(MID($E190,FIND("(",$E190)+1,100))-1) -> Climate Change and Air PollutionCost Per Tonne PM10 | Z190: =INDEX(Data!$1:$1048576,ROW(Data!$A$7),MATCH(S190,Data!$35:$35,0)) -> 0.233 | AA190: =INDEX(Data!$1:$1048576,ROW(Data!$A$7),MATCH(T190,Data!$35:$35,0)) -> 1000 | AG190: =$AG$5&ADDRESS(ROW(Data!$A$7),MATCH(S190,INDIRECT($AG$5&$AG$3),0)) -> Data!$FJ$7 | AH190: =$AG$5&ADDRESS(ROW(Data!$A$7),MATCH(T190,INDIRECT($AG$5&$AG$3),0)) -> Data!$FK$7 | AN190: =INDEX(Data!$1:$1048576,Data_Scenario_Current_RefScenario_Row,MATCH(S190,Data!$35:$35,0)) -> 0.233 | AO190: =INDEX(Data!$1:$1048576,Data_Scenario_Current_RefScenario_Row,MATCH(T190,Data!$35:$35,0)) -> 1000
A193: Motor Vehicle Collisions
F196: Collision rate per VKT | G196: Cost per Collision
E197: Fatal | F197: 8.5e-09 | G197: 3.59 | H197: million | I197: F | J197: These values have a high degree of uncertainty | S197: =$A$193&$E197&F$196 -> Motor Vehicle CollisionsFatal Collision rate per VKT | T197: Motor Vehicle CollisionsFatal Cost per Collision | Z197: =INDEX(Data!$1:$1048576,ROW(Data!$A$7),MATCH(S197,Data!$35:$35,0)) -> 8.5e-09 | AA197: =INDEX(Data!$1:$1048576,ROW(Data!$A$7),MATCH(T197,Data!$35:$35,0)) -> 3.59 | AG197: =$AG$5&ADDRESS(ROW(Data!$A$7),MATCH(S197,INDIRECT($AG$5&$AG$3),0)) -> Data!$FL$7 | AH197: =$AG$5&ADDRESS(ROW(Data!$A$7),MATCH(T197,INDIRECT($AG$5&$AG$3),0)) -> Data!$FM$7 | AN197: =INDEX(Data!$1:$1048576,Data_Scenario_Current_RefScenario_Row,MATCH(S197,Data!$35:$35,0)) -> 8.5e-09 | AO197: =INDEX(Data!$1:$1048576,Data_Scenario_Current_RefScenario_Row,MATCH(T197,Data!$35:$35,0)) -> 3.59
E198: Injury | F198: 6.275e-07 | G198: 49340 | S198: Motor Vehicle CollisionsInjury Collision rate per VKT | T198: Motor Vehicle CollisionsInjury Cost per Collision | Z198: =INDEX(Data!$1:$1048576,ROW(Data!$A$7),MATCH(S198,Data!$35:$35,0)) -> 6.275e-07 | AA198: =INDEX(Data!$1:$1048576,ROW(Data!$A$7),MATCH(T198,Data!$35:$35,0)) -> 49340 | AG198: =$AG$5&ADDRESS(ROW(Data!$A$7),MATCH(S198,INDIRECT($AG$5&$AG$3),0)) -> Data!$FN$7 | AH198: =$AG$5&ADDRESS(ROW(Data!$A$7),MATCH(T198,INDIRECT($AG$5&$AG$3),0)) -> Data!$FO$7 | AN198: =INDEX(Data!$1:$1048576,Data_Scenario_Current_RefScenario_Row,MATCH(S198,Data!$35:$35,0)) -> 6.275e-07 | AO198: =INDEX(Data!$1:$1048576,Data_Scenario_Current_RefScenario_Row,MATCH(T198,Data!$35:$35,0)) -> 49340
E199: Property Damage | F199: 1.865e-06 | G199: 5084 | S199: Motor Vehicle CollisionsProperty Damage Collision rate per VKT | T199: Motor Vehicle CollisionsProperty Damage Cost per Collision | Z199: =INDEX(Data!$1:$1048576,ROW(Data!$A$7),MATCH(S199,Data!$35:$35,0)) -> 1.865e-06 | AA199: =INDEX(Data!$1:$1048576,ROW(Data!$A$7),MATCH(T199,Data!$35:$35,0)) -> 5084 | AG199: =$AG$5&ADDRESS(ROW(Data!$A$7),MATCH(S199,INDIRECT($AG$5&$AG$3),0)) -> Data!$FP$7 | AH199: =$AG$5&ADDRESS(ROW(Data!$A$7),MATCH(T199,INDIRECT($AG$5&$AG$3),0)) -> Data!$FQ$7 | AN199: =INDEX(Data!$1:$1048576,Data_Scenario_Current_RefScenario_Row,MATCH(S199,Data!$35:$35,0)) -> 1.865e-06 | AO199: =INDEX(Data!$1:$1048576,Data_Scenario_Current_RefScenario_Row,MATCH(T199,Data!$35:$35,0)) -> 5084
A202: USER COMMENTS
B204: 1 | P204: ="CV "&$A$202&$B204 -> CV USER COMMENTS1 | W204: =INDEX(Data!$1:$1048576,ROW(Data!$A$7),MATCH(P204,Data!$35:$35,0)) ->  | AD204: =$AG$5&ADDRESS(ROW(Data!$A$7),MATCH(P204,INDIRECT($AG$5&$AG$3),0)) -> Data!$SW$7 | AK204: =INDEX(Data!$1:$1048576,Data_Scenario_Current_RefScenario_Row,MATCH(P204,Data!$35:$35,0)) -> 
B205: 2 | P205: ="CV "&$A$202&$B205 -> CV USER COMMENTS2 | W205: =INDEX(Data!$1:$1048576,ROW(Data!$A$7),MATCH(P205,Data!$35:$35,0)) ->  | AD205: =$AG$5&ADDRESS(ROW(Data!$A$7),MATCH(P205,INDIRECT($AG$5&$AG$3),0)) -> Data!$SX$7 | AK205: =INDEX(Data!$1:$1048576,Data_Scenario_Current_RefScenario_Row,MATCH(P205,Data!$35:$35,0)) -> 
B206: 3 | P206: CV USER COMMENTS3 | W206: =INDEX(Data!$1:$1048576,ROW(Data!$A$7),MATCH(P206,Data!$35:$35,0)) ->  | AD206: =$AG$5&ADDRESS(ROW(Data!$A$7),MATCH(P206,INDIRECT($AG$5&$AG$3),0)) -> Data!$SY$7 | AK206: =INDEX(Data!$1:$1048576,Data_Scenario_Current_RefScenario_Row,MATCH(P206,Data!$35:$35,0)) -> 
B207: 4 | P207: CV USER COMMENTS4 | W207: =INDEX(Data!$1:$1048576,ROW(Data!$A$7),MATCH(P207,Data!$35:$35,0)) ->  | AD207: =$AG$5&ADDRESS(ROW(Data!$A$7),MATCH(P207,INDIRECT($AG$5&$AG$3),0)) -> Data!$SZ$7 | AK207: =INDEX(Data!$1:$1048576,Data_Scenario_Current_RefScenario_Row,MATCH(P207,Data!$35:$35,0)) -> 
B208: 5 | P208: CV USER COMMENTS5 | W208: =INDEX(Data!$1:$1048576,ROW(Data!$A$7),MATCH(P208,Data!$35:$35,0)) ->  | AD208: =$AG$5&ADDRESS(ROW(Data!$A$7),MATCH(P208,INDIRECT($AG$5&$AG$3),0)) -> Data!$TA$7 | AK208: =INDEX(Data!$1:$1048576,Data_Scenario_Current_RefScenario_Row,MATCH(P208,Data!$35:$35,0)) -> 
B209: 6 | P209: CV USER COMMENTS6 | W209: =INDEX(Data!$1:$1048576,ROW(Data!$A$7),MATCH(P209,Data!$35:$35,0)) ->  | AD209: =$AG$5&ADDRESS(ROW(Data!$A$7),MATCH(P209,INDIRECT($AG$5&$AG$3),0)) -> Data!$TB$7 | AK209: =INDEX(Data!$1:$1048576,Data_Scenario_Current_RefScenario_Row,MATCH(P209,Data!$35:$35,0)) -> 
B210: 7 | P210: CV USER COMMENTS7 | W210: =INDEX(Data!$1:$1048576,ROW(Data!$A$7),MATCH(P210,Data!$35:$35,0)) ->  | AD210: =$AG$5&ADDRESS(ROW(Data!$A$7),MATCH(P210,INDIRECT($AG$5&$AG$3),0)) -> Data!$TC$7 | AK210: =INDEX(Data!$1:$1048576,Data_Scenario_Current_RefScenario_Row,MATCH(P210,Data!$35:$35,0)) -> 
B211: 8 | P211: CV USER COMMENTS8 | W211: =INDEX(Data!$1:$1048576,ROW(Data!$A$7),MATCH(P211,Data!$35:$35,0)) ->  | AD211: =$AG$5&ADDRESS(ROW(Data!$A$7),MATCH(P211,INDIRECT($AG$5&$AG$3),0)) -> Data!$TD$7 | AK211: =INDEX(Data!$1:$1048576,Data_Scenario_Current_RefScenario_Row,MATCH(P211,Data!$35:$35,0)) -> 
B212: 9 | P212: CV USER COMMENTS9 | W212: =INDEX(Data!$1:$1048576,ROW(Data!$A$7),MATCH(P212,Data!$35:$35,0)) ->  | AD212: =$AG$5&ADDRESS(ROW(Data!$A$7),MATCH(P212,INDIRECT($AG$5&$AG$3),0)) -> Data!$TE$7 | AK212: =INDEX(Data!$1:$1048576,Data_Scenario_Current_RefScenario_Row,MATCH(P212,Data!$35:$35,0)) -> 
B213: 10 | P213: CV USER COMMENTS10 | W213: =INDEX(Data!$1:$1048576,ROW(Data!$A$7),MATCH(P213,Data!$35:$35,0)) ->  | AD213: =$AG$5&ADDRESS(ROW(Data!$A$7),MATCH(P213,INDIRECT($AG$5&$AG$3),0)) -> Data!$TF$7 | AK213: =INDEX(Data!$1:$1048576,Data_Scenario_Current_RefScenario_Row,MATCH(P213,Data!$35:$35,0)) -> 

Sheet RV
AG3: =MID(ADDRESS(ROW(Data!$A$35),1,2),FIND("$",ADDRESS(ROW(Data!$A$35),1,2)),100)&":"&MID(ADDRESS(ROW(Data!$A$35),1,2),FIND("$",ADDRESS(ROW(Data!$A$35),1,2)),100) -> $35:$35
A4: STEP 3: | B4: REVENUE VARIABLES | P4: =OFFSET(P4,0,1)-1 -> -3 | Q4: =OFFSET(Q4,0,1)-1 -> -2 | R4: =OFFSET(R4,0,1)-1 -> -1 | S4: 0 | T4: =OFFSET(T4,0,-1)+1 -> 1 | U4: =OFFSET(U4,0,-1)+1 -> 2 | V4: =OFFSET(V4,0,-1)+1 -> 3 | W4: =OFFSET(W4,0,-1)+1 -> 4 | Z4: =COLUMN(Z4)-COLUMN($F4) -> 20 | AN4: =COLUMN(AN4)-COLUMN($F4) -> 34
P5: =LEFT(ADDRESS(1,COLUMN(P1),3),LEN(ADDRESS(1,COLUMN(P1),3))-1)&":"&LEFT(ADDRESS(1,COLUMN(P1),3),LEN(ADDRESS(1,COLUMN(P1),3))-1) -> $P:$P | Q5: =LEFT(ADDRESS(1,COLUMN(Q1),3),LEN(ADDRESS(1,COLUMN(Q1),3))-1)&":"&LEFT(ADDRESS(1,COLUMN(Q1),3),LEN(ADDRESS(1,COLUMN(Q1),3))-1) -> $Q:$Q | R5: =LEFT(ADDRESS(1,COLUMN(R1),3),LEN(ADDRESS(1,COLUMN(R1),3))-1)&":"&LEFT(ADDRESS(1,COLUMN(R1),3),LEN(ADDRESS(1,COLUMN(R1),3))-1) -> $R:$R | S5: $S:$S | T5: $T:$T | U5: $U:$U | V5: $V:$V | W5: $W:$W | AG5: Data!
A6: F | C6: Current Scenario: | D6: =Data_Scenario_Active_Label -> #0 - <<Default Scenario>> | H6: =Data_Scenario_Active_Note -> Note: Changes to Scenarios #0 - 6 cannot be SAVED as they are the built-in scenarios
A7: DEVELOPMENT CHARGES
C9: Development charges are sometimes applied at the time of construction on a unit basis. Vary by municipality
C10: Development charges are intended to help pay for the cost of new infrastructure to serve development
C11: These charges would include local and Regional development charges (where applicable)
C12: Note that some municipalities apply reduced charges in certain zones (e.g. central areas)
G13: F
A14: Single Detached | F14: ($/unit)
E15: Single Detached | F15: 9000 | S15: =A$7&E15 -> DEVELOPMENT CHARGESSingle Detached | Z15: =INDEX(Data!$1:$1048576,ROW(Data!$A$7),MATCH(S15,Data!$35:$35,0)) -> 9000 | AG15: =$AG$5&ADDRESS(ROW(Data!$A$7),MATCH(S15,INDIRECT($AG$5&$AG$3),0)) -> Data!$HR$7 | AN15: =INDEX(Data!$1:$1048576,Data_Scenario_Current_RefScenario_Row,MATCH(S15,Data!$35:$35,0)) -> 9000
A17: Semi-detached/Rowhouses | F17: ($/unit)
E18: Semi Detached | F18: 9000 | S18: =A$7&E18 -> DEVELOPMENT CHARGESSemi Detached | Z18: =INDEX(Data!$1:$1048576,ROW(Data!$A$7),MATCH(S18,Data!$35:$35,0)) -> 9000 | AG18: =$AG$5&ADDRESS(ROW(Data!$A$7),MATCH(S18,INDIRECT($AG$5&$AG$3),0)) -> Data!$HS$7 | AN18: =INDEX(Data!$1:$1048576,Data_Scenario_Current_RefScenario_Row,MATCH(S18,Data!$35:$35,0)) -> 9000
E19: Rowhouse/Townhouse/Duplex | F19: 7000 | S19: =A$7&E19 -> DEVELOPMENT CHARGESRowhouse/Townhouse/Duplex | Z19: =INDEX(Data!$1:$1048576,ROW(Data!$A$7),MATCH(S19,Data!$35:$35,0)) -> 7000 | AG19: =$AG$5&ADDRESS(ROW(Data!$A$7),MATCH(S19,INDIRECT($AG$5&$AG$3),0)) -> Data!$HT$7 | AN19: =INDEX(Data!$1:$1048576,Data_Scenario_Current_RefScenario_Row,MATCH(S19,Data!$35:$35,0)) -> 7000
A21: Apartments | F21: ($/unit)
E22: Low Rise | F22: 5000 | S22: =A$7&E22 -> DEVELOPMENT CHARGESLow Rise | Z22: =INDEX(Data!$1:$1048576,ROW(Data!$A$7),MATCH(S22,Data!$35:$35,0)) -> 5000 | AG22: =$AG$5&ADDRESS(ROW(Data!$A$7),MATCH(S22,INDIRECT($AG$5&$AG$3),0)) -> Data!$HU$7 | AN22: =INDEX(Data!$1:$1048576,Data_Scenario_Current_RefScenario_Row,MATCH(S22,Data!$35:$35,0)) -> 5000
E23: High Rise | F23: 5000 | S23: =A$7&E23 -> DEVELOPMENT CHARGESHigh Rise | Z23: =INDEX(Data!$1:$1048576,ROW(Data!$A$7),MATCH(S23,Data!$35:$35,0)) -> 5000 | AG23: =$AG$5&ADDRESS(ROW(Data!$A$7),MATCH(S23,INDIRECT($AG$5&$AG$3),0)) -> Data!$HV$7 | AN23: =INDEX(Data!$1:$1048576,Data_Scenario_Current_RefScenario_Row,MATCH(S23,Data!$35:$35,0)) -> 5000
A25: PROPERTY TAXES
E28: Average assessment
A29: Single Detached | E29: value per unit
D30: Single Detached | E30: 350000 | G30: F | H30: The calculation of property tax assumes a "Market Assessment" approach. | R30: =$A$25&D30 -> PROPERTY TAXESSingle Detached | Y30: =INDEX(Data!$1:$1048576,ROW(Data!$A$7),MATCH(R30,Data!$35:$35,0)) -> 350000 | AF30: =$AG$5&ADDRESS(ROW(Data!$A$7),MATCH(R30,INDIRECT($AG$5&$AG$3),0)) -> Data!$HW$7 | AM30: =INDEX(Data!$1:$1048576,Data_Scenario_Current_RefScenario_Row,MATCH(R30,Data!$35:$35,0)) -> 350000
E32: Average assessment
A33: Semi-detached/Rowhouses | E33: value per unit
D34: Semi Detached | E34: 314000 | H34: If a site tax approach is used, users may enter the average property tax under | R34: =$A$25&D34 -> PROPERTY TAXESSemi Detached | Y34: =INDEX(Data!$1:$1048576,ROW(Data!$A$7),MATCH(R34,Data!$35:$35,0)) -> 314000 | AF34: =$AG$5&ADDRESS(ROW(Data!$A$7),MATCH(R34,INDIRECT($AG$5&$AG$3),0)) -> Data!$HX$7 | AM34: =INDEX(Data!$1:$1048576,Data_Scenario_Current_RefScenario_Row,MATCH(R34,Data!$35:$35,0)) -> 314000
D35: Rowhouse/Townhouse/Duplex | E35: 314000 | H35: the assessment value column and enter 100% as the tax rate below. | R35: =$A$25&D35 -> PROPERTY TAXESRowhouse/Townhouse/Duplex | Y35: =INDEX(Data!$1:$1048576,ROW(Data!$A$7),MATCH(R35,Data!$35:$35,0)) -> 314000 | AF35: =$AG$5&ADDRESS(ROW(Data!$A$7),MATCH(R35,INDIRECT($AG$5&$AG$3),0)) -> Data!$HY$7 | AM35: =INDEX(Data!$1:$1048576,Data_Scenario_Current_RefScenario_Row,MATCH(R35,Data!$35:$35,0)) -> 314000
E37: Average assessment
A38: Apartments | E38: value per unit
D39: Low Rise | E39: 200000 | R39: =$A$25&D39 -> PROPERTY TAXESLow Rise | Y39: =INDEX(Data!$1:$1048576,ROW(Data!$A$7),MATCH(R39,Data!$35:$35,0)) -> 200000 | AF39: =$AG$5&ADDRESS(ROW(Data!$A$7),MATCH(R39,INDIRECT($AG$5&$AG$3),0)) -> Data!$HZ$7 | AM39: =INDEX(Data!$1:$1048576,Data_Scenario_Current_RefScenario_Row,MATCH(R39,Data!$35:$35,0)) -> 200000
D40: High Rise | E40: 200000 | R40: =$A$25&D40 -> PROPERTY TAXESHigh Rise | Y40: =INDEX(Data!$1:$1048576,ROW(Data!$A$7),MATCH(R40,Data!$35:$35,0)) -> 200000 | AF40: =$AG$5&ADDRESS(ROW(Data!$A$7),MATCH(R40,INDIRECT($AG$5&$AG$3),0)) -> Data!$IA$7 | AM40: =INDEX(Data!$1:$1048576,Data_Scenario_Current_RefScenario_Row,MATCH(R40,Data!$35:$35,0)) -> 200000
D42: Property Tax Mil Rate (‰) | F42: 4.9 | G42: F | H42: Includes municipal taxes and any additional allocations to provinces such as | S42: =A$25&D42 -> PROPERTY TAXESProperty Tax Mil Rate (‰) | Z42: =INDEX(Data!$1:$1048576,ROW(Data!$A$7),MATCH(S42,Data!$35:$35,0)) -> 4.9 | AG42: =$AG$5&ADDRESS(ROW(Data!$A$7),MATCH(S42,INDIRECT($AG$5&$AG$3),0)) -> Data!$IB$7 | AN42: =INDEX(Data!$1:$1048576,Data_Scenario_Current_RefScenario_Row,MATCH(S42,Data!$35:$35,0)) -> 4.9
H43: education tax.
A45: USER FEES
F47: ($/unit per year)
E48: Water and Sewers | F48: 300 | G48: F | H48: Includes user costs such as water rates. Enter only if not included in property taxes | S48: =A$45&E48 -> USER FEESWater and Sewers | Z48: =INDEX(Data!$1:$1048576,ROW(Data!$A$7),MATCH(S48,Data!$35:$35,0)) -> 300 | AG48: =$AG$5&ADDRESS(ROW(Data!$A$7),MATCH(S48,INDIRECT($AG$5&$AG$3),0)) -> Data!$IC$7 | AN48: =INDEX(Data!$1:$1048576,Data_Scenario_Current_RefScenario_Row,MATCH(S48,Data!$35:$35,0)) -> 300
E50: Other | F50: 0 | G50: F | H50: Other (e.g. district energy fees, garbage, etc.) | S50: =A$45&E50 -> USER FEESOther | Z50: =INDEX(Data!$1:$1048576,ROW(Data!$A$7),MATCH(S50,Data!$35:$35,0)) -> 0 | AG50: =$AG$5&ADDRESS(ROW(Data!$A$7),MATCH(S50,INDIRECT($AG$5&$AG$3),0)) -> Data!$ID$7 | AN50: =INDEX(Data!$1:$1048576,Data_Scenario_Current_RefScenario_Row,MATCH(S50,Data!$35:$35,0)) -> 0
E52: Transit Operating Cost Recovery | F52: 0.5 | G52: F | H52: This is the percentage of costs recovered through transit fares and is | S52: =A$45&E52 -> USER FEESTransit Operating Cost Recovery | Z52: =INDEX(Data!$1:$1048576,ROW(Data!$A$7),MATCH(S52,Data!$35:$35,0)) -> 0.5 | AG52: =$AG$5&ADDRESS(ROW(Data!$A$7),MATCH(S52,INDIRECT($AG$5&$AG$3),0)) -> Data!$IE$7 | AN52: =INDEX(Data!$1:$1048576,Data_Scenario_Current_RefScenario_Row,MATCH(S52,Data!$35:$35,0)) -> 0.5
H53: used in the calculation of revenues.
A55: NON-RESIDENTIAL REVENUES
F57: ($)
D58: Total | S58: =A$55&D58 -> NON-RESIDENTIAL REVENUESTotal | Z58: =INDEX(Data!$1:$1048576,ROW(Data!$A$7),MATCH(S58,Data!$35:$35,0)) -> 0 | AG58: =$AG$5&ADDRESS(ROW(Data!$A$7),MATCH(S58,INDIRECT($AG$5&$AG$3),0)) -> Data!$IF$7 | AN58: =INDEX(Data!$1:$1048576,Data_Scenario_Current_RefScenario_Row,MATCH(S58,Data!$35:$35,0)) -> 0
A60: USER COMMENTS
B62: 1 | P62: ="RV "&$A$60&$B62 -> RV USER COMMENTS1 | W62: =INDEX(Data!$1:$1048576,ROW(Data!$A$7),MATCH(P62,Data!$35:$35,0)) ->  | AD62: =$AG$5&ADDRESS(ROW(Data!$A$7),MATCH(P62,INDIRECT($AG$5&$AG$3),0)) -> Data!$UA$7 | AK62: =INDEX(Data!$1:$1048576,Data_Scenario_Current_RefScenario_Row,MATCH(P62,Data!$35:$35,0)) -> 
B63: 2 | P63: ="RV "&$A$60&$B63 -> RV USER COMMENTS2 | W63: =INDEX(Data!$1:$1048576,ROW(Data!$A$7),MATCH(P63,Data!$35:$35,0)) ->  | AD63: =$AG$5&ADDRESS(ROW(Data!$A$7),MATCH(P63,INDIRECT($AG$5&$AG$3),0)) -> Data!$UB$7 | AK63: =INDEX(Data!$1:$1048576,Data_Scenario_Current_RefScenario_Row,MATCH(P63,Data!$35:$35,0)) -> 
B64: 3 | P64: ="RV "&$A$60&$B64 -> RV USER COMMENTS3 | W64: =INDEX(Data!$1:$1048576,ROW(Data!$A$7),MATCH(P64,Data!$35:$35,0)) ->  | AD64: =$AG$5&ADDRESS(ROW(Data!$A$7),MATCH(P64,INDIRECT($AG$5&$AG$3),0)) -> Data!$UC$7 | AK64: =INDEX(Data!$1:$1048576,Data_Scenario_Current_RefScenario_Row,MATCH(P64,Data!$35:$35,0)) -> 
B65: 4 | P65: ="RV "&$A$60&$B65 -> RV USER COMMENTS4 | W65: =INDEX(Data!$1:$1048576,ROW(Data!$A$7),MATCH(P65,Data!$35:$35,0)) ->  | AD65: =$AG$5&ADDRESS(ROW(Data!$A$7),MATCH(P65,INDIRECT($AG$5&$AG$3),0)) -> Data!$UD$7 | AK65: =INDEX(Data!$1:$1048576,Data_Scenario_Current_RefScenario_Row,MATCH(P65,Data!$35:$35,0)) -> 
B66: 5 | P66: ="RV "&$A$60&$B66 -> RV USER COMMENTS5 | W66: =INDEX(Data!$1:$1048576,ROW(Data!$A$7),MATCH(P66,Data!$35:$35,0)) ->  | AD66: =$AG$5&ADDRESS(ROW(Data!$A$7),MATCH(P66,INDIRECT($AG$5&$AG$3),0)) -> Data!$UE$7 | AK66: =INDEX(Data!$1:$1048576,Data_Scenario_Current_RefScenario_Row,MATCH(P66,Data!$35:$35,0)) -> 

Sheet DC
AG3: =MID(ADDRESS(ROW(Data!$A$35),1,2),FIND("$",ADDRESS(ROW(Data!$A$35),1,2)),100)&":"&MID(ADDRESS(ROW(Data!$A$35),1,2),FIND("$",ADDRESS(ROW(Data!$A$35),1,2)),100) -> $35:$35
A4: STEP 4: | B4: DEVELOPMENT CHARACTERISTICS | P4: =OFFSET(P4,0,1)-1 -> -3 | Q4: =OFFSET(Q4,0,1)-1 -> -2 | R4: =OFFSET(R4,0,1)-1 -> -1 | S4: 0 | T4: =OFFSET(T4,0,-1)+1 -> 1 | U4: =OFFSET(U4,0,-1)+1 -> 2 | V4: =OFFSET(V4,0,-1)+1 -> 3 | W4: =OFFSET(W4,0,-1)+1 -> 4 | Z4: =COLUMN(Z4)-COLUMN($F4) -> 20 | AN4: =COLUMN(AN4)-COLUMN($F4) -> 34
P5: =LEFT(ADDRESS(1,COLUMN(P1),3),LEN(ADDRESS(1,COLUMN(P1),3))-1)&":"&LEFT(ADDRESS(1,COLUMN(P1),3),LEN(ADDRESS(1,COLUMN(P1),3))-1) -> $P:$P | Q5: =LEFT(ADDRESS(1,COLUMN(Q1),3),LEN(ADDRESS(1,COLUMN(Q1),3))-1)&":"&LEFT(ADDRESS(1,COLUMN(Q1),3),LEN(ADDRESS(1,COLUMN(Q1),3))-1) -> $Q:$Q | R5: =LEFT(ADDRESS(1,COLUMN(R1),3),LEN(ADDRESS(1,COLUMN(R1),3))-1)&":"&LEFT(ADDRESS(1,COLUMN(R1),3),LEN(ADDRESS(1,COLUMN(R1),3))-1) -> $R:$R | S5: $S:$S | T5: $T:$T | U5: $U:$U | V5: $V:$V | W5: $W:$W | AG5: Data!
A6: F | C6: Current Scenario: | D6: =Data_Scenario_Active_Label -> #0 - <<Default Scenario>> | H6: =Data_Scenario_Active_Note -> Note: Changes to Scenarios #0 - 6 cannot be SAVED as they are the built-in scenarios
A7: LAND USE AND LOCATIONAL CHARACTERISTICS
A9: F | B9: These variables are used to assign costs to residential/non-residential uses
B10: They are also used in the calculation of travel activity and related impacts
E11: General Scenario Characteristics
E12: Distance to Central Business District (km): | F12: 1.6 | G12: F | H12: Distance from approximate centre of development to centre of nearest downtown | S12: =$E$11&LEFT($E12,FIND("(",$E12)-2) -> General Scenario CharacteristicsDistance to Central Business District | Z12: =INDEX(Data!$1:$1048576,ROW(Data!$A$7),MATCH(S12,Data!$35:$35,0)) -> 1.6 | AG12: =$AG$5&ADDRESS(ROW(Data!$A$7),MATCH(S12,INDIRECT($AG$5&$AG$3),0)) -> Data!$I$7 | AN12: =INDEX(Data!$1:$1048576,Data_Scenario_Current_RefScenario_Row,MATCH(S12,Data!$35:$35,0)) -> 1.6
H13: employment area.
E14: Gross Land Area (Ha): | F14: 40 | G14: F | H14: Total gross area of the neighbourhood/community/development under consideration | S14: =$E$11&LEFT($E14,FIND("(",$E14)-2) -> General Scenario CharacteristicsGross Land Area | Z14: =INDEX(Data!$1:$1048576,ROW(Data!$A$7),MATCH(S14,Data!$35:$35,0)) -> 40 | AG14: =$AG$5&ADDRESS(ROW(Data!$A$7),MATCH(S14,INDIRECT($AG$5&$AG$3),0)) -> Data!$J$7 | AN14: =INDEX(Data!$1:$1048576,Data_Scenario_Current_RefScenario_Row,MATCH(S14,Data!$35:$35,0)) -> 40
H15: including residential and employment lands
H18: Gross land area minus area for parks, roads, undevelopable land areas,
